Workbook

Sheet Introduction
A1: Oil Production Greenhouse gas Emissions Estimator (OPGEE)
A3: Model version | C3: 1.1 DRAFT A | E3: Model date | G3: 2013-02-23
A7: Authors
B9: Hassan M. El-Houjeiri | E9: Department of Energy Resources Engineering, Stanford University
B10: Adam R. Brandt | E10: Department of Energy Resources Engineering, Stanford University
A16: Acknowledgements
B18: Funding for OPGEE development has been provided by:
C19: California Air Resouces Board, as part of agreement number 10-418
C20: Stanford University School of Earth Sciences
B23: OPGEE is an open-source project which has benefitted from feedback, discussion, and constructive comments from a variety of observers. We acknowledge these contributions.
C24: In particular, we would like to acknowledge significant contributions from:
C25: James Duffy | E25: California Air Resources Board
C26: Chris Malins | E26: International Council on Clean Transportation
A29: Overview
B31: This model computes the greenhouse gas emissions from conventional and unconventional upstream oil operations, including all major upstream processes.
B32: Large process stages included:
C33: Exploration
C34: Drilling and development
C35: Production and extraction
C36: Separations and surface operations
C37: Treatment and waste disposal
C38: Transport
A44: Copyright statement
B46: Copyright © 2012, 2013 The Board of Trustees of the Leland Stanford Junior University
B47: All rights reserved.
B49: The Oil Production Greenhouse Gas Emissions Estimator (OPGEE) Program (Software), source code, binary files, and operating manuals are being provided free of charge. Software may be downloaded, modified and redistributed freely under the following terms and conditions:
B51: Redistributions of any of the following: Software's source code, executables, and any other materials provided must
C52: * retain the above copyright notice
C53: * require that the source and executable with any modifications be made publicly available under these same terms and conditions and
C54: * be sent to: Adam Brandt, Department of Energy Resources Engineering, Stanford University, abrandt@stanford.edu
C55: * include this entire Agreement with any redistribution
B57: Neither the name of Stanford University nor the names of the contributors may be used to endorse or promote products derived from this Software without specific prior written permission.
B59: Software is being provided “AS IS” and With All Faults. Users acknowledge that Stanford or contributors will not provide any maintenance or support for Software.
B61: Stanford makes no representations and extends no warranties of any kind, either express or implied.
B63: Stanford disclaims any express or implied warranty of merchantability, or fitness for a particular purpose, of non-infringement, or arising out of any course of dealing.
B65: Stanford is not liable for any special, consequential, lost profits, expectation, punitive or other indirect damages in connection with any claim arising out of or related to the use of Software whether grounded in tort (including negligence), strict liability, contract, or otherwise; and,
B67: Users will indemnify, hold harmless and defend Stanford against any claim of any kind arising out of or related to the exercise of any rights in this Agreement.

Sheet Model Organization
A1: Organization and overview
B3: This sheet provides an overview of the model stages and outlines which sub-processes are included or excluded from each model stage
B4: Some emissions sources have the potential to reduce effective emissions through offsets. These are marked with [-].
A7: 1 Emissions magnitude estimation
A9: Importance code | C9: Estimated size | E9: Degree of treatment
A10: * | C10: 0.01 | D10: g/MJ | E10: Excluded
A11: ** | C11: 0.1 | D11: g/MJ | E11: Included with defaults or excluded
A12: *** | C12: 1 | D12: g/MJ | E12: Included with ease of customization
A13: **** | C13: 10 | D13: g/MJ | E13: Included with significant treatment and uncertainty analysis
A16: 2 Inclusion and exclusion in current model version
B19: Main stage | C19: Process | D19: Sub-process | E19: Emissions source | F19: Variants | G19: Sensitivity code | H19: Estimated magnitude (gCO2 eq./MJ) | I19: Included?
B20: Exploration | C20: Seismic exploration | D20: Terrestrial seismic | E20: Vehicular emissions | F20: - | G20: * | H20: =IF(G20="*","<= 0.01 g",IF(G20="**","~ 0.1 g",IF(G20="***","~ 1 g",IF(G20="****","~ 10 g","Error")))) -> <= 0.01 g | I20: 1
E21: Data processing | F21: - | G21: * | H21: <= 0.01 g | I21: 0
E22: Consumed materials (charges etc.) | F22: - | G22: * | H22: <= 0.01 g | I22: 0
E23: Land use impacts | F23: - | G23: * | H23: <= 0.01 g | I23: 0
D24: Oceanic seismic | E24: Ship emissions | F24: - | G24: * | H24: <= 0.01 g | I24: 0
E25: Data processing | F25: - | G25: * | H25: <= 0.01 g | I25: 0
E26: Consumed materials | F26: - | G26: * | H26: <= 0.01 g | I26: 0
C27: Exploratory drilling | D27: Terrestrial drilling | E27: Prime mover emissions | F27: - | G27: * | H27: <= 0.01 g | I27: 0
E28: Land clearing and construction | F28: - | G28: * | H28: <= 0.01 g | I28: 0
E29: Vents and upset emissions | F29: - | G29: * | H29: <= 0.01 g | I29: 0
E30: Drilling flares | F30: - | G30: * | H30: <= 0.01 g | I30: 0
E31: Casing and cement | F31: - | G31: * | H31: <= 0.01 g | I31: 0
E32: Other material consumption (e.g., frac sand) | F32: - | G32: * | H32: <= 0.01 g | I32: 0
E33: Land use impacts | F33: - | G33: * | H33: <= 0.01 g | I33: 0
E34: Indirect land use impacts (opening of inaccessible land) | F34: - | G34: * | H34: <= 0.01 g | I34: 0
D35: Offshore drilling | E35: Prime mover emissions | F35: - | G35: * | H35: <= 0.01 g | I35: 0
E36: Drilling flares | F36: - | G36: * | H36: <= 0.01 g | I36: 0
E37: Vents and upset emissions | F37: - | G37: * | H37: <= 0.01 g | I37: 0
E38: Casing and cement | F38: - | G38: * | H38: <= 0.01 g | I38: 0
C39: Waste handling and disposal | D39: Mud and fluid handling | E39: Energy consumption (other than prime mover) | F39: - | G39: * | H39: <= 0.01 g | I39: 0
E40: Fugitives from mud | F40: - | G40: * | H40: <= 0.01 g | I40: 0
E41: Disposal of mud | F41: - | G41: * | H41: <= 0.01 g | I41: 0
D42: Fracturing fluid disposal | E42: Processing and disposal of fracturing fluid | F42: - | G42: * | H42: <= 0.01 g | I42: 0
D43: Produced water disposal | E43: Processing of produced water | F43: - | G43: * | H43: <= 0.01 g | I43: 0
E44: Disposal of produced water (remote or on-site reinjection) | F44: - | G44: * | H44: <= 0.01 g | I44: 0
B47: Main stage | C47: Process | D47: Sub-process | E47: Emissions source | F47: Variants | G47: Sensitivity code | H47: Estimated magnitude | I47: Included?
B48: Drilling and development | C48: Developmental drilling | D48: Terrestrial drilling | E48: Prime mover emissions | F48: - | G48: ** | H48: =IF(G48="*","<= 0.01 g",IF(G48="**","~ 0.1 g",IF(G48="***","~ 1 g",IF(G48="****","~ 10 g","Error")))) -> ~ 0.1 g | I48: 1
E49: Drilling flares | F49: - | G49: * | H49: <= 0.01 g | I49: 0
E50: Vents and upset emissions | F50: - | G50: ** | H50: ~ 0.1 g | I50: 0
E51: Land use impacts | F51: - | G51: ** | H51: ~ 0.1 g | I51: 1
E52: Clearing and construction | F52: - | G52: * | H52: <= 0.01 g | I52: 0
E53: Casing and cement embodied emissions | F53: - | G53: * | H53: <= 0.01 g | I53: 0
E54: Other materials consumption (e.g., frac sand) | F54: - | G54: * | H54: <= 0.01 g | I54: 0
D55: Oceanic drilling | E55: Prime mover emissions | F55: - | G55: ** | H55: ~ 0.1 g | I55: 1
E56: Drilling flares | F56: - | G56: * | H56: <= 0.01 g | I56: 0
E57: Vents and upset emissions | F57: - | G57: ** | H57: ~ 0.1 g | I57: 0
E58: Casing and cement embodied emissions | F58: - | G58: * | H58: <= 0.01 g | I58: 0
C59: Processing capital investment | D59: Oil/gas/water separators | E59: Separator assembly | F59: - | G59: * | H59: <= 0.01 g | I59: 0
E60: Separator fabrication | F60: - | G60: * | H60: <= 0.01 g | I60: 0
E61: Separator transport | F61: - | G61: * | H61: <= 0.01 g | I61: 0
E62: Raw materials manufacture | F62: - | G62: * | H62: <= 0.01 g | I62: 0
D63: Water reinjection wells | E63: Various drilling emissions from reinjection wells (see above) | F63: - | G63: * | H63: <= 0.01 g | I63: 0
D64: Pumps | E64: Pump assembly | F64: - | G64: * | H64: <= 0.01 g | I64: 0
E65: Pump fabrication and raw materials manufacture | F65: - | G65: * | H65: <= 0.01 g | I65: 0
E66: Pump transport | F66: - | G66: * | H66: <= 0.01 g | I66: 0
C67: Storage capital investment | D67: Storage capital investment | E67: Tank assembly | F67: - | G67: * | H67: <= 0.01 g | I67: 0
E68: Tank fabrication | F68: - | G68: * | H68: <= 0.01 g | I68: 0
E69: Tank transport | F69: - | G69: * | H69: <= 0.01 g | I69: 0
E70: Raw materials manufacture | F70: - | G70: * | H70: <= 0.01 g | I70: 0
E71: Land use impacts | F71: - | G71: * | H71: <= 0.01 g | I71: 0
C72: Transport capital investment | D72: Pipeline capital investment | E72: Pipeline assembly | F72: - | G72: * | H72: <= 0.01 g | I72: 0
E73: Pipe fabrication | F73: - | G73: * | H73: <= 0.01 g | I73: 0
E74: Pipe transport | F74: - | G74: * | H74: <= 0.01 g | I74: 0
E75: Raw materials manufacture | F75: - | G75: * | H75: <= 0.01 g | I75: 0
E76: Land use impacts | F76: - | G76: * | H76: <= 0.01 g | I76: 0
D77: Other transport capital investment | E77: Other infrastructure fabrication and assembly | F77: - | G77: * | H77: <= 0.01 g | I77: 0
B81: Main stage | C81: Process | D81: Sub-process | E81: Emissions source | F81: Variants | G81: Sensitivity code | H81: Estimated magnitude | I81: Included?
B82: Production and extraction | C82: Lifting | D82: Pumping | E82: Combustion for pump driver | F82: - | G82: *** | H82: =IF(G82="*","<= 0.01 g",IF(G82="**","~ 0.1 g",IF(G82="***","~ 1 g",IF(G82="****","~ 10 g","Error")))) -> ~ 1 g | I82: 1
E83: Electricity for pump driver | F83: - | G83: *** | H83: ~ 1 g | I83: 1
E84: Casing and wellhead fugitive emissions | F84: - | G84: *** | H84: ~ 1 g | I84: 1
D85: Gas lift | E85: Compressor prime mover emissions | F85: - | G85: *** | H85: ~ 1 g | I85: 1
E86: Compression electricity emissions | F86: - | G86: *** | H86: ~ 1 g | I86: 1
E87: Casing and wellhead fugitive emissions | F87: - | G87: *** | H87: ~ 1 g | I87: 1
C88: Injection | D88: Gas injection | E88: External gas processing (e.g., N2 production) | F88: - | G88: ** | H88: ~ 0.1 g | I88: 0
E89: Gas compression energy | G89: *** | H89: =IF(G89="*","<= 0.01 g",IF(G89="**","~ 0.1 g",IF(G89="***","~ 1 g",IF(G89="****","~ 10 g","Error")))) -> ~ 1 g | I89: 1
E90: [-] Gas sequestration credit (CO2 flood) | F90: - | G90: *** | H90: ~ 1 g | I90: 0
D91: Steam injection | E91: Water pre-treatment | F91: - | G91: * | H91: <= 0.01 g | I91: 0
E92: OTSG fuel combustion | F92: NG, produced oil | G92: **** | H92: ~ 10 g | I92: 1
E93: Turbine gas consumption (combined cycle) | F93: Low, med, high efficiency | G93: **** | H93: ~ 10 g | I93: 1
E94: HRSG duct firing (combined cycle) | F94: - | G94: *** | H94: ~ 1 g | I94: 1
E95: [-] Electricity co-production offsets (combined cycle) | F95: Grid mix variation | G95: **** | H95: ~ 10 g | I95: 1
E96: Steam pumping energy (if any) | F96: - | G96: * | H96: <= 0.01 g | I96: 0
D97: Polymer flood | E97: Polymer embodied energy | F97: - | G97: * | H97: <= 0.01 g | I97: 0
E98: Polymer mixing | F98: - | G98: * | H98: <= 0.01 g | I98: 0
E99: Polymer/water mixture pumping energy | F99: - | G99: * | H99: <= 0.01 g | I99: 0
D100: Surfactant/other injection | E100: Surfactant/other embodied energy | F100: - | G100: * | H100: <= 0.01 g | I100: 0
E101: Surfactant/other mixing | F101: - | G101: * | H101: <= 0.01 g | I101: 0
E102: Surfactant/other mixture pumping energy | F102: - | G102: * | H102: <= 0.01 g | I102: 0
B105: Main stage | C105: Process | D105: Sub-process | E105: Emissions source | F105: Variants | G105: Sensitivity code | H105: Estimated magnitude | I105: Included?
B106: Separation and surface processing | C106: Fluid separation | D106: Oil-water-gas separation | E106: Oil-water-gas separation | F106: - | G106: ** | H106: =IF(G106="*","<= 0.01 g",IF(G106="**","~ 0.1 g",IF(G106="***","~ 1 g",IF(G106="****","~ 10 g","Error")))) -> ~ 0.1 g | I106: 1
E107: Oil-water-gas separation with heater-treaters | F107: - | G107: ** | H107: ~ 0.1 g | I107: 1
E108: Associated gas venting | F108: Variations in flare efficiency | G108: **** | H108: ~ 10 g | I108: 1
E109: Associated gas flaring | F109: Variations in flare efficiency | G109: **** | H109: ~ 10 g | I109: 1
C110: Solid/fluid separation | D110: Solid separation from fluids | E110: Solids removal from separation | F110: - | G110: * | H110: <= 0.01 g | I110: 0
C111: Gas treatment | D111: Gas treatment | E111: Produced gas dehydration | F111: - | G111: * | H111: <= 0.01 g | I111: 1
E112: Produced gas venting and flaring | F112: - | G112: *** | H112: ~ 1 g | I112: 1
C113: Water treatment and disposal | D113: Water treatment | E113: Produced water cleanup | F113: - | G113: ** | H113: ~ 0.1 g | I113: 1
E114: Produced water handling and pumping | F114: - | G114: ** | H114: ~ 0.1 g | I114: 1
D115: Water reinjection and disposal | E115: Produced water reinjection | F115: - | G115: *** | H115: ~ 1 g | I115: 1
E116: Produced water disposal | F116: - | G116: ** | H116: ~ 0.1 g | I116: 1
C117: Storage (as part of separation) | D117: Storage | E117: Storage pumping energy | F117: - | G117: * | H117: <= 0.01 g | I117: 0
E118: Tank assembly and installation | F118: - | G118: * | H118: <= 0.01 g | I118: 0
E119: Evaporative and fugitive emissions | F119: - | G119: ** | H119: ~ 0.1 g | I119: 1
E120: Tank materials manufacture | F120: - | G120: * | H120: <= 0.01 g | I120: 0
E121: Land use impacts | F121: - | G121: * | H121: <= 0.01 g | I121: 0
B124: Main stage | C124: Process | D124: Sub-process | E124: Emissions source | F124: Variants | G124: Sensitivity code | H124: Estimated magnitude | I124: Included?
B125: Maintenance and workovers | C125: Well workover | D125: Terrestrial well workover | E125: Workover rig energy use | F125: - | G125: * | H125: =IF(G125="*","<= 0.01 g",IF(G125="**","~ 0.1 g",IF(G125="***","~ 1 g",IF(G125="****","~ 10 g","Error")))) -> <= 0.01 g | I125: 0
E126: Fugitive emissions during workover | F126: - | G126: ** | H126: ~ 0.1 g | I126: 1
E127: Embodied energy in consumed replacement parts | F127: - | G127: * | H127: <= 0.01 g | I127: 0
D128: Offshore well workover | E128: Workover rig energy use | F128: - | G128: * | H128: <= 0.01 g | I128: 0
E129: Fugitive emissions during workover | F129: - | G129: ** | H129: ~ 0.1 g | I129: 1
E130: Embodied energy in consumed replacement parts | G130: * | H130: <= 0.01 g | I130: 0
C131: Other maintenance | D131: Other maintenance | E131: Solids removal from separation | F131: - | G131: * | H131: <= 0.01 g | I131: 0
B136: Main stage | C136: Process | D136: Sub-process | E136: Emissions source | F136: Variants | G136: Sensitivity code | H136: Estimated magnitude | I136: Included?
B137: Waste treatment and disposal | C137: Water processing waste | D137: Water treatment waste disposal | E137: Subsurface disposal of concentrated WW residuals | F137: - | G137: * | H137: =IF(G137="*","<= 0.01 g",IF(G137="**","~ 0.1 g",IF(G137="***","~ 1 g",IF(G137="****","~ 10 g","Error")))) -> <= 0.01 g | I137: 0
E138: Surface disposal of separated solids | F138: - | G138: * | H138: <= 0.01 g | I138: 0
E139: Surface disposal of concentrated WW residuals | F139: - | G139: * | H139: <= 0.01 g | I139: 0
C140: Other waste separation and disposal | D140: Other waste separation and processing | E140: Other waste separation and processing | F140: - | G140: * | H140: <= 0.01 g | I140: 0
E141: Other waste storage | F141: - | G141: * | H141: <= 0.01 g | I141: 0
E142: Spills and other upsets | F142: - | G142: * | H142: <= 0.01 g | I142: 0
D143: Other waste disposal | E143: Other waste transport | F143: - | G143: * | H143: <= 0.01 g | I143: 0
E144: Other waste disposal (non-hazardous) | F144: - | G144: * | H144: <= 0.01 g | I144: 0
E145: Other waste disposal (hazardous) | F145: - | G145: * | H145: <= 0.01 g | I145: 0
C146: Solid waste disposal and project decommissioning | D146: Solid waste disposal | E146: Solid waste separation and processing | F146: - | G146: * | H146: <= 0.01 g | I146: 0
E147: Solid waste transport and disposal | F147: - | G147: * | H147: <= 0.01 g | I147: 0
D148: End of life and decommissioning | E148: Demolition and decommissioning | F148: - | G148: * | H148: <= 0.01 g | I148: 0
E149: Scrap and waste disposal | F149: - | G149: * | H149: <= 0.01 g | I149: 0
E150: [-] Credit for waste recycling (embodied energy) | F150: - | G150: * | H150: <= 0.01 g | I150: 0
B154: Main stage | C154: Process | D154: Sub-process | E154: Emissions source | F154: Variants | G154: Sensitivity code | H154: Estimated magnitude | I154: Included?
B155: Crude product transport | C155: Pipeline transport | D155: Pipeline transport | E155: Combustion for pump prime mover | F155: - | G155: *** | H155: =IF(G155="*","<= 0.01 g",IF(G155="**","~ 0.1 g",IF(G155="***","~ 1 g",IF(G155="****","~ 10 g","Error")))) -> ~ 1 g | I155: 1
E156: Electricity for pump use | F156: - | G156: *** | H156: ~ 1 g | I156: 1
E157: Process upsets (one-time events) | F157: - | G157: * | H157: <= 0.01 g | I157: 1
E158: Leaks (pipeline losses) | F158: - | G158: *** | H158: ~ 1 g | I158: 1
D159: Pipeline construction | E159: Construction equipment energy use | F159: - | G159: * | H159: <= 0.01 g | I159: 0
E160: Embodied energy in pipeline materials (cement and steel) | F160: - | G160: * | H160: <= 0.01 g | I160: 0
E161: Land use impacts | F161: - | G161: * | H161: <= 0.01 g | I161: 0
C162: Tanker transport | D162: Tanker transport | E162: Combustion in tanker prime mover (bunker fuels) | F162: - | G162: *** | H162: ~ 1 g | I162: 1
E163: Loading and unloading pumping | F163: - | G163: * | H163: <= 0.01 g | I163: 1
E164: Flares | F164: - | G164: * | H164: <= 0.01 g | I164: 1
E165: Vents, leaks and upsets | F165: - | G165: * | H165: <= 0.01 g | I165: 1
D166: Tanker construction | E166: Embodied energy in tanker materials (steel) | F166: - | G166: * | H166: <= 0.01 g | I166: 0
E167: Construction energy | F167: - | G167: * | H167: <= 0.01 g | I167: 0
C168: Storage (as part of transport) | D168: Storage | E168: Storage pumping energy | F168: - | G168: * | H168: <= 0.01 g | I168: 0
E169: Tank assembly and installation | F169: - | G169: * | H169: <= 0.01 g | I169: 0
E170: Evaporative and fugitive emissions | F170: - | G170: ** | H170: ~ 0.1 g | I170: 1
E171: Tank materials manufacture | F171: - | G171: * | H171: <= 0.01 g | I171: 0
E172: Land use impacts | F172: - | G172: * | H172: <= 0.01 g | I172: 0

Sheet Model changes
A1: Model changes
B3: This sheet tracks model changes from previous model versions
A7: Changes: OPGEE v1.0 to OPGEE v1.1 draft A
B9: From OPGEE v.1.0 to OPGEE v1.1, the following changes were made:
B11: Overall model organization
C12: Added sheet to track model changes (this sheet)
C13: Changed color themes to OPGEE custom color theme
C14: Divided VFF emissions calculations module into two modules, one for flaring and the other for venting and fugitives
B16: User inputs & results sheet
C17: Organized user inputs sheet for the implementation of new macro for the bulk assessment
C18: Allow removal of gas processing units on the user inputs sheet
C19: Added ocean tanker size to user inputs sheet
C20: Added volume fraction of diluent as a user input
C21: Added a separate emissions category for diluent life cycle emissions
C22: Removed allocation of offsite emissions
C23: Added a separate emissions category for total offsite emissions
B25: Defaults and smart defaults
C26: Rounded no. of injection wells to the nearest 1 well
B28: Data and input parameters
C29: Modified land use change emissions factors to account for 30 year analysis period
C30: Added petroleum coke life cycle energy consumption and GHG emissions
C31: Water oil ratio model improved with more regional data and new functional form
B33: Error checks and warnings
C34: Corrected the gas balance gas composition overall error check
C35: Added error check to ensure that downhole pump and gas lift do not co-exist (results in miscalculation of required lifting work)
C36: Added error check to ensure that user input for volume fraction of diluent is not less than the volume fraction of NGL produced onsite as crude oil blend
B38: New model functionality
C39: Imrpoved flaring calculation sheet is now separate from fugitives and venting
D40: Added sensitivity of flaring to flare exit velocity, flare diameter, wind speed, etc.
D41: Added smart default for flare diameters based on location (onshore, offishore)
D42: Added dynamic flare sizing to meet flare exit speed regulation
C44: More detailed demethanizer model now includes energy consumed by demethanizer
D45: Added demethanizer input data
D46: Added N2 and H2S gas densities to input data sheet
D47: Calculated gas feed into demethanizer in kmol
D48: Added demethanizer chilling and fractionation energy consumption
D49: Updated gathering sheets to include energy consumption and emissions of demethanizer
C51: Bulk assessment macro changes
D52: Developed a new macro which runs the bulk assessment for unlimited number of fields and has a built in logic for errors fixing
D53: Bulk assessment macro now has the following features:
E54: Works with limited datasets, and fills in defaults or smart defaults where applicable
E55: Resolves errors by changing programmatically the well diameter, productivity index, GOR etc. See documentation for details.
E56: Uses colors to highlight where the macro fills in or alters data
C58: Processing configuration flexibility
D59: Dehydrator can be switched ON/OFF
D60: AGR unit can be switched ON/OFF
D61: Demethanizer can be switched ON/OFF
C63: Diluent blending and upgrading for non oil sands heavy crudes
D64: Developed the option of diluent blending after production. The model now accounts for indirect GHG emissions associated with importing NGL for use as diluent. Added an ERROR check to make sure that the diluent volume fraction is the minimum as indicated by model inputs (minimum is NGL produced onsite as blend).
D65: Calculated non-integrated upgrader emissions and energy consumption for non-bitumen pathways using upgrading data from bitumen sheet
D66: Added emissions and energy consumption of non-integrated upgrader (if applicable) to conventional oil GHG emissions
C68: Supplemental flaring sheet added to compute flaring efficiency using flare exit diameter etc.
B71: Corrections and improvements
C72: Changed heater/treater calculations using default oil emulsion (14% emulsified water)
C73: Corrected the AGR unit venting emissions calculation
C74: Heating value basis in Bitumen Extraction & Upgrading sheet is changed from HHV basis to LHV basis to address error in emissions computation
C75: Fixed treatment of imported vs. on site energy at bitumen production facilities and clarified use of fuel cycle emissions for imported fuels.
C76: Diluted bitumen pathways now exhibit sensitivity in flaring and fugitive emissions computations to level of diluent blending. Upstream flaring and fugitive emissions from diluent life cycle are tracked in the "Fuel Cycle" sheet, and therefore should not be double counted in the Bitumen Extraction and Upgrading sheet.
C77: Improved compressor model (compressor now between 1 and 5 stages)
C78: Corrected two typo mistakes in the bulk assessment sheet (scf/bbl liquid for gas lift injection and C4+ instead of C4 for gas composition)
C79: Corrected flaring emissions so that calculations are based on reservior gas (pre-processing) composition
B81: Documentation and model explanation
C82: Highlighted changes to heater/treater calculations
C83: Improved description of offsite credits/debts
C84: Fixed error in documentation of small sources.
C85: Labeling of bitumen extraction and upgrading Table 4.10 fixed
C86: Fixed numbering in Bitumen Extraction & Upgrading sheet

Sheet User Inputs & Results
A1: User inputs and summary results
A3: 1 Summary results
B5: Model error check: | D5: =J140 -> OK
J6: Figure 1.1: Summary GHG emissions
B7: Table 1.1: Summary GHG emissions
B8: GHG emissions [gCO2eq/MJ]
C9: =J67 -> Generic
B10: Exploration | C10: =(G159)*G203+(G222)*G260 -> 0
B11: Drilling | C11: =(G165)*G203+(G229)*G260 -> 1.334089436
B12: Production | C12: =(G171)*G203+(G236)*G260 -> 0.8826221037
B13: Processing | C13: =(G177)*G203 -> 0.7637139097
B14: Upgrading | C14: =G198*G203+(G242)*G260 -> 0
B15: Maintenance | C15: =(G183)*G203+(G248)*G260 -> 0
B16: Waste | C16: =(G189)*G203+(G254)*G260 -> 0
B17: VFF | C17: =(G160+G166+G172+G178+G184+G190)*G203+(G223+G230+G237+G243+G249+G255)*G260 -> 3.554674824
B18: Diluent | C18: =G194*G203 -> 0
B19: Misc. | C19: =(G205)*G203+(G262)*G260 -> 0.500031
B20: Transport | C20: =G202+G259 -> 0.8912467749
B21: Offsite emissions | C21: =G207*G203+G264*G260 -> -0.5680036168
B22: Net lifecycle emissions | C22: =J46*G211+J47*G268 -> 7.358374431
B23: Notes: Copy highlighted column and paste 'as numbers' to generate a record
J26: Figure 1.2: Summary energy consumption
B27: Table 1.2: Summary energy consumption
B28: Energy consumption [MJ/MJ]
C29: =J67 -> Generic
B30: Exploration | C30: =G157*G203+G220*G260 -> 0
B31: Drilling | C31: =G163*G203+G227*G260 -> 0.0008885687536
B32: Production | C32: =G169*G203+G234*G260 -> 0.01175413676
B33: Processing | C33: =G175*G203 -> 0.0440421092
B34: Upgrading | C34: =G197*G203+G240*G260 -> 0
B35: Maintenance | C35: =G181*G203+G246*G260 -> 0.000178781877
B36: Waste | C36: =G187*G203+G252*G260 -> 0
B37: Diluent | C37: =G193*G203 -> 0
B38: Transport | C38: =G201+G258 -> 0.01265490909
B39: Total | C39: =J46*G209+J47*G266 -> 0.06951850568
B40: Notes: Copy highlighted column and paste 'as numbers' to generate a record
A43: 2 Petroleum resource
A46: 2.1 Conventional | J46: 1 | K46: 1 | L46: NA
A47: 2.2 Bitumen | J47: 0 | K47: 0 | L47: NA
I48: Check: | J48: =IF(J46+J47=1,"OK","ERROR") -> OK | K48: =IF(K46+K47=1,"OK","ERROR") -> OK
A50: 3 User inputs - Conventional
A52: Enter primary input parameters and choices
J53: User | K53: Default | L53: Unit | N53: Notes
A54: 3.1 Production methods
A55: Note: Enter "1" where applicable and "0" where not applicable
B57: 3.1.1 Downhole pump | J57: 1 | K57: 1 | L57: NA
B58: 3.1.2 Water reinjection | J58: 1 | K58: 1 | L58: NA | N58: If water flooding applies then "0"
B59: 3.1.3 Gas reinjection | J59: 1 | K59: 1 | L59: NA | N59: If gas flooding applies then "0"
B60: 3.1.4 Water flooding | J60: 0 | K60: 0 | L60: NA | N60: This is used for injecting amounts of water larger than the amount of produced water
B61: 3.1.5 Gas lifting | I61: =IF(AND(J57=1,J61=1),"ERROR","OK") -> OK | J61: 0 | K61: 0 | L61: NA | N61: This is used for gas lifting
B62: 3.1.6 Gas flooding | J62: 0 | K62: 0 | L62: NA | N62: This is used for injecting a different type of gas (e.g. N2) or amounts of gas larger than the amount of produced gas
B63: 3.1.7 Steam flooding | J63: 0 | K63: 0 | L63: NA | N63: This is used for injecting steam
A65: 3.2 Field properties
B66: 3.2.1 Field location (Country) | I66: =IF(ISNA(MATCH(J66,Flaring!B93:B151,0))=TRUE,"ERROR","OK") -> OK | J66: Generic | K66: Generic | L66: NA | N66: =IF(I66="ERROR","Check the spelling of the field location (The location name must be spelled exactly the same as in the 'Flaring' sheet, Table 4.1)","") -> 
B67: 3.2.2 Field name | J67: Generic | K67: Generic | L67: NA
B68: 3.2.3 Field age | J68: 35 | K68: 35 | L68: yr
B69: 3.2.4 Field depth | J69: 7240 | K69: 7240 | L69: ft
B70: 3.2.5 Oil production volume | J70: 1500 | K70: 1500 | L70: bbl/d
B71: 3.2.6 Number of producing wells | J71: 8 | K71: =IF(ROUND(J70/183,0)<1,1,ROUND(J70/183,0)) -> 8 | L71: [-]
B72: 3.2.7 Number of water injecting wells | J72: 5 | K72: =ROUNDUP(IF((J70/J71)<10,0.143*J71,IF((J70/J71)<100,0.254*J71,IF((J70/J71)<1000,0.532*J71,0.831*J71))),0) -> 5 | L72: [-]
B73: 3.2.8 Well diameter | J73: 2.775 | K73: =(1.05+4.5)/2 -> 2.775 | L73: in
B74: 3.2.9 Productivity index | J74: 3 | K74: 3 | L74: bbl/psi-d
B75: 3.2.10 Average reservoir pressure | J75: 1556.6 | K75: =0.5*(J69*0.43) -> 1556.6 | L75: psi
A77: 3.3 Fluid properties
B78: 3.3.1 API gravity of produced crude | J78: 30 | K78: 30 | L78: deg. API
B79: 3.3.2 Associated gas composition
I80: N2 | J80: 2 | K80: 2 | L80: mol% | N80: Composition on dry basis
I81: CO2 | J81: 6 | K81: 6 | L81: mol%
I82: C1 | J82: 84 | K82: 84 | L82: mol%
I83: C2 | J83: 4 | K83: 4 | L83: mol%
I84: C3 | J84: 2 | K84: 2 | L84: mol%
I85: C4+ | J85: 1 | K85: 1 | L85: mol%
I86: H2S | J86: 1 | K86: 1 | L86: mol%
A88: 3.4 Production practices
A89: Notes: Enter "NA" where not applicable
B90: 3.4.1 Gas-to-oil ratio (GOR) | J90: 908 | K90: =IF(J78<20,227,IF(AND(J78>=20,J78<=30),908,1297)) -> 908 | L90: scf/bbl oil | N90: In the case of gas lift, the gas oil ratio should include produced gas from the reservoir as well as injected lift gas.
B91: 3.4.2 Water-to-oil ratio (WOR) | J91: 4.308369057 | K91: =1.706*EXP(0.036*J68)-1.706 -> 4.308369057 | L91: bbl water/bbl oil
B92: 3.4.3 Water injection ratio | I92: =IF(AND(J92="NA",J60=1),"ERROR","OK") -> OK | J92: 5.308369057 | K92: =J91+1 -> 5.308369057 | L92: bbl water/bbl oil
B93: 3.4.4 Gas lifting injection ratio | I93: =IF(AND(J93="NA",J61=1),"ERROR","OK") -> OK | J93: 1500 | K93: 1500 | L93: scf/bbl liquid | N93: Gas lifting injection (does not include gas reinjected into the reservoir)
B94: 3.4.5 Gas flooding injection ratio | I94: =IF(AND(J94="NA",J62=1),"ERROR","OK") -> OK | J94: 1362 | K94: =IF('Production & Extraction'!M186=1,1.5*J90,1200) -> 1362 | L94: scf/bbl oil
B95: 3.4.6 Steam-to-oil ratio (SOR) | I95: =IF(AND(J95="NA",J63=1),"ERROR","OK") -> OK | J95: 3 | K95: 3 | L95: bbl steam/bbl oil
B96: 3.4.7 Fraction of required electricity generated onsite | J96: 0 | K96: 0 | L96: [-]
B97: 3.4.8 Fraction of remaining gas reinjected | J97: 0 | K97: 0 | L97: [-] | N97: 1.0 if gas flooding applies (Note: Do not enter NA at all times)
B98: 3.4.9 Fraction of water produced reinjected | J98: 1 | K98: 1 | L98: [-] | N98: 1.0 if water flooding applies (Note: Do not enter NA at all times)
B99: 3.4.10 Fraction of steam generation via co-generation | J99: 0 | K99: 0 | L99: [-]
A101: 3.5 Processing practices
B102: 3.5.1 Heater/treater (1= Applicable; 0= Not applicable) | J102: 0 | K102: =IF(J78<18,1,0) -> 0 | L102: NA
B103: 3.5.2 Stabilizer column (1= Applicable; 0 = Not applicable) | J103: 1 | K103: =IF(J90<=500,0,1) -> 1 | L103: NA
B104: 3.5.3 Application of AGR unit (1= Applicable; 0 = Not applicable) | J104: 1 | K104: 1 | L104: NA
B105: 3.5.4 Application of gas dehydration unit (1= Applicable; 0 = Not applicable) | J105: 1 | K105: 1 | L105: NA
B106: 3.5.5 Application of demethanizer unit (1= Applicable; 0 = Not applicable) | J106: 1 | K106: 1 | L106: NA
B107: 3.5.6 Ratio of flaring to oil production | J107: 181.5280918 | K107: =1000000*(Flaring!N15/'Production & Extraction'!M35) -> 181.5280918 | L107: scf/bbl | N107: Default calculated based on satellite data from NOAA
B108: 3.5.7 Ratio of venting to oil production | J108: 0 | K108: 0 | L108: scf/bbl | N108: This is the ratio of venting used as a disposal mechanism (does not include operational venting / default leaks)
B109: 3.5.8 Volume fraction of diluent in diluted crude | I109: =IF(J109<K109,"ERROR","OK") -> OK | J109: 0 | K109: =ROUND('Surface Processing'!M122*('Gas Balance'!AC36/'Fuel Specs'!M14)/(J70+'Surface Processing'!M122*('Gas Balance'!AC36/'Fuel Specs'!M14)),3) -> 0 | L109: [-] | N109: Default is the minimum indicated by the model inputs
A111: 3.6 Land use impacts
B112: 3.6.1 Crude ecosystem carbon richness
C113: 3.6.1.1 Low carbon richness (semi-arid grasslands) | J113: 0 | K113: 0 | L113: NA
C114: 3.6.1.2 Moderate carbon richness (mixed) | J114: 1 | K114: 1 | L114: NA
C115: 3.6.1.3 High carbon richness (forested) | J115: 0 | K115: 0 | L115: NA
B116: 3.6.2 Field development intensity
C117: 3.6.2.1 Low intensity development and low oxidation | J117: 0 | K117: 0 | L117: NA
C118: 3.6.2.2 Moderate intensity development and moderate oxidation | J118: 1 | K118: 1 | L118: NA
C119: 3.6.2.3 High intensity development and high oxidation | J119: 0 | K119: 0 | L119: NA
A121: 3.7 Non-integrated upgrader (1= Applicable; 0= Not applicable) | J121: 0 | K121: 0 | L121: NA
A123: 3.8 Crude oil transport
B124: 3.8.1 Fraction of oil transported by each mode | N124: The total fraction of all modes may exceed 1.0 because more than one transportation legs may be involved for transporting the oil
C125: 3.8.1.1 Ocean tanker | J125: 1 | K125: 1 | L125: [-]
C126: 3.8.1.2 Barge | J126: 0 | K126: 0 | L126: [-]
C127: 3.8.1.3 Pipeline | J127: 1 | K127: 1 | L127: [-]
C128: 3.8.1.4 Rail | J128: 0 | K128: 0 | L128: [-]
B129: 3.8.2 Transport distance (one way)
C130: 3.8.2.1 Ocean tanker | J130: 5082 | K130: 5082 | L130: Miles
C131: 3.8.2.2 Barge | J131: 500 | K131: 500 | L131: Miles
C132: 3.8.2.3 Pipeline | J132: 750 | K132: 750 | L132: Miles
C133: 3.8.2.4 Rail | J133: 800 | K133: 800 | L133: Miles
B134: 3.8.3 Ocean tanker size, if applicable | J134: 250000 | K134: 250000 | L134: Tons
A136: 3.9 Small sources emissions | J136: 0.5 | K136: 0.5 | L136: gCO2 eq/MJ | N136: Assumption to account for numerous small sources not included in current version of OPGEE (see `Model organization' sheet for list of sources not explicitly modeled)
J139: Status
A140: 3.10 Overall error check | J140: =IF(J57="","",IF(OR(J276="ERROR",J277="ERROR",J278="ERROR",J279="ERROR",J280="ERROR",J281="ERROR",J282="ERROR",J283="ERROR",J284="ERROR",J285="ERROR",J286="ERROR",J287="ERROR",J288="ERROR",J289="ERROR",J290="ERROR",J291="ERROR",J292="ERROR",J293="ERROR",J294="ERROR",J295="ERROR",J296="ERROR",J297="ERROR",J298="ERROR",J299="ERROR",J300="ERROR"),"ERROR","OK")) -> OK | N140: For specific error checks see section 7 below
A143: 4 User inputs - Bitumen
A146: Notes:
A147: Change user inputs in Bitumen Extraction & Upgrading sheet.
A148: Change crude production method in Drilling & Development sheet (section 2.1.3).
A151: 5 Summary results - Conventional
A153: These results are derived from calculations in following sheets
G155: Value | H155: Unit | J155: Notes
A156: 5.1 Exploration
B157: 5.1.1 Total energy consumption | G157: =J46*0 -> 0 | H157: MJ/MJ | J157: Exploration energy use is not included in the current version of the model
B158: 5.1.2 Total GHG emissions | G158: =J46*0 -> 0 | H158: gCO2eq/MJ | J158: Exploration emissions are not included in the current version of the model
C159: 5.1.2.1 Combustion/land use | G159: =J46*0 -> 0 | H159: gCO2eq/MJ
C160: 5.1.2.2 VFF | G160: =J46*0 -> 0 | H160: gCO2eq/MJ
A162: 5.2 Drilling & Development
B163: 5.2.1 Total energy consumption | G163: =J46*(1+IF(J109=1,0,('Surface Processing'!M122*('Gas Balance'!AC36/'Fuel Specs'!M14)/(J70/(1-J109))))-J109)*(('Energy Consumption'!H20/('Energy Consumption'!H61-'Energy Consumption'!H59))*('Energy Consumption'!E97+'Energy Consumption'!E108)+0)/('Production & Extraction'!M35*'Fuel Specs'!M14-'Energy Consumption'!E96+'Gas Balance'!AC35*'Surface Processing'!M122+IF('Fuel Cycle'!F10=2,ABS('Energy Consumption'!E84),0)) -> 0.0008885136658 | H163: MJ/MJ
B164: 5.2.2 Total GHG emissions | G164: =J46*SUM(G165:G166) -> 1.334006727 | H164: gCO2eq/MJ
C165: 5.2.2.1 Combustion/land use | G165: =J46*(1+IF(J109=1,0,('Surface Processing'!M122*('Gas Balance'!AC36/'Fuel Specs'!M14)/(J70/(1-J109))))-J109)*('GHG Emissions'!H12+'GHG Emissions'!I12)/('Input data'!E46*('Production & Extraction'!M35*'Fuel Specs'!M14-'Energy Consumption'!E96+'Gas Balance'!AC35*'Surface Processing'!M122+IF('Fuel Cycle'!F10=2,ABS('Energy Consumption'!E84),0))) -> 1.334006727 | H165: gCO2eq/MJ
C166: 5.2.2.2 VFF | G166: =J46*0 -> 0 | H166: gCO2eq/MJ
A168: 5.3 Crude production & extraction
B169: 5.3.1 Total energy consumption | G169: =J46*(1+IF(J109=1,0,('Surface Processing'!M122*('Gas Balance'!AC36/'Fuel Specs'!M14)/(J70/(1-J109))))-J109)*(('Energy Consumption'!H22/('Energy Consumption'!H61-'Energy Consumption'!H59))*('Energy Consumption'!E97+'Energy Consumption'!E108)+((Flaring!I80+'Venting & Fugitives'!H247+'Venting & Fugitives'!H251)/365))/('Production & Extraction'!M35*'Fuel Specs'!M14-'Energy Consumption'!E96+'Gas Balance'!AC35*'Surface Processing'!M122+IF('Fuel Cycle'!F10=2,ABS('Energy Consumption'!E84),0)) -> 0.01175340805 | H169: MJ/MJ
B170: 5.3.2 Total GHG emissions | G170: =J46*(G171+G172) -> 0.8998862189 | H170: gCO2eq/MJ | J170: MJ of crude output
C171: 5.3.2.1 Combustion/land use | G171: =J46*(1+IF(J109=1,0,('Surface Processing'!M122*('Gas Balance'!AC36/'Fuel Specs'!M14)/(J70/(1-J109))))-J109)*(('GHG Emissions'!H14+'GHG Emissions'!I14)+('Energy Consumption'!H22/('Energy Consumption'!H22+'Energy Consumption'!H34))*'GHG Emissions'!H49)/('Input data'!E46*('Production & Extraction'!M35*'Fuel Specs'!M14-'Energy Consumption'!E96+'Gas Balance'!AC35*'Surface Processing'!M122+IF('Fuel Cycle'!F10=2,ABS('Energy Consumption'!E84),0))) -> 0.8825673846 | H171: gCO2eq/MJ
C172: 5.3.2.2 VFF | G172: =J46*(1+IF(J109=1,0,('Surface Processing'!M122*('Gas Balance'!AC36/'Fuel Specs'!M14)/(J70/(1-J109))))-J109)*('GHG Emissions'!J14+'GHG Emissions'!K14+'GHG Emissions'!L14)/('Input data'!E46*('Production & Extraction'!M35*'Fuel Specs'!M14-'Energy Consumption'!E96+'Gas Balance'!AC35*'Surface Processing'!M122+IF('Fuel Cycle'!F10=2,ABS('Energy Consumption'!E84),0))) -> 0.01731883437 | H172: gCO2eq/MJ
A174: 5.4 Surface processing
B175: 5.4.1 Total energy consumption | G175: =J46*(1+IF(J109=1,0,('Surface Processing'!M122*('Gas Balance'!AC36/'Fuel Specs'!M14)/(J70/(1-J109))))-J109)*(('Energy Consumption'!H34/('Energy Consumption'!H61-'Energy Consumption'!H59))*('Energy Consumption'!E97+'Energy Consumption'!E108)+((Flaring!I81+'Venting & Fugitives'!H248+'Venting & Fugitives'!H252)/365))/('Production & Extraction'!M35*'Fuel Specs'!M14-'Energy Consumption'!E96+'Gas Balance'!AC35*'Surface Processing'!M122+IF('Fuel Cycle'!F10=2,ABS('Energy Consumption'!E84),0)) -> 0.04403937876 | H175: MJ/MJ
B176: 5.4.2 Total GHG emissions | G176: =J46*(G177+G178) -> 4.214722227 | H176: gCO2eq/MJ | J176: MJ of crude output
C177: 5.4.2.1 Combustion/land use | G177: =J46*(1+IF(J109=1,0,('Surface Processing'!M122*('Gas Balance'!AC36/'Fuel Specs'!M14)/(J70/(1-J109))))-J109)*(('GHG Emissions'!H24+'GHG Emissions'!I24)+('Energy Consumption'!H34/('Energy Consumption'!H22+'Energy Consumption'!H34))*'GHG Emissions'!H49)/('Input data'!E46*('Production & Extraction'!M35*'Fuel Specs'!M14-'Energy Consumption'!E96+'Gas Balance'!AC35*'Surface Processing'!M122+IF('Fuel Cycle'!F10=2,ABS('Energy Consumption'!E84),0))) -> 0.7636665624 | H177: gCO2eq/MJ
C178: 5.4.2.2 VFF | G178: =J46*(1+IF(J109=1,0,('Surface Processing'!M122*('Gas Balance'!AC36/'Fuel Specs'!M14)/(J70/(1-J109))))-J109)*('GHG Emissions'!J24+'GHG Emissions'!K24+'GHG Emissions'!L24)/('Input data'!E46*('Production & Extraction'!M35*'Fuel Specs'!M14-'Energy Consumption'!E96+'Gas Balance'!AC35*'Surface Processing'!M122+IF('Fuel Cycle'!F10=2,ABS('Energy Consumption'!E84),0))) -> 3.451055664 | H178: gCO2eq/MJ
A180: 5.5 Maintenance
B181: 5.5.1 Total energy consumption | G181: =J46*(1+IF(J109=1,0,('Surface Processing'!M122*('Gas Balance'!AC36/'Fuel Specs'!M14)/(J70/(1-J109))))-J109)*(('Energy Consumption'!H55/('Energy Consumption'!H61-'Energy Consumption'!H59))*('Energy Consumption'!E97+'Energy Consumption'!E108)+((Flaring!I82+'Venting & Fugitives'!H249+'Venting & Fugitives'!H253)/365))/('Production & Extraction'!M35*'Fuel Specs'!M14-'Energy Consumption'!E96+'Gas Balance'!AC35*'Surface Processing'!M122+IF('Fuel Cycle'!F10=2,ABS('Energy Consumption'!E84),0)) -> 0.0001787707932 | H181: MJ/MJ
B182: 5.5.2 Total GHG emissions | G182: =J46*(G183+G184) -> 0.08607994957 | H182: gCO2eq/MJ | J182: MJ of crude output
C183: 5.5.2.1 Combustion/land use | G183: =J46*0 -> 0 | H183: gCO2eq/MJ
C184: 5.5.2.2 VFF | G184: =J46*(1+IF(J109=1,0,('Surface Processing'!M122*('Gas Balance'!AC36/'Fuel Specs'!M14)/(J70/(1-J109))))-J109)*('GHG Emissions'!J45+'GHG Emissions'!K45+'GHG Emissions'!L45)/('Input data'!E46*('Production & Extraction'!M35*'Fuel Specs'!M14-'Energy Consumption'!E96+'Gas Balance'!AC35*'Surface Processing'!M122+IF('Fuel Cycle'!F10=2,ABS('Energy Consumption'!E84),0))) -> 0.08607994957 | H184: gCO2eq/MJ
A186: 5.6 Waste disposal
B187: 5.6.1 Total energy consumption | G187: =J46*0 -> 0 | H187: MJ/MJ | J187: Waste disposal energy use is not included in the current version of the model
B188: 5.6.2 Total GHG emissions | G188: =J46*0 -> 0 | H188: gCO2eq/MJ | J188: Waste disposal emissions are not included in the current version of the model
C189: 5.6.2.1 Combustion/land use | G189: =J46*0 -> 0 | H189: gCO2eq/MJ
C190: 5.6.2.2 VFF | G190: =J46*0 -> 0 | H190: gCO2eq/MJ
A192: 5.7 Diluent
B193: 5.7.1 Total energy consumption | G193: =J46*IF(J109=1,'Fuel Cycle'!D59,'Fuel Cycle'!D59*(J109-('Surface Processing'!M122*('Gas Balance'!AC36/'Fuel Specs'!M14)/(J70/(1-J109))))) -> 0 | H193: MJ/MJ
B194: 5.7.2 Total GHG emissions | G194: =J46*IF(J109=1,'Fuel Cycle'!D73/'Input data'!E46,('Fuel Cycle'!D73/'Input data'!E46)*(J109-('Surface Processing'!M122*('Gas Balance'!AC36/'Fuel Specs'!M14)/(J70/(1-J109))))) -> 0 | H194: gCO2eq/MJ
A196: 5.8 Non-integrated upgrader
B197: 5.8.1 Total energy consumption | G197: =J46*(1+IF(J109=1,0,('Surface Processing'!M122*('Gas Balance'!AC36/'Fuel Specs'!M14)/(J70/(1-J109))))-J109)*IF(J121=1,0.271597710331727,0) -> 0 | H197: MJ/MJ
B198: 5.8.2 Total GHG emissions | G198: =J46*(1+IF(J109=1,0,('Surface Processing'!M122*('Gas Balance'!AC36/'Fuel Specs'!M14)/(J70/(1-J109))))-J109)*IF(J121=1,16.8745465084971,0) -> 0 | H198: gCO2eq/MJ | J198: MJ of SCO
A200: 5.9 Crude transport
B201: 5.9.1 Total energy consumption | G201: =J46*'Crude Transport'!M9 -> 0.01265490909 | H201: MJ/MJ
B202: 5.9.2 Total GHG emissions | G202: =J46*'Crude Transport'!M10 -> 0.8912467749 | H202: gCO2eq/MJ | J202: MJ of crude transported
B203: 5.9.3 Loss factor | G203: =J46*(('Crude Transport'!B88/1000000)+1) -> 1.000062 | H203: NA | J203: Calculated from crude oil losses
A205: 5.10 Other small sources | G205: =J46*(1+IF(J109=1,0,('Surface Processing'!M122*('Gas Balance'!AC36/'Fuel Specs'!M14)/(J70/(1-J109))))-J109)*J136 -> 0.5 | H205: gCO2eq/MJ | J205: See sheet "Model Organization" for list of all sources not explicitly modeled in OPGEE. These sources are included here as "other small sources" and assigned default value of 0.5 gCO2 eq./MJ
A207: 5.11 Offsite emissions credit/debit | G207: =J46*(1+IF(J109=1,0,('Surface Processing'!M122*('Gas Balance'!AC36/'Fuel Specs'!M14)/(J70/(1-J109))))-J109)*('GHG Emissions'!G63)/('Input data'!E46*('Production & Extraction'!M35*'Fuel Specs'!M14-'Energy Consumption'!E96+'Gas Balance'!AC35*'Surface Processing'!M122+IF('Fuel Cycle'!F10=2,ABS('Energy Consumption'!E84)))) -> -0.5679684028 | H207: gCO2eq/MJ | J207: Credits (negative emissions) from fuels export + debts (positive emissions) from fuels import
A209: 5.12 Lifecycle energy consumption | G209: =J46*((G157+G163+G169+G175+G181+G187+G193+G197)*G203+G201) -> 0.06951850568 | H209: MJ/MJ
A211: 5.13 Lifecycle GHG emissions | G211: =J46*((G158+G164+G170+G176+G182+G188+G205+G194+G198+G207)*G203+G202) -> 7.358374431 | H211: gCO2eq/MJ | J211: MJ of crude at refinery gate
A214: 6 Summary result - Bitumen
A216: These results are derived from calculations in Bitumen Extraction & Upgrading sheet.
G218: Value | H218: Unit | J218: Notes
A219: 6.1 Exploration
B220: 6.1.1 Total energy consumption | G220: =J47*0 -> 0 | H220: MJ/MJ | J220: Exploration energy use is not included in the current version of the model
B221: 6.1.2 Total GHG emissions | G221: =J47*0 -> 0 | H221: gCO2eq/MJ | J221: Exploration emissions are not included in the current version of the model
C222: 6.1.2.1 Combustion/land use | G222: =J47*0 -> 0 | H222: gCO2eq/MJ
C223: 6.1.2.2 VFF | G223: =J47*0 -> 0 | H223: gCO2eq/MJ
A226: 6.2 Drilling & Development
B227: 6.2.1 Total energy consumption | G227: =J47*0 -> 0 | H227: MJ/MJ | J227: Energy use and emissions from mine preparation are included in bitumen extraction figures
B228: 6.2.2 Total GHG emissions | G228: =J47*(G229+G230) -> 0 | H228: gCO2eq/MJ
C229: 6.2.2.1 Combustion/land use | G229: =J47*'Bitumen Extraction & Upgrading'!M172 -> 0 | H229: gCO2eq/MJ
C230: 6.2.2.2 VFF | G230: =J47*0 -> 0 | H230: gCO2eq/MJ
A233: 6.3 Bitumen extraction
B234: 6.3.1 Total energy consumption | G234: =J47*'Bitumen Extraction & Upgrading'!M8 -> 0 | H234: MJ/MJ
B235: 6.3.2 Total GHG emissions | G235: =J47*(G236+G237) -> 0 | H235: gCO2eq/MJ | J235: MJ of bitumen output
C236: 6.3.2.1 Combustion/land use | G236: =J47*'Bitumen Extraction & Upgrading'!M18 -> 0 | H236: gCO2eq/MJ
C237: 6.3.2.2 VFF | G237: =J47*'Bitumen Extraction & Upgrading'!M20 -> 0 | H237: gCO2eq/MJ
A239: 6.4 Upgrading
B240: 6.4.1 Total energy consumption | G240: =J47*'Bitumen Extraction & Upgrading'!M12 -> 0 | H240: MJ/MJ
B241: 6.4.2 Total GHG emissions | G241: =J47*(G242+G243) -> 0 | H241: gCO2eq/MJ | J241: MJ of bitumen output
C242: 6.4.2.1 Combustion/land use | G242: =J47*('Bitumen Extraction & Upgrading'!M22) -> 0 | H242: gCO2eq/MJ
C243: 6.4.2.2 VFF | G243: =J47*0 -> 0 | H243: gCO2eq/MJ
A245: 6.5 Maintenance
B246: 6.5.1 Total energy consumption | G246: =J47*0 -> 0 | H246: MJ/MJ
B247: 6.5.2 Total GHG emissions | G247: =J47*0 -> 0 | H247: gCO2eq/MJ | J247: MJ of bitumen output
C248: 6.5.2.1 Combustion/land use | G248: =J47*0 -> 0 | H248: gCO2eq/MJ
C249: 6.5.2.2 VFF | G249: =J47*0 -> 0 | H249: gCO2eq/MJ
A251: 6.6 Waste disposal
B252: 6.6.1 Total energy consumption | G252: =J47*0 -> 0 | H252: MJ/MJ | J252: Waste disposal energy use is not included in the current version of the model
... 39 more rows

Sheet Bulk Assessment
A1: OPGEE bulk assessment
A2: Number of fields | C2: 1 | G2: Key: | I2: = Changed to OPGEE default | M2: = Adjusted using bulk assessment macro | R2: = Outside of literature range
A3: 1 Inputs
A5: Output variables | E5: Unit | G5: Default | H5: Field 1 | I5: Field 2 | J5: Field 3 | K5: Field 4 | L5: Field 5 | M5: Field 6 | N5: Field 7 | O5: Field 8 | P5: Field 9 | Q5: Field 10 | R5: Field 11 | S5: Field 12 | T5: Field 13 | U5: Field 14 | V5: Field 15 | W5: Field 16 | X5: Field 17 | Y5: Field 18 | Z5: Field 19 | AA5: Field 20 | AB5: Field 21 | AC5: Field 22 | AD5: Field 23 | AE5: Field 24 | AF5: Field 25 | AG5: Field 26 | AH5: Field 27 | AI5: Field 28 | AJ5: Field 29 | AK5: Field 30 | AL5: Field 31 | AM5: Field 32 | AN5: Field 33 | AO5: Field 34 | AP5: Field 35 | AQ5: Field 36 | AR5: Field 37 | AS5: Field 38 | AT5: Field 39 | AU5: Field 40 | AV5: Field 41 | AW5: Field 42 | AX5: Field 43 | AY5: Field 44 | AZ5: Field 45 | BA5: Field 46 | BB5: Field 47 | BC5: Field 48 | BD5: Field 49 | BE5: Field 50 | BF5: Field 51 | BG5: Field 52 | BH5: Field 53 | BI5: Field 54 | BJ5: Field 55 | BK5: Field 56 | BL5: Field 57 | BM5: Field 58 | BN5: Field 59 | BO5: Field 60 | BP5: Field 61 | BQ5: Field 62 | BR5: Field 63 | BS5: Field 64 | BT5: Field 65 | BU5: Field 66 | BV5: Field 67 | BW5: Field 68 | BX5: Field 69 | BY5: Field 70 | BZ5: Field 71 | CA5: Field 72 | CB5: Field 73 | CC5: Field 74 | CD5: Field 75 | CE5: Field 76 | CF5: Field 77 | CG5: Field 78 | CH5: Field 79 | CI5: Field 80 | CJ5: Field 81 | CK5: Field 82 | CL5: Field 83 | CM5: Field 84 | CN5: Field 85 | CO5: Field 86 | CP5: Field 87 | CQ5: Field 88 | CR5: Field 89 | CS5: Field 90 | CT5: Field 91 | CU5: Field 92 | CV5: Field 93 | CW5: Field 94 | CX5: Field 95 | CY5: Field 96 | CZ5: Field 97 | DA5: Field 98 | DB5: Field 99 | DC5: Field 100 | DD5: Field 101 | DE5: Field 102 | DF5: Field 103 | DG5: Field 104 | DH5: Field 105 | DI5: Field 106 | DJ5: Field 107 | DK5: Field 108 | DL5: Field 109 | DM5: Field 110 | DN5: Field 111 | DO5: Field 112 | DP5: Field 113 | DQ5: Field 114 | DR5: Field 115 | DS5: Field 116 | DT5: Field 117 | DU5: Field 118 | DV5: Field 119 | DW5: Field 120 | DX5: Field 121 | DY5: Field 122 | DZ5: Field 123 | EA5: Field 124 | EB5: Field 125 | EC5: Field 126 | ED5: Field 127 | EE5: Field 128 | EF5: Field 129 | EG5: Field 130 | EH5: Field 131 | EI5: Field 132 | EJ5: Field 133 | EK5: Field 134 | EL5: Field 135 | EM5: Field 136 | EN5: Field 137 | EO5: Field 138 | EP5: Field 139 | EQ5: Field 140 | ER5: Field 141 | ES5: Field 142 | ET5: Field 143 | EU5: Field 144 | EV5: Field 145 | EW5: Field 146 | EX5: Field 147 | EY5: Field 148 | EZ5: Field 149 | FA5: Field 150 | FB5: Field 151 | FC5: Field 152 | FD5: Field 153 | FE5: Field 154 | FF5: Field 155 | FG5: Field 156 | FH5: Field 157 | FI5: Field 158 | FJ5: Field 159 | FK5: Field 160 | FL5: Field 161 | FM5: Field 162 | FN5: Field 163 | FO5: Field 164 | FP5: Field 165 | FQ5: Field 166 | FR5: Field 167 | FS5: Field 168 | FT5: Field 169 | FU5: Field 170 | FV5: Field 171 | FW5: Field 172 | FX5: Field 173 | FY5: Field 174 | FZ5: Field 175 | GA5: Field 176 | GB5: Field 177 | GC5: Field 178 | GD5: Field 179 | GE5: Field 180 | GF5: Field 181 | GG5: Field 182 | GH5: Field 183 | GI5: Field 184 | GJ5: Field 185 | GK5: Field 186 | GL5: Field 187 | GM5: Field 188 | GN5: Field 189 | GO5: Field 190 | GP5: Field 191 | GQ5: Field 192 | GR5: Field 193 | GS5: Field 194 | GT5: Field 195 | GU5: Field 196 | GV5: Field 197 | GW5: Field 198 | GX5: Field 199 | GY5: Field 200 | GZ5: Field 201 | HA5: Field 202 | HB5: Field 203 | HC5: Field 204 | HD5: Field 205 | HE5: Field 206 | HF5: Field 207 | HG5: Field 208 | HH5: Field 209 | HI5: Field 210 | HJ5: Field 211 | HK5: Field 212 | HL5: Field 213 | HM5: Field 214 | HN5: Field 215 | HO5: Field 216 | HP5: Field 217 | HQ5: Field 218 | HR5: Field 219 | HS5: Field 220 | HT5: Field 221 | HU5: Field 222 | HV5: Field 223 | HW5: Field 224 | HX5: Field 225 | HY5: Field 226 | HZ5: Field 227 | IA5: Field 228 | IB5: Field 229 | IC5: Field 230 | ID5: Field 231 | IE5: Field 232 | IF5: Field 233 | IG5: Field 234 | IH5: Field 235 | II5: Field 236 | IJ5: Field 237 | IK5: Field 238 | IL5: Field 239 | IM5: Field 240 | IN5: Field 241 | IO5: Field 242 | IP5: Field 243 | IQ5: Field 244 | IR5: Field 245 | IS5: Field 246 | IT5: Field 247 | IU5: Field 248 | IV5: Field 249 | IW5: Field 250 | IX5: Field 251 | IY5: Field 252 | IZ5: Field 253 | JA5: Field 254 | JB5: Field 255 | JC5: Field 256 | JD5: Field 257 | JE5: Field 258 | JF5: Field 259 | JG5: Field 260 | JH5: Field 261 | JI5: Field 262 | JJ5: Field 263 | JK5: Field 264 | JL5: Field 265 | JM5: Field 266 | JN5: Field 267 | JO5: Field 268 | JP5: Field 269 | JQ5: Field 270 | JR5: Field 271 | JS5: Field 272 | JT5: Field 273 | JU5: Field 274 | JV5: Field 275 | JW5: Field 276 | JX5: Field 277 | JY5: Field 278 | JZ5: Field 279 | KA5: Field 280 | KB5: Field 281 | KC5: Field 282 | KD5: Field 283 | KE5: Field 284 | KF5: Field 285 | KG5: Field 286 | KH5: Field 287 | KI5: Field 288 | KJ5: Field 289 | KK5: Field 290 | KL5: Field 291 | KM5: Field 292 | KN5: Field 293 | KO5: Field 294 | KP5: Field 295 | KQ5: Field 296 | KR5: Field 297 | KS5: Field 298 | KT5: Field 299 | KU5: Field 300 | KV5: Field 301 | KW5: Field 302 | KX5: Field 303 | KY5: Field 304 | KZ5: Field 305 | LA5: Field 306 | LB5: Field 307 | LC5: Field 308 | LD5: Field 309 | LE5: Field 310 | LF5: Field 311 | LG5: Field 312 | LH5: Field 313 | LI5: Field 314 | LJ5: Field 315 | LK5: Field 316 | LL5: Field 317 | LM5: Field 318 | LN5: Field 319 | LO5: Field 320 | LP5: Field 321 | LQ5: Field 322 | LR5: Field 323 | LS5: Field 324 | LT5: Field 325 | LU5: Field 326 | LV5: Field 327 | LW5: Field 328 | LX5: Field 329 | LY5: Field 330 | LZ5: Field 331 | MA5: Field 332 | MB5: Field 333 | MC5: Field 334 | MD5: Field 335 | ME5: Field 336 | MF5: Field 337 | MG5: Field 338 | MH5: Field 339 | MI5: Field 340 | MJ5: Field 341 | MK5: Field 342 | ML5: Field 343 | MM5: Field 344 | MN5: Field 345 | MO5: Field 346 | MP5: Field 347 | MQ5: Field 348 | MR5: Field 349 | MS5: Field 350 | MT5: Field 351 | MU5: Field 352 | MV5: Field 353 | MW5: Field 354 | MX5: Field 355 | MY5: Field 356 | MZ5: Field 357 | NA5: Field 358 | NB5: Field 359 | NC5: Field 360 | ND5: Field 361 | NE5: Field 362 | NF5: Field 363 | NG5: Field 364 | NH5: Field 365 | NI5: Field 366 | NJ5: Field 367 | NK5: Field 368 | NL5: Field 369 | NM5: Field 370 | NN5: Field 371 | NO5: Field 372 | NP5: Field 373 | NQ5: Field 374 | NR5: Field 375 | NS5: Field 376 | NT5: Field 377 | NU5: Field 378 | NV5: Field 379 | NW5: Field 380 | NX5: Field 381 | NY5: Field 382 | NZ5: Field 383 | OA5: Field 384 | OB5: Field 385 | OC5: Field 386 | OD5: Field 387 | OE5: Field 388 | OF5: Field 389 | OG5: Field 390 | OH5: Field 391 | OI5: Field 392 | OJ5: Field 393 | OK5: Field 394 | OL5: Field 395 | OM5: Field 396 | ON5: Field 397 | OO5: Field 398 | OP5: Field 399 | OQ5: Field 400 | OR5: Field 401 | OS5: Field 402 | OT5: Field 403 | OU5: Field 404 | OV5: Field 405 | OW5: Field 406 | OX5: Field 407 | OY5: Field 408 | OZ5: Field 409 | PA5: Field 410 | PB5: Field 411 | PC5: Field 412 | PD5: Field 413 | PE5: Field 414 | PF5: Field 415 | PG5: Field 416 | PH5: Field 417 | PI5: Field 418 | PJ5: Field 419 | PK5: Field 420 | PL5: Field 421 | PM5: Field 422 | PN5: Field 423 | PO5: Field 424 | PP5: Field 425 | PQ5: Field 426 | PR5: Field 427 | PS5: Field 428 | PT5: Field 429 | PU5: Field 430 | PV5: Field 431 | PW5: Field 432 | PX5: Field 433 | PY5: Field 434 | PZ5: Field 435 | QA5: Field 436 | QB5: Field 437 | QC5: Field 438 | QD5: Field 439 | QE5: Field 440 | QF5: Field 441 | QG5: Field 442 | QH5: Field 443 | QI5: Field 444 | QJ5: Field 445 | QK5: Field 446 | QL5: Field 447 | QM5: Field 448 | QN5: Field 449 | QO5: Field 450 | QP5: Field 451 | QQ5: Field 452 | QR5: Field 453 | QS5: Field 454 | QT5: Field 455 | QU5: Field 456 | QV5: Field 457 | QW5: Field 458 | QX5: Field 459 | QY5: Field 460 | QZ5: Field 461 | RA5: Field 462 | RB5: Field 463 | RC5: Field 464 | RD5: Field 465 | RE5: Field 466 | RF5: Field 467 | RG5: Field 468 | RH5: Field 469 | RI5: Field 470 | RJ5: Field 471 | RK5: Field 472 | RL5: Field 473 | RM5: Field 474 | RN5: Field 475 | RO5: Field 476 | RP5: Field 477 | RQ5: Field 478 | RR5: Field 479 | RS5: Field 480 | RT5: Field 481 | RU5: Field 482 | RV5: Field 483 | RW5: Field 484 | RX5: Field 485 | RY5: Field 486 | RZ5: Field 487 | SA5: Field 488 | SB5: Field 489 | SC5: Field 490 | SD5: Field 491 | SE5: Field 492 | SF5: Field 493 | SG5: Field 494 | SH5: Field 495 | SI5: Field 496 | SJ5: Field 497 | SK5: Field 498 | SL5: Field 499 | SM5: Field 500 | SN5: Field 501 | SO5: Field 502 | SP5: Field 503 | SQ5: Field 504 | SR5: Field 505
A7: 1.1 Production methods
A8: Notes: Enter "1" where applicable and "0" where not applicable
B9: 1.1.1 Downhole pump | E9: NA | G9: 1
B10: 1.1.2 Water reinjection | E10: NA | G10: 1
B11: 1.1.3 Gas reinjection | E11: NA | G11: 1
B12: 1.1.4 Water flooding | E12: NA | G12: 0
B13: 1.1.5 Gas lifting | E13: NA | G13: 0
B14: 1.1.6 Gas flooding | E14: NA | G14: 0
B15: 1.1.7 Steam flooding | E15: NA | G15: 0
A17: 1.2 Field properties
B18: 1.2.1 Field location (Country) | E18: NA | G18: Generic
B19: 1.2.2 Field name | E19: NA | G19: Generic
B20: 1.2.3 Field age | E20: yr. | G20: 35
B21: 1.2.4 Field depth | E21: ft | G21: 7240
B22: 1.2.5 Oil production volume | E22: bbl/d | G22: 1500
B23: 1.2.6 Number of producing wells | E23: [-] | G23: 8
B24: 1.2.7 Number of water injecting wells | E24: [-] | G24: 5
B25: 1.2.8 Well diameter | E25: in | G25: 2.775
B26: 1.2.9 Productivity index | E26: bbl/psi-d | G26: 3
B27: 1.2.10 Reservoir pressure | E27: psi | G27: 1556.6
A29: 1.3 Fluid properties
B30: 1.3.1 API gravity | E30: deg. API | G30: 30
B31: 1.3.2 Gas composition
D32: N2 | E32: mol% | G32: 2
D33: CO2 | E33: mol% | G33: 6
D34: C1 | E34: mol% | G34: 84
D35: C2 | E35: mol% | G35: 4
D36: C3 | E36: mol% | G36: 2
D37: C4+ | E37: mol% | G37: 1
D38: H2S | E38: mol% | G38: 1
A40: 1.4 Production practices
A41: Notes: Enter "NA" where not applicable
B42: 1.4.1 Gas-to-oil ratio (GOR) | E42: scf/bbl oil | G42: 908
B43: 1.4.2 Water-to-oil ratio (WOR) | E43: bbl water/bbl oil | G43: 4.308369057
B44: 1.4.3 Water injection ratio | E44: bbl water/bbl oil | G44: 5.308369057
B45: 1.4.4 Gas lifting injection ratio | E45: scf/bbl liquid | G45: 1500
B46: 1.4.5 Gas flooding injection ratio | E46: scf/bbl oil | G46: 1362
B47: 1.4.6 Steam-to-oil ratio (SOR) | E47: bbl steam/bbl oil | G47: 3
B48: 1.4.7 Fraction of required electricity generated onsite | E48: [-] | G48: 0
B49: 1.4.8 Fraction of remaining gas reinjected | E49: [-] | G49: 0
B50: 1.4.9 Fraction of water produced water reinjected | E50: [-] | G50: 1
B51: 1.4.10 Fraction of steam generation via cogeneration | E51: [-] | G51: 0
A53: 1.5 Processing practices
B54: 1.5.1 Heater/treater | E54: NA | G54: 0
B55: 1.5.2 Stabilizer column | E55: NA | G55: 1
B56: 1.5.3 Application of AGR unit | E56: NA | G56: 1
B57: 1.5.4 Application of gas dehydration unit | E57: NA | G57: 1
B58: 1.5.5 Application of demethanizer unit | E58: NA | G58: 1
B59: 1.5.6 Flaring-to-oil ratio | E59: scf/bbl oil | G59: 181.5280918
B60: 1.5.7 Venting-to-oil ratio | E60: scf/bbl oil | G60: 0
B61: 1.5.8 Volume fraction of diluent | E61: [-] | G61: 0
A63: 1.6 Land use impacts
B64: 1.6.1 Crude ecosystem carbon richness
C65: 1.6.1.1 Low carbon richness (semi-arid grasslands) | E65: NA | G65: 0
C66: 1.6.1.2 Moderate carbon richness (mixed) | E66: NA | G66: 1
C67: 1.6.1.3 High carbon richness (forested) | E67: NA | G67: 0
B68: 1.6.2 Field development intensity
C69: 1.6.2.1 Low intensity development and low oxidation | E69: NA | G69: 0
C70: 1.6.2.2 Moderate intensity development and moderate oxidation | E70: NA | G70: 1
C71: 1.6.2.3 High intensity development and high oxidation | E71: NA | G71: 0
A73: 1.7 Non-integrated upgrader | E73: NA | G73: 0
A75: 1.8 Crude oil transport
B76: 1.8.1 Fraction of oil transported by each mode
C77: 1.8.1.1 Ocean tanker | E77: [-] | G77: 1
C78: 1.8.1.2 Barge | E78: [-] | G78: 0
C79: 1.8.1.3 Pipeline | E79: [-] | G79: 1
C80: 1.8.1.4 Rail | E80: [-] | G80: 0
B81: 1.8.2 Transport distance (one way)
C82: 1.8.2.1 Ocean tanker | E82: Mile | G82: 5082
C83: 1.8.2.2 Barge | E83: Mile | G83: 500
C84: 1.8.2.3 Pipeline | E84: Mile | G84: 750
C85: 1.8.2.4 Rail | E85: Mile | G85: 800
B86: 1.8.3 Ocean tanker size, if applicable | E86: Ton | G86: 250000
A88: 1.9 Small sources emissions | E88: gCO2eq/MJ | G88: 0.5
A92: 1.10 Run bulk assessment
A95: 2 Outputs
G96: Generic | U96: Generic | V96: Generic | W96: Generic | X96: Generic | Y96: Generic | Z96: Generic
A98: Output variables | E98: Unit | G98: Default | I98: Field 2 | J98: Field 3 | K98: Field 4 | L98: Field 5 | M98: Field 6 | N98: Field 7 | O98: Field 8 | P98: Field 9 | Q98: Field 10 | R98: Field 11 | S98: Field 12 | T98: Field 13 | U98: Field 14 | V98: Field 15 | W98: Field 16 | X98: Field 17 | Y98: Field 18 | Z98: Field 19 | AA98: Field 20 | AB98: Field 21 | AC98: Field 22 | AD98: Field 23 | AE98: Field 24 | AF98: Field 25 | AG98: Field 26 | AH98: Field 27 | AI98: Field 28 | AJ98: Field 29 | AK98: Field 30 | AL98: Field 31 | AM98: Field 32 | AN98: Field 33 | AO98: Field 34 | AP98: Field 35 | AQ98: Field 36 | AR98: Field 37 | AS98: Field 38 | AT98: Field 39 | AU98: Field 40 | AV98: Field 41 | AW98: Field 42 | AX98: Field 43 | AY98: Field 44 | AZ98: Field 45 | BA98: Field 46 | BB98: Field 47 | BC98: Field 48 | BD98: Field 49 | BE98: Field 50 | BF98: Field 51 | BG98: Field 52 | BH98: Field 53 | BI98: Field 54 | BJ98: Field 55 | BK98: Field 56 | BL98: Field 57 | BM98: Field 58 | BN98: Field 59 | BO98: Field 60 | BP98: Field 61 | BQ98: Field 62 | BR98: Field 63 | BS98: Field 64 | BT98: Field 65 | BU98: Field 66 | BV98: Field 67 | BW98: Field 68 | BX98: Field 69 | BY98: Field 70 | BZ98: Field 71 | CA98: Field 72 | CB98: Field 73 | CC98: Field 74 | CD98: Field 75 | CE98: Field 76 | CF98: Field 77 | CG98: Field 78 | CH98: Field 79 | CI98: Field 80 | CJ98: Field 81 | CK98: Field 82 | CL98: Field 83 | CM98: Field 84 | CN98: Field 85 | CO98: Field 86 | CP98: Field 87 | CQ98: Field 88 | CR98: Field 89 | CS98: Field 90 | CT98: Field 91 | CU98: Field 92 | CV98: Field 93 | CW98: Field 94 | CX98: Field 95 | CY98: Field 96 | CZ98: Field 97 | DA98: Field 98 | DB98: Field 99 | DC98: Field 100 | DD98: Field 101 | DE98: Field 102 | DF98: Field 103 | DG98: Field 104 | DH98: Field 105 | DI98: Field 106 | DJ98: Field 107 | DK98: Field 108 | DL98: Field 109 | DM98: Field 110 | DN98: Field 111 | DO98: Field 112 | DP98: Field 113 | DQ98: Field 114 | DR98: Field 115 | DS98: Field 116 | DT98: Field 117 | DU98: Field 118 | DV98: Field 119 | DW98: Field 120 | DX98: Field 121 | DY98: Field 122 | DZ98: Field 123 | EA98: Field 124 | EB98: Field 125 | EC98: Field 126 | ED98: Field 127 | EE98: Field 128 | EF98: Field 129 | EG98: Field 130 | EH98: Field 131 | EI98: Field 132 | EJ98: Field 133 | EK98: Field 134 | EL98: Field 135 | EM98: Field 136 | EN98: Field 137 | EO98: Field 138 | EP98: Field 139 | EQ98: Field 140 | ER98: Field 141 | ES98: Field 142 | ET98: Field 143 | EU98: Field 144 | EV98: Field 145 | EW98: Field 146 | EX98: Field 147 | EY98: Field 148 | EZ98: Field 149 | FA98: Field 150 | FB98: Field 151 | FC98: Field 152 | FD98: Field 153 | FE98: Field 154 | FF98: Field 155 | FG98: Field 156 | FH98: Field 157 | FI98: Field 158 | FJ98: Field 159 | FK98: Field 160 | FL98: Field 161 | FM98: Field 162 | FN98: Field 163 | FO98: Field 164 | FP98: Field 165 | FQ98: Field 166 | FR98: Field 167 | FS98: Field 168 | FT98: Field 169 | FU98: Field 170 | FV98: Field 171 | FW98: Field 172 | FX98: Field 173 | FY98: Field 174 | FZ98: Field 175 | GA98: Field 176 | GB98: Field 177 | GC98: Field 178 | GD98: Field 179 | GE98: Field 180 | GF98: Field 181 | GG98: Field 182 | GH98: Field 183 | GI98: Field 184 | GJ98: Field 185 | GK98: Field 186 | GL98: Field 187 | GM98: Field 188 | GN98: Field 189 | GO98: Field 190 | GP98: Field 191 | GQ98: Field 192 | GR98: Field 193 | GS98: Field 194 | GT98: Field 195 | GU98: Field 196 | GV98: Field 197 | GW98: Field 198 | GX98: Field 199 | GY98: Field 200 | GZ98: Field 201 | HA98: Field 202 | HB98: Field 203 | HC98: Field 204 | HD98: Field 205 | HE98: Field 206 | HF98: Field 207 | HG98: Field 208 | HH98: Field 209 | HI98: Field 210 | HJ98: Field 211 | HK98: Field 212 | HL98: Field 213 | HM98: Field 214 | HN98: Field 215 | HO98: Field 216 | HP98: Field 217 | HQ98: Field 218 | HR98: Field 219 | HS98: Field 220 | HT98: Field 221 | HU98: Field 222 | HV98: Field 223 | HW98: Field 224 | HX98: Field 225 | HY98: Field 226 | HZ98: Field 227 | IA98: Field 228 | IB98: Field 229 | IC98: Field 230 | ID98: Field 231 | IE98: Field 232 | IF98: Field 233 | IG98: Field 234 | IH98: Field 235 | II98: Field 236 | IJ98: Field 237 | IK98: Field 238 | IL98: Field 239 | IM98: Field 240 | IN98: Field 241 | IO98: Field 242 | IP98: Field 243 | IQ98: Field 244 | IR98: Field 245 | IS98: Field 246 | IT98: Field 247 | IU98: Field 248 | IV98: Field 249 | IW98: Field 250 | IX98: Field 251 | IY98: Field 252 | IZ98: Field 253 | JA98: Field 254 | JB98: Field 255 | JC98: Field 256 | JD98: Field 257 | JE98: Field 258 | JF98: Field 259 | JG98: Field 260 | JH98: Field 261 | JI98: Field 262 | JJ98: Field 263 | JK98: Field 264 | JL98: Field 265 | JM98: Field 266 | JN98: Field 267 | JO98: Field 268 | JP98: Field 269 | JQ98: Field 270 | JR98: Field 271 | JS98: Field 272 | JT98: Field 273 | JU98: Field 274 | JV98: Field 275 | JW98: Field 276 | JX98: Field 277 | JY98: Field 278 | JZ98: Field 279 | KA98: Field 280 | KB98: Field 281 | KC98: Field 282 | KD98: Field 283 | KE98: Field 284 | KF98: Field 285 | KG98: Field 286 | KH98: Field 287 | KI98: Field 288 | KJ98: Field 289 | KK98: Field 290 | KL98: Field 291 | KM98: Field 292 | KN98: Field 293 | KO98: Field 294 | KP98: Field 295 | KQ98: Field 296 | KR98: Field 297 | KS98: Field 298 | KT98: Field 299 | KU98: Field 300 | KV98: Field 301 | KW98: Field 302 | KX98: Field 303 | KY98: Field 304 | KZ98: Field 305 | LA98: Field 306 | LB98: Field 307 | LC98: Field 308 | LD98: Field 309 | LE98: Field 310 | LF98: Field 311 | LG98: Field 312 | LH98: Field 313 | LI98: Field 314 | LJ98: Field 315 | LK98: Field 316 | LL98: Field 317 | LM98: Field 318 | LN98: Field 319 | LO98: Field 320 | LP98: Field 321 | LQ98: Field 322 | LR98: Field 323 | LS98: Field 324 | LT98: Field 325 | LU98: Field 326 | LV98: Field 327 | LW98: Field 328 | LX98: Field 329 | LY98: Field 330 | LZ98: Field 331 | MA98: Field 332 | MB98: Field 333 | MC98: Field 334 | MD98: Field 335 | ME98: Field 336 | MF98: Field 337 | MG98: Field 338 | MH98: Field 339 | MI98: Field 340 | MJ98: Field 341 | MK98: Field 342 | ML98: Field 343 | MM98: Field 344 | MN98: Field 345 | MO98: Field 346 | MP98: Field 347 | MQ98: Field 348 | MR98: Field 349 | MS98: Field 350 | MT98: Field 351 | MU98: Field 352 | MV98: Field 353 | MW98: Field 354 | MX98: Field 355 | MY98: Field 356 | MZ98: Field 357 | NA98: Field 358 | NB98: Field 359 | NC98: Field 360 | ND98: Field 361 | NE98: Field 362 | NF98: Field 363 | NG98: Field 364 | NH98: Field 365 | NI98: Field 366 | NJ98: Field 367 | NK98: Field 368 | NL98: Field 369 | NM98: Field 370 | NN98: Field 371 | NO98: Field 372 | NP98: Field 373 | NQ98: Field 374 | NR98: Field 375 | NS98: Field 376 | NT98: Field 377 | NU98: Field 378 | NV98: Field 379 | NW98: Field 380 | NX98: Field 381 | NY98: Field 382 | NZ98: Field 383 | OA98: Field 384 | OB98: Field 385 | OC98: Field 386 | OD98: Field 387 | OE98: Field 388 | OF98: Field 389 | OG98: Field 390 | OH98: Field 391 | OI98: Field 392 | OJ98: Field 393 | OK98: Field 394 | OL98: Field 395 | OM98: Field 396 | ON98: Field 397 | OO98: Field 398 | OP98: Field 399 | OQ98: Field 400 | OR98: Field 401 | OS98: Field 402 | OT98: Field 403 | OU98: Field 404 | OV98: Field 405 | OW98: Field 406 | OX98: Field 407 | OY98: Field 408 | OZ98: Field 409 | PA98: Field 410 | PB98: Field 411 | PC98: Field 412 | PD98: Field 413 | PE98: Field 414 | PF98: Field 415 | PG98: Field 416 | PH98: Field 417 | PI98: Field 418 | PJ98: Field 419 | PK98: Field 420 | PL98: Field 421 | PM98: Field 422 | PN98: Field 423 | PO98: Field 424 | PP98: Field 425 | PQ98: Field 426 | PR98: Field 427 | PS98: Field 428 | PT98: Field 429 | PU98: Field 430 | PV98: Field 431 | PW98: Field 432 | PX98: Field 433 | PY98: Field 434 | PZ98: Field 435 | QA98: Field 436 | QB98: Field 437 | QC98: Field 438 | QD98: Field 439 | QE98: Field 440 | QF98: Field 441 | QG98: Field 442 | QH98: Field 443 | QI98: Field 444 | QJ98: Field 445 | QK98: Field 446 | QL98: Field 447 | QM98: Field 448 | QN98: Field 449 | QO98: Field 450 | QP98: Field 451 | QQ98: Field 452 | QR98: Field 453 | QS98: Field 454 | QT98: Field 455 | QU98: Field 456 | QV98: Field 457 | QW98: Field 458 | QX98: Field 459 | QY98: Field 460 | QZ98: Field 461 | RA98: Field 462 | RB98: Field 463 | RC98: Field 464 | RD98: Field 465 | RE98: Field 466 | RF98: Field 467 | RG98: Field 468 | RH98: Field 469 | RI98: Field 470 | RJ98: Field 471 | RK98: Field 472 | RL98: Field 473 | RM98: Field 474 | RN98: Field 475 | RO98: Field 476 | RP98: Field 477 | RQ98: Field 478 | RR98: Field 479 | RS98: Field 480 | RT98: Field 481 | RU98: Field 482 | RV98: Field 483 | RW98: Field 484 | RX98: Field 485 | RY98: Field 486 | RZ98: Field 487 | SA98: Field 488 | SB98: Field 489 | SC98: Field 490 | SD98: Field 491 | SE98: Field 492 | SF98: Field 493 | SG98: Field 494 | SH98: Field 495 | SI98: Field 496 | SJ98: Field 497 | SK98: Field 498 | SL98: Field 499 | SM98: Field 500 | SN98: Field 501 | SO98: Field 502 | SP98: Field 503 | SQ98: Field 504 | SR98: Field 505
A100: Field name | G100: Generic
A102: 2.1 Exploration (e)
B103: 2.1.1 Total energy consumption | E103: MJ/MJ | G103: 0
B104: 2.1.2 Total GHG emissions | E104: gCO2eq/MJ | G104: 0
C105: 2.1.2.1 Combustion/land use | E105: gCO2eq/MJ | G105: 0
C106: 2.1.2.2 VFF | E106: gCO2eq/MJ | G106: 0
A108: 2.2 Drilling & Development (d)
B109: 2.2.1 Total energy consumption | E109: MJ/MJ | G109: 0.0008885136658
B110: 2.2.2 Total GHG emissions | E110: gCO2eq/MJ | G110: 1.334006727
C111: 2.2.2.1 Combustion/land use | E111: gCO2eq/MJ | G111: 1.334006727
C112: 2.2.2.2 VFF | E112: gCO2eq/MJ | G112: 0
A114: 2.3 Crude production & extraction (p)
B115: 2.3.1 Total energy consumption | E115: MJ/MJ | G115: 0.01175340805
B116: 2.3.2 Total GHG emissions | E116: gCO2eq/MJ | G116: 0.8998862189
C117: 2.3.2.1 Combustion/land use | E117: gCO2eq/MJ | G117: 0.8825673846
C118: 2.3.2.2 VFF | E118: gCO2eq/MJ | G118: 0.01731883437
A120: 2.4 Surface processing (s)
B121: 2.4.1 Total energy consumption | E121: MJ/MJ | G121: 0.04403937876
B122: 2.4.2 Total GHG emissions | E122: gCO2eq/MJ | G122: 4.214722227
C123: 2.4.2.1 Combustion/land use | E123: gCO2eq/MJ | G123: 0.7636665624
C124: 2.4.2.2 VFF | E124: gCO2eq/MJ | G124: 3.451055664
A126: 2.5 Maintenance (m)
B127: 2.5.1 Total energy consumption | E127: MJ/MJ | G127: 0.0001787707932
B128: 2.5.2 Total GHG emissions | E128: gCO2eq/MJ | G128: 0.08607994957
C129: 2.5.2.1 Combustion/land use | E129: gCO2eq/MJ | G129: 0
C130: 2.5.2.2 VFF | E130: gCO2eq/MJ | G130: 0.08607994957
A132: 2.6 Waste disposal (w)
B133: 2.6.1 Total energy consumption | E133: MJ/MJ | G133: 0
B134: 2.6.2 Total GHG emissions | E134: gCO2eq/MJ | G134: 0
C135: 2.6.2.1 Combustion\land use | E135: gCO2eq/MJ | G135: 0
C136: 2.6.2.2 VFF | E136: gCO2eq/MJ | G136: 0
A138: 2.7 Diluent
B139: 2.7.1 Total energy consumption | E139: MJ/MJ | G139: 0
B140: 2.7.2 Total GHG emissions | E140: gCO2eq/MJ | G140: 0
A142: 2.8 Non-integrated upgrader
B143: 2.8.1 Total energy consumption | E143: MJ/MJ | G143: 0
B144: 2.8.2 Total GHG emissions | E144: gCO2eq/MJ | G144: 0
A146: 2.9 Crude transport (t)
B147: 2.9.1 Total energy consumption | E147: MJ/MJ | G147: 0.01265490909
B148: 2.9.2 Total GHG emissions | E148: gCO2eq/MJ | G148: 0.8912467749
B149: 2.9.3 Loss factor | E149: NA | G149: 1.000062
A151: 2.10 Other small sources | E151: gCO2eq/MJ | G151: 0.5
A153: 2.11 Offsite emissions credit/debit | E153: gCO2eq/MJ | G153: -0.5679684028
A155: 2.12 Lifecycle energy consumption | E155: MJ/MJ | G155: 0.06951850568
A157: 2.13 Lifecycle GHG emissions | E157: gCO2eq/MJ | G157: 7.358374431
A161: FIELD-BY-FIELD CHECK | G161: OK
A163: OVERALL CHECK: | C163: =IF(LOOKUP("ERROR",G161:BE161)=TRUE,"ERROR","OK") -> OK

Sheet Energy Consumption
A1: Energy consumption compilation sheet
A3: This sheet compiles results on energy consumption from all other sheets for use in the "User inputs & Results" sheet.
B6: Table 1: Fuel codes
B7: Fuel codes:
B8: Natural gas | E8: 1A
B9: NGL | E9: ="1B" -> 1B
B10: Diesel | E10: 2
B11: Electricity | E11: 3
B12: Crude oil | E12: 4
B15: Table 2: Energy consumption by component
B16: Energy consumption by component
H17: Value | I17: Unit | J17: Fuel type | K17: Fuel code | L17: Notes:
B18: Exploration | H18: 0 | I18: MMBtu/d | J18: NA | K18: NA
B20: Drilling & Development | H20: ='Drilling & Development'!M28*('Production & Extraction'!M35*'Fuel Specs'!M14-'Energy Consumption'!E96+'Gas Balance'!AC35*'Surface Processing'!M122+IF('Fuel Cycle'!F10=2,ABS('Energy Consumption'!E84),0)) -> 8.731166185 | I20: MMBtu/d | J20: ="Diesel" -> Diesel | K20: =IF(J20="Natural gas","1A",IF(J20="NGL","1B",IF(J20="Diesel","2","3"))) -> 2
B22: Production & Extraction | H22: =H23*IF(K23="3",'Input data'!E52/1000,1)+H24*IF(K24="3",'Input data'!E52/1000,1)+H25*IF(K25="3",'Input data'!E52/1000,1)+H26*IF(K26="3",'Input data'!E52/1000,1)+H27*IF(K27="3",'Input data'!E52/1000,1)+H28*IF(K28="3",'Input data'!E52/1000,1)+H29*IF(K29="3",'Input data'!E52/1000,1)+H30*IF(K30="3",'Input data'!E52/1000,1) -> 115.1392426 | I22: MMBtu/d | J22: Various | K22: NA
C23: Downhole pump | H23: ='Production & Extraction'!M235 -> 115.1392426 | I23: ='Production & Extraction'!N235 -> MMBtu/d | J23: =IF(AND(OR('Production & Extraction'!M72=1,'Production & Extraction'!M72=4),'Production & Extraction'!M77=1),"Natural gas",IF('Production & Extraction'!M72=2,"Electricity",IF('Production & Extraction'!M72=3,"Diesel","NGL"))) -> Natural gas | K23: =IF(J23="Natural gas","1A",IF(J23="NGL","1B",IF(J23="Diesel","2","3"))) -> 1A
C24: Water re-injection pump | H24: ='Production & Extraction'!M245 -> 0 | I24: ='Production & Extraction'!N245 -> MMBtu/d | J24: =IF(AND(OR('Production & Extraction'!M89=1,'Production & Extraction'!M89=4),'Production & Extraction'!M94=1),"Natural gas",IF('Production & Extraction'!M89=2,"Electricity",IF('Production & Extraction'!M89=3,"Diesel","NGL"))) -> Natural gas | K24: =IF(J24="Natural gas","1A",IF(J24="NGL","1B",IF(J24="Diesel","2","3"))) -> 1A
C25: Gas re-injection compressor | H25: ='Production & Extraction'!M266 -> 0 | I25: ='Production & Extraction'!N266 -> MMBtu/d | J25: =IF('Production & Extraction'!M123=1,"Electricity",IF(AND('Production & Extraction'!M123=2,'Production & Extraction'!M126=1),"Natural gas","NGL")) -> Natural gas | K25: 1A
C26: Water flooding injection pump | H26: ='Production & Extraction'!M276 -> 0 | I26: ='Production & Extraction'!N276 -> MMBtu/d | J26: =IF(AND(OR('Production & Extraction'!M143=1,'Production & Extraction'!M143=4),'Production & Extraction'!M148=1),"Natural gas",IF('Production & Extraction'!M143=2,"Electricity",IF('Production & Extraction'!M143=3,"Diesel","NGL"))) -> Natural gas | K26: 1A
C27: Gas lifting compressor | H27: ='Production & Extraction'!M297 -> 0 | I27: ='Production & Extraction'!N297 -> MMBtu/d | J27: =IF('Production & Extraction'!M174=1,"Electricity",IF(AND('Production & Extraction'!M174=2,'Production & Extraction'!M177=1),"Natural gas","NGL")) -> Natural gas | K27: 1A
C28: Air separation unit | H28: =IF('Production & Extraction'!M20=1,'Production & Extraction'!M191*'Production & Extraction'!M189*'Production & Extraction'!M35,0) -> 0 | I28: kWh/d | J28: ="Electricity" -> Electricity | K28: 3
C29: Gas flooding injection compressor | H29: ='Production & Extraction'!M318 -> 0 | I29: ='Production & Extraction'!N318 -> MMBtu/d | J29: =IF('Production & Extraction'!M206=1,"Electricity",IF(AND('Production & Extraction'!M206=2,'Production & Extraction'!M209=1),"Natural gas","NGL")) -> Natural gas | K29: 1A
C30: Steam injection | H30: =H31+H32 -> 0 | I30: MMBtu/d | J30: =IF(AND(J31="Crude oil",J32="Natural gas"),"Various","Natural gas") -> Natural gas | K30: =IF(J30="Natural gas","1A","NA") -> 1A
D31: OTSG | H31: ='Production & Extraction'!M322 -> 0 | I31: MMBtu/d | J31: =IF('Steam Injection'!M72=1,"Natural gas","Crude oil") -> Natural gas | K31: =IF(J31="Natural gas","1A",IF(J31="NGL","1B",IF(J31="Diesel","2",IF(J31="Electricity","3","4")))) -> 1A
D32: HRSG | H32: ='Production & Extraction'!M323*IF('Fuel Cycle'!F10=2,'Steam Injection'!M484/('Steam Injection'!M484+'Steam Injection'!M486),1) -> 0 | I32: MMBtu/d | J32: ="Natural gas" -> Natural gas | K32: =IF(J32="Natural gas","1A",IF(J32="NGL","1B",IF(J32="Diesel","2","3"))) -> 1A
B34: Surface Processing | H34: =H36*IF(K36="3",'Input data'!E52/1000,1)+H37*IF(K37="3",'Input data'!E52/1000,1)+H40*'Input data'!E52/1000+H41*'Input data'!E52/1000+H42+H44*IF(K44="3",'Input data'!E52/1000,1)+H45*'Input data'!E52/1000+H47+H48+H50*'Input data'!E52/1000+H51*'Input data'!E52/1000+H52*'Input data'!E52/1000+H53*'Input data'!E52/1000 -> 117.2895672 | I34: MMBtu/d | J34: Various | K34: NA
C35: Crude oil processing
D36: Dehydration heater | H36: ='Surface Processing'!M180 -> 0 | I36: ='Surface Processing'!N180 -> MMBtu/d | J36: =IF(AND('Surface Processing'!M22=1,'Surface Processing'!M25=1),"Natural gas",IF('Surface Processing'!M22=2,"Electricity","NGL")) -> Natural gas | K36: =IF(J36="Natural gas","1A",IF(J36="NGL","1B",IF(J36="Diesel","2","3"))) -> 1A
D37: Stabilizer column | H37: ='Surface Processing'!M186 -> 64.26 | I37: ='Surface Processing'!N186 -> MMBtu/d | J37: =IF(AND('Surface Processing'!M44=1,'Surface Processing'!M47=1),"Natural gas",IF('Surface Processing'!M44=2,"Electricity","NGL")) -> Natural gas | K37: =IF(J37="Natural gas","1A",IF(J37="NGL","1B",IF(J37="Diesel","2","3"))) -> 1A
C38: Gas processing
D39: Amine treater
E40: Pumps | H40: ='Surface Processing'!M231 -> 115.6655569 | I40: ='Surface Processing'!N231 -> kWh/d | J40: ="Electricity" -> Electricity | K40: =IF(J40="Natural gas","1A",IF(J40="NGL","1B",IF(J40="Diesel","2","3"))) -> 3
E41: Air coolers | H41: ='Surface Processing'!M240 -> 326.2297317 | I41: ='Surface Processing'!N240 -> kWh/d | J41: ="Electricity" -> Electricity | K41: =IF(J41="Natural gas","1A",IF(J41="NGL","1B",IF(J41="Diesel","2","3"))) -> 3
E42: Reboiler | H42: ='Surface Processing'!M245 -> 38.50018819 | I42: ='Surface Processing'!N245 -> MMBtu/d | J42: =IF('Surface Processing'!M83=1,"Natural gas","NGL") -> Natural gas | K42: =IF(J42="Natural gas","1A",IF(J42="NGL","1B",IF(J42="Diesel","2","3"))) -> 1A
D43: Glycol dehydrator
E44: Reboiler | H44: ='Surface Processing'!M283 -> 0.1735904625 | I44: ='Surface Processing'!O283 -> MMBtu/d | J44: =IF(AND('Surface Processing'!M99=1,'Surface Processing'!M105=1),"Natural gas",IF('Surface Processing'!M99=2,"Electricity","NGL")) -> Natural gas | K44: =IF(J44="Natural gas","1A",IF(J44="NGL","1B",IF(J44="Diesel","2","3"))) -> 1A
E45: Glycol pump | H45: ='Surface Processing'!M290 -> 0.8895027097 | I45: ='Surface Processing'!O290 -> kWh/d | J45: ="Electricity" -> Electricity | K45: =IF(J45="Natural gas","1A",IF(J45="NGL","1B",IF(J45="Diesel","2","3"))) -> 3
D46: Demethanizer
E47: Refrigeration and compression | H47: ='Surface Processing'!M309 -> 11.204263 | I47: MMBtu/d | J47: Natural gas | K47: =IF(J47="Natural gas","1A",IF(J47="NGL","1B",IF(J47="Diesel","2","3"))) -> 1A
E48: Fractionation reboiler | H48: ='Surface Processing'!M310 -> 0 | I48: MMBtu/d | J48: Natural gas | K48: 1A
C49: Water treatment
D50: Stage 1: | E50: ='Surface Processing'!D326 -> DAF | F50: & | G50: ='Surface Processing'!D339 -> DAF | H50: ='Surface Processing'!E323+'Surface Processing'!E336 -> 227.059106 | I50: ='Surface Processing'!F323 -> kWh/d | J50: ="Electricity" -> Electricity | K50: =IF(J50="Natural gas","1A",IF(J50="NGL","1B",IF(J50="Diesel","2","3"))) -> 3
D51: Stage 2: | E51: ='Surface Processing'!H326 -> RBC | F51: & | G51: ='Surface Processing'!H339 -> RBC | H51: ='Surface Processing'!I323+'Surface Processing'!I336 -> 226.0316892 | I51: ='Surface Processing'!J323 -> kWh/d | J51: ="Electricity" -> Electricity | K51: =IF(J51="Natural gas","1A",IF(J51="NGL","1B",IF(J51="Diesel","2","3"))) -> 3
D52: Stage 3: | E52: ='Surface Processing'!L326 -> DMF | F52: & | G52: ='Surface Processing'!L339 -> DMF | H52: ='Surface Processing'!M323+'Surface Processing'!M336 -> 27.74025277 | I52: ='Surface Processing'!N323 -> kWh/d | J52: Electricity | K52: =IF(J52="Natural gas","1A",IF(J52="NGL","1B",IF(J52="Diesel","2","3"))) -> 3
D53: Stage 4: | E53: ='Surface Processing'!P326 -> N/A | F53: & | G53: ='Surface Processing'!P339 -> N/A | H53: ='Surface Processing'!Q323+'Surface Processing'!Q336 -> 0 | I53: ='Surface Processing'!R323 -> kWh/d | J53: Electricity | K53: =IF(J53="Natural gas","1A",IF(J53="NGL","1B",IF(J53="Diesel","2","3"))) -> 3
B55: Maintenance | H55: 0 | I55: MMBtu/d | J55: NA | K55: NA
B57: Waste disposal | H57: 0 | I57: MMBtu/d | J57: NA | K57: NA
B59: Other | H59: =H60 -> 0 | I59: =I60 -> MMBtu/d | J59: =J60 -> Natural gas | K59: =K60 -> 1A
C60: Electricity generation | H60: =Electricity!M37 -> 0 | I60: MMBtu/d | J60: =IF(OR(Electricity!M12=1,Electricity!M12=2),"Natural gas","Diesel") -> Natural gas | K60: =IF(J60="Natural gas","1A",IF(J60="NGL","1B",IF(J60="Diesel","2","3"))) -> 1A
G61: Total = | H61: =H18+H20+H22+H34+H55+H57+H59 -> 241.159976 | I61: MMBtu/d | J61: Various | K61: NA
B64: Table 3: Gross energy consumption by fuel type
B65: Gross energy consumption by fuel type
E66: Total | F66: Unit
B67: Natural gas | E67: =IF(K23="1A",H23,0)+IF(K24="1A",H24,0)+IF(K25="1A",H25,0)+IF(K26="1A",H26,0)+IF(K27="1A",H27,0)+IF(K28="1A",H28,0)+IF(K29="1A",H29,0)+(IF(K31="1A",H31,0)+H32)+IF(K36="1A",H36,0)+IF(K37="1A",H37,0)+IF(K40="1A",H40,0)+IF(K41="1A",H41,0)+IF(K42="1A",H42,0)+IF(K44="1A",H44,0)+IF(K45="1A",H45,0)+(H47+H48)+IF(K50="1A",H50,0)+IF(K51="1A",H51,0)+IF(K52="1A",H52,0)+IF(K53="1A",H53,0)+IF(K60="1A",H60,0) -> 229.2772842 | F67: MMBtu/d
B68: NGL | E68: =IF(K23="1B",H23,0)+IF(K24="1B",H24,0)+IF(K25="1B",H25,0)+IF(K26="1B",H26,0)+IF(K27="1B",H27,0)+IF(K28="1B",H28,0)+IF(K29="1B",H29,0)+IF(K36="1B",H36,0)+IF(K37="1B",H37,0)+IF(K40="1B",H40,0)+IF(K41="1B",H41,0)+IF(K42="1B",H42,0)+IF(K44="1B",H44,0)+IF(K45="1B",H45,0)+IF(K50="1B",H50,0)+IF(K51="1B",H51,0)+IF(K52="1B",H52,0)+IF(K53="1B",H53,0) -> 0 | F68: MMBtu/d
B69: Diesel | E69: =H20+IF(K23="2",H23,0)+IF(K24="2",H24,0)+IF(K25="2",H25,0)+IF(K26="2",H26,0)+IF(K27="2",H27,0)+IF(K28="2",H28,0)+IF(K29="2",H29,0)+IF(K36="2",H36,0)+IF(K37="2",H37,0)+IF(K40="2",H40,0)+IF(K41="2",H41,0)+IF(K42="2",H42,0)+IF(K44="2",H44,0)+IF(K45="2",H45,0)+IF(K50="2",H50,0)+IF(K51="2",H51,0)+IF(K52="2",H52,0)+IF(K53="2",H53,0)+IF(K60="2",H60,0) -> 8.731166185 | F69: MMBtu/d
B70: Electricity | E70: =((IF(K23="3",H23,0)+IF(K24="3",H24,0)+IF(K25="3",H25,0)+IF(K26="3",H26,0)+IF(K27="3",H27,0)+IF(K28="3",H28,0)+IF(K29="3",H29,0)+IF(K36="3",H36,0)+IF(K37="3",H37,0)+IF(K40="3",H40,0)+IF(K41="3",H41,0)+IF(K42="3",H42,0)+IF(K44="3",H44,0)+IF(K45="3",H45,0)+IF(K50="3",H50,0)+IF(K51="3",H51,0)+IF(K52="3",H52,0)+IF(K53="3",H53,0))/1000)*'Input data'!E52 -> 3.15152554 | F70: MMBtu/d
B71: Crude oil | E71: =IF(K31="4",H31,0) -> 0 | F71: MMBtu/d
D72: Total = | E72: =SUM(E67:E71) -> 241.159976 | F72: MMBtu/d
B75: Table 4: Energy exports/imports by fuel type
B76: Energy exports/imports by fuel type
E77: Total | F77: Unit
B78: Natural gas | E78: =E67+(IF(AND('Production & Extraction'!M20=1,'Production & Extraction'!M186=1),'Production & Extraction'!M189/1000-'Gas Balance'!AL32,0)-'Gas Balance'!AL29)*'Gas Balance'!AC20/'Gas Balance'!AC23+(('Venting & Fugitives'!I238-'Venting & Fugitives'!I254)/365) -> -609.7138802 | F78: MMBtu/d | G78: NG consumed minus NG remaining as process fuel (equal to zero when flooding --> 100% remaining reinjected) + flooding makeup NG + recovered gas
B79: NGL | E79: =E68-'Gas Balance'!AC36*'Surface Processing'!M121 -> -150.3945749 | F79: MMBtu/d
B80: Diesel | E80: =E69 -> 8.731166185 | F80: MMBtu/d
B81: Electricity | E81: =E70-Electricity!M35-IF('Fuel Cycle'!F10=1,'Production & Extraction'!M324,0) -> 3.15152554 | F81: MMBtu/d | G81: Electricity consumed minus electricity generated onsite minus electricity co-generated in steam generation
B82: Crude oil | E82: NA | F82: MMBtu/d | G82: Crude oil is the main product
C83: Total (imports) = | E83: =IF(E78>0,E78,0)+IF(E79>0,E79,0)+E80+IF(E81>0,E81,0) -> 11.88269173 | F83: MMBtu/d
C84: Total (exports) = | E84: =IF(E78<0,E78,0)+IF(E79<0,E79,0)+IF(E81<0,E81,0) -> -760.1084551 | F84: MMBtu/d
B85: Note(s):
B86: Positive value is import (subject to debit)
B87: Negative value is export (subject to credit)
B89: Table 5: Net energy consumption by fuel type
B90: Net energy consumption by fuel type | G90: Note(s):
E91: Total | F91: Unit
B92: =B67 -> Natural gas | E92: =E67 -> 229.2772842 | F92: MMBtu/d
B93: =B68 -> NGL | E93: =E68 -> 0 | F93: MMBtu/d
B94: =B69 -> Diesel | E94: =E69 -> 8.731166185 | F94: MMBtu/d
B95: =B70 -> Electricity | E95: =IF(E81<0,0,E81) -> 3.15152554 | F95: MMBtu/d | G95: Electricity from grid
B96: Crude oil | E96: =E71 -> 0 | F96: MMBtu/d | G96: The upstream energy consumption is accounted by subtracting this amount from the crude oil output
D97: Total = | E97: =SUM(E92:E96) -> 241.159976 | F97: MMBtu/d
B100: Table 6: Indirect energy consumption
B101: Energy for fuel supply/export | G101: Note(s):
E102: Total | F102: Unit
B103: Energy for natural gas supply/export | E103: =E78*IF(E78<0,IF('Fuel Cycle'!F10=1,'Fuel Cycle'!E39,0),'Fuel Cycle'!D59) -> -38.44114255 | F103: MMBtu/d
B104: Energy for NGL supply/export | E104: =E79*IF(E79<0,IF('Fuel Cycle'!F10=1,'Fuel Cycle'!E39,0),'Fuel Cycle'!D59) -> -9.482052939 | F104: MMBtu/d
B105: Energy for Diesel supply/export | E105: =E80*'Fuel Cycle'!D60 -> 1.423328518 | F105: MMBtu/d | G105: No diesel export
B106: Energy for electricity supply/export | E106: ='Energy Consumption'!E81*IF('Energy Consumption'!E81<0,IF('Fuel Cycle'!F10=1,0.92*'Fuel Cycle'!E41,0),'Fuel Cycle'!D61) -> 8.342848389 | F106: MMBtu/d
B107: Energy for crude oil supply/export | E107: =E82 -> NA | F107: MMBtu/d | G107: The upstream energy consumption is accounted by subtracting this amount from the crude oil output
D108: Total = | E108: =SUM(E103:E106) -> -38.15701858 | F108: MMBtu/d
B109: Negative (-) value is an energy credit from exported fuel
B112: Calculations approach:
B113: First we collect the energy consumption of each component in Table 2. From the energy consumption by component we sum the energy consumption by fuel
B114: type in Table 3. Second, we use the energy consumption by fuel type to calculate the exports or imports of each fuel in Table 4. This will be used to calculate
B115: the indirect energy consumption. Third, the net energy consumption is calculated in Table 5. The net energy consumption is equal to energy consumption except for
B116: electricity where the net energy consumption is the electricity from grid. The energy consumed and produced onsite in the form of electricity is already accounted
B117: in the form of natural gas or diesel which fuel the electricity generator. Table 6 calculates the indirect energy consumption using exports/imports from Table 4.

Sheet GHG Emissions
A1: GHG emissions compilation sheet
A3: This sheet compiles emissions quantities from the various pages for use in the "User Inputs & Results" sheet.
B5: Table 1: GHG emissions panel
B6: GHG emissions panel
H7: Combustion | I7: Land use | J7: VFF
J8: Venting | K8: Flaring | L8: Fugitives
H9: Value | I9: Value | J9: Value | K9: Value | L9: Value | M9: Unit | N9: Notes:
B10: Exploration | H10: 0 | I10: 0 | J10: 0 | K10: 0 | L10: 0 | M10: gCO2eq/d
B12: Drilling & Development | H12: ='Energy Consumption'!H20*'Emissions Factors'!K17 -> 689512.8898 | I12: ='Drilling & Development'!M65*(('Production & Extraction'!M35-'Energy Consumption'!E96/'Fuel Specs'!M14)*'Fuel Specs'!M15+('Gas Balance'!AC35*'Surface Processing'!M122+IF('Fuel Cycle'!F10=2,ABS('Energy Consumption'!E84),0))*'Input data'!E46) -> 10952721.46 | J12: 0 | K12: 0 | L12: 0 | M12: gCO2eq/d
B14: Production & Extraction | H14: =SUM(H15:H22) -> 7702402.177 | I14: =SUM(I15:I22) -> 0 | J14: ='Venting & Fugitives'!F247*1000000/365 -> 0 | K14: =Flaring!F80*1000000/365 -> 0 | L14: ='Venting & Fugitives'!F251*1000000/365 -> 151146.1107 | M14: gCO2eq/d
C15: Downhole pump | H15: =IF(AND('Energy Consumption'!K23="1A",'Production & Extraction'!M72=1),'Energy Consumption'!H23*'Emissions Factors'!$H$17,IF(AND('Energy Consumption'!K23="1A",'Production & Extraction'!M72=4),'Energy Consumption'!H23*'Emissions Factors'!$G$17,IF(AND('Energy Consumption'!K23="1B",'Production & Extraction'!M72=1),'Energy Consumption'!H23*'Emissions Factors'!$H$17,IF(AND('Energy Consumption'!K23="1B",'Production & Extraction'!M72=4),'Energy Consumption'!H23*'Emissions Factors'!$G$17,IF('Energy Consumption'!K23="2",'Energy Consumption'!H23*'Emissions Factors'!$K$17,0))))) -> 7702402.177 | I15: 0 | J15: NA | K15: NA | L15: NA | M15: gCO2eq/d
C16: Water re-injection pump | H16: =IF(AND('Energy Consumption'!K24="1A",'Production & Extraction'!M89=1),'Energy Consumption'!H24*'Emissions Factors'!$H$17,IF(AND('Energy Consumption'!K24="1A",'Production & Extraction'!M89=4),'Energy Consumption'!H24*'Emissions Factors'!$G$17,IF(AND('Energy Consumption'!K24="1B",'Production & Extraction'!M89=1),'Energy Consumption'!H24*'Emissions Factors'!$H$17,IF(AND('Energy Consumption'!K24="1B",'Production & Extraction'!M89=4),'Energy Consumption'!H24*'Emissions Factors'!$G$17,IF('Energy Consumption'!K24="2",'Energy Consumption'!H24*'Emissions Factors'!$K$17,0))))) -> 0 | I16: 0 | J16: NA | K16: NA | L16: NA | M16: gCO2eq/d
C17: Gas re-injection compressor | H17: =IF('Energy Consumption'!K25="3",0,'Energy Consumption'!H25*'Emissions Factors'!$H$17) -> 0 | I17: 0 | J17: NA | K17: NA | L17: NA | M17: gCO2eq/d
C18: Water flooding injection pump | H18: =IF(AND('Energy Consumption'!K26="1A",'Production & Extraction'!M143=1),'Energy Consumption'!H26*'Emissions Factors'!$H$17,IF(AND('Energy Consumption'!K26="1A",'Production & Extraction'!M143=4),'Energy Consumption'!H26*'Emissions Factors'!$G$17,IF(AND('Energy Consumption'!K26="1B",'Production & Extraction'!M143=1),'Energy Consumption'!H26*'Emissions Factors'!$H$17,IF(AND('Energy Consumption'!K26="1B",'Production & Extraction'!M143=4),'Energy Consumption'!H26*'Emissions Factors'!$G$17,IF('Energy Consumption'!K26="2",'Energy Consumption'!H26*'Emissions Factors'!$K$17,0))))) -> 0 | I18: 0 | J18: NA | K18: NA | L18: NA | M18: gCO2eq/d
C19: Gas lifting compressor | H19: =IF('Energy Consumption'!K27="3",0,'Energy Consumption'!H27*'Emissions Factors'!$H$17) -> 0 | I19: 0 | J19: NA | K19: NA | L19: NA | M19: gCO2eq/d
C20: Air separation unit | H20: 0 | I20: 0 | J20: NA | K20: NA | L20: NA | M20: gCO2eq/d | N20: All fuel used in a cryogenic air separator is electricity - Direct GHG emissions is 0
C21: Gas flooding injection compressor | H21: =IF('Energy Consumption'!K29="3",0,'Energy Consumption'!H29*'Emissions Factors'!$H$17) -> 0 | I21: 0 | J21: NA | K21: NA | L21: NA | M21: gCO2eq/d
C22: Steam injection | H22: ='Energy Consumption'!H31*IF('Energy Consumption'!K31="4",'Emissions Factors'!M17,'Emissions Factors'!C17)+'Energy Consumption'!H32*'Emissions Factors'!C17 -> 0 | I22: 0 | J22: NA | K22: NA | L22: NA | M22: gCO2eq/d | N22: Natural gas fired
B24: Oil Field Processing | H24: =H25+H28+H39 -> 6664722.825 | I24: =I25+I28+I39 -> 0 | J24: ='Venting & Fugitives'!F248*1000000/365 -> 6565957.361 | K24: =Flaring!F81*1000000/365 -> 22399595.68 | L24: ='Venting & Fugitives'!F252*1000000/365 -> 1152734.955 | M24: gCO2eq/d
C25: Crude oil processing | H25: =H26+H27 -> 3749582.953 | I25: =SUM(I26:I27) -> 0 | J25: NA | K25: NA | L25: NA | M25: gCO2eq/d
D26: Dehydration heater | H26: =IF('Energy Consumption'!K36="3",0,'Energy Consumption'!H36*'Emissions Factors'!C17) -> 0 | I26: 0 | J26: NA | K26: NA | L26: NA | M26: gCO2eq/d | N26: Either natural gas fired or electric
D27: Stabilizer column | H27: =IF('Energy Consumption'!K37="3",0,'Energy Consumption'!H37*'Emissions Factors'!C17) -> 3749582.953 | I27: 0 | J27: NA | K27: NA | L27: NA | M27: gCO2eq/d | N27: Either natural gas fired or electric
C28: Gas processing | H28: =H29+H33+H36 -> 2915139.872 | I28: =I29+I33 -> 0 | J28: NA | K28: NA | L28: NA | M28: gCO2eq/d
D29: Amine treater | H29: =SUM(H30:H32) -> 2246493.142 | I29: =SUM(I30:I32) -> 0 | J29: NA | K29: NA | L29: NA | M29: gCO2eq/d
E30: Pumps | H30: 0 | I30: 0 | J30: NA | K30: NA | L30: NA | M30: gCO2eq/d | N30: Pumps in amine treater are electric by default - Direct GHG emissions is 0
E31: Air coolers | H31: 0 | I31: 0 | J31: NA | K31: NA | L31: NA | M31: gCO2eq/d | N31: Air coolers in amine treater use electricity driven fans - Direct GHG emissions is 0
E32: Reboiler | H32: ='Energy Consumption'!H42*'Emissions Factors'!C17 -> 2246493.142 | I32: 0 | J32: NA | K32: NA | L32: NA | M32: gCO2eq/d | N32: Glycol reboiler is natural gas fired by default
D33: Glycol dehydrator | H33: =SUM(H34:H35) -> 10129.03578 | I33: =SUM(I34:I35) -> 0 | J33: NA | K33: NA | L33: NA | M33: gCO2eq/d
E34: Reboiler | H34: =IF('Energy Consumption'!K44="3",0,'Energy Consumption'!H44*'Emissions Factors'!C17) -> 10129.03578 | I34: 0 | J34: NA | K34: NA | L34: NA | M34: gCO2eq/d | N34: Either natural gas fired or electric
E35: Glycol pump | H35: 0 | I35: 0 | J35: NA | K35: NA | L35: NA | M35: gCO2eq/d | N35: Glycol pump is electric by default - Direct GHG emissions is 0
D36: Demethanizer | H36: =H37+H38 -> 658517.694 | I36: =I37+I38 -> 0 | J36: NA | K36: NA | L36: NA | M36: gCO2eq/d
E37: Refrigeration system | H37: ='Energy Consumption'!H47*'Emissions Factors'!G17 -> 658517.694 | I37: 0 | J37: NA | K37: NA | L37: NA | M37: gCO2eq/d
E38: Fractionation reboiler | H38: ='Energy Consumption'!H48*'Emissions Factors'!D17 -> 0 | I38: 0 | J38: NA | K38: NA | L38: NA | M38: gCO2eq/d
C39: Water treatment | H39: =SUM(H40:H43) -> 0 | I39: =SUM(I40:I43) -> 0 | J39: NA | K39: NA | L39: NA | M39: gCO2eq/d
D40: Stage 1: | E40: ='Energy Consumption'!E50 -> DAF | F40: & | G40: ='Surface Processing'!D339 -> DAF | H40: 0 | I40: 0 | J40: NA | K40: NA | L40: NA | M40: gCO2eq/d | N40: All fuel used in water treatment is electricity - Direct GHG emissions is 0
D41: Stage 2: | E41: ='Energy Consumption'!E51 -> RBC | F41: & | G41: ='Surface Processing'!H339 -> RBC | H41: 0 | I41: 0 | J41: NA | K41: NA | L41: NA | M41: gCO2eq/d | N41: All fuel used in water treatment is electricity - Direct GHG emissions is 0
D42: Stage 3: | E42: ='Energy Consumption'!E52 -> DMF | F42: & | G42: ='Surface Processing'!L339 -> DMF | H42: 0 | I42: 0 | J42: NA | K42: NA | L42: NA | M42: gCO2eq/d | N42: All fuel used in water treatment is electricity - Direct GHG emissions is 0
D43: Stage 4: | E43: ='Energy Consumption'!E53 -> N/A | F43: & | G43: ='Surface Processing'!P339 -> N/A | H43: 0 | I43: 0 | J43: NA | K43: NA | L43: NA | M43: gCO2eq/d | N43: All fuel used in water treatment is electricity - Direct GHG emissions is 0
B45: Maintenance | H45: 0 | I45: 0 | J45: ='Venting & Fugitives'!F249*1000000/365 -> 751242.7975 | K45: =Flaring!F82*1000000/365 -> 0 | L45: ='Venting & Fugitives'!F253*1000000/365 -> 0 | M45: gCO2eq/d
B47: Waste disposal | H47: 0 | I47: 0 | J47: 0 | K47: 0 | L47: 0 | M47: gCO2eq/d
B49: Other | H49: =H50 -> 0 | I49: =I50 -> 0 | J49: =J50 -> 0 | K49: =K50 -> 0 | L49: =L50 -> 0 | M49: gCO2eq/d
C50: Electricity generation | H50: =Electricity!M39*1000000 -> 0 | I50: 0 | J50: 0 | K50: 0 | L50: 0 | M50: gCO2eq/d
B51: Total = | H51: =H10+H12+H14+H24+H45+H47+H49 -> 15056637.89 | I51: =I10+I12+I14+I24+I45+I47+I49 -> 10952721.46 | J51: =J10+J12+J14+J24+J45+J47+J49 -> 7317200.159 | K51: =K10+K12+K14+K24+K45+K47+K49 -> 22399595.68 | L51: =L10+L12+L14+L24+L45+L47+L49 -> 1303881.066 | M51: gCO2eq/d
B52: Note:
B53: NGL emissions factor is assumed the same as natural gas
B55: Table 2: Indirect GHG emissions
B56: GHG emissions from fuel supply/export
G57: Total | H57: Unit
B58: GHG emissions from natural gas supply/export | G58: ='Energy Consumption'!E78*IF('Energy Consumption'!E78>0,'Fuel Cycle'!D73,IF('Fuel Cycle'!F10=1,'Fuel Cycle'!D49,0)) -> -4663481.236 | H58: gCO2eq/d
B59: GHG emissions from NGL supply/export | G59: ='Energy Consumption'!E79*IF('Energy Consumption'!E79>0,'Fuel Cycle'!D73,IF('Fuel Cycle'!F10=1,'Fuel Cycle'!D49,0)) -> -1150313.779 | H59: gCO2eq/d
B60: GHG emissions from diesel supply/export | G60: ='Energy Consumption'!E80*IF('Energy Consumption'!E80>0,'Fuel Cycle'!D74,IF('Fuel Cycle'!F10=1,'Fuel Cycle'!D50,0)) -> 138008.7926 | H60: gCO2eq/d
B61: GHG emissions from electricity supply/export | G61: ='Energy Consumption'!E81*IF('Energy Consumption'!E81>0,'Fuel Cycle'!D75,IF('Fuel Cycle'!F10=1,0.92*'Fuel Cycle'!D51,0)) -> 718973.7013 | H61: gCO2eq/d
B62: GHG emissions from crude oil supply/export | G62: NA | H62: gCO2eq/d | I62: Crude oil is the main product
B63: Total = | G63: =SUM(G58:G61) -> -4956812.521 | H63: gCO2eq/d

Sheet Exploration
A1: Exploration
A3: Exploration is not included in the current version of OPGEE. Exploration emissions are expected to be too small to meet significance cutoffs.

Sheet Drilling & Development
A1: Drilling & development
A3: Estimation of GHG emissions from drilling and field development
A6: 1 Drilling combustion emissions
A9: 1.1 Field drilling and development properties | M9: User | N9: Default | O9: Units | Q9: User reference | S9: Default reference | Y9: Notes
B10: 1.1.1 Crude location | M10: ='User Inputs & Results'!J66 -> Generic | N10: USA
B11: 1.1.2 Crude name | M11: ='User Inputs & Results'!J67 -> Generic | N11: Generic
B12: 1.1.3 Field depth | M12: ='User Inputs & Results'!J69 -> 7240 | N12: ='User Inputs & Results'!K69 -> 7240 | O12: ft
B13: 1.1.4 API gravity | M13: ='User Inputs & Results'!J78 -> 30 | N13: ='User Inputs & Results'!K78 -> 30
B14: 1.1.5 Crude oil heating value | M14: =VLOOKUP(M13,'Fuel Specs'!B21:O62,5) -> 5.5146 | N14: =VLOOKUP(N13,'Fuel Specs'!B21:O62,5) -> 5.5146 | O14: MMBtu LHV/bbl
A16: 1.2. Drilling energy consumption during field development
B17: 1.2.1 Energy intensity of drilling | M17: 1 | N17: 1 | O17: NA
C18: 1= | D18: Low intensity drilling
C19: 2= | D19: High intensity drilling
B20: 1.2.2 Energy intensity of drilling | M20: =IF(M17=1,37.169*EXP(0.1428*(M12/1000)),IF(M17=2,97.193*EXP(0.1215*(M12/1000)))) -> 104.5167223 | N20: =IF(N17=1,37.169*EXP(0.1428*(N12/1000)),IF(N17=2,97.193*EXP(0.1215*(N12/1000)))) -> 104.5167223 | O20: MMBtu/1000 ft | Y20: Source: Brandt (2011) p. 1843, eq. 4 & 5. Original data from Canadian drilling operations, cited in Petroleum Services Association of Canada (2001, 2002, 2005)
B21: 1.2.3 Energy intensity per well | M21: =M20*M12/1000 -> 756.7010694 | N21: =N20*N12/1000 -> 756.7010694 | O21: MMBtu/well
A24: 1.3. Per-well lifetime productivity
B25: 1.3.1 Expected lifetime well productivity | M25: 130000 | N25: 130000 | O25: bbl/well | Y25: Source: Yeh et al. (2010) for California. Cumulative production to date in California is 25.99 Gbbl. Known wells total approximately 200,000 (although early wells are missing from this dataset). Therefore per-well lifetime productivity is ~130,000 bbl/well.
C26: 1.3.1.1. Expected lifetime energy production | M26: =M25*M14 -> 716898 | N26: =N25*N14 -> 716898 | O26: MMBtu/well
A28: 1.4. Fractional energy consumption per well drilled | M28: =M21/M26 -> 0.001055521245 | N28: =N21/N26 -> 0.001055521245 | O28: MMBtu/MMBtu
A34: 2 Land use impacts
A37: 2.1 Crude development properties | M37: User | N37: Default | O37: Units | Q37: User reference | S37: Default reference | Y37: Notes
B38: 2.1.1 Crude location | M38: ='User Inputs & Results'!J66 -> Generic | N38: Generic
B39: 2.1.2 Crude name | M39: ='User Inputs & Results'!J67 -> Generic | N39: Generic
B40: 2.1.3 Crude production method
C41: 2.1.3.1 | D41: Conventional, in situ production via wellbore | M41: 1 | N41: 1 | O41: NA
C42: 2.1.3.2 | D42: Mining-based production | M42: 0 | N42: 0 | O42: NA | Y42: Mining-based production does not include land use change on this sheet, because this is counted in GHGenius
L43: Check: | M43: =IF(SUM(M41:M42)=1,"OK","ERROR") -> OK | N43: =IF(SUM(N41:N42)=1,"OK","ERROR") -> OK
B44: 2.1.4 Crude ecosystem carbon richness
C45: 2.1.4.1 | D45: Low carbon richness (semi-arid grasslands) | M45: ='User Inputs & Results'!J113 -> 0 | N45: ='User Inputs & Results'!K113 -> 0 | O45: NA | S45: Yeh et al. (2010) | Y45: Corresponds to Yeh et al. (2010) California Marginal case (Table 3)
C46: 2.1.4.2 | D46: Moderate carbon richness (mixed) | M46: ='User Inputs & Results'!J114 -> 1 | N46: ='User Inputs & Results'!K114 -> 1 | O46: NA | S46: Yeh et al. (2010) | Y46: Corresponds to mixed ecosystem
C47: 2.1.4.3 | D47: High carbon richness (forested) | M47: ='User Inputs & Results'!J115 -> 0 | N47: ='User Inputs & Results'!K115 -> 0 | O47: NA | S47: Yeh et al. (2010) | Y47: Corresponds to Yeh et al. (2010) Alberta Marginal case
L48: Check: | M48: =IF(SUM(M45:M47)=1,"OK","ERROR") -> OK | N48: =IF(SUM(N45:N47)=1,"OK","ERROR") -> OK
B49: 2.1.5 Field development intensity
C50: 2.1.5.1 | D50: Low intensity development and low oxidation | M50: ='User Inputs & Results'!J117 -> 0 | N50: ='User Inputs & Results'!K117 -> 0 | O50: NA | S50: Yeh et al. (2010) | Y50: Corresponds to Yeh et al. (2010) low end of range (Table 3)
C51: 2.1.5.2 | D51: Moderate intensity development and moderate oxidation | M51: ='User Inputs & Results'!J118 -> 1 | N51: ='User Inputs & Results'!K118 -> 1 | O51: NA | S51: Yeh et al. (2010) | Y51: Corresponds to Yeh et al. (2010) representative value (Table 3)
C52: 2.1.5.3 | D52: High intensity development and high oxidation | M52: ='User Inputs & Results'!J119 -> 0 | N52: ='User Inputs & Results'!K119 -> 0 | O52: NA | S52: Yeh et al. (2010) | Y52: Corresponds to Yeh et al. (2010) high end of range (Table 3)
L53: Check: | M53: =IF(SUM(M50:M52)=1,"OK","ERROR") -> OK | N53: =IF(SUM(N50:N52)=1,"OK","ERROR") -> OK
B55: 2.1.6 Timeframe of land use analysis (1 = 30 years, 2 = 150 years) | M55: 1 | N55: 1 | Y55: If default timeframe of 30 years is chosen, modified versions of Yeh et al. (2010) calculations are used. See documenation for calculation differences.
K57: Emissions code: | M57: =IF(M41=1,(M45*M50*1+M45*M51*2+M45*M52*3+M46*M50*4+M46*M51*5+M46*M52*6+M47*M50*7+M47*M51*8+M47*M52*9),IF(M42=1,"bit","ERROR")) -> 5 | N57: =IF(N41=1,(N45*N50*1+N45*N51*2+N45*N52*3+N46*N50*4+N46*N51*5+N46*N52*6+N47*N50*7+N47*N51*8+N47*N52*9),0) -> 5
A59: 2.2 Source-specific land use emissions
B60: 2.2.1 Soil carbon emissions | M60: =IF(M$57=0,0,HLOOKUP($M$57,IF($M$55=1,'Emissions Factors'!$D$130:$O$133,IF($M$55=2,'Emissions Factors'!$D$120:$O$123,"ERROR")),2,TRUE)) -> 0.57 | N60: =IF(N$57=0,0,HLOOKUP($N$57,IF($N$55=1,'Emissions Factors'!$D$130:$O$133,IF($N$55=2,'Emissions Factors'!$D$120:$O$123,"ERROR")),2,TRUE)) -> 0.57 | O60: gCO2eq/MJ | S60: Yeh et al. (2010) | Y60: See above.
B61: 2.2.2 Biomass carbon emissions | M61: =IF(M$57=0,0,HLOOKUP($M$57,IF($M$55=1,'Emissions Factors'!$D$130:$O$133,IF($M$55=2,'Emissions Factors'!$D$120:$O$123,"ERROR")),3,TRUE)) -> 0.68 | N61: =IF(N$57=0,0,HLOOKUP($N$57,IF($N$55=1,'Emissions Factors'!$D$130:$O$133,IF($N$55=2,'Emissions Factors'!$D$120:$O$123,"ERROR")),3,TRUE)) -> 0.68 | O61: gCO2eq/MJ | S61: Yeh et al. (2010) | Y61: See above.
B62: 2.2.3 Foregone sequestration emissions | M62: =IF(M$57=0,0,HLOOKUP($M$57,IF($M$55=1,'Emissions Factors'!$D$130:$O$133,IF($M$55=2,'Emissions Factors'!$D$120:$O$123,"ERROR")),4,TRUE)) -> 0.005 | N62: =IF(N$57=0,0,HLOOKUP($N$57,IF($N$55=1,'Emissions Factors'!$D$130:$O$133,IF($N$55=2,'Emissions Factors'!$D$120:$O$123,"ERROR")),4,TRUE)) -> 0.005 | O62: gCO2eq/MJ | S62: Yeh et al. (2010) | Y62: See above.
A65: 2.3 Total land use emissions | M65: =SUM(M60:M62) -> 1.255 | N65: =SUM(N60:N62) -> 1.255 | O65: gCO2eq/MJ

Sheet Production & Extraction
A1: Crude Extraction
A3: Calculation of GHG emissions from crude oil extraction using different techniques.
A4: 1. Oil recovery stages: Primary, secondary and tertiary
A5: 2. Artificial lifting methods:
A6: 2.1 Downhole pump (e.g. Sucker-rod pump, submersible motor pump)
A7: 2.2 Water flooding
A8: 2.3 Gas flooding (e.g., N2 flooding)
A9: 2.4 Gas lifting
A10: 2.5 Steam flooding
A12: 1 Input assumptions
A14: 1.1 Production methods | M14: User | N14: Default | O14: Units | Q14: User reference | S14: Default reference | Y14: Notes
B15: 1.1.1 Downhole pump | M15: ='User Inputs & Results'!J57 -> 1 | N15: 1
B16: 1.1.2 Water reinjection | M16: ='User Inputs & Results'!J58 -> 1 | N16: 1
B17: 1.1.3 Gas reinjection | M17: ='User Inputs & Results'!J59 -> 1 | N17: 1
B18: 1.1.4 Water flooding | M18: ='User Inputs & Results'!J60 -> 0 | N18: 0
B19: 1.1.5 Gas lifting | M19: ='User Inputs & Results'!J61 -> 0 | N19: 0
B20: 1.1.6 Gas flooding | M20: ='User Inputs & Results'!J62 -> 0 | N20: 0
B21: 1.1.7 Steam flooding | M21: ='User Inputs & Results'!J63 -> 0 | N21: 0
A24: 2 Input data
A27: 2.1 Field and production parameters
B29: 2.1.1 Product crude | M29: User | N29: Default | O29: Units | Q29: User reference | S29: Default reference | Y29: Notes
C30: 2.1.1.1 Crude location | M30: ='User Inputs & Results'!J66 -> Generic | N30: ='User Inputs & Results'!K66 -> Generic | O30: NA
C31: 2.1.1.2 Crude name | M31: ='User Inputs & Results'!J67 -> Generic | N31: ='User Inputs & Results'!K67 -> Generic | O31: NA
C32: 2.1.1.3 API | M32: ='User Inputs & Results'!J78 -> 30 | N32: ='User Inputs & Results'!K78 -> 30 | O32: [-]
C33: 2.1.1.4 Specific gravity | M33: =141.5/(M32+131.5) -> 0.8761609907 | N33: =141.5/(N32+131.5) -> 0.8761609907 | O33: [-] | S33: Manning, F., and Thompson, R. (1995), p. 20
C34: 2.1.1.5 Sulfur | M34: 2 | N34: 2 | O34: wt%
C35: 2.1.1.6 Production volume | M35: ='User Inputs & Results'!J70 -> 1500 | N35: ='User Inputs & Results'!K70 -> 1500 | O35: bbl/d
AM36: Mr | AN36: Mr%
B37: 2.1.2 Associated gas | AM37: lb/lbmol | AN37: lb/lbmol
C38: 2.1.2.1 Gas composition | L38: N2 | M38: ='User Inputs & Results'!J80 -> 2 | N38: 2 | O38: mol% | AL38: N2 | AM38: ='Fuel Specs'!E148 -> 28 | AN38: =M38*AM38/100 -> 0.56
L39: CO2 | M39: ='User Inputs & Results'!J81 -> 6 | N39: 6 | O39: mol% | AL39: CO2 | AM39: ='Fuel Specs'!E150 -> 44 | AN39: 2.64
L40: C1 | M40: ='User Inputs & Results'!J82 -> 84 | N40: 84 | O40: mol% | AL40: C1 | AM40: ='Fuel Specs'!E152 -> 16 | AN40: 13.44
L41: C2 | M41: ='User Inputs & Results'!J83 -> 4 | N41: 4 | O41: mol% | AL41: C2 | AM41: ='Fuel Specs'!E153 -> 30 | AN41: 1.2
L42: C3 | M42: ='User Inputs & Results'!J84 -> 2 | N42: 2 | O42: mol% | AL42: C3 | AM42: ='Fuel Specs'!E154 -> 44 | AN42: 0.88
L43: C4+ | M43: ='User Inputs & Results'!J85 -> 1 | N43: 1 | O43: mol% | AL43: C4 | AM43: ='Fuel Specs'!E155 -> 58 | AN43: 0.58
L44: H2S | M44: ='User Inputs & Results'!J86 -> 1 | N44: 1 | O44: mol% | AL44: H2S | AM44: ='Fuel Specs'!E158 -> 34 | AN44: 0.34
M45: =IF(SUM(M38:M44)=100, "OK", "ERROR") -> OK | AL45: Gas | AM45: =SUM(AN38:AN44) -> 19.64
C47: 2.1.2.2 Gas gravity | M47: =(14.7*AM45)/(10.73*(60+460))/0.0764 -> 0.6772708659 | N47: =(14.7*AM45)/(10.73*(60+460))/0.0764 -> 0.6772708659 | O47: [-]
C48: 2.1.2.3 Gas-oil ratio (GOR) | M48: ='User Inputs & Results'!J90 -> 908 | N48: ='User Inputs & Results'!K90 -> 908 | O48: scf/bbl
C49: 2.1.2.4 Fraction of remaining gas to reinjection | L49: =IF(AND(AND(M20=1,M186=1),NOT(M49=100)),"ERROR","OK") -> OK | M49: =IF('User Inputs & Results'!J97=-1,0,'User Inputs & Results'!J97*100) -> 0 | N49: ='User Inputs & Results'!K97*100 -> 0 | O49: %
B51: 2.1.3 Produced water
C52: 2.1.3.1 Water cut (WOR) | M52: ='User Inputs & Results'!J91 -> 4.308369057 | N52: ='User Inputs & Results'!K91 -> 4.308369057 | O52: bbl water/bbl oil
C53: 2.1.3.2 Concentration of dissolved solids (TDS) | M53: 5000 | N53: 5000 | O53: mg/L | S53: Vlasopoulos et al. (2006)
C54: 2.1.3.3 Water specific gravity | M54: =1+M53*0.695*10^-6 -> 1.003475 | N54: =1+N53*0.695*10^-6 -> 1.003475 | O54: [-] | S54: Fanchi, J.R. (2007), p.-490
C55: 2.1.3.4 Density of water at standard conditions | M55: =M54*62.4 -> 62.61684 | N55: =N54*62.4 -> 62.61684 | O55: lbm/ft3
C56: 2.1.3.5 Fraction of water to reinjection/flooding | L56: =IF(AND(M18=1,NOT(M56=100)),"ERROR","OK") -> OK | M56: ='User Inputs & Results'!J98*100 -> 100 | N56: ='User Inputs & Results'!K98*100 -> 100 | O56: %
B58: 2.1.4 Well description
C59: 2.1.4.1 Average reservoir pressure | M59: ='User Inputs & Results'!J75 -> 1556.6 | N59: ='User Inputs & Results'!K75 -> 1556.6 | O59: psi
C60: 2.1.4.2 Well completion
D61: 2.1.4.2.1 Depth | M61: ='User Inputs & Results'!J69 -> 7240 | N61: ='User Inputs & Results'!K69 -> 7240 | O61: ft
D62: 2.1.4.2.2 Diameter | M62: ='User Inputs & Results'!J73 -> 2.775 | N62: ='User Inputs & Results'!K73 -> 2.775 | O62: in
C63: 2.1.4.3 Well head pressure | M63: 1000 | N63: 1000 | O63: psi | S63: Manning, F., and Thompson, R. (1991)
C64: 2.1.4.4 Number of producing wells | L64: =IF(M64>0,"OK","ERROR") -> OK | M64: ='User Inputs & Results'!J71 -> 8 | N64: ='User Inputs & Results'!K71 -> 8 | O64: [-]
C65: 2.1.4.5 Number of water injecting wells | M65: ='User Inputs & Results'!J72 -> 5 | N65: ='User Inputs & Results'!K72 -> 5 | O65: [-]
C66: 2.1.4.6 Productivity index | L66: =IF((M59-((M35+M35*M52)/M64)/M66)>=0,"OK","ERROR") -> OK | M66: ='User Inputs & Results'!J74 -> 3 | N66: ='User Inputs & Results'!K74 -> 3 | O66: bbl/psi-d
C67: 2.1.4.7 Injectivity index | M67: =N67 -> 3 | N67: =M66 -> 3 | O67: bbl/psi-d
C68: 2.1.4.8 Friction factor | M68: 0.02 | N68: 0.02 | O68: [-]
A70: 2.2 Downhole pump
B71: 2.2.1 Pump efficiency | M71: 65 | N71: 65 | O71: %
B72: 2.2.2 Prime mover type | M72: 1 | N72: 1 | O72: NA
C73: 1= | D73: Natural gas engine
C74: 2= | D74: Electric motor
C75: 3= | D75: Diesel-fired engine
C76: 4= | D76: NG-fired turbine
B77: 2.2.3 NG fuel type | M77: 1 | N77: 1 | O77: NA
C78: 1= | D78: Natural gas
C79: 2= | D79: NGL (butane or propane)
C80: 3= | D80: Not applicable
B81: 2.2.4 Prime mover fuel use
C82: 2.2.4.1 Natural gas engine | M82: =N82 -> 7704.5 | N82: =IF(M15=0,"NA",IF(M229<=Drivers!D10,Drivers!E15,IF(M229<=Drivers!F10,Drivers!G15,IF(M229<=Drivers!H10,Drivers!I15,IF(M229<=Drivers!J10,Drivers!K15,IF(M229<=Drivers!L10,Drivers!M15,IF(M229<=Drivers!N10,Drivers!O15,IF(M229<=Drivers!P10,Drivers!Q15,IF(M229<=Drivers!R10,Drivers!S15,IF(M229<=Drivers!T10,Drivers!U15,IF(M229<=Drivers!V10,Drivers!W15,IF(M229<=Drivers!X10,Drivers!Y15,IF(M229<=Drivers!Z10,Drivers!AA15,Drivers!AC15))))))))))))) -> 7704.5 | O82: Btu/bhp-hr
C83: 2.2.4.2 Electric motor | M83: =N83 -> 0.7830687479 | N83: =IF(M15=0,"NA",IF(M229<=Drivers!D48,Drivers!E53,IF(M229<=Drivers!F48,Drivers!G53,IF(M229<=Drivers!H48,Drivers!I53,IF(M229<=Drivers!J48,Drivers!K53,IF(M229<=Drivers!L48,Drivers!M53,IF(M229<=Drivers!N48,Drivers!O53,IF(M229<=Drivers!P48,Drivers!Q53,IF(M229<=Drivers!R48,Drivers!S53,IF(M229<=Drivers!T48,Drivers!U53,IF(M229<=Drivers!V48,Drivers!W53,IF(M229<=Drivers!X48,Drivers!Y53,IF(M229<=Drivers!Z48,Drivers!AA53,Drivers!AC53))))))))))))*'Input data'!E50) -> 0.7830687479 | O83: kWh/bhp-hr
C84: 2.2.4.3 Diesel-fired engine | M84: =N84 -> 7272.67517 | N84: =IF(M15=0,"NA",IF(M229<=Drivers!D36,Drivers!E41,IF(M229<=Drivers!F36,Drivers!G41,IF(M229<=Drivers!H36,Drivers!I41,IF(M229<=Drivers!J36,Drivers!K41,IF(M229<=Drivers!L36,Drivers!M41,IF(M229<=Drivers!N36,Drivers!O41,IF(M229<=Drivers!P36,Drivers!Q41,IF(M229<=Drivers!R36,Drivers!S41,Drivers!U41))))))))) -> 7272.67517 | O84: Btu/bhp-hr
C85: 2.2.4.4 NG-fired turbine | M85: =N85 -> 10370 | N85: =IF(M15=0,"NA",IF(M229<=Drivers!D24,Drivers!E29,IF(M229<=Drivers!F24,Drivers!G29,IF(M229<=Drivers!H24,Drivers!I29,IF(M229<=Drivers!J24,Drivers!K29,IF(M229<=Drivers!L24,Drivers!M29,IF(M229<=Drivers!N24,Drivers!O29,IF(M229<=Drivers!P24,Drivers!Q29,IF(M229<=Drivers!R24,Drivers!S29,Drivers!U29))))))))) -> 10370 | O85: Btu/bhp-hr
A87: 2.3 Water reinjection pump
B88: 2.3.1 Pump efficiency | M88: 65 | N88: 65 | O88: %
B89: 2.3.2 Prime mover type | M89: 1 | N89: 1 | O89: NA
C90: 1= | D90: Natural gas engine
C91: 2= | D91: Electric motor
C92: 3= | D92: Diesel-fired engine
C93: 4= | D93: NG-fired turbine
B94: 2.3.3 NG fuel type | M94: 1 | N94: 1 | O94: NA
C95: 1= | D95: Natural gas
C96: 2= | D96: NGL (butane or propane)
C97: 3= | D97: Not applicable
B98: 2.3.4 Prime mover fuel use
C99: 2.3.4.1 Natural gas engine | M99: =N99 -> 7704.5 | N99: =IF(M16=0,"NA",IF(M239<=Drivers!D10,Drivers!E15,IF(M239<=Drivers!F10,Drivers!G15,IF(M239<=Drivers!H10,Drivers!I15,IF(M239<=Drivers!J10,Drivers!K15,IF(M239<=Drivers!L10,Drivers!M15,IF(M239<=Drivers!N10,Drivers!O15,IF(M239<=Drivers!P10,Drivers!Q15,IF(M239<=Drivers!R10,Drivers!S15,IF(M239<=Drivers!T10,Drivers!U15,IF(M239<=Drivers!V10,Drivers!W15,IF(M239<=Drivers!X10,Drivers!Y15,IF(M239<=Drivers!Z10,Drivers!AA15,Drivers!AC15))))))))))))) -> 7704.5 | O99: Btu/bhp-hr
C100: 2.3.4.2 Electric motor | M100: =N100 -> 0.8905304496 | N100: =IF(M16=0,"NA",IF(M239<=Drivers!D48,Drivers!E53,IF(M239<=Drivers!F48,Drivers!G53,IF(M239<=Drivers!H48,Drivers!I53,IF(M239<=Drivers!J48,Drivers!K53,IF(M239<=Drivers!L48,Drivers!M53,IF(M239<=Drivers!N48,Drivers!O53,IF(M239<=Drivers!P48,Drivers!Q53,IF(M239<=Drivers!R48,Drivers!S53,IF(M239<=Drivers!T48,Drivers!U53,IF(M239<=Drivers!V48,Drivers!W53,IF(M239<=Drivers!X48,Drivers!Y53,IF(M239<=Drivers!Z48,Drivers!AA53,Drivers!AC53))))))))))))*'Input data'!E50) -> 0.8905304496 | O100: kWh/bhp-hr
C101: 2.3.4.3 Diesel-fired engine | M101: =N101 -> 7272.67517 | N101: =IF(M16=0,"NA",IF(M239<=Drivers!D36,Drivers!E41,IF(M239<=Drivers!F36,Drivers!G41,IF(M239<=Drivers!H36,Drivers!I41,IF(M239<=Drivers!J36,Drivers!K41,IF(M239<=Drivers!L36,Drivers!M41,IF(M239<=Drivers!N36,Drivers!O41,IF(M239<=Drivers!P36,Drivers!Q41,IF(M239<=Drivers!R36,Drivers!S41,Drivers!U41))))))))) -> 7272.67517 | O101: Btu/bhp-hr
C102: 2.3.4.4 NG-fired turbine | M102: =N102 -> 10370 | N102: =IF(M16=0,"NA",IF(M239<=Drivers!D24,Drivers!E29,IF(M239<=Drivers!F24,Drivers!G29,IF(M239<=Drivers!H24,Drivers!I29,IF(M239<=Drivers!J24,Drivers!K29,IF(M239<=Drivers!L24,Drivers!M29,IF(M239<=Drivers!N24,Drivers!O29,IF(M239<=Drivers!P24,Drivers!Q29,IF(M239<=Drivers!R24,Drivers!S29,Drivers!U29))))))))) -> 10370 | O102: Btu/bhp-hr
B104: 2.3.5 Operating pressures
C105: 2.3.5.1 Suction pressure | M105: 0 | N105: 0 | O105: psi | Y105: Assumed 90% of maximum allowed pressure and 50 psi of friction loss
C106: 2.3.5.2 Discharge pressure | M106: =N106 -> 0 | N106: =IF(M59+M107+M108-0.43*M61>0,M59+M107+M108-0.43*M61,0) -> 0 | O106: psi
D107: 2.3.5.2.1 Friction loss | M107: =((M68*M61*(((M56/100)*'Surface Processing'!R326/M65*('Input data'!E35/(24*60*60))/(3.142*(M62/24)^2))^2))/(2*(M62/12)*32.2))*0.43 -> 16.71575421 | N107: =((N68*N61*(((N56/100)*'Surface Processing'!R326/N65*('Input data'!E35/(24*60*60))/(3.142*(N62/24)^2))^2))/(2*(N62/12)*32.2))*0.43 -> 16.71575421 | O107: psi
D108: 2.3.5.2.2 Differential pressure | M108: =((M56/100)*'Surface Processing'!R326/M65)/M67 -> 430.8369057 | N108: =((N56/100)*'Surface Processing'!R326/N65)/N67 -> 430.8369057 | O108: psi
A109: 2.4 Gas reinjection compressor (1-5 stages)
B110: 2.4.1 Compressor parameters
C111: 2.4.1.1 Suction pressure | M111: 125 | N111: 125 | O111: psia
C112: 2.4.1.2 Discharge pressure | M112: =N112 -> 2071.3 | N112: =M59+500+14.7 -> 2071.3 | O112: psia
C113: 2.4.1.3 Compression ratio | M113: =IF(M17=0,"NA",IF(M112/M111<5, M112/M111, IF((M112/M111)^(1/2)<5, (M112/M111)^(1/2), IF((M112/M111)^(1/3)<5, (M112/M111)^(1/3),IF((M112/M111)^(1/4)<5, (M112/M111)^(1/4), (M112/M111)^(1/5)))))) -> 4.07067562 | N113: =IF(M17=0,"NA",IF(N112/N111<5, N112/N111, IF((N112/N111)^(1/2)<5, (N112/N111)^(1/2), IF((N112/N111)^(1/3)<5, (N112/N111)^(1/3),IF((N112/N111)^(1/4)<5, (N112/N111)^(1/4), (N112/N111)^(1/5)))))) -> 4.07067562 | O113: [-]
C114: 2.4.1.4 Number of stages | M114: =IF(M17=0,"NA",IF(M112/M111=M113,1,IF((M112/M111)^(1/2)=M113, 2, IF((M112/M111)^(1/3)=M113,3,IF((M112/M111)^(1/4)=M113,4,5))))) -> 2 | N114: =IF(M17=0,"NA",IF(N112/N111=N113,1,IF((N112/N111)^(1/2)=N113, 2, IF((N112/N111)^(1/3)=N113,3,IF((N112/N111)^(1/4)=N113,4,5))))) -> 2 | O114: [-]
C115: 2.4.1.5 First stage inlet temperature | M115: 196.7 | N115: 196.7 | O115: ◦F
C116: 2.4.1.6 Second stage inlet temperature | M116: =IF(M17=0,"NA",IF(M114>1,((((M115+460)*(M113^((M120-1)/M120)))-460)-M115)*0.2+M115,"NA")) -> 243.9107003 | N116: =IF(M17=0,"NA",IF(N114>1,((((N115+460)*(N113^((N120-1)/N120)))-460)-N115)*0.2+N115,"NA")) -> 243.9107003 | O116: ◦F | S116: Jarrell, P. M. (2002) | Y116: Assumed 80% cooling (imperfect cooling); discharge temperature calculated using eq. (5.7), SPE monopgraph volume 22
C117: 2.4.1.7 Third stage inlet temperature | M117: =IF(M17=0,"NA",IF(M114>2,((((M116+460)*(M113^((M120-1)/M120)))-460)-M116)*0.2+M116,"NA")) -> NA | N117: =IF(M17=0,"NA",IF(N114>2,((((N116+460)*(N113^((N120-1)/N120)))-460)-N116)*0.2+N116,"NA")) -> NA | O117: ◦F
C118: 2.4.1.8 Fourth stage inlet temperature | M118: =IF(M17=0,"NA",IF(M114>3,((((M117+460)*(M113^((M120-1)/M120)))-460)-M117)*0.2+M117,"NA")) -> NA | N118: =IF(M17=0,"NA",IF(N114>3,((((N117+460)*(N113^((N120-1)/N120)))-460)-N117)*0.2+N117,"NA")) -> NA | O118: ◦F
C119: 2.4.1.9 Fifth stage inlet temperature | M119: =IF(M17=0,"NA",IF(M114>4,((((M118+460)*(M113^((M120-1)/M120)))-460)-M118)*0.2+M118,"NA")) -> NA | N119: =IF(M17=0,"NA",IF(N114>4,((((N118+460)*(N113^((N120-1)/N120)))-460)-N118)*0.2+N118,"NA")) -> NA | O119: ◦F
C120: 2.4.1.10 Ratio of specific heats | M120: 1.28 | N120: 1.28 | O120: [-] | S120: McAllister, E. W. (2009) | Y120: Typical Cp/Cv ratios in oil-producing operations: 1.16, 1.28, 1.40
C121: 2.4.1.11 Compressor efficiency | M121: 75 | N121: 75 | O121: %
B122: 2.4.2 Prime mover
C123: 2.4.2.1 Prime mover type | M123: 2 | N123: 2 | O123: NA
D124: 1= | E124: Electric motor
D125: 2= | E125: Natural gas engine
C126: 2.4.2.2 NG fuel type | M126: 1 | N126: 1 | O126: NA
D127: 1= | E127: Natural gas
D128: 2= | E128: NGL (butane or propane)
D129: 3= | E129: Not applicable
C130: 2.4.2.3 Prime mover fuel use
D131: 2.4.2.3.1 Electric motor | M131: =N131 -> 0.8905304496 | N131: =IF(M17=0,"NA",IF(M262<=Drivers!D48,Drivers!E53,IF(M262<=Drivers!F48,Drivers!G53,IF(M262<=Drivers!H48,Drivers!I53,IF(M262<=Drivers!J48,Drivers!K53,IF(M262<=Drivers!L48,Drivers!M53,IF(M262<=Drivers!N48,Drivers!O53,IF(M262<=Drivers!P48,Drivers!Q53,IF(M262<=Drivers!R48,Drivers!S53,IF(M262<=Drivers!T48,Drivers!U53,IF(M262<=Drivers!V48,Drivers!W53,IF(M262<=Drivers!X48,Drivers!Y53,IF(M262<=Drivers!Z48,Drivers!AA53,Drivers!AC53))))))))))))*'Input data'!E50) -> 0.8905304496 | O131: kWh/bhp-hr
D132: 2.4.2.3.2 Natural gas engine | M132: =N132 -> 7704.5 | N132: =IF(M17=0,"NA",IF(M262<=Drivers!D10,Drivers!E15,IF(M262<=Drivers!F10,Drivers!G15,IF(M262<=Drivers!H10,Drivers!I15,IF(M262<=Drivers!J10,Drivers!K15,IF(M262<=Drivers!L10,Drivers!M15,IF(M262<=Drivers!N10,Drivers!O15,IF(M262<=Drivers!P10,Drivers!Q15,IF(M262<=Drivers!R10,Drivers!S15,IF(M262<=Drivers!T10,Drivers!U15,IF(M262<=Drivers!V10,Drivers!W15,IF(M262<=Drivers!X10,Drivers!Y15,IF(M262<=Drivers!Z10,Drivers!AA15,Drivers!AC15))))))))))))) -> 7704.5 | O132: Btu/bhp-hr
A134: 2.5 Water flooding
B135: 2.5.1 Water injection volume | M135: ='User Inputs & Results'!J92*M35 -> 7962.553586 | N135: ='User Inputs & Results'!K92*N35 -> 7962.553586 | O135: bwpd
B136: 2.5.2 Operating pressures | Y136: Assumed 90% of maximum allowed pressure and 50 psi of friction loss
C137: 2.5.2.1 Suction pressure | M137: 0 | N137: 0 | O137: psi
C138: 2.5.2.2 Discharge pressure | M138: =N138 -> 0 | N138: =IF(M59+M139+M140-0.43*M61>0,M59+M139+M140-0.43*M61,0) -> 0 | O138: psi
D139: 2.5.2.2.1 Friction loss | M139: =((M68*M61*(((M135/M65)*('Input data'!E35/(24*60*60))/(3.142*(M62/24)^2))^2))/(2*(M62/12)*32.2))*0.43 -> 25.37595516 | N139: =((N68*N61*(((N135/N65)*('Input data'!E35/(24*60*60))/(3.142*(N62/24)^2))^2))/(2*(N62/12)*32.2))*0.43 -> 25.37595516
D140: 2.5.2.2.2 Differential pressure | M140: =(M135/M65)/M67 -> 530.8369057 | N140: =(N135/N65)/N67 -> 530.8369057
B141: 2.5.3 Water flooding injection pump
C142: 2.5.3.1 Pump efficiency | M142: 65 | N142: 65 | O142: %
C143: 2.5.3.2 Prime mover type | M143: 1 | N143: 1 | O143: NA
D144: 1= | E144: Natural gas engine
D145: 2= | E145: Electric motor
D146: 3= | E146: Diesel-fired engine
D147: 4= | E147: NG-fired turbine
C148: 2.5.3.3 NG fuel type | M148: 1 | N148: 1 | O148: NA
D149: 1= | E149: Natural gas
D150: 2= | E150: NGL (butane or propane)
D151: 3= | E151: Not applicable
C152: 2.5.3.4 Prime mover fuel use
D153: 2.5.3.4.1 Natural gas engine | M153: =N153 -> NA | N153: =IF(M18=0,"NA",IF(M270<=Drivers!D10,Drivers!E15,IF(M270<=Drivers!F10,Drivers!G15,IF(M270<=Drivers!H10,Drivers!I15,IF(M270<=Drivers!J10,Drivers!K15,IF(M270<=Drivers!L10,Drivers!M15,IF(M270<=Drivers!N10,Drivers!O15,IF(M270<=Drivers!P10,Drivers!Q15,IF(M270<=Drivers!R10,Drivers!S15,IF(M270<=Drivers!T10,Drivers!U15,IF(M270<=Drivers!V10,Drivers!W15,IF(M270<=Drivers!X10,Drivers!Y15,IF(M270<=Drivers!Z10,Drivers!AA15,Drivers!AC15))))))))))))) -> NA | O153: Btu/bhp-hr
D154: 2.5.3.4.2 Electric motor | M154: =N154 -> NA | N154: =IF(M18=0,"NA",IF(M270<=Drivers!D48,Drivers!E53,IF(M270<=Drivers!F48,Drivers!G53,IF(M270<=Drivers!H48,Drivers!I53,IF(M270<=Drivers!J48,Drivers!K53,IF(M270<=Drivers!L48,Drivers!M53,IF(M270<=Drivers!N48,Drivers!O53,IF(M270<=Drivers!P48,Drivers!Q53,IF(M270<=Drivers!R48,Drivers!S53,IF(M270<=Drivers!T48,Drivers!U53,IF(M270<=Drivers!V48,Drivers!W53,IF(M270<=Drivers!X48,Drivers!Y53,IF(M270<=Drivers!Z48,Drivers!AA53,Drivers!AC53))))))))))))*'Input data'!E50) -> NA | O154: kWh/bhp-hr
D155: 2.5.3.4.3 Diesel-fired engine | M155: =N155 -> NA | N155: =IF(M18=0,"NA",IF(M270<=Drivers!D36,Drivers!E41,IF(M270<=Drivers!F36,Drivers!G41,IF(M270<=Drivers!H36,Drivers!I41,IF(M270<=Drivers!J36,Drivers!K41,IF(M270<=Drivers!L36,Drivers!M41,IF(M270<=Drivers!N36,Drivers!O41,IF(M270<=Drivers!P36,Drivers!Q41,IF(M270<=Drivers!R36,Drivers!S41,Drivers!U41))))))))) -> NA | O155: Btu/bhp-hr
D156: 2.5.3.4.4 NG-fired turbine | M156: =N156 -> NA | N156: =IF(M18=0,"NA",IF(M270<=Drivers!D24,Drivers!E29,IF(M270<=Drivers!F24,Drivers!G29,IF(M270<=Drivers!H24,Drivers!I29,IF(M270<=Drivers!J24,Drivers!K29,IF(M270<=Drivers!L24,Drivers!M29,IF(M270<=Drivers!N24,Drivers!O29,IF(M270<=Drivers!P24,Drivers!Q29,IF(M270<=Drivers!R24,Drivers!S29,Drivers!U29))))))))) -> NA | O156: Btu/bhp-hr
A158: 2.6 Gas lifting
B159: 2.6.1 Gas injection volume | M159: =IF(M19=1,'User Inputs & Results'!J93*(M35+M52*M35)/1000,"NA") -> NA | N159: =IF(M19=1,'User Inputs & Results'!K93*(N35+N52*N35)/1000,"NA") -> NA | O159: Mscf/d | S159: Takacs (2005), p. 269 | Y159: Default for gas lifting injection volume is 1500 scf/bbl liquod
B160: 2.6.2 Gas injection compressor (1-5 stages)
C161: 2.6.2.1 Compressor parameters
D162: 2.6.2.1.1 Suction pressure | M162: 125 | N162: 125 | O162: psia
D163: 2.6.2.1.2 Discharge pressure | M163: =N163 -> 893 | N163: =(M59/2)+100+14.7 -> 893 | O163: psia
D164: 2.6.2.1.3 Compression ratio | M164: =IF(M19=0,"NA",IF(M163/M162<5, M163/M162, IF((M163/M162)^(1/2)<5, (M163/M162)^(1/2), IF((M163/M162)^(1/3)<5, (M163/M162)^(1/3),IF((M163/M162)^(1/4)<5, (M163/M162)^(1/4), (M163/M162)^(1/5)))))) -> NA | N164: =IF(M19=0,"NA",IF(N163/N162<5, N163/N162, IF((N163/N162)^(1/2)<5, (N163/N162)^(1/2), IF((N163/N162)^(1/3)<5, (N163/N162)^(1/3),IF((N163/N162)^(1/4)<5, (N163/N162)^(1/4), (N163/N162)^(1/5)))))) -> NA | O164: [-]
D165: 2.6.2.1.4 Number of stages | M165: =IF(M19=0,"NA",IF(M163/M162=M164,1,IF((M163/M162)^(1/2)=M164, 2, IF((M163/M162)^(1/3)=M164,3,IF((M163/M162)^(1/4)=M164,4,5))))) -> NA | N165: =IF(M19=0,"NA",IF(N163/N162=N164,1,IF((N163/N162)^(1/2)=N164, 2, IF((N163/N162)^(1/3)=N164,3,IF((N163/N162)^(1/4)=N164,4,5))))) -> NA | O165: [-]
D166: 2.6.2.1.5 First stage inlet temperature | M166: 196.7 | N166: 196.7 | O166: ◦F
D167: 2.6.2.1.6 Second stage inlet temperature | M167: =IF(M19=0,"NA",IF(M165>1,((((M166+460)*(M164^((M171-1)/M171)))-460)-M166)*0.2+M166,"NA")) -> NA | N167: =IF(M19=0,"NA",IF(N165>1,((((N166+460)*(M164^((M171-1)/M171)))-460)-N166)*0.2+N166,"NA")) -> NA | O167: ◦F
D168: 2.6.2.1.7 Third stage inlet temperature | M168: =IF(M19=0,"NA",IF(M165>2,((((M167+460)*(M164^((M171-1)/M171)))-460)-M167)*0.2+M167,"NA")) -> NA | N168: =IF(M19=0,"NA",IF(N165>2,((((N167+460)*(N164^((N171-1)/N171)))-460)-N167)*0.2+N167,"NA")) -> NA | O168: ◦F
D169: 2.6.2.1.8 Fourth stage inlet temperature | M169: =IF(M19=0,"NA",IF(M165>3,((((M168+460)*(M164^((M171-1)/M171)))-460)-M168)*0.2+M168,"NA")) -> NA | N169: =IF(M19=0,"NA",IF(N165>3,((((N168+460)*(N164^((N171-1)/N171)))-460)-N168)*0.2+N168,"NA")) -> NA | O169: ◦F
D170: 2.6.2.1.9 Fifth stage inlet temperature | M170: =IF(M19=0,"NA",IF(M165>4,((((M169+460)*(M164^((M171-1)/M171)))-460)-M169)*0.2+M169,"NA")) -> NA | N170: =IF(M19=0,"NA",IF(N165>4,((((N169+460)*(N164^((N171-1)/N171)))-460)-N169)*0.2+N169,"NA")) -> NA | O170: ◦F
D171: 2.6.2.1.10 Ratio of specific heats | M171: 1.28 | N171: 1.28 | O171: [-] | S171: McAllister, E. W. (2009) | Y171: Typical Cp/Cv ratios in oil-producing operations: 1.16, 1.28, 1.40
D172: 2.6.2.1.11 Compressor efficiency | M172: 75 | N172: 75 | O172: %
B173: 2.6.3 Prime mover
C174: 2.6.3.1 Prime mover type | M174: 2 | N174: 2 | O174: NA
D175: 1= | E175: Electric motor
D176: 2= | E176: Natural gas engine
C177: 2.6.3.2 NG fuel type | M177: 1 | N177: 1 | O177: NA
D178: 1= | E178: Natural gas
D179: 2= | E179: NGL (butane or propane)
D180: 3= | E180: Not applicable
C181: 2.6.3.3 Prime mover fuel use
D182: 2.6.3.3.1 Electric motor | M182: =N182 -> NA | N182: =IF(M19=0,"NA",IF(M293<=Drivers!D48,Drivers!E53,IF(M293<=Drivers!F48,Drivers!G53,IF(M293<=Drivers!H48,Drivers!I53,IF(M293<=Drivers!J48,Drivers!K53,IF(M293<=Drivers!L48,Drivers!M53,IF(M293<=Drivers!N48,Drivers!O53,IF(M293<=Drivers!P48,Drivers!Q53,IF(M293<=Drivers!R48,Drivers!S53,IF(M293<=Drivers!T48,Drivers!U53,IF(M293<=Drivers!V48,Drivers!W53,IF(M293<=Drivers!X48,Drivers!Y53,IF(M293<=Drivers!Z48,Drivers!AA53,Drivers!AC53))))))))))))*'Input data'!E50) -> NA | O182: kWh/bhp-hr
D183: 2.6.3.3.2 Natural gas engine | M183: =N183 -> NA | N183: =IF(M19=0,"NA",IF(M293<=Drivers!D10,Drivers!E15,IF(M293<=Drivers!F10,Drivers!G15,IF(M293<=Drivers!H10,Drivers!I15,IF(M293<=Drivers!J10,Drivers!K15,IF(M293<=Drivers!L10,Drivers!M15,IF(M293<=Drivers!N10,Drivers!O15,IF(M293<=Drivers!P10,Drivers!Q15,IF(M293<=Drivers!R10,Drivers!S15,IF(M293<=Drivers!T10,Drivers!U15,IF(M293<=Drivers!V10,Drivers!W15,IF(M293<=Drivers!X10,Drivers!Y15,IF(M293<=Drivers!Z10,Drivers!AA15,Drivers!AC15))))))))))))) -> NA | O183: Btu/bhp-hr
A185: 2.7 Gas flooding
B186: 2.7.1 Type of gas flooded | M186: 1 | N186: 1 | O186: NA
C187: 1= Natural gas
C188: 2= Nitrogen (N2)
B189: 2.7.2 Gas injection volume | M189: =IF(M20=1,'User Inputs & Results'!J94*M35/1000,"NA") -> NA | N189: =IF(M20=1,IF(M186=1,'User Inputs & Results'!K94*N35/1000,1200*N35/1000),"NA") -> NA | O189: Mscf/d | S189: Kuo, J. C. et al. (2001) | Y189: Default of N2 injection volume is 1200 scf/bbl oil (Cantarell field in Mexico) <http://www.bechtel.com/assets/files/PDF/BHTSWebsite/cantarell2.pdf>
B190: 2.7.3 Air separation unit (cryogenic N2 gas production)
C191: 2.7.3.1 Electricity consumption | L191: =IF(AND(M186=1,M191>0),"ERROR","OK") -> OK | M191: 0 | N191: 0 | O191: kWh/scf
B192: 2.7.4 Gas injection compressor (1-5 stages)
C193: 2.7.4.1 Compressor parameters
D194: 2.7.4.1.1 Suction pressure | M194: 125 | N194: 125 | O194: psia
D195: 2.7.4.1.2 Discharge pressure | M195: =N195 -> 2071.3 | N195: =M59+500+14.7 -> 2071.3 | O195: psia
D196: 2.7.4.1.3 Compression ratio | M196: =IF(M20=0,"NA",IF(M195/M194<5, M195/M194, IF((M195/M194)^(1/2)<5, (M195/M194)^(1/2), IF((M195/M194)^(1/3)<5, (M195/M194)^(1/3),IF((M195/M194)^(1/4)<5, (M195/M194)^(1/4), (M195/M194)^(1/5)))))) -> NA | N196: =IF(M20=0,"NA",IF(N195/N194<5, N195/N194, IF((N195/N194)^(1/2)<5, (N195/N194)^(1/2), IF((N195/N194)^(1/3)<5, (N195/N194)^(1/3),IF((N195/N194)^(1/4)<5, (N195/N194)^(1/4), (N195/N194)^(1/5)))))) -> NA | O196: [-]
D197: 2.7.4.1.4 Number of stages | M197: =IF(M20=0,"NA",IF(M195/M194=M196,1,IF((M195/M194)^(1/2)=M196, 2, IF((M195/M194)^(1/3)=M196,3,IF((M195/M194)^(1/4)=M196,4,5))))) -> NA | N197: =IF(M20=0,"NA",IF(N195/N194=N196,1,IF((N195/N194)^(1/2)=N196, 2, IF((N195/N194)^(1/3)=N196,3,IF((N195/N194)^(1/4)=N196,4,5))))) -> NA | O197: [-]
D198: 2.7.4.1.5 First stage inlet temperature | M198: 196.7 | N198: 196.7 | O198: ◦F
D199: 2.7.4.1.6 Second stage inlet temperature | M199: =IF(M20=0,"NA",IF(M197>1,((((M198+460)*(M196^((M203-1)/M203)))-460)-M198)*0.2+M198,"NA")) -> NA | N199: =IF(M20=0,"NA",IF(N197>1,((((N198+460)*(N196^((N203-1)/N203)))-460)-N198)*0.2+N198,"NA")) -> NA | O199: ◦F
D200: 2.7.4.1.7 Third stage inlet temperature | M200: =IF(M20=0,"NA",IF(M197>2,((((M199+460)*(M196^((M203-1)/M203)))-460)-M199)*0.2+M199,"NA")) -> NA | N200: =IF(M20=0,"NA",IF(N197>2,((((N199+460)*(N196^((N203-1)/N203)))-460)-N199)*0.2+N199,"NA")) -> NA | O200: ◦F
D201: 2.7.4.1.8 Fourth stage inlet temperature | M201: =IF(M20=0,"NA",IF(M197>3,((((M200+460)*(M196^((M203-1)/M203)))-460)-M200)*0.2+M200,"NA")) -> NA | N201: =IF(M20=0,"NA",IF(N197>3,((((N200+460)*(N196^((N203-1)/N203)))-460)-N200)*0.2+N200,"NA")) -> NA | O201: ◦F
D202: 2.7.4.1.9 Fifth stage inlet temperature | M202: =IF(M20=0,"NA",IF(M197>4,((((M201+460)*(M196^((M203-1)/M203)))-460)-M201)*0.2+M201,"NA")) -> NA | N202: =IF(M20=0,"NA",IF(N197>4,((((N201+460)*(N196^((N203-1)/N203)))-460)-N201)*0.2+N201,"NA")) -> NA | O202: ◦F
D203: 2.7.4.1.10 Ratio of specific heats | L203: =IF(AND(AND(M20=1,M186=2),NOT(M203=1.4)),"ERROR","OK") -> OK | M203: =N203 -> 1.28 | N203: =IF(M186=1,1.28,1.4) -> 1.28 | O203: [-] | S203: McAllister, E. W. (2009) | Y203: Typical Cp/Cv ratios in oil-producing operations: 1.16, 1.28, 1.40
D204: 2.7.4.1.11 Compressor efficiency | M204: 75 | N204: 75 | O204: %
B205: 2.7.5 Prime mover
C206: 2.7.5.1 Prime mover type | M206: 2 | N206: 2 | O206: NA
D207: 1= | E207: Electric motor
D208: 2= | E208: Natural gas engine
C209: 2.7.5.2 NG fuel type | M209: 1 | N209: 1 | O209: NA
D210: 1= | E210: Natural gas
D211: 2= | E211: NGL (butane or propane)
D212: 3= | E212: Not applicable
C213: 2.7.5.3 Prime mover fuel use
D214: 2.7.5.3.1 Electric motor | M214: =N214 -> NA | N214: =IF(M20=0,"NA",IF(M314<=Drivers!D48,Drivers!E53,IF(M314<=Drivers!F48,Drivers!G53,IF(M314<=Drivers!H48,Drivers!I53,IF(M314<=Drivers!J48,Drivers!K53,IF(M314<=Drivers!L48,Drivers!M53,IF(M314<=Drivers!N48,Drivers!O53,IF(M314<=Drivers!P48,Drivers!Q53,IF(M314<=Drivers!R48,Drivers!S53,IF(M314<=Drivers!T48,Drivers!U53,IF(M314<=Drivers!V48,Drivers!W53,IF(M314<=Drivers!X48,Drivers!Y53,IF(M314<=Drivers!Z48,Drivers!AA53,Drivers!AC53))))))))))))*'Input data'!E50) -> NA | O214: kWh/bhp-hr
D215: 2.7.5.3.2 Natural gas engine | M215: =N215 -> NA | N215: =IF(M20=0,"NA",IF(M314<=Drivers!D10,Drivers!E15,IF(M314<=Drivers!F10,Drivers!G15,IF(M314<=Drivers!H10,Drivers!I15,IF(M314<=Drivers!J10,Drivers!K15,IF(M314<=Drivers!L10,Drivers!M15,IF(M314<=Drivers!N10,Drivers!O15,IF(M314<=Drivers!P10,Drivers!Q15,IF(M314<=Drivers!R10,Drivers!S15,IF(M314<=Drivers!T10,Drivers!U15,IF(M314<=Drivers!V10,Drivers!W15,IF(M314<=Drivers!X10,Drivers!Y15,IF(M314<=Drivers!Z10,Drivers!AA15,Drivers!AC15))))))))))))) -> NA | O215: Btu/bhp-hr
A217: 2.8 Steam injection
B218: 2.8.1 Steam oil ratio (SOR) | M218: =IF(M21=0,3,'User Inputs & Results'!J95) -> 3 | N218: =IF(N21=0,3,'User Inputs & Results'!K95) -> 3 | O218: bbl steam/bbl oil
... 98 more rows

Sheet Surface Processing
A1: Surface processing
A3: Calculation of GHG emissions from field oil, gas and water processing.
A6: 1 Input assumptions
A8: 1.1 Crude oil processing
M10: User | N10: Default | O10: Units | Q10: User reference | S10: Default reference | Y10: Notes
A11: 1.1.1 Heater-treater
B12: 1.1.1.1 Application of heat treatment | M12: ='User Inputs & Results'!J102 -> 0 | N12: 0 | O12: NA
C13: 0= No
C14: 1= Yes
B15: 1.1.1.2 Entrained water as a fraction of oil emulsion | M15: 14 | N15: 14 | O15: %
B16: 1.1.1.3 Feed temperature | M16: 90 | N16: 90 | O16: ◦F
B17: 1.1.1.4 Treating temperature | M17: 165 | N17: 165 | O17: ◦F
B18: 1.1.1.5 Specific heat of oil | M18: 150 | N18: 150 | O18: Btu/bbl-◦F | S18: Manning, F. and Thompson, R. (1991)
B19: 1.1.1.6 Specific heat of water | M19: 350 | N19: 350 | O19: Btu/bbl-◦F
B20: 1.1.1.7 Heat loss | M20: 2 | N20: 2 | O20: %
B21: 1.1.1.8 Prime mover
C22: 1.1.1.8.1 Type of heater | M22: 1 | N22: 1 | O22: NA
D23: 1= Gas fired
D24: 2= Electric
C25: 1.1.1.8.2 NG fuel type | M25: 1 | N25: 1 | O25: NA
D26: 1= | E26: Natural gas
D27: 2= | E27: NGL (butane or propane)
D28: 3= | E28: Not applicable
C29: 1.1.1.8.3 Heater fuel use | M29: =N29 -> 1.25 | N29: =1/0.8 -> 1.25 | O29: Btu/Btu | S29: EPA (2008) | Y29: Nominal heater efficiency (80%) <http://www.epa.gov/climateleadership/documents/resources/draft_reforestation_offset_protocol.pdf>
M30: 366.3368056 | N30: =(N29/'Input data'!$E$52)*1000 -> 366.3368056 | O30: kWh/MMBtu
A32: 1.1.2 Oil-gas separation
B33: 1.1.2.1 Application of stabilizer | M33: ='User Inputs & Results'!J103 -> 1 | N33: ='User Inputs & Results'!K103 -> 1 | O33: NA
C34: 0= No
C35: 1= Yes
B36: 1.1.2.2 Reboiled stabilizer column
B37: Note: if not applicable enter "NA"
C38: 1.1.2.2.1 Reboiler pressure | M38: 100 | N38: 100 | O38: psi | Y38: The higher the operating pressure, the higher is the oil yield
C39: 1.1.2.2.2 Feed temperature | M39: 120 | N39: 120 | O39: ◦F
C40: 1.1.2.2.3 Process temperature | M40: 344 | N40: 344 | O40: ◦F
C41: 1.1.2.2.4 Specific heat of crude oil | M41: 150 | N41: 150 | O41: Btu/bbl-◦F
C42: 1.1.2.2.5 Heat loss | M42: 2 | N42: 2 | O42: %
C43: 1.1.2.2.6 Prime mover
D44: 1.1.2.2.6.1 Type of heater | M44: 1 | N44: 1 | O44: NA
E45: 1= Gas fired
E46: 2= Electric
D47: 1.1.2.2.6.2 NG fuel type | M47: 1 | N47: 1 | O47: NA
E48: 1= | F48: Natural gas
E49: 2= | F49: NGL (butane or propane)
E50: 3= | F50: Not applicable
D51: 1.1.2.2.6.3 Heater fuel use | M51: =N51 -> 1.25 | N51: =1/0.8 -> 1.25 | O51: Btu/Btu
M52: 366.3368056 | N52: =(N51/'Input data'!$E$52)*1000 -> 366.3368056 | O52: kWh/MMBtu
A54: 1.2 Separator gas processing
M56: User | N56: Default | O56: Units | Q56: User reference | S56: Default reference | AA56: Notes
A57: 1.2.1 Gas processing scheme
B58: 1.2.1.1 AGR unit | M58: ='User Inputs & Results'!J104 -> 1 | N58: ='User Inputs & Results'!K104 -> 1 | O58: NA
C59: 0= No
C60: 1= Yes
B61: 1.2.1.2 Gas dehydration unit | M61: ='User Inputs & Results'!J105 -> 1 | N61: ='User Inputs & Results'!K105 -> 1 | O61: NA
C62: 0= No
C63: 1= Yes
B64: 1.2.1.3 Demethanizer | M64: ='User Inputs & Results'!J106 -> 1 | N64: ='User Inputs & Results'!K106 -> 1 | O64: NA
C65: 0= No
C66: 1= Yes
A68: 1.2.2 Amine treater
B69: 1.2.2.1 Contactor
C70: 1.2.2.1.1 Amine solution | M70: 1 | N70: 1 | O70: NA
D71: 1= Monoethanolamine (MEA)
D72: 2= Diethanolamine (DEA) - conventional (30 wt%)
D73: 3= Diethanolamine (DEA) - high load (35 wt%)
D74: 4= Diglycolamine (DGA)
D75: 5= Methyldiethanolamine (MDEA)
D76: 6= Other
C77: 1.2.2.1.2 Amine solution K value | M77: 2.05 | N77: =IF(M70=1,2.05, IF(M70=2,1.45,IF(M70=3,0.95,IF(M70=4,1.28,IF(M70=5,1.25,"User"))))) -> 2.05 | O77: gpm-d/100MMscf | S77: Manning, F. and Thompson, R. (1991), p.115
C78: 1.2.2.1.3 Operating pressure | M78: 350 | N78: 350 | O78: psi | S78: Manning, F. and Thompson, R. (1991), p.117, Figure 7-9 | AA78: Median of reported values
B79: 1.2.2.2 Pumps driver fuel use | M79: =N79 -> 0.8182724964 | N79: =IF(M226<=Drivers!D48,Drivers!E53*'Input data'!E50,IF(M226<=Drivers!F48,Drivers!G53*'Input data'!E50,IF(M226<=Drivers!H48,Drivers!I53*'Input data'!E50,IF(M226<=Drivers!J48,Drivers!K53*'Input data'!E50,IF(M226<=Drivers!L48,Drivers!M53*'Input data'!E50,IF(M226<=Drivers!N48,Drivers!O53*'Input data'!E50,IF(M226<=Drivers!P48,Drivers!Q53*'Input data'!E50,IF(M226<=Drivers!R48,Drivers!S53*'Input data'!E50,IF(M226<=Drivers!T48,Drivers!U53*'Input data'!E50,IF(M226<=Drivers!V48,Drivers!W53*'Input data'!E50,IF(M226<=Drivers!X48,Drivers!Y53*'Input data'!E50,IF(M226<=Drivers!Z48,Drivers!AA53*'Input data'!E50,Drivers!AC53*'Input data'!E50)))))))))))) -> 0.8182724964 | O79: kWh/bhp-hr | AA79: Assumed electric by default
B80: 1.2.2.3 Air-cooling fan driver fuel use | M80: =N80 -> 0.8120397353 | N80: =IF(M235<=Drivers!D48,Drivers!E53*'Input data'!E50,IF(M235<=Drivers!F48,Drivers!G53*'Input data'!E50,IF(M235<=Drivers!H48,Drivers!I53*'Input data'!E50,IF(M235<=Drivers!J48,Drivers!K53*'Input data'!E50,IF(M235<=Drivers!L48,Drivers!M53*'Input data'!E50,IF(M235<=Drivers!N48,Drivers!O53*'Input data'!E50,IF(M235<=Drivers!P48,Drivers!Q53*'Input data'!E50,IF(M235<=Drivers!R48,Drivers!S53*'Input data'!E50,IF(M235<=Drivers!T48,Drivers!U53*'Input data'!E50,IF(M235<=Drivers!V48,Drivers!W53*'Input data'!E50,IF(M235<=Drivers!X48,Drivers!Y53*'Input data'!E50,IF(M235<=Drivers!Z48,Drivers!AA53*'Input data'!E50,Drivers!AC53*'Input data'!E50)))))))))))) -> 0.8120397353 | O80: kWh/bhp-hr | AA80: Assumed electric by default
B81: 1.2.2.4 Reboiler
C82: 1.2.2.4.1 Gas-fired heater fuel use | M82: =N82 -> 1.25 | N82: =1/0.8 -> 1.25 | O82: Btu/Btu
C83: 1.2.2.4.2 NG fuel type | M83: 1 | N83: 1 | O83: NA
D84: 1= | E84: Natural gas
D85: 2= | E85: NGL (butane or propane)
A87: 1.2.3 Glycol dehydrator
B88: 1.2.3.1 Contactor
C89: 1.2.3.1.1 TEG concentration | M89: 99 | N89: 99 | O89: wt% | S89: Manning, F. and Thompson, R. (1991), p.155
C90: 1.2.3.1.2 TEG-to-water ratio | M90: 2 | N90: 2 | O90: gal TEG/lb H2O | S90: Manning, F. and Thompson, R. (1991), p.147
C91: 1.2.3.1.3 Operating pressure | M91: 786 | N91: 786 | O91: psi | S91: Manning, F. and Thompson, R. (1991), p.160
B92: 1.2.3.2 Glycol pump
C93: 1.2.3.2.1 Pump type | M93: 1 | N93: 1 | O93: NA
D94: 1= Reciprocating pump
D95: 2= Centrifugal pump
C96: 1.2.3.1.2.2 Pump efficiency | M96: 75 | N96: 75 | O96: %
C97: 1.2.3.2.3 Prime mover fuel use | M97: =N97 -> 0.8905304496 | N97: =IF(M288<=Drivers!D48,Drivers!E53*'Input data'!E50,IF(M288<=Drivers!F48,Drivers!G53*'Input data'!E50,IF(M288<=Drivers!H48,Drivers!I53*'Input data'!E50,IF(M288<=Drivers!J48,Drivers!K53*'Input data'!E50,IF(M288<=Drivers!L48,Drivers!M53*'Input data'!E50,IF(M288<=Drivers!N48,Drivers!O53*'Input data'!E50,IF(M288<=Drivers!P48,Drivers!Q53*'Input data'!E50,IF(M288<=Drivers!R48,Drivers!S53*'Input data'!E50,IF(M288<=Drivers!T48,Drivers!U53*'Input data'!E50,IF(M288<=Drivers!V48,Drivers!W53*'Input data'!E50,IF(M288<=Drivers!X48,Drivers!Y53*'Input data'!E50,IF(M288<=Drivers!Z48,Drivers!AA53*'Input data'!E50,Drivers!AC53*'Input data'!E50)))))))))))) -> 0.8905304496 | O97: kWh/bhp-hr | AA97: Prime mover is electric by default
B98: 1.2.3.3 Reboiler
C99: 1.2.3.3.1 Type of heater | M99: 1 | N99: 1 | O99: NA
D100: 1= Gas fired
D101: 2= Electric
C102: 1.2.3.3.2 Heater fuel use | M102: =N102 -> 1.25 | N102: =1/0.8 -> 1.25 | O102: Btu/Btu
M103: 366.3368056 | N103: =(N102/'Input data'!$E$52)*1000 -> 366.3368056 | O103: kWh/MMBtu
C105: 1.2.3.3.3 NG fuel type | M105: 1 | N105: 1 | O105: NA
D106: 1= | E106: Natural gas
D107: 2= | E107: NGL (butane or propane)
D108: 3= | E108: Not applicable
A109: 1.2.4 Demethanizer
B110: 1.2.4.1 Fraction of gas condensed
C111: 1.2.4.1.1 C2H6 | M111: 90.2 | N111: 90.2 | O111: % | S111: Nawaz, M. and Jobson, M. (2010)
C112: 1.2.4.1.2 C3H8 | M112: 100 | N112: 100 | O112: %
C113: 1.2.4.1.3 C4H10 | M113: 100 | N113: 100 | O113: %
B114: 1.2.4.2 Energy factors | AA114: Assume that reboiler duty is provided via heat exchanger from inlet stream.
C115: 1.2.4.2.1 Refrigeration system power | M115: =N115 -> 3.634593913 | N115: 3.634593913 | O115: bhp-hr/kmolCOND | S115: Nawaz, M. and Jobson, M. (2010) | AA115: Compressor work happens up front to bring pressure up to assumed inlet pressure of Nawaz. So all feed is compressed.
C116: 1.2.4.2.2 Compressor system power | M116: =N116 -> 0.5831099196 | N116: 0.5831099196 | O116: bhp-hr/kmolFEED | S116: Nawaz, M. and Jobson, M. (2010) | AA116: Because heat recovery is used to recovery cold from outlet gas stream, assume the work of refrigeration is proportional to condensed stream, not full stream.
B117: 1.2.4.3 Fuel usage
C118: 1.2.4.3.1 Refrigeration system driver | M118: =IF(M64=1,IF(M306<=Drivers!D24,Drivers!E29,IF(M306<=Drivers!F24,Drivers!G29,IF(M306<=Drivers!H24,Drivers!I29,IF(M306<=Drivers!J24,Drivers!K29,IF(M306<=Drivers!L24,Drivers!M29,IF(M306<=Drivers!N24,Drivers!O29,IF(M306<=Drivers!P24,Drivers!Q29,IF(M306<=Drivers!R24,Drivers!S29,Drivers!U29)))))))),"NA") -> 10370 | N118: =IF(N306<=Drivers!D24,Drivers!E29,IF(N306<=Drivers!F24,Drivers!G29,IF(N306<=Drivers!H24,Drivers!I29,IF(N306<=Drivers!J24,Drivers!K29,IF(N306<=Drivers!L24,Drivers!M29,IF(N306<=Drivers!N24,Drivers!O29,IF(N306<=Drivers!P24,Drivers!Q29,IF(N306<=Drivers!R24,Drivers!S29,Drivers!U29)))))))) -> 10370 | O118: Btu/bhp-hr | AA118: Driver is NG turbine by default
C119: 1.2.4.3.2 Compressor system driver | M119: =IF(M64=1,IF(M307<=Drivers!D24,Drivers!E29,IF(M307<=Drivers!F24,Drivers!G29,IF(M307<=Drivers!H24,Drivers!I29,IF(M307<=Drivers!J24,Drivers!K29,IF(M307<=Drivers!L24,Drivers!M29,IF(M307<=Drivers!N24,Drivers!O29,IF(M307<=Drivers!P24,Drivers!Q29,IF(M307<=Drivers!R24,Drivers!S29,Drivers!U29)))))))),"NA") -> 10370 | N119: =IF(N307<=Drivers!D24,Drivers!E29,IF(N307<=Drivers!F24,Drivers!G29,IF(N307<=Drivers!H24,Drivers!I29,IF(N307<=Drivers!J24,Drivers!K29,IF(N307<=Drivers!L24,Drivers!M29,IF(N307<=Drivers!N24,Drivers!O29,IF(N307<=Drivers!P24,Drivers!Q29,IF(N307<=Drivers!R24,Drivers!S29,Drivers!U29)))))))) -> 10370 | O119: Btu/bhp-hr | AA119: Heater is NG-fired by default
B120: 1.2.4.4 NGL use
C121: 1= Export/process fuel | M121: 1 | N121: 1 | O121: fraction
C122: 2= Crude oil blend | L122: =IF(SUM(M121:M122)=1,"OK","ERROR") -> OK | M122: 0 | N122: 0 | O122: fraction
A124: 1.3 Water treatment
A126: 1.3.1 Treatment technologies
L127: Produced water | N127: Imported water | V127: Enter "1" where applicable and "0" where not applicable
L128: Apply | M128: Apply | N128: Apply | O128: Apply | P128: Code | Q128: Volume loss | R128: Volume loss | S128: EC | T128: EC | V128: No more than one option is allowed in each treatment stage
L129: ="--" -> -- | M129: ="--" -> -- | N129: ="--" -> -- | O129: ="--" -> -- | P129: ="--" -> -- | Q129: % | R129: % | S129: kWh/bbl input | T129: kWh/bbl input | V129: Categorization of treatment technologies is based on Vlasopoulos et al. (2006), originally from Dillon (2003)
L130: User | M130: Default | N130: User | O130: Default | P130: ="--" -> -- | Q130: User | R130: Default | S130: User | T130: Default | V130: Values of energy consumption can be changed in the user columns
B131: 1.3.1.1 Stage 1 of treatment | L131: =IF(OR(SUM(L132:L133)=0,SUM(L132:L133)=1),"OK","ERROR") -> OK | N131: =IF(OR(SUM(N132:N133)=0,SUM(N132:N133)=1),"OK","ERROR") -> OK
C132: 1.3.1.1.1 Dissolved air flotation | L132: 1 | M132: 1 | N132: 1 | O132: 1 | P132: DAF | Q132: 0 | R132: 0 | S132: 0.03513458 | T132: =0.221*0.15898 -> 0.03513458
C133: 1.3.1.1.2 Hydrocyclones | L133: 0 | M133: 0 | N133: 0 | O133: 0 | P133: HYDRO | Q133: 0 | R133: 0 | S133: 0.04880686 | T133: =0.307*0.15898 -> 0.04880686
B134: 1.3.1.2 Stage 2 of treatment | L134: =IF(OR(SUM(L135:L142)=0,SUM(L135:L142)=1),"OK","ERROR") -> OK | N134: =IF(OR(SUM(N135:N142)=0,SUM(N135:N142)=1),"OK","ERROR") -> OK
C135: 1.3.1.2.1 Rotating biological contactors | L135: 1 | M135: 1 | N135: 1 | O135: 1 | P135: RBC | Q135: 0 | R135: 0 | S135: 0.0349756 | T135: =0.22*0.15898 -> 0.0349756
C136: 1.3.1.2.2 Absorbents | L136: 0 | M136: 0 | N136: 0 | O136: 0 | P136: ABS | Q136: 0 | R136: 0 | S136: 0.0174878 | T136: =0.11*0.15898 -> 0.0174878
C137: 1.3.1.2.3 Activated sludge | L137: 0 | M137: 0 | N137: 0 | O137: 0 | P137: AS | Q137: 0 | R137: 0 | S137: 0.1462616 | T137: =0.92*0.15898 -> 0.1462616
C138: 1.3.1.2.4 Trickling filters | L138: 0 | M138: 0 | N138: 0 | O138: 0 | P138: TF | Q138: 0 | R138: 0 | S138: 0.0365654 | T138: =0.23*0.15898 -> 0.0365654
C139: 1.3.1.2.5 Air stripping | L139: 0 | M139: 0 | N139: 0 | O139: 0 | P139: AIR | Q139: 0 | R139: 0 | S139: 0.10524476 | T139: =0.662*0.15898 -> 0.10524476
C140: 1.3.1.2.6 Aerated lagoons | L140: 0 | M140: 0 | N140: 0 | O140: 0 | P140: AL | Q140: 0 | R140: 0 | S140: 0.095388 | T140: =0.6*0.15898 -> 0.095388
C141: 1.3.1.2.7 Wetlands | L141: 0 | M141: 0 | N141: 0 | O141: 0 | P141: CWL | Q141: 26 | R141: 26 | S141: 0.00222572 | T141: =0.014*0.15898 -> 0.00222572
C142: 1.3.1.2.8 Microfiltration - used as a combined stage 1 and stage 2 technology | L142: 0 | M142: 0 | N142: 0 | O142: 0 | P142: MF | Q142: 0 | R142: 0 | S142: 0.031796 | T142: =0.2*0.15898 -> 0.031796
B143: 1.3.1.3 Stage 3 of treatment | L143: =IF(OR(SUM(L144:L150)=0,SUM(L144:L150)=1),"OK","ERROR") -> OK | N143: =IF(OR(SUM(N144:N150)=0,SUM(N144:N150)=1),"OK","ERROR") -> OK
C144: 1.3.1.1.3.1 Dual media filtration | L144: 1 | M144: 1 | N144: 1 | O144: 1 | P144: DMF | Q144: 0 | R144: 0 | S144: 0.00429246 | T144: =0.027*0.15898 -> 0.00429246
C145: 1.3.1.3.2 Granular activated carbon | L145: 0 | M145: 0 | N145: 0 | O145: 0 | P145: GAC | Q145: 0 | R145: 0 | S145: 0.02607272 | T145: =0.164*0.15898 -> 0.02607272
C146: 1.3.1.3.3 Slow sand filtration | L146: 0 | M146: 0 | N146: 0 | O146: 0 | P146: SSF | Q146: 0 | R146: 0 | S146: 0.00111286 | T146: =0.007*0.15898 -> 0.00111286
C147: 1.3.1.3.4 Ozone | L147: 0 | M147: 0 | N147: 0 | O147: 0 | P147: OZO | Q147: 0 | R147: 0 | S147: 0.2432394 | T147: =1.53*0.15898 -> 0.2432394
C148: 1.3.1.3.5 Organoclay | L148: 0 | M148: 0 | N148: 0 | O148: 0 | P148: ORG | Q148: 0 | R148: 0 | S148: 0.0143082 | T148: =0.09*0.15898 -> 0.0143082
C149: 1.3.1.3.6 Ultrafiltration | L149: 0 | M149: 0 | N149: 0 | O149: 0 | P149: UF | Q149: 0 | R149: 0 | S149: 0.031796 | T149: =0.2*0.15898 -> 0.031796
C150: 1.3.1.3.7 Nanofiltration | L150: 0 | M150: 0 | N150: 0 | O150: 0 | P150: NF | Q150: 0 | R150: 0 | S150: 0.08791594 | T150: =0.553*0.15898 -> 0.08791594
B151: 1.3.1.4 Stage 4 of treatment | L151: =IF(OR(SUM(L152:L153)=0,SUM(L152:L153)=1),"OK","ERROR") -> OK | N151: =IF(OR(SUM(N152:N153)=0,SUM(N152:N153)=1),"OK","ERROR") -> OK
C152: 1.3.1.4.1 Reverse osmosis | L152: 0 | M152: 0 | N152: 0 | O152: 0 | P152: RO | Q152: 0 | R152: 0 | S152: 0.2019046 | T152: =1.27*0.15898 -> 0.2019046
C153: 1.3.1.4.2 Electrodialysis reversal | L153: 0 | M153: 0 | N153: 0 | O153: 1 | P153: EDR | Q153: 0 | R153: 0 | S153: 0.47694 | T153: =3*0.15898 -> 0.47694
P154: Sources: Vlasopoulos, N. et al. (2006)
A156: 2 Calculations
A158: 2.1 Crude oil processing
M163: Heat | P163: Heat
M164: =M178 -> NA | N164: MMBtu | P164: =M184 -> 51.408 | Q164: MMBtu
C168: ='Production & Extraction'!M35 -> 1500 | D168: bopd | I168: =C168 -> 1500 | J168: bopd | O168: =C168 -> 1500 | P168: bopd | R168: =O168 -> 1500 | S168: bopd
C169: ='Production & Extraction'!M35*'Production & Extraction'!M48 -> 1362000 | D169: scf/d
C170: ='Production & Extraction'!M35*'Production & Extraction'!M52 -> 6462.553586 | D170: bwpd
M173: User | N173: Units | O173: Equation | AD173: Reference
A175: 2.1.1 Dehydration heater/treater
B176: 2.1.1.1 Volume of water heated | M176: =IF(M12=0,"NA",((M15/100)*C168)/(1-(M15/100))) -> NA | N176: bwpd
B177: 2.1.1.2 Volume of oil heated | M177: =IF(M12=0,"NA",C168) -> NA | N177: bopd
B178: 2.1.1.3 Heat duty | M178: =IF(M12=0,"NA",(((C168*M18)+(M176*M19))*(M17-M16)*(1-(M20/100)))/1000000) -> NA | N178: MMBtu/d | AD178: Manning, F. and Thompson, R. (1991), p.136
B180: 2.1.1.4 Energy consumption | M180: =IF(M12=0,0,M178*IF(M22=1,M29,M30)) -> 0 | N180: =IF(M22=1,"MMBtu/d","kWh/d") -> MMBtu/d
A182: 2.1.2 Stabilizer column
B183: 2.1.2.1 Volume of oil heated | M183: =IF(M33=0,"NA",C168) -> 1500 | N183: bopd
B184: 2.1.2.2 Heat duty | M184: =IF(M33=0,"NA",O168*M41*(M40-M39)*(1+(M42/100))/1000000) -> 51.408 | N184: MMBtu/d | AD184: Manning, F. and Thompson, R. (1991), p.136
B186: 2.1.2.3 Energy consumption | M186: =IF(M33=0,0,M184*IF(M44=1,M51,M52)) -> 64.26 | N186: =IF(M44=1,"MMBtu/d","kWh/d") -> MMBtu/d
A188: 2.2 Separator gas processing
A191: 2.2.1 Amine process (Ball et al., 1988)
E194: Sweet gas
R195: Acid gas
P196: Power | S196: =IF('Surface Processing'!M58=1,1*('Gas Balance'!N30-(('Venting & Fugitives'!M114/'Input data'!D81)+('Venting & Fugitives'!E124+'Venting & Fugitives'!E139+'Venting & Fugitives'!E144)+('Venting & Fugitives'!E218-'Venting & Fugitives'!E178-'Venting & Fugitives'!E183))/1000000)+'Gas Balance'!U15,0) -> 0.07560619808 | T196: MMscf/d
F197: Scrubber | P197: =M234 -> 11.15947484 | Q197: hp
R198: Reflux | S198: =1*('Gas Balance'!N30-(('Venting & Fugitives'!M114/'Input data'!D81)+('Venting & Fugitives'!E124+'Venting & Fugitives'!E139+'Venting & Fugitives'!E144)+('Venting & Fugitives'!E218-'Venting & Fugitives'!E178-'Venting & Fugitives'!E183))/1000000) -> 0.06470911946
P199: Reflux | R199: accum.
E200: Rich amine | G200: Power | I200: Power | P200: cond.
G201: =M223 -> 4.029810358 | H201: hp | I201: =M233 -> 5.579737418 | J201: hp | M201: Power
M202: =M224 -> 0.9299562364 | N202: hp
D203: =M78 -> 350 | E203: =M221 -> 15.49927061 | F203: gpm | G203: Charge | I203: Amine | K203: Charcoal | Q203: Reflux
D204: psi | E204: Lean amine | G204: pump | I204: cooler | K204: filter | M204: Booster | Q204: pump
M205: pump | R205: Power
D206: Contactor | O206: Still | R206: =M225 -> 0.9299562364 | S206: hp
B207: Sour gas
H208: Flashed gas | Q208: Reboiler
R209: Heat
G210: Flash tank | R210: =M242 -> 30.80015055 | S210: MMBtu/d
G211: Low pressure
K213: Solids
K214: filter | M214: Heat
M215: exchanger
M219: User | N219: Unit | O219: Equation | R219: Reference
B220: 2.2.1.1 Contact tower
C221: 2.2.1.1.1 Amine circulation rate | M221: =IF('Surface Processing'!M58=1,M77*S196*100,0) -> 15.49927061 | N221: gpm | R221: Manning, F. and Thompson, R. (1991), p.115; Khan and Manning (1985)
B222: 2.2.1.2 Pumps brake horse power
C223: 2.2.1.2.1 Circulation pumps | M223: =M221*(D203+50)*0.00065 -> 4.029810358 | N223: hp | R223: Manning, F. and Thompson, R. (1991), p.118; Jones and Perry (1973)
C224: 2.2.1.2.2 Booster pumps | M224: =M221*0.06 -> 0.9299562364 | N224: hp | R224: Manning, F. and Thompson, R. (1991), p.118; Jones and Perry (1973)
C225: 2.2.1.2.3 Reflux pumps | M225: =M221*0.06 -> 0.9299562364 | N225: hp | R225: Manning, F. and Thompson, R. (1991), p.118; Jones and Perry, 1973
C226: 2.2.1.2.4 Total pumping horsepower | M226: =SUM(M223:M225) -> 5.88972283 | N226: hp
C228: 2.2.1.2.5 Energy consumption
D229: 2.2.1.2.5.1 Prime mover fuel use | M229: =M79 -> 0.8182724964 | N229: kWh/hp-hr
D230: 2.2.1.2.5.2 Fuel usage per day | M230: =M229*24 -> 19.63853991 | N230: kWh/hp-d
D231: 2.2.1.2.5.3 Total fuel use | M231: =M230*M226 -> 115.6655569 | N231: kWh/d
B232: 2.2.1.3 Air coolers brake horse power
C233: 2.2.1.3.1 Amine cooler | M233: =M221*0.36 -> 5.579737418 | N233: hp
C234: 2.2.1.3.2 Reflux condenser | M234: =M233*2 -> 11.15947484 | N234: hp
C235: 2.2.1.3.3 Total cooling horsepower | M235: =SUM(M233:M234) -> 16.73921225 | N235: hp
C237: 2.2.1.3.4 Energy consumption
D238: 2.2.1.3.4.1 Prime mover fuel use | M238: =M80 -> 0.8120397353 | N238: kWh/hp-hr
D239: 2.2.1.3.4.2 Fuel usage per day | M239: =M238*24 -> 19.48895365 | N239: kWh/hp-d
... 72 more rows

Sheet Maintenance
A1: Maintenance
A3: Maintenance is included in the current model version within the venting, flaring and fugitive (VFF) supplemental worksheet.

Sheet Waste Disposal
A1: Waste disposal
A3: Waste disposal is not included in the current version of the model.

Sheet Crude Transport
A1: Crude Transport
A3: Calculation of GHG emissions from crude oil transportation to refinery
A4: Based on CA-GREET model
A6: 1 Results
M8: Value | N8: Units
A9: 1.1 Total energy consumption | M9: =M94/1000000 -> 0.01265490909 | N9: MJ/MJ
A10: 1.2 Total GHG emissions | M10: =M95/('Input data'!E46) -> 0.8912467749 | N10: gCO2eq/MJ
A12: 2 Input assumptions and data
A15: Table 2.1: Cargo Payload By Transportation Mode and by Product Fuel Type: Tons
A16: Fuel Transported | C16: Crude Oil
A17: Ocean Tanker | C17: ='User Inputs & Results'!J134 -> 250000
A18: Barge | C18: 22500
A21: Table 2.2: Horsepower Requirements for Ocean Tanker and Barges: Calculated with Cargo Capacity (unit is in HP)
B22: Crude Oil
A23: Ocean Tanker | B23: =9070+0.101*C17 -> 34320
A24: Barge | B24: =5600/22500*C18 -> 5600
A27: Table 2.3: Energy Consumption for Ocean Tanker and Barge
E28: Ocean Tanker | F28: Barge
A29: Average Speed (Miles/Hour) | E29: 18.52 | F29: 5
A30: Trip from Product Origin to Destination
A31: Load Factor | E31: 0.8 | F31: 0.8
A32: Energy Consumption: Btu/hp-hr | E32: =(14.42/E31+150)*0.735*'Fuel Specs'!E332/'Fuel Specs'!G332 -> 4619.751711 | F32: =(14.42/F31+350)*0.735*'Fuel Specs'!E332/'Fuel Specs'!G332 -> 10118.63784
A33: Trip from Product Destination Back to Origin
A34: Load Factor | E34: 0.7 | F34: 0.6
A35: Energy Consumption: Btu/hp-hr | E35: =(14.42/E34+150)*0.735*'Fuel Specs'!E332/'Fuel Specs'!G332 -> 4690.54987 | F35: =(14.42/F34+350)*0.735*'Fuel Specs'!E332/'Fuel Specs'!G332 -> 10283.83355
A36: Notes: The load factor is the percentage of installed horsepower that is used for the trip
A38: Table 2.4: Energy Intensity of Rail Transportation: Btu/ton-mile
A39: Trip | D39: Intensity
A40: Trip from Product Origin to Destination | D40: 370
A41: Trip from Product Destination Back to Origin | D41: 370
A44: Table 2.5: Energy Intensity of Pipeline Transportation: Btu/ton-mile
B45: Turbine | C45: Reciprocating Engine: Current | D45: Reciprocating Engine: Future
A46: Crude Pipeline | B46: 240 | C46: 270 | D46: 260
A48: Table 2.6: Share of Power Generation Technologies for Pipeline Compression Stations
B49: Turbine | C49: Reciprocating Engine: Current | D49: Reciprocating Engine: Future
A50: Crude Pipeline | B50: 0.55 | C50: 0.36 | D50: 0.09
A53: Table 2.7: Energy Consumption and Emissions of Feedstock Transportation
A54: Feedstock | D54: Crude Oil
A55: Transportation Mode | D55: Ocean Tanker | E55: Barge | F55: Pipeline | G55: Rail
A56: Distance (Miles, one-way) - Default | D56: ='User Inputs & Results'!K130 -> 5082 | E56: ='User Inputs & Results'!K131 -> 500 | F56: ='User Inputs & Results'!K132 -> 750 | G56: ='User Inputs & Results'!K133 -> 800
A57: Distance (Miles, one-way) | D57: ='User Inputs & Results'!J130 -> 5082 | E57: ='User Inputs & Results'!J131 -> 500 | F57: ='User Inputs & Results'!J132 -> 750 | G57: ='User Inputs & Results'!J133 -> 800
A58: Share of Fuel Type Used:
A59: Diesel | D59: 0 | E59: 0 | F59: 0.45 | G59: 1
A60: Residual Oil | D60: =1-D59 -> 1 | E60: =1-E59 -> 1 | F60: NA | G60: NA
A61: Natural Gas | D61: 0 | E61: 0 | F61: 0.55 | G61: NA
A62: Electricity | D62: NA | E62: NA | F62: NA | G62: NA
A63: Energy Intensity: Btu/ton-mile
A64: Origin to Destination | D64: =E32*E31*B23/E29/C17 -> 27.39522742 | E64: =F32*F31*B24/C18/F29 -> 402.9466447 | F64: =SUMPRODUCT(B46:D46,B50:D50) -> 252.6 | G64: =D40 -> 370
A65: Back-Haul | D65: =E35*E34*B23/C17/E29 -> 24.33817928 | E65: =F35*F34*B24/C18/F29 -> 307.1438286
A66: Total Energy consumption: Btu/MMBtu-mile fuel transported | D66: =(D64+D65)*(1/'Fuel Specs'!M14)*('Input data'!E202*VLOOKUP('Production & Extraction'!M32,'Fuel Specs'!B21:O62,2,TRUE))*1/2000 -> 1.440169951 | E66: =(E64+E65)*(1/'Fuel Specs'!M14)*('Input data'!E202*VLOOKUP('Production & Extraction'!M32,'Fuel Specs'!B21:O62,2,TRUE))*1/2000 -> 19.76770963 | F66: =(F64+F65)*(1/'Fuel Specs'!M14)*('Input data'!E202*VLOOKUP('Production & Extraction'!M32,'Fuel Specs'!B21:O62,2,TRUE))*1/2000 -> 7.03195387 | G66: =(G64+G65)*(1/'Fuel Specs'!M14)*('Input data'!E202*VLOOKUP('Production & Extraction'!M32,'Fuel Specs'!B21:O62,2,TRUE))*1/2000 -> 10.30016996
A67: Total Emissions: grams/MMBtu-mile fuel transported
A68: VOC (incl. VOC from bulk terminal) | D68: =D$66/1000000*(D$59*'Emissions Factors'!C140+D$60*'Emissions Factors'!D140+D$61*'Emissions Factors'!E140) -> 0.0001151055877 | E68: =E$66/1000000*(E$59*'Emissions Factors'!F140+E$60*'Emissions Factors'!G140+E$61*'Emissions Factors'!H140) -> 0.000489191505 | F68: =F$66/1000000*(F$59*'Emissions Factors'!L140+F$61*'Emissions Factors'!J140) -> 0.0001328082936 | G68: =G$66/1000000*(G$59*'Emissions Factors'!I140) -> 0.000728634001
A69: CO | D69: =D$66/1000000*(D$59*'Emissions Factors'!C141+D$60*'Emissions Factors'!D141+D$61*'Emissions Factors'!E141) -> 0.0002616342439 | E69: =E$66/1000000*(E$59*'Emissions Factors'!F141+E$60*'Emissions Factors'!G141+E$61*'Emissions Factors'!H141) -> 0.004348757669 | F69: =F$66/1000000*(F$59*'Emissions Factors'!L141+F$61*'Emissions Factors'!J141) -> 0.001752848109 | G69: =G$66/1000000*(G$59*'Emissions Factors'!I141) -> 0.002105921268
A70: CH4 (incl. fugitive) | D70: =D$66/1000000*(D$59*'Emissions Factors'!C142+D$60*'Emissions Factors'!D142+D$61*'Emissions Factors'!E142) -> 6.597418329e-06 | E70: =E$66/1000000*(E$59*'Emissions Factors'!F142+E$60*'Emissions Factors'!G142+E$61*'Emissions Factors'!H142) -> 2.397038375e-05 | F70: =F$66/1000000*(F$59*'Emissions Factors'!L142+F$61*'Emissions Factors'!J142) -> 0.0001039161047 | G70: =G$66/1000000*(G$59*'Emissions Factors'!I142) -> 4.058267023e-05
A71: N2O | D71: =D$66/1000000*(D$59*'Emissions Factors'!C143+D$60*'Emissions Factors'!D143+D$61*'Emissions Factors'!E143) -> 2.880339901e-06 | E71: =E$66/1000000*(E$59*'Emissions Factors'!F143+E$60*'Emissions Factors'!G143+E$61*'Emissions Factors'!H143) -> 3.953541925e-05 | F71: =F$66/1000000*(F$59*'Emissions Factors'!L143+F$61*'Emissions Factors'!J143) -> 1.406390774e-05 | G71: =G$66/1000000*(G$59*'Emissions Factors'!I143) -> 2.060033992e-05
A72: CO2 | D72: =D$66/1000000*(D$59*'Emissions Factors'!C144+D$60*'Emissions Factors'!D144+D$61*'Emissions Factors'!E144) -> 0.1118318978 | E72: =E$66/1000000*(E$59*'Emissions Factors'!F144+E$60*'Emissions Factors'!G144+E$61*'Emissions Factors'!H144) -> 1.537391842 | F72: =F$66/1000000*(F$59*'Emissions Factors'!L144+F$61*'Emissions Factors'!J144) -> 0.4737802779 | G72: =G$66/1000000*(G$59*'Emissions Factors'!I144) -> 0.7997717182
A73: GHG | D73: =D68*'Input data'!$C$72+D69*'Input data'!$C$70+D70*'Input data'!$C$71+D71*'Input data'!$C$73+D72 -> 0.1136306167 | E73: =E68*'Input data'!$C$72+E69*'Input data'!$C$70+E70*'Input data'!$C$71+E71*'Input data'!$C$73+E72 -> 1.558247162 | F73: =F68*'Input data'!$C$72+F69*'Input data'!$C$70+F70*'Input data'!$C$71+F71*'Input data'!$C$73+F72 -> 0.4837854877 | G73: =G68*'Input data'!$C$72+G69*'Input data'!$C$70+G70*'Input data'!$C$71+G71*'Input data'!$C$73+G72 -> 0.8125534257
A76: Table 2.8: Percentage of Fuel Transported by a Given Mode
A77: Mode | C77: Percent
A78: Ocean tanker | C78: ='User Inputs & Results'!J125 -> 1
A79: Barge | C79: ='User Inputs & Results'!J126 -> 0
A80: Pipeline | C80: ='User Inputs & Results'!J127 -> 1
A81: Rail | C81: ='User Inputs & Results'!J128 -> 0
A82: Notes:
A83: The shares here are for each mode traveled by the distance assumed above.
A84: The total percentage of all modes may exceed 100% for some feedstocks or fuels because more than one transportation legs may be involved for transporting the feedstocks.
A87: Table 2.9: Feed losses: Btu/MMBtu fuel transported
A88: Feed loss | B88: 62
A91: 3 Calculations
M93: Value | N93: Unit
A94: 3.1 Crude transport energy consumption | M94: =D57*D66*C78+E57*E66*C79+F57*F66*C80+G57*G66*C81+B88 -> 12654.90909 | N94: Btu/MMBtu
A95: 3.2 Crude transport GHG emissions | M95: =D57*D73*C78+E57*E73*C79+F57*F73*C80+G57*G73*C81 -> 940.3099098 | N95: gCO2eq/MMBtu

Sheet Bitumen Extraction & Upgrading
A1: Bitumen extraction and upgrading
A3: This worksheet contains a simple model of emissions from bitumen extraction and upgrading
A5: 1 Results
M7: User | N7: Units | Q7: User reference | S7: Default reference | V7: Notes
A8: 1.1 Total energy consumption | M8: =M9+M12 -> 0.2388892394 | N8: MJ/MJ
B9: 1.1.1 Total energy consumption primary extraction | M9: =M10+M11 -> 0.07519055353 | N9: MJ/MJ
C10: 1.1.1.1 Direct energy consumption primary extraction | M10: =(M161)/(IF(M52=1,M38,M71)) -> 0.08877242634 | N10: MJ/MJ
C11: 1.1.1.2 Indirect energy consumption primary extraction | M11: =(M164)/(IF(M52=1,M38,M71)) -> -0.01358187281 | N11: MJ/MJ
B12: 1.1.2 Total energy consumption upgrading | M12: =M13+M14 -> 0.1636986859 | N12: MJ/MJ
C13: 1.1.2.1 Direct energy consumption upgrading | M13: =(M162)/(IF(M52=1,M38,M71)) -> 0.1506308507 | N13: MJ/MJ
C14: 1.1.2.2 Indirect energy consumption upgrading | M14: =(M165)/(IF(M52=1,M38,M71)) -> 0.01306783521 | N14: MJ/MJ
A16: 1.2 Total GHG emissions (excluding VFF) | M16: =M17+M21 -> 15.51466739 | N16: gCO2eq/MJ | V16: Excludes exploration, drilling, maintenance, waste, and transport
B17: 1.2.1 Primary extraction total GHG emissions - combustion emissions | M17: =M18+M19 -> 4.908054998 | N17: gCO2eq/MJ
C18: 1.2.1.1 Direct emissions primary extraction | M18: =(M176)/(IF(M52=1,M38*'Input data'!E46,M71*'Input data'!E46)) -> 5.487281403 | N18: gCO2eq/MJ
C19: 1.2.1.2 Indirect emissions primary extraction | M19: =(M179)/(IF(M52=1,M38*'Input data'!E46,M71*'Input data'!E46)) -> -0.5792264052 | N19: gCO2eq/MJ
B20: 1.2.2 Primary extraction - VFF emissions | M20: =(M139+M142+M141)/(IF(M52=1,M38*'Input data'!E46,M71*'Input data'!E46)) -> 3.617106711 | N20: gCO2eq/MJ | V20: No VFF emissions associated with non-integrated upgrading, so we assume all VFFs (including from integrated mining & upgrading) come from primary extraction.
B21: 1.2.2 Upgrading - combustion emissions | M21: =M22+M23 -> 10.60661239 | N21: gCO2eq/MJ
C22: 1.2.2.1 Direct emissions upgrading | M22: =(M177)/(IF(M52=1,M38*'Input data'!E46,M71*'Input data'!E46)) -> 9.414127943 | N22: gCO2eq/MJ
C23: 1.2.2.2 Indirect emissions upgrading | M23: =(M180)/(IF(M52=1,M38*'Input data'!E46,M71*'Input data'!E46)) -> 1.192484446 | N23: gCO2eq/MJ
A26: 2 Input assumptions and data
M27: User | N27: Default | O27: Units | Q27: User reference | S27: Default reference | V27: Notes
B28: 2.1 Crude or SCO name | M28: Generic | N28: Generic
B30: 2.2 Crude bitumen properties
C31: 2.2.1 Crude bitumen API gravity | M31: 8 | N31: 8 | O31: deg. API | S31: GHGenius 4.0c | V31: Default bitumen API gravity in GHGenius 4.0c
C32: 2.2.2 Crude bitumen specific gravity | M32: =141.5/(131.5+M31) -> 1.014336918 | N32: =141.5/(131.5+N31) -> 1.014336918 | O32: sg
C33: 2.2.3 Crude bitumen heating value | M33: =VLOOKUP(M31,'Fuel Specs'!B22:O63,5) -> 6.10092 | N33: =VLOOKUP(N31,'Fuel Specs'!B22:O63,5) -> 6.10092 | O33: MMBtu/bbl (LHV)
B35: 2.3 Synthetic crude oil (SCO) properties
C36: 2.3.1 SCO API gravity | M36: 32 | N36: 32 | O36: deg. API | S36: www.crudemonitor.ca | V36: Typical value for Suncor Synthetic A
C37: 2.3.2 SCO specific gravity | M37: =141.5/(131.5+M36) -> 0.8654434251 | N37: =141.5/(131.5+N36) -> 0.8654434251 | O37: sg
C38: 2.3.3 SCO heating value | M38: =VLOOKUP(M36,'Fuel Specs'!B22:O63,5) -> 5.46504 | N38: =VLOOKUP(N36,'Fuel Specs'!B22:O63,5) -> 5.46504 | O38: MMBtu/bbl (LHV)
B40: 2.4 Diluent properties
C41: 2.4.1 Diluent API gravity | M41: =141.5/M42-131.5 -> 59.37230216 | N41: =141.5/N42-131.5 -> 59.37230216 | O41: deg. API
C42: 2.4.2 Diluent specific gravity | M42: =AVERAGE(C249:C251)/1000 -> 0.7413333333 | N42: =AVERAGE(C249:C251)/1000 -> 0.7413333333 | O42: sg
C43: 2.4.3 Diluent heating value | M43: =AVERAGE(AB249:AB251) -> 5.393557313 | N43: =AVERAGE(AB249:AB251) -> 5.393557313 | O43: MMBtu/bbl (LHV)
B46: 2.5 Oil production rate (choose bitumen output or SCO below) | M46: ='Production & Extraction'!M35 -> 1500 | N46: 1500 | O46: STB/d
M47: =M46*M33*1000*M53+M46*M38*1000*M52 -> 8197560 | N47: =N46*N33*1000*N53+N46*N38*1000*N52 -> 8197560 | O47: Mbtu LHV/d
M48: =M47*1055.05/1000 -> 8648835.678 | N48: =N47*1055.05/1000 -> 8648835.678 | O48: MJ/d
B50: 2.6 Project pathway choices
C51: 2.6.1 Upgrading or blending
D52: 2.6.1.1 Hydrocarbon upgraded - Produce SCO | M52: 1 | N52: 1 | O52: NA
D53: 2.6.1.2 Hydrocarbon not upgraded - Produce bitumen for dilution | M53: 0 | N53: 0 | O53: NA
L54: Check: | M54: =IF(SUM(M52:M53)=1,"OK","ERROR") -> OK | N54: =IF(SUM(N52:N53)=1,"OK","ERROR") -> OK | V54: Only choose one type of product.
C56: 2.6.2 Primary extraction methodology
D57: 2.6.2.1 Mining integrated | M57: 1 | N57: 1 | O57: NA
D58: 2.6.2.2 Mining non-integrated | M58: 0 | N58: 0 | O58: NA
D59: 2.6.2.3 In situ - Non-thermal production (primary) | M59: 0 | N59: 0 | O59: NA
D60: 2.6.2.4 In situ - Steam assisted gravity drainage (SAGD) | M60: 0 | N60: 0 | O60: NA
D61: 2.6.2.5 In situ - Cyclic steam stimulation (CSS) | M61: 0 | N61: 0 | O61: NA
L62: Check: | M62: =IF(SUM(M57:M61)=1,IF(M53=1,IF(M57=1,"ERROR","OK"),"OK"),"ERROR") -> OK | N62: =IF(SUM(N57:N61)=1,"OK","ERROR") -> OK | V62: Only choose one extraction method. You cannot choose "Mining integrated" if your choose "non-upgraded". Otherwise, any extraction type can be chosen with "non-upgraded".
B63: 2.7 In situ steam oil ratio (SOR)
C64: 2.7.1 Steam assisted gravity drainage (SAGD) SOR | M64: 3 | N64: 3 | O64: bbl steam/bbl bitumen | S64: GHGenius 4.0c, (S&T)2 March 2011 Update of oil production and refining in GHGenius, p. 44 | V64: Default SOR for SAGD operations used to compute energy intensity of SAGD
C65: 2.7.2 Cyclic steam stimulation (CSS) SOR | M65: 3.9 | N65: 3.9 | O65: bbl steam/bbl bitumen | S65: GHGenius 4.0c, (S&T)2 March 2011 Update of oil production and refining in GHGenius, p. 42 | V65: Default SOR for CSS operations used to compute energy intensity of CSS
B68: 2.8 Diluent blending
C69: 2.8.1 Volume fraction of dilbit as diluent | M69: 0.25 | N69: 0.25 | O69: bbl diluent/bbl dilbit | V69: Moderate value from the literature. Cited diluent blend percentages range from 20-40%
C70: 2.8.2 Volume fraction of dilbit as bitumen | M70: =1-M69 -> 0.75 | N70: =1-N69 -> 0.75 | O70: bbl bitumen/bbl dilbit
C71: 2.8.3 Dilbit heating value | M71: =M69*M43+M70*M33 -> 5.924079328 | N71: =N69*N43+N70*N33 -> 5.924079328 | O71: MMBtu/bbl dilbit
B73: 2.9 Fuels imported for extraction (or recorded as net imports)
C74: 2.9.1 Diesel fuel | M74: 0 | N74: 0
C75: 2.9.2 Natural gas | M75: 1 | N75: 1
C76: 2.9.3 Electricity | M76: 1 | N76: 1
C77: 2.9.4 Coke | M77: 0 | N77: 0
C78: 2.9.5 Still Gas | M78: 0 | N78: 0
C79: 2.9.6 Diluent | M79: 1 | N79: 1
B81: 2.10 Fuels imported for upgrading (or recorded as net imports)
C82: 2.9.1 Diesel fuel | M82: 0 | N82: 0
C83: 2.9.2 Natural gas | M83: 1 | N83: 1
C84: 2.9.3 Electricity | M84: 1 | N84: 1
C85: 2.9.4 Coke | M85: 0 | N85: 0
C86: 2.9.5 Still Gas | M86: 0 | N86: 0
B89: 2.11 Associated gas composition | L89: N2 | M89: =N89 -> 2 | N89: ='User Inputs & Results'!K80 -> 2 | O89: mol%
L90: CO2 | M90: =N90 -> 6 | N90: ='User Inputs & Results'!K81 -> 6 | O90: mol%
L91: C1 | M91: 84 | N91: ='User Inputs & Results'!K82 -> 84 | O91: mol%
L92: C2 | M92: 4 | N92: ='User Inputs & Results'!K83 -> 4 | O92: mol%
L93: C3 | M93: 2 | N93: ='User Inputs & Results'!K84 -> 2 | O93: mol%
L94: C4+ | M94: 1 | N94: ='User Inputs & Results'!K85 -> 1 | O94: mol%
L95: H2S | M95: 1 | N95: ='User Inputs & Results'!K86 -> 1 | O95: mol%
B97: 2.12 Land use impact inputs
C98: 2.12.1 Crude ecosystem carbon richness
D99: 1= | E99: Low carbon richness (semi-arid grasslands) | M99: 0 | N99: 0 | O99: NA | S99: Yeh et al. (2010) | Y99: Corresponds to Yeh et al. (2010) California Marginal case (Table 3)
D100: 2= | E100: Moderate carbon richness (mixed) | M100: 1 | N100: 1 | O100: NA | S100: Yeh et al. (2010) | Y100: Corresponds to mixed ecosystem
D101: 3= | E101: High carbon richness (forested) | M101: 0 | N101: 0 | O101: NA | S101: Yeh et al. (2010) | Y101: Corresponds to Yeh et al. (2010) Alberta Marginal case
L102: Check: | M102: =IF(SUM(M99:M101)=1,"OK","ERROR") -> OK | N102: =IF(SUM(N99:N101)=1,"OK","ERROR") -> OK
C103: 2.12.2 Field development intensity
D104: 1= | E104: Low intensity development and low oxidation | M104: 0 | N104: 0 | O104: NA | S104: Yeh et al. (2010) | Y104: Corresponds to Yeh et al. (2010) low end of range (Table 3)
D105: 2= | E105: Moderate intensity development and moderate oxidation | M105: 1 | N105: 1 | O105: NA | S105: Yeh et al. (2010) | Y105: Corresponds to Yeh et al. (2010) representative value (Table 3)
D106: 3= | E106: High intensity development and high oxidation | M106: 0 | N106: 0 | O106: NA | S106: Yeh et al. (2010) | Y106: Corresponds to Yeh et al. (2010) high end of range (Table 3)
L107: Check: | M107: =IF(SUM(M104:M106)=1,"OK","ERROR") -> OK | N107: =IF(SUM(N104:N106)=1,"OK","ERROR") -> OK
K109: Emissions code: | M109: =IF(SUM(M59:M61)=1,(M99*M104*1+M99*M105*2+M99*M106*3+M100*M104*4+M100*M105*5+M100*M106*6+M101*M104*7+M101*M105*8+M101*M106*9),IF(SUM(M57:M58)=1,M104*10+M105*11+M106*12,"ERROR")) -> 11 | N109: =IF(SUM(N59:N61)=1,(N99*N104*1+N99*N105*2+N99*N106*3+N100*N104*4+N100*N105*5+N100*N106*6+N101*N104*7+N101*N105*8+N101*N106*9),IF(SUM(N57:N58)=1,N104*10+N105*11+N106*12,"ERROR")) -> 11
A112: 3 Calculations
A115: 3.1 Direct energy consumption | M115: User | N115: Units | V115: Notes
B116: 3.1.1 Energy consumed primary extraction (in situ and mining, includes mining for integrated mining & upgrading)
C117: 3.1.1.1 Diesel fuel | M117: =M$52*(M$58*$F198+M$59*$C198+M$60*$D198+M$61*$E198+M$57*$F198)/$C$241+M$53*(M$58*$F198+M$59*$C198+M$60*$D198+M$61*$E198)*M$70 -> 0.1626342934 | N117: =IF($M$52=1,"MMBtu/bbl SCO","MMBtu/bbl dilbit") -> MMBtu/bbl SCO
C118: 3.1.1.2 Natural gas | M118: =M$52*(M$58*$F199+M$59*$C199+M$60*$D199*(M$64/$C$234)+M$61*$E199*(M$65/$C$233)+M$57*$F199)/$C$241+M$53*(M$58*$F199+M$59*$C199+M$60*$D199*(M$64/$C$234)+M$61*$E199*(M$65/$C$233))*M$70 -> 0.3225105674 | N118: =IF($M$52=1,"MMBtu/bbl SCO","MMBtu/bbl dilbit") -> MMBtu/bbl SCO
C119: 3.1.1.3 Electricity | M119: =M$52*(M$58*$F200+M$59*$C200+M$60*$D200+M$61*$E200+M$57*$F200)/$C$241+M$53*(M$58*$F200+M$59*$C200+M$60*$D200+M$61*$E200)*M$70 -> -0.03240008126 | N119: =IF($M$52=1,"MMBtu/bbl SCO","MMBtu/bbl dilbit") -> MMBtu/bbl SCO
C120: 3.1.1.4 Coke | M120: =M$52*(M$58*$F201+M$59*$C201+M$60*$D201+M$61*$E201+M$57*$F201)/$C$241+M$53*(M$58*$F201+M$59*$C201+M$60*$D201+M$61*$E201)*M$70 -> 0 | N120: =IF($M$52=1,"MMBtu/bbl SCO","MMBtu/bbl dilbit") -> MMBtu/bbl SCO
C121: 3.1.1.5 Still Gas | M121: =M$52*(M$58*$F202+M$59*$C202+M$60*$D202+M$61*$E202+M$57*$F202)/$C$241+M$53*(M$58*$F202+M$59*$C202+M$60*$D202+M$61*$E202)*M$70 -> 0 | N121: =IF($M$52=1,"MMBtu/bbl SCO","MMBtu/bbl dilbit") -> MMBtu/bbl SCO
B123: 3.1.2 Energy consumed upgrading (includes upgrading for integrated mining & upgrading)
C124: 3.1.2.1 Diesel fuel | M124: =$M$52*($M$58+$M$59+$M$60+$M$61)*C224 + $M$52*$M$57*(D224-F198/$C$241) -> -0.08886187067 | N124: =IF($M$52=1,"MMBtu/bbl SCO","MMBtu/bbl dilbit") -> MMBtu/bbl SCO
C125: 3.1.2.2 Natural gas | M125: =$M$52*($M$58+$M$59+$M$60+$M$61)*C225 + $M$52*$M$57*(D225-F199/$C$241) -> 0.2898075963 | N125: =IF($M$52=1,"MMBtu/bbl SCO","MMBtu/bbl dilbit") -> MMBtu/bbl SCO
C126: 3.1.2.3 Electricity | M126: =$M$52*($M$58+$M$59+$M$60+$M$61)*C226 + $M$52*$M$57*(D226-F200/$C$241) -> 0.01935856536 | N126: =IF($M$52=1,"MMBtu/bbl SCO","MMBtu/bbl dilbit") -> MMBtu/bbl SCO
C127: 3.1.2.4 Coke | M127: =$M$52*($M$58+$M$59+$M$60+$M$61)*C227 + $M$52*$M$57*(D227-F201/$C$241) -> 0.196649782 | N127: =IF($M$52=1,"MMBtu/bbl SCO","MMBtu/bbl dilbit") -> MMBtu/bbl SCO
C128: 3.1.2.5 Still Gas | M128: =$M$52*($M$58+$M$59+$M$60+$M$61)*C228 + $M$52*$M$57*(D228-F202/$C$241) -> 0.406249551 | N128: =IF($M$52=1,"MMBtu/bbl SCO","MMBtu/bbl dilbit") -> MMBtu/bbl SCO
B130: 3.1.3 Direct energy consumed (net, extraction + upgrading)
C131: 3.1.3.1 Diesel fuel | M131: =M117+M124 -> 0.07377242274 | N131: =IF($M$52=1,"MMBtu/bbl SCO","MMBtu/bbl dilbit") -> MMBtu/bbl SCO
C132: 3.1.3.2 Natural gas | M132: =M118+M125 -> 0.6123181638 | N132: =IF($M$52=1,"MMBtu/bbl SCO","MMBtu/bbl dilbit") -> MMBtu/bbl SCO
C133: 3.1.3.3 Electricity | M133: =M119+M126 -> -0.0130415159 | N133: =IF($M$52=1,"MMBtu/bbl SCO","MMBtu/bbl dilbit") -> MMBtu/bbl SCO
C134: 3.1.3.4 Coke | M134: =M120+M127 -> 0.196649782 | N134: =IF($M$52=1,"MMBtu/bbl SCO","MMBtu/bbl dilbit") -> MMBtu/bbl SCO
C135: 3.1.3.5 Still Gas | M135: =M121+M128 -> 0.406249551 | N135: =IF($M$52=1,"MMBtu/bbl SCO","MMBtu/bbl dilbit") -> MMBtu/bbl SCO
A137: 3.2 Fugitive emissions, venting, and flaring
B138: 3.2.1 Gas released via fugitive emissions and direct venting | M138: =M52*M57*F288+M52*(M58*F288+M59*C288+M60*D288+M61*E288)/C241+M53*M70*(M58*F288+M59*C288+M60*D288+M61*E288) -> 31.20903474 | N138: =IF($M$52=1,"scf/bbl SCO","scf/bbl dilbit") -> scf/bbl SCO | V138: Fraction of diluent in product reduces the fugitive emissions because diluent fugitive emissions are counted in the upstream GHG emissions from diluent production (see Fuel Cycle sheet).
C139: 3.2.1.1 Fugitive emissions GWP weighted | M139: =M138*((M90/100*'Input data'!D81*'Input data'!C69)+(M91/100*'Input data'!D82*'Input data'!C71)+((M92/100*'Input data'!D83+M93/100*'Input data'!D84+M94/100*'Input data'!D85)*'Input data'!C72)) -> 13720.93387 | N139: =IF($M$52=1,"gCO2eq./bbl SCO","gCO2eq./bbl dilbit") -> gCO2eq./bbl SCO
B140: 3.2.2 Gas consumed in flares | M140: =M52*M57*F281+M52*(M58*F281+M59*C281+M60*D281+M61*E281)/C241+M53*M70*(M58*F281+M59*C281+M60*D281+M61*E281) -> 90.03144044 | N140: =IF($M$52=1,"scf/bbl SCO","scf/bbl dilbit") -> scf/bbl SCO | V140: Fraction of diluent in product reduces the flaring emissions because diluent fugitive emissions are counted in the upstream GHG emissions from diluent production (see Fuel Cycle sheet).
C141: 3.2.1.1 Gas flared - Combustion products GWP weighted | M141: =Flaring!M48/100*(M140*((M90/100*'Input data'!D81*44/44)+(M91/100*'Input data'!D82*44/16)+(M92/100*'Input data'!D83*2*44/30)+(M93/100*'Input data'!D84*3*44/44)+(M94/100*'Input data'!D85*4*44/58))) -> 5155.808091 | N141: =IF($M$52=1,"gCO2eq./bbl SCO","gCO2eq./bbl dilbit") -> gCO2eq./bbl SCO
C142: 3.2.1.2 Gas flared - Slippage products GWP weighted | M142: =(100-Flaring!M48)/100*(M140*((M90/100*'Input data'!D81*'Input data'!C69)+(M91/100*'Input data'!D82*'Input data'!C71)+((M92/100*'Input data'!D83+M93/100*'Input data'!D84+M94/100*'Input data'!D85)*'Input data'!C72))) -> 1979.099083 | N142: =IF($M$52=1,"gCO2eq./bbl SCO","gCO2eq./bbl dilbit") -> gCO2eq./bbl SCO
A144: 3.3 Energy imports (net imports for computing upstream fuel cycle emissions) | V144: Products generated onsite include crude oil, diesel fuel, residual fuel, gasoline, coke, still gas. Electricity is net onsite consumption (negative = export)
B145: 3.3.1 Energy imports primary extraction (in situ and mining, includes mining for integrated mining & upgrading)
C146: 3.3.1.1 Diesel fuel | M146: =M117*M74 -> 0 | N146: =IF($M$52=1,"MMBtu/bbl SCO","MMBtu/bbl dilbit") -> MMBtu/bbl SCO
C147: 3.3.1.2 Natural gas | M147: =M118*M75 -> 0.3225105674 | N147: MMBtu/bbl SCO
C148: 3.3.1.3 Electricity | M148: =M119*M76 -> -0.03240008126 | N148: MMBtu/bbl SCO
C149: 3.3.1.4 Coke | M149: =M120*M77 -> 0 | N149: MMBtu/bbl SCO
C150: 3.3.1.5 Still Gas | M150: =M121*M78 -> 0 | N150: MMBtu/bbl SCO
C151: 3.3.1.6 Diluent | M151: =M53*M69*M43*M79 -> 0 | N151: MMBtu/bbl SCO
B152: 3.3.2 Energy imports upgrading (includes upgrading for integrated mining & upgrading)
C153: 3.3.2.1 Diesel fuel | M153: =M124*M82 -> 0 | N153: =IF($M$52=1,"MMBtu/bbl SCO","MMBtu/bbl dilbit") -> MMBtu/bbl SCO
C154: 3.3.2.2 Natural gas | M154: =M125*M83 -> 0.2898075963 | N154: =IF($M$52=1,"MMBtu/bbl SCO","MMBtu/bbl dilbit") -> MMBtu/bbl SCO
C155: 3.3.2.3 Electricity | M155: =M126*M84 -> 0.01935856536 | N155: =IF($M$52=1,"MMBtu/bbl SCO","MMBtu/bbl dilbit") -> MMBtu/bbl SCO
C156: 3.3.2.4 Coke | M156: =M127*M85 -> 0 | N156: =IF($M$52=1,"MMBtu/bbl SCO","MMBtu/bbl dilbit") -> MMBtu/bbl SCO
C157: 3.3.2.5 Still Gas | M157: =M128*M86 -> 0 | N157: =IF($M$52=1,"MMBtu/bbl SCO","MMBtu/bbl dilbit") -> MMBtu/bbl SCO
A159: 3.4 Total energy consumption
B160: 3.4.1 Direct energy consumption
C161: 3.4.1.1 Primary extraction | M161: =M117+M118+IF(M119<0,0,M119)+M120+M121 -> 0.4851448609 | N161: =IF($M$52=1,"MMBtu/bbl SCO","MMBtu/bbl dilbit") -> MMBtu/bbl SCO
C162: 3.4.1.2 Upgrading | M162: =M124+M125+IF(M126<0,0,M126)+M127+M128 -> 0.823203624 | N162: =IF($M$52=1,"MMBtu/bbl SCO","MMBtu/bbl dilbit") -> MMBtu/bbl SCO
B163: 3.4.2 Indirect energy consumption
C164: 3.4.2.1 Primary extraction | M164: =M147*IF(M147<0,'Fuel Cycle'!E39,'Fuel Cycle'!D59)+M148*(IF(M148<0,'Fuel Cycle'!E41,'Fuel Cycle'!D61))+M151*IF(M147<0,'Fuel Cycle'!E39,'Fuel Cycle'!D59) -> -0.0742254782 | N164: =IF($M$52=1,"MMBtu/bbl SCO","MMBtu/bbl dilbit") -> MMBtu/bbl SCO | V164: Model diluent upstream consumption as identical to natural gas per unit of energy
C165: 3.4.2.2 Upgrading | M165: =M154*IF(M154<0,'Fuel Cycle'!E39,'Fuel Cycle'!D59)+M155*(IF(M155<0,'Fuel Cycle'!E41,'Fuel Cycle'!D61)) -> 0.07141624211 | N165: =IF($M$52=1,"MMBtu/bbl SCO","MMBtu/bbl dilbit") -> MMBtu/bbl SCO
A168: 3.5 Land use GHGs
B169: 3.5.1 Soil carbon emissions | M169: =IF(M$109=0,0,HLOOKUP($M$109,IF('Drilling & Development'!M55=1,'Emissions Factors'!$D$130:$O$133,IF('Drilling & Development'!M55,'Emissions Factors'!$D$120:$O$123,"ERROR")),2,TRUE)) -> 1.4 | N169: =IF($M$52=1,"g/MJ SCO","g/MJ dilbit") -> g/MJ SCO | R169: Yeh et al. (2010) | V169: See above.
B170: 3.5.2 Biomass carbon emissions | M170: =IF(M$109=0,0,HLOOKUP($M$109,IF('Drilling & Development'!M55=1,'Emissions Factors'!$D$130:$O$133,IF('Drilling & Development'!M55,'Emissions Factors'!$D$120:$O$123,"ERROR")),3,TRUE)) -> 0.31 | N170: =IF($M$52=1,"g/MJ SCO","g/MJ dilbit") -> g/MJ SCO | R170: Yeh et al. (2010) | V170: See above.
B171: 3.5.3 Foregone sequestration emissions | M171: =IF(M$109=0,0,HLOOKUP($M$109,IF('Drilling & Development'!M55=1,'Emissions Factors'!$D$130:$O$133,IF('Drilling & Development'!M55,'Emissions Factors'!$D$120:$O$123,"ERROR")),4,TRUE)) -> 0.01 | N171: g/MJ SCO | R171: Yeh et al. (2010) | V171: See above.
B172: 3.5.4 Total land use emissions | M172: =SUM(M169:M171) -> 1.72 | N172: g/MJ SCO
A174: 3.6 Total GHG emissions
B175: 3.5.1 Direct GHG emissions
C176: 3.5.1.1 Primary extraction | M176: =M117*'Emissions Factors'!M145+M118*'Emissions Factors'!C17+M120*'Emissions Factors'!O17+M121*'Emissions Factors'!C17 -> 31639.06345 | N176: =IF($M$52=1,"g/bbl SCO","g/bbl dilbit") -> g/bbl SCO
C177: 3.5.1.2 Upgrading | M177: =M124*'Emissions Factors'!M145+M125*'Emissions Factors'!C17+M127*'Emissions Factors'!O17+M128*'Emissions Factors'!C17 -> 54280.83042 | N177: =IF($M$52=1,"g/bbl SCO","g/bbl dilbit") -> g/bbl SCO
B178: 3.5.2 Indirect GHG emissions
C179: 3.5.2.1 Primary extraction | M179: =M146*(IF(M146<0,'Fuel Cycle'!D50,'Fuel Cycle'!D74))+M147*(IF(M147<0,'Fuel Cycle'!D49,'Fuel Cycle'!D73))+M148*(IF(M148<0,'Fuel Cycle'!D51,'Fuel Cycle'!D75))+M149*(IF(M149<0,'Fuel Cycle'!D52,'Fuel Cycle'!D76))+M150*(IF(M150<0,'Fuel Cycle'!D53,'Fuel Cycle'!D77))+M151*(IF(M151<0,'Fuel Cycle'!D49,'Fuel Cycle'!D73)) -> -3339.755999 | N179: =IF($M$52=1,"g/bbl SCO","g/bbl dilbit") -> g/bbl SCO
C180: 3.5.2.2 Upgrading | M180: =M153*(IF(M153<0,'Fuel Cycle'!D50,'Fuel Cycle'!D74))+M154*(IF(M154<0,'Fuel Cycle'!D49,'Fuel Cycle'!D73))+M155*(IF(M155<0,'Fuel Cycle'!D51,'Fuel Cycle'!D75))+M156*(IF(M156<0,'Fuel Cycle'!D52,'Fuel Cycle'!D76))+M157*(IF(M157<0,'Fuel Cycle'!D53,'Fuel Cycle'!D77)) -> 6875.734683 | N180: =IF($M$52=1,"g/bbl SCO","g/bbl dilbit") -> g/bbl SCO
A182: 4 Data tables
B184: Table 4.1: Energy demand for primary bitumen extraction
B185: Volumetric and mass units
C186: Primary | D186: SAGD | E186: CSS | F186: Mining
B187: Diesel fuel | C187: 213.4 | D187: 0 | E187: 0 | F187: 1333.747 | G187: MJ HHV /tonne bitumen
B188: Natural gas | C188: 4850.846 | D188: 9515.121 | E188: 10074.834 | F188: 2738.862 | G188: MJ HHV /tonne bitumen
B189: Electricity | C189: 408.148 | D189: 230.639 | E189: 195.201 | F189: -248.438 | G189: MJ HHV /tonne bitumen
B190: Coke | C190: 0 | D190: 0 | E190: 0 | F190: 0 | G190: MJ HHV /tonne bitumen
B191: Still Gas | C191: 0 | D191: 0 | E191: 0 | F191: 0 | G191: MJ HHV /tonne bitumen
B192: Source: GHGenius v 4.0c, 'Crude Production' I272-I281 for different selected production techniques.
B193: Data quality for primary production is poor. O'Connor models primary production between heavy oil production and SAGD based on a consultancy study (GHGenius oil production update, March 2011, p. 41)
B195: Table 4.2: Energy demand for primary bitumen extraction
B196: Volumetric and mass units
C197: Primary | D197: SAGD | E197: CSS | F197: Mining
B198: Diesel fuel | C198: =C187*$M$32*'Input data'!$E$34/'Input data'!$E$46*'Fuel Specs'!$E328/'Fuel Specs'!$F328 -> 0.03049837051 | D198: =D187*$M$32*'Input data'!$E$34/'Input data'!$E$46*'Fuel Specs'!$E328/'Fuel Specs'!$F328 -> 0 | E198: =E187*$M$32*'Input data'!$E$34/'Input data'!$E$46*'Fuel Specs'!$E328/'Fuel Specs'!$F328 -> 0 | F198: =F187*$M$32*'Input data'!$E$34/'Input data'!$E$46*'Fuel Specs'!$E328/'Fuel Specs'!$F328 -> 0.1906143869 | G198: MMBtu LHV/bbl bitumen
B199: Natural gas | C199: =C188*$M$32*'Input data'!$E$34/'Input data'!$E$46*'Fuel Specs'!$E334/'Fuel Specs'!$F334 -> 0.669475727 | D199: =D188*$M$32*'Input data'!$E$34/'Input data'!$E$46*'Fuel Specs'!$E334/'Fuel Specs'!$F334 -> 1.313202388 | E199: =E188*$M$32*'Input data'!$E$34/'Input data'!$E$46*'Fuel Specs'!$E334/'Fuel Specs'!$F334 -> 1.390449587 | F199: =F188*$M$32*'Input data'!$E$34/'Input data'!$E$46*'Fuel Specs'!$E334/'Fuel Specs'!$F334 -> 0.3779962565 | G199: MMBtu LHV/bbl bitumen
B200: Electricity | C200: =C189*$M$32*'Input data'!$E$34/'Input data'!$E$46 -> 0.06238630975 | D200: =D189*$M$32*'Input data'!$E$34/'Input data'!$E$46 -> 0.03525367292 | E200: =E189*$M$32*'Input data'!$E$34/'Input data'!$E$46 -> 0.02983689752 | F200: =F189*$M$32*'Input data'!$E$34/'Input data'!$E$46 -> -0.03797428879 | G200: MMBtu LHV/bbl bitumen
B201: Coke | C201: =C190*$M$32*'Input data'!$E$34/'Input data'!$E$46*'Fuel Specs'!$E339/'Fuel Specs'!$F339 -> 0 | D201: =D190*$M$32*'Input data'!$E$34/'Input data'!$E$46*'Fuel Specs'!$E339/'Fuel Specs'!$F339 -> 0 | E201: =E190*$M$32*'Input data'!$E$34/'Input data'!$E$46*'Fuel Specs'!$E339/'Fuel Specs'!$F339 -> 0 | F201: =F190*$M$32*'Input data'!$E$34/'Input data'!$E$46*'Fuel Specs'!$E339/'Fuel Specs'!$F339 -> 0 | G201: MMBtu LHV/bbl bitumen
B202: Still Gas | C202: =C191*$M$32*'Input data'!$E$34/'Input data'!$E$46*'Fuel Specs'!$E334/'Fuel Specs'!$F334 -> 0 | D202: =D191*$M$32*'Input data'!$E$34/'Input data'!$E$46*'Fuel Specs'!$E334/'Fuel Specs'!$F334 -> 0 | E202: =E191*$M$32*'Input data'!$E$34/'Input data'!$E$46*'Fuel Specs'!$E334/'Fuel Specs'!$F334 -> 0 | F202: =F191*$M$32*'Input data'!$E$34/'Input data'!$E$46*'Fuel Specs'!$E334/'Fuel Specs'!$F334 -> 0 | G202: MMBtu LHV/bbl bitumen
B207: Table 4.3: Energy demand for upgrading
B208: Energy units (kJ/tonne SCO)
C209: Stand-alone upgrader | D209: Integrated mining & upgrading | E209: Units
B210: Diesel fuel | D210: 605 | E210: MJ/tonne SCO
B211: Natural gas | C211: 5340 | D211: 5200 | E211: MJ/tonne SCO
B212: Electricity | C212: 217 | D212: -100 | E212: MJ/tonne SCO
B213: Coke | C213: 1300 | D213: 1600 | E213: MJ/tonne SCO
B214: Still Gas | C214: 4660 | D214: 3450 | E214: MJ/tonne SCO
B215: Source: GHGenius v 4.0c, 'Crude Production' r270
B216: Notes: GHGenius assumes a 1:1 mass ratio for bitumen to SCO production for stand-alone operations.
B217: The density of SCO assumed in GHGenius is not clear, so we assume 32 API as in Suncor Synthetic A synthetic crude oil
B218: We assume that fugitives are same as above for mining operations, but that integrated upgrading adds the remainder as flare emissions.
B221: Table 4.4: Energy demand for upgrading
B222: Energy units (MMBtu/bbl SCO)
C223: Stand-alone upgrader | D223: Integrated mining & upgrading | E223: Units
B224: Diesel fuel | C224: =C210*$M$37/'Input data'!$E$36/1055.05*'Fuel Specs'!$E328/'Fuel Specs'!$F328 -> 0 | D224: =D210*$M$37/'Input data'!$E$36/1055.05*'Fuel Specs'!$E328/'Fuel Specs'!$F328 -> 0.07377242274 | E224: MMBtu LHV/bbl SCO
B225: Natural gas | C225: =C211*$M$37/'Input data'!$E$36/1055.05*'Fuel Specs'!$E334/'Fuel Specs'!$F334 -> 0.6288036528 | D225: =D211*$M$37/'Input data'!$E$36/1055.05*'Fuel Specs'!$E334/'Fuel Specs'!$F334 -> 0.6123181638 | E225: MMBtu LHV/bbl SCO
B226: Electricity | C226: =C212*$M$37/'Input data'!$E$36/1055.05 -> 0.02830008949 | D226: =D212*$M$37/'Input data'!$E$36/1055.05 -> -0.0130415159 | E226: MMBtu LHV/bbl SCO
B227: Coke | C227: =C213*$M$37/'Input data'!$E$36/1055.05*'Fuel Specs'!$E339/'Fuel Specs'!$F339 -> 0.1597779479 | D227: =D213*$M$37/'Input data'!$E$36/1055.05*'Fuel Specs'!$E339/'Fuel Specs'!$F339 -> 0.196649782 | E227: MMBtu LHV/bbl SCO
B228: Still Gas | C228: =C214*$M$37/'Input data'!$E$36/1055.05*'Fuel Specs'!$E334/'Fuel Specs'!$F334 -> 0.5487312776 | D228: =D214*$M$37/'Input data'!$E$36/1055.05*'Fuel Specs'!$E334/'Fuel Specs'!$F334 -> 0.406249551 | E228: MMBtu LHV/bbl SCO
B231: Table 4.5: Steam injection rates for in situ projects
C232: SOR | D232: Units
B233: CSS | C233: 3.9 | D233: bbl steam/bbl bitumen
B234: SAGD | C234: 3 | D234: bbl steam/bbl bitumen
B235: GHGenius 4.0c, (S&T)2, March 2011 Update of oil production and refining in GHGenius, p. 40-44
B238: Table 4.6: Volumetric gain upon conversion to SCO
C239: Gain | D239: Units
B240: Integrated upgrading gain | C240: =(1/1.25)*(M32)*(1/M37) -> 0.9376344086 | D240: m3 SCO/m3 bitumen
B241: Stand alone upgrading gain | C241: =1*(M32)*(1/M37) -> 1.172043011 | D241: m3 SCO/m3 bitumen
B242: Notes:
B243: GHGenius assumes a 1:1 mass ratio for bitumen to SCO production for stand-alone operations.
B244: GHGenius assumes a 1.25:1 mass ratio for bitumen to SCO production for integrated upgraders (coking based rather than via hydrogen addition as in stand-alone Scotford upgrader)
B247: Table 4.7: Diluent composition
B248: Diluent type | C248: Density | D248: API gravity | E248: C1-C3 | F248: C4 | G248: C5 | H248: C6 | I248: C7 | J248: C8 | K248: C9 | L248: C10 | M248: C11 | N248: C12 | O248: C12+ | P248: C | Q248: H | R248: Mass C | S248: Mass H | T248: Mass Frac C | U248: Mass Frac H | V248: HHV | X248: LHV | Z248: HHV | AB248: LHV
... 34 more rows

Sheet Gas Balance
A1: Supplemental worksheet: Gas balance
A3: This supplemental worksheet tracks the gas balance across process stages and ensures that gas is conserved in the system.
A5: 1 Gas balance flowsheet
S7: Table 1.4: Gas processing vents composition and volume | AB7: Table 1.6: Pipeline quality gas composition
S8: Comp. | T8: mol% | U8: Vol | AB8: Comp. | AC8: mol% | AD8: Vol | AE8: Mixture MW | AF8: Component MW | AG8: HHV | AH8: LHV
L9: Table 1.2: Flared gas composition and volume | S9: ="--" -> -- | T9: ="--" -> -- | U9: MMscf/d | AB9: ="--" -> -- | AC9: ="--" -> -- | AD9: MMscf/d | AE9: lb/lbmol | AF9: lb/lbmol | AG9: Btu/scf | AH9: Btu/scf
L10: Comp. | M10: mol% | N10: Vol | S10: CO2 | T10: =100*U10/$P$13 -> 81.33803959 | U10: =IF('Surface Processing'!M58=1,(('Venting & Fugitives'!M114/'Input data'!D81)+('Venting & Fugitives'!E124+'Venting & Fugitives'!E139+'Venting & Fugitives'!E144)+('Venting & Fugitives'!E218-'Venting & Fugitives'!E178-'Venting & Fugitives'!E183))/1000000+1*(N30-(('Venting & Fugitives'!M114/'Input data'!D81)+('Venting & Fugitives'!E124+'Venting & Fugitives'!E139+'Venting & Fugitives'!E144)+('Venting & Fugitives'!E218-'Venting & Fugitives'!E178-'Venting & Fugitives'!E183))/1000000),(('Venting & Fugitives'!M114/'Input data'!D81)+('Venting & Fugitives'!E124+'Venting & Fugitives'!E139+'Venting & Fugitives'!E144)+('Venting & Fugitives'!E218-'Venting & Fugitives'!E178-'Venting & Fugitives'!E183))/1000000) -> 0.06538247174 | AB10: N2 | AC10: =100*AD10/$AC$23 -> 2.325138733 | AD10: =W29 -> 0.02179415725 | AE10: =AF10*AC10/100 -> 0.6510388451 | AF10: ='Fuel Specs'!$E$148 -> 28 | AG10: ='Fuel Specs'!G128 -> 0 | AH10: ='Fuel Specs'!H128 -> 0
L11: ="--" -> -- | M11: ="--" -> -- | N11: MMscf/d | S11: C1 | T11: 5.091707564 | U11: =(('Venting & Fugitives'!M115/'Input data'!D82)+('Venting & Fugitives'!F149-'Venting & Fugitives'!F134)+('Venting & Fugitives'!F218-'Venting & Fugitives'!F178-'Venting & Fugitives'!F183))/1000000 -> 0.004092899553 | AB11: CO2 | AC11: 0 | AD11: =W30 -> 0 | AE11: =AF11*AC11/100 -> 0 | AF11: ='Fuel Specs'!$E$150 -> 44 | AG11: ='Fuel Specs'!I130 -> 0 | AH11: ='Fuel Specs'!J130 -> 0
L12: N2 | M12: =100*N12/$I$14 -> 2 | N12: =F29-N29 -> 0.005445842754 | S12: C2 | T12: 0.004313004507 | U12: =0.31*(('Venting & Fugitives'!M116/'Input data'!D83)+('Venting & Fugitives'!G149-'Venting & Fugitives'!G134)+('Venting & Fugitives'!G218-'Venting & Fugitives'!G178-'Venting & Fugitives'!G183))/1000000 -> 3.466949741e-06 | AB12: C1 | AC12: 97.21917032 | AD12: =W31 -> 0.9112617048 | AE12: =AF12*AC12/100 -> 15.55506725 | AF12: ='Fuel Specs'!$E$152 -> 16 | AG12: ='Fuel Specs'!G132 -> 1013 | AH12: ='Fuel Specs'!H132 -> 913
L13: CO2 | M13: =100*N13/$I$14 -> 6 | N13: =F30-N30 -> 0.01633752826 | P13: =U16 -> 0.08038363362 | Q13: MMscf/d | S13: C3 | T13: 0.005843425461 | U13: =0.42*(('Venting & Fugitives'!M116/'Input data'!D83)+('Venting & Fugitives'!G149-'Venting & Fugitives'!G134)+('Venting & Fugitives'!G218-'Venting & Fugitives'!G178-'Venting & Fugitives'!G183))/1000000 -> 4.697157714e-06 | AB13: C2 | AC13: 0.4556909437 | AD13: =W32-AD31 -> 0.004271315059 | AE13: 0.1367072831 | AF13: ='Fuel Specs'!$E$153 -> 30 | AG13: ='Fuel Specs'!G133 -> 1792 | AH13: ='Fuel Specs'!H133 -> 1641
I14: =Flaring!M15 -> 0.2722921377 | J14: MMscf/d | L14: C1 | M14: 84 | N14: 0.2287253957 | S14: C4 | T14: 0.003756487796 | U14: =0.27*(('Venting & Fugitives'!M116/'Input data'!D83)+('Venting & Fugitives'!G149-'Venting & Fugitives'!G134)+('Venting & Fugitives'!G218-'Venting & Fugitives'!G178-'Venting & Fugitives'!G183))/1000000 -> 3.019601387e-06 | AB14: C3 | AC14: 0 | AD14: =W33-AD32 -> 0 | AE14: 0 | AF14: ='Fuel Specs'!$E$154 -> 44 | AG14: ='Fuel Specs'!G134 -> 2590 | AH14: ='Fuel Specs'!H134 -> 2385
L15: C2 | M15: 4 | N15: 0.01089168551 | S15: H2S | T15: 13.55633993 | U15: =IF('Surface Processing'!M58=1,N35,0) -> 0.01089707862 | AB15: C4 | AC15: 0 | AD15: =W34-AD33 -> 0 | AE15: 0 | AF15: ='Fuel Specs'!$E$155 -> 58 | AG15: ='Fuel Specs'!G135 -> 3370 | AH15: ='Fuel Specs'!H135 -> 3113
L16: C3 | M16: 2 | N16: 0.005445842754 | S16: Total | T16: =SUM(T10:T15) -> 100 | U16: =SUM(U10:U15) -> 0.08038363362 | AB16: H2S | AC16: 0 | AD16: =W35 -> 0 | AE16: 0 | AF16: ='Fuel Specs'!$E$158 -> 34 | AG16: ='Fuel Specs'!G138 -> 640 | AH16: ='Fuel Specs'!H138 -> 594
C17: =('Venting & Fugitives'!G235/365)+('Venting & Fugitives'!E134+'Venting & Fugitives'!F134+'Venting & Fugitives'!G134)/1000000 -> 0.0007382728463 | D17: MMscf/d | L17: C4 | M17: 1 | N17: 0.002722921377 | S17: Associated gas venting and fugitives | AB17: Total | AC17: =SUM(AC10:AC16) -> 100 | AD17: =SUM(AD10:AD16) -> 0.9373271771 | AE17: =SUM(AE10:AE16) -> 16.34281338 | AF17: ="--" -> -- | AG17: ="--" -> -- | AH17: -- | AL17: Lifting gas
D18: Notes: | L18: H2S | M18: 1 | N18: 0.002722921377 | S18: H2S to sulfur | AB18: Specific gravity | AC18: =(14.7*AE17)/(10.73*(60+460))/0.0764 -> 0.5635698253 | AD18: Dimensionless
D19: Fugitives from active wells and well cellars | L19: Total | M19: =SUM(M12:M18) -> 100 | N19: =SUM(N12:N18) -> 0.2722921377 | AB19: HHV | AC19: =SUMPRODUCT(AD10:AD16,AG10:AG16) -> 930.7623035 | AD19: MMBtu/d | AL19: =IF('Production & Extraction'!M19=1,'Production & Extraction'!M159/1000,0) -> 0 | AM19: MMscf/d | AP19: =IF('Production & Extraction'!M19=1,IF(AC23<AL19,"ERROR","OK"),"OK") -> OK
D20: Vents from workovers and cleanups | AB20: LHV | AC20: =SUMPRODUCT(AD10:AD16,AH10:AH16) -> 838.9911645 | AD20: MMBtu/d
D21: GOR is calculated at the separator
E23: =F36 -> 1.362 | F23: MMscf/d | M23: =N36 -> 1.089707862 | N23: MMscf/d | Q23: Gas processing | V23: =W36 -> 1.009324229 | W23: MMscf/d | AC23: =AD17 -> 0.9373271771 | AD23: MMscf/d
B24: Production | J24: Flaring | Z24: Demethanizer
D26: Table 1.1: Production gas composition and volume | L26: Table 1.3: Gas to processing comp. and volume | U26: Table 1.5: Processed gas composition and volumes
D27: Comp. | E27: mol% | F27: Vol | G27: HHV | H27: LHV | L27: Comp. | M27: mol% | N27: Vol | U27: Comp. | V27: mol% | W27: Vol | AA27: =AD34 -> 0.07199705159 | AB27: MMscf/d | AK27: Remaining gas
D28: ="--" -> -- | E28: ="--" -> -- | F28: MMscf/d | G28: Btu/scf | H28: Btu/scf | L28: ="--" -> -- | M28: ="--" -> -- | N28: MMscf/d | U28: ="--" -> -- | V28: ="--" -> -- | W28: MMscf/d | AB28: Table 1.7: Demethanizer heavy product composition | AK28: =AC23-AL19 -> 0.9373271771 | AL28: MMscf/d | AP28: =IF(AK28>=0,"OK","ERROR") -> OK
D29: N2 | E29: =100*F29/$E$23 -> 2 | F29: ='Production & Extraction'!M38*('Production & Extraction'!M48*'Production & Extraction'!M35/1000000)/100 -> 0.02724 | G29: ='Fuel Specs'!G128 -> 0 | H29: ='Fuel Specs'!H128 -> 0 | L29: N2 | M29: =100*N29/$M$23 -> 2 | N29: =F29*(1-($I$14/$E$23)) -> 0.02179415725 | U29: N2 | V29: =100*W29/$V$23 -> 2.159282085 | W29: =N29 -> 0.02179415725 | AB29: Comp. | AC29: mol% | AD29: Vol | AE29: HHV | AF29: LHV | AL29: =AK28-AL32 -> 0.9373271771 | AM29: MMscf/d
D30: CO2 | E30: 6 | F30: ='Production & Extraction'!M39*('Production & Extraction'!M48*'Production & Extraction'!M35/1000000)/100 -> 0.08172 | G30: ='Fuel Specs'!G130 -> 0 | H30: ='Fuel Specs'!H130 -> 0 | K30: =IF(N30-(('Venting & Fugitives'!M114/'Input data'!D81)+('Venting & Fugitives'!E124+'Venting & Fugitives'!E139+'Venting & Fugitives'!E144)+('Venting & Fugitives'!E218-'Venting & Fugitives'!E178-'Venting & Fugitives'!E183))/1000000<0,"ERROR","OK") -> OK | L30: CO2 | M30: =100*N30/$M$23 -> 6 | N30: 0.06538247174 | U30: CO2 | V30: 0 | W30: =N30-U10 -> 0 | AB30: ="--" -> -- | AC30: ="--" -> -- | AD30: MMscf/d | AE30: Btu/scf | AF30: Btu/scf | AL30: Process fuel / export
D31: C1 | E31: 84 | F31: ='Production & Extraction'!M40*('Production & Extraction'!M48*'Production & Extraction'!M35/1000000)/100 -> 1.14408 | G31: ='Fuel Specs'!G132 -> 1013 | H31: ='Fuel Specs'!H132 -> 913 | K31: =IF(N31-U11<0,"ERROR","OK") -> OK | L31: C1 | M31: 84 | N31: 0.9153546043 | U31: C1 | V31: 90.28433866 | W31: 0.9112617048 | AB31: C2 | AC31: =IF('Surface Processing'!M64=1,100*AD31/$AA$27,0) -> 54.6043645 | AD31: =IF('Surface Processing'!M64=1,W32*('Surface Processing'!M111/100),0) -> 0.03931353248 | AE31: ='Fuel Specs'!G133 -> 1792 | AF31: ='Fuel Specs'!H133 -> 1641
D32: C2 | E32: 4 | F32: ='Production & Extraction'!M41*('Production & Extraction'!M48*'Production & Extraction'!M35/1000000)/100 -> 0.05448 | G32: ='Fuel Specs'!G133 -> 1792 | H32: ='Fuel Specs'!H133 -> 1641 | K32: =IF(N32-U12<0,"ERROR","OK") -> OK | L32: C2 | M32: 4 | N32: 0.04358831449 | U32: C2 | V32: 4.318220677 | W32: 0.04358484754 | AB32: C3 | AC32: =IF('Surface Processing'!M64=1,100*AD32/$AA$27,0) -> 30.26437834 | AD32: =IF('Surface Processing'!M64=1,W33*('Surface Processing'!M112/100),0) -> 0.02178946009 | AE32: ='Fuel Specs'!G134 -> 2590 | AF32: ='Fuel Specs'!H134 -> 2385 | AL32: =IF(OR('Production & Extraction'!M17=1,'Production & Extraction'!M20=1),AK28*'Production & Extraction'!M49/100,0) -> 0 | AM32: MMscf/d
D33: C3 | E33: 2 | F33: ='Production & Extraction'!M42*('Production & Extraction'!M48*'Production & Extraction'!M35/1000000)/100 -> 0.02724 | G33: ='Fuel Specs'!G134 -> 2590 | H33: ='Fuel Specs'!H134 -> 2385 | K33: =IF(N33-U13<0,"ERROR","OK") -> OK | L33: C3 | M33: 2 | N33: 0.02179415725 | U33: C3 | V33: 2.158816708 | W33: 0.02178946009 | AB33: C4 | AC33: =IF('Surface Processing'!M64=1,100*AD33/$AA$27,0) -> 15.13125716 | AD33: =IF('Surface Processing'!M64=1,W34*('Surface Processing'!M113/100),0) -> 0.01089405902 | AE33: ='Fuel Specs'!G135 -> 3370 | AF33: ='Fuel Specs'!H135 -> 3113 | AL33: Reinjection
D34: C4 | E34: 1 | F34: ='Production & Extraction'!M43*('Production & Extraction'!M48*'Production & Extraction'!M35/1000000)/100 -> 0.01362 | G34: ='Fuel Specs'!G135 -> 3370 | H34: ='Fuel Specs'!H135 -> 3113 | K34: =IF(N34-U14<0,"ERROR","OK") -> OK | L34: C4 | M34: 1 | N34: 0.01089707862 | U34: C4 | V34: 1.079341872 | W34: 0.01089405902 | AB34: Total | AC34: =SUM(AC31:AC33) -> 100 | AD34: =SUM(AD31:AD33) -> 0.07199705159 | AE34: ="--" -> -- | AF34: ="--" -> --
D35: H2S | E35: 1 | F35: ='Production & Extraction'!M44*('Production & Extraction'!M48*'Production & Extraction'!M35/1000000)/100 -> 0.01362 | G35: ='Fuel Specs'!G138 -> 640 | H35: ='Fuel Specs'!H138 -> 594 | L35: H2S | M35: 1 | N35: 0.01089707862 | U35: H2S | V35: 0 | W35: 0 | AB35: HHV | AC35: =SUMPRODUCT(AD31:AD33,AE31:AE33) -> 163.5975307 | AD35: MMBtu/d
D36: Total | E36: =SUM(E29:E35) -> 100 | F36: =SUM(F29:F35) -> 1.362 | L36: Total | M36: =SUM(M29:M35) -> 100 | N36: =SUM(N29:N35) -> 1.089707862 | U36: Total | V36: =SUM(V29:V35) -> 100 | W36: =SUM(W29:W35) -> 1.009324229 | AB36: LHV | AC36: =SUMPRODUCT(AD31:AD33,AF31:AF33) -> 150.3945749 | AD36: MMBtu/d
D37: HHV | E37: =SUMPRODUCT(F29:F35,G29:G35) -> 1381.749 | F37: MMBtu/d
D38: LHV | E38: =SUMPRODUCT(F29:F35,H29:H35) -> 1249.40346 | F38: MMBtu/d
D40: Overall gas composition check: | J40: =IF(OR(K30="ERROR",K31="ERROR",K32="ERROR",K33="ERROR",K34="ERROR"),"ERROR","OK") -> OK

Sheet Steam Injection
A1: Supplemental worksheet: Steam injection for thermal oil recovery
A3: This supplemental worksheet models the energy consumption and emissions from steam generation for thermal enhanced oil recovery
A6: 1 Data inputs and calculations
M8: User | N8: Default | O8: Units | Q8: User reference | S8: Default reference | V8: Notes
A9: 1.1 Field properties
B10: 1.1.1 Crude name | M10: ='Production & Extraction'!M31 -> Generic | N10: Generic | O10: NA
B11: 1.1.2 Crude API gravity | M11: ='User Inputs & Results'!J78 -> 30 | N11: ='User Inputs & Results'!K78 -> 30 | O11: [-]
B12: 1.1.3 Crude Production rate | M12: ='Production & Extraction'!M35 -> 1500 | N12: ='User Inputs & Results'!K70 -> 1500 | O12: STB/d
B14: 1.1.4 Steam oil ratio (SOR) | M14: ='Production & Extraction'!M218 -> 3 | N14: 3 | O14: bbl steam/STB oil
B15: 1.1.5 Steam injection rate | M15: =M14*M12 -> 4500 | N15: =N14*N12 -> 4500 | O15: bbl CWE/d | V15: Barrels of cold water equivalent (CWE) steam
B17: 1.1.6 Share of steam production by steam generator type
C18: 1.1.6.1 Simple once-through steam generator (OTSG) | M18: =1-M19 -> 1 | N18: =1-N19 -> 1 | O18: [-] | V18: Change on sheet "Production & Extraction (p)"
C19: 1.1.6.1 Gas-turbine plus heat recovery steam generator (HRSG) | M19: ='User Inputs & Results'!J99 -> 0 | N19: ='User Inputs & Results'!K99 -> 0 | O19: [-] | V19: Change on sheet "Production & Extraction (p)"
L20: Check: | M20: =IF(SUM(M18:M19)=1,"OK","ERROR") -> OK | V20: Shares of steam generation technologies must sum to 1.
A23: 1.2 OTSG water and steam properties
M24: User | N24: Default | O24: Units | Q24: User reference | S24: Default reference | V24: Notes
B25: 1.2.1 Inlet water temperature | M25: 40 | N25: 40 | O25: °F
C26: 1.2.1.1 Approximate inlet water temperature | M26: =CEILING(M25-10,20) -> 40 | N26: =CEILING(N25-10,20) -> 40 | O26: °F | V26: Round inlet water temperature to nearest 20 F.
B28: 1.2.2 Inlet water pressure | M28: =M38 -> 1945 | N28: =N38 -> 625 | O28: psia
C29: 1.2.2.1 Approximate water inlet pressure | M29: =MIN(MAX(CEILING(M28-50,100),100),1500) -> 1500 | N29: =CEILING(N28-50,100) -> 600 | O29: psia | V29: Round inlet water pressure to nearest 100 psi, with limits of 100 to 1500 psia.
B31: 1.2.3 Inlet water density | M31: =N31 -> 350.4312 | N31: ='Input data'!E202 -> 350.4312 | O31: lb/bbl | V31: Assume inlet water density is invariant with temperature and pressure.
B32: 1.2.4 Required water mass | M32: =M15*M31 -> 1576940.4 | N32: =N15*N18*N31 -> 1576940.4 | O32: lbm/d
B33: 1.2.5 Inlet water enthalpy | M33: =INDEX('Input data'!F759:F1876,MATCH(1,(M29='Input data'!B759:B1876)*('Steam Injection'!M25='Input data'!C759:C1876),0)) -> 12.44 | N33: =INDEX('Input data'!F759:F1876,MATCH(1,('Steam Injection'!N29='Input data'!B759:B1876)*('Steam Injection'!N25='Input data'!C759:C1876),0)) -> 9.802 | O33: Btu/lbm
B35: 1.2.6 Reservoir pressure | M35: ='User Inputs & Results'!J75 -> 1556.6 | N35: 500 | O35: psia | S35: Green & Willhite (1998), Fox (SPE 8001) | V35: Steam injection projects are given a non-standard default pressure of 500 psia, due to the fact that steam injection projects generally occur in shallow reservoirs that are pressure depleted. Steam injection is more efficient at transfering heat to the formation and driving production in shallow reservoirs for a variety of reasons. See Green & Willhite (1998) or Fox (SPE 8001) for details.
B36: 1.2.7 Excess pressure required for steam distribution losses | M36: 1.25 | N36: 1.25 | O36: psia/psia | S36: Chilingarian et al. 1987, p. 228 | V36: Chilingarian, Robertson et al. note that "piping friction losses can represent 10-50% of the steam pressure developed at the outlet of the steam generator." (p. 228) We assume 25% loss of reservoir pressure for moderate approach.
B37: 1.2.8 Steam pressure at outlet of steam generator | M37: =M35*M36 -> 1945.75 | N37: =N35*N36 -> 625 | O37: psia | V37: Steam pressure at wellbore must be higher than reservoir pressure.
C38: 1.2.8.1 Approximate steam pressure | M38: =CEILING(M37-2.5,5) -> 1945 | N38: =CEILING(N37-2.5,5) -> 625 | O38: psia | V38: Round steam pressure to nearest 5 psia
B40: 1.2.9 Steam quality at steam generator outlet | M40: 0.8 | N40: 0.8 | O40: kg steam / kg H2O
B41: 1.2.10 Saturated steam temperature (Tsteam) | M41: =VLOOKUP(M37,'Input data'!B255:K752,2) -> 631.9 | N41: =VLOOKUP(N37,'Input data'!B256:K751,2) -> 490.7 | O41: °F
B42: 1.2.11 Steam mixture fluid enthalpy | M42: =VLOOKUP(M41,'Input data'!C255:K752,4) -> 665.4 | N42: =VLOOKUP(N41,'Input data'!B256:K752,4) -> 445.4 | O42: Btu/lbm
B43: 1.2.12 Steam mixture vapor enthalpy | M43: =VLOOKUP(M41,'Input data'!C255:K752,8) -> 1141 | N43: =VLOOKUP(N37,'Input data'!C255:K752,8) -> 1147 | O43: Btu/lbm | V43: Lookup table. 10-1000 psia by increments of 10 psia, 1025-3000 psia by increments of 25 psia
B44: 1.2.13 Weighted enthalpy of saturated steam | M44: =M40*M43+((1-M40)*M42) -> 1045.88 | N44: =N40*N43+((1-N40)*N42) -> 1006.68 | O44: Btu/lbm
B45: 1.2.14 Enthalpy increase of water | M45: =M44-M33 -> 1033.44 | N45: =N44-N33 -> 996.878 | O45: Btu/lbm
A47: 1.3 OTSG and GT + HRSG inlet air properties
B48: 1.3.1 OTSG inlet air composition | L48: N2, Ar | M48: ='Input data'!E102 -> 0.774396 | N48: ='Input data'!E92 -> 0.7902 | O48: lbmol/lbmol air
L49: O2 | M49: ='Input data'!E103 -> 0.20531 | N49: ='Input data'!E93 -> 0.2095 | O49: lbmol/lbmol air
L50: CO2 | M50: ='Input data'!E104 -> 0.000294 | N50: ='Input data'!E94 -> 0.0003 | O50: lbmol/lbmol air
L51: H2O | M51: ='Input data'!E105 -> 0.02 | N51: ='Input data'!E95 -> 0 | O51: lbmol/lbmol air
L52: CH4 | M52: 0 | N52: 0 | O52: lbmol/lbmol air
L53: C2H6 | M53: 0 | N53: 0 | O53: lbmol/lbmol air
L54: C3H8 | M54: 0 | N54: 0 | O54: lbmol/lbmol air
L55: n-C4H10 | M55: 0 | N55: 0 | O55: lbmol/lbmol air
L56: CO | M56: 0 | N56: 0 | O56: lbmol/lbmol air
L57: H2 | M57: 0 | N57: 0 | O57: lbmol/lbmol air
L58: H2S | M58: 0 | N58: 0 | O58: lbmol/lbmol air
L59: SO2 | M59: 0 | N59: 0 | O59: lbmol/lbmol air
M60: =IF(SUM(M48:M59)=1,"OK","ERROR") -> OK
V61: Composition fractions must sum to 1.
B62: 1.3.2 OTSG inlet air weighted molar mass | M62: =SUMPRODUCT(M48:M59,'Fuel Specs'!E148:E159) -> 28.625944 | N62: =SUMPRODUCT(N48:N59,'Fuel Specs'!E148:E159) -> 28.8428 | O62: lb/lbmol air
A65: 1.4 Overall sheet check | K65: Overall check: | M65: =IF(M20="OK",IF(M74="OK",IF(M78="OK",IF(G111="OK",IF(G132="OK",IF(G328="OK",IF(O328="OK",IF(G357="OK",IF(M153="OK",IF(O357="OK",IF(M60="OK",IF(M302="OK",IF(M382="OK","OK","ERROR"),"ERROR"),"ERROR"),"ERROR"),"ERROR"),"ERROR"),"ERROR"),"ERROR"),"ERROR"),"ERROR"),"ERROR"),"ERROR"),"ERROR") -> OK | V65: If "ERROR" is reported, check below for consistency.
A68: 2 Calculations - Once-through steam generator (OTSG)
A70: 2.1 OTSG inputs
B71: 2.1.1 OTSG fuel input type (binary)
C72: 2.1.1.1 Gaseous fuels | M72: 1 | N72: 1 | O72: Btu/Btu | V72: Only choose 1 from gaseous or liquid fuels
C73: 2.1.1.2 Produced heavy crude | M73: 0 | N73: 0
L74: Check: | M74: =IF(SUM(M72:M73)=1,"OK","ERROR") -> OK
B75: 2.1.2 OTSG gaseous fuels share
C76: 2.1.2.1 Fraction natural gas | M76: 1 | N76: 1 | V76: Shares for OTSG gaseous fuel must sum to 1.
C77: 2.1.2.2 Fraction produced gas | M77: 0 | N77: 0 | V77: Shares for OTSG gaseous fuel must sum to 1.
L78: Check: | M78: =IF(SUM(M76:M77)=1,"OK","ERROR") -> OK
B80: 2.1.3 OTSG excess air in combustion | M80: 1.2 | N80: 1.2 | O80: lbmol O2 real/lbmol O2 stoichiometric | V80: Moles of O2 at combustion conditions compared to mols of O2 at stoichiometric conditions
B82: 2.1.4 OTSG inlet air temperature | M82: 80.33 | N82: 80.33 | O82: °F
B84: 2.1.5 OTSG outlet exhaust temperature | M84: 350 | N84: 350 | O84: °F
B86: 2.1.6 Other OTSG loss
C87: 2.1.6.1 OTSG shell loss inefficiency | M87: 0.04 | N87: 0.04 | O87: Btu/Btu fuel
C88: 2.1.6.2 OTSG other loss - Gaseous fuels | M88: 5000 | N88: 5000 | O88: Btu/lbmol fuel | V88: Ganapathy (2003) pg. 262 cites as "unaccounted loss"
C89: 2.1.6.3 OTSG other loss - Liquid fuels | M89: 250 | N89: 250 | O89: Btu/lbm fuel
A92: 2.2 Summary results - OTSG mass and energy balance
D95: =D97/'Input data'!E18 -> 715490.1996 | J95: =J97/'Input data'!E18 -> 715490.1996
C96: Water in | D96: kg/d | J96: kg/d | K96: Steam out
D97: =M32 -> 1576940.4 | J97: =M32 -> 1576940.4
D98: =O32 -> lbm/d | G98: Once-through steam generator | J98: =D98 -> lbm/d
D100: =D102/'Input data'!E18 -> 819497.0277 | G100: (OTSG) | J100: =J102/'Input data'!E18 -> 858871.7691
C101: Air in | D101: kg/d | J101: kg/d | K101: Exhaust out
D102: =SUM(M72:M72)*SUM(M174:M185)*M62*M277+M73*SUM(M194:M205)*M62*M278 -> 1806171.449 | J102: =SUM(M72:M72)*SUM(M213:M224)*M227*M277+M73*SUM(M235:M246)*M249*M278 -> 1892953.379
D103: lbm/d | G103: Mass balance | J103: lbs/d
D105: =D107/'Input data'!E18 -> 39642.07712
C106: Fuel in | D106: kg/d
D107: =SUM(M72:M72)*M155*M277+M73*M278 -> 87371.13797
D108: lbm/d
E110: Mass in | G110: Check | I110: Mass out
E111: =SUM(D95,D100,D105)/1000 -> 1574.629304 | F111: t/d | G111: =IF(ABS((E111-I111)/E111)<=0.02,"OK","ERROR") -> OK | I111: =SUM(J95,J100)/1000 -> 1574.361969 | J111: t/d
D116: =D118*1055.05/1000 -> 20697.06205 | J116: =J118*1055.05/1000 -> 1740083.863
C117: Water H | D117: MJ/d | J117: MJ/d | K117: Steam out
D118: =M33*M32/1000 -> 19617.13858 | J118: =M32*M44/1000 -> 1649290.426
D119: MBtu/d | G119: Once-through steam generator | J119: MBtu/d
D121: =D123*1055.05/1000 -> 0 | G121: (OTSG) | J121: =J123*1055.05/1000 -> 144474.9665
C122: Air H | D122: MJ/d | J122: MJ/d | K122: Exhaust out
D123: =((M187*M277)+(M207*M278))/1000 -> 0 | J123: =(M231*M277+M253*M278)/1000 -> 136936.6063
D124: MBtu/d | G124: Energy balance | J124: MBtu/d
J125: =J128*1055.05/1000 -> 106569.2014
D126: =D128*1055.05/1000 -> 1970430.969 | J126: MJ/d | K126: Other waste heat out
C127: Fuel LHV | D127: MJ/d
D128: =(M281+M282)*1000 -> 1867618.567 | J128: =(((M262+M88)*M277)+((M263+M89)*M278))/1000 -> 101008.6739
D129: MBtu/d | J129: MBtu/d
E131: Energy in | G131: Check: | I131: Energy out
E132: =(D116+D121+D126)/1000 -> 1991.128031 | F132: GJ/d | G132: =IF(ABS((E132-I132)/E132)<=0.02,"OK","ERROR") -> OK | I132: =SUM(J116,J121,J125)/1000 -> 1991.128031 | J132: GJ/d
F134: Eff: | G134: =J118/D128 -> 0.8830981093 | H134: LHV basis
A139: 2.3 OTSG fuel properties
B140: 2.3.1 OTSG gaseous fuels
C141: 2.3.1.1 OTSG fuel gas composition | L141: N2, Ar | M141: =M$76*'Fuel Specs'!C227+M$77*'Fuel Specs'!C273 -> 0.004 | N141: lbmol/lbmol fuel | V141: Computes weighted average from fraction natural gas vs. produced gas. Change composition of natural gas and associated gas in "Fuel Specs" sheet.
L142: O2 | M142: =M$76*'Fuel Specs'!C228+M$77*'Fuel Specs'!C274 -> 0 | N142: lbmol/lbmol fuel
L143: CO2 | M143: =M$76*'Fuel Specs'!C229+M$77*'Fuel Specs'!C275 -> 0 | N143: lbmol/lbmol fuel
L144: H2O | M144: =M$76*'Fuel Specs'!C230+M$77*'Fuel Specs'!C276 -> 0 | N144: lbmol/lbmol fuel
L145: CH4 | M145: =M$76*'Fuel Specs'!C231+M$77*'Fuel Specs'!C277 -> 0.966 | N145: lbmol/lbmol fuel
L146: C2H6 | M146: =M$76*'Fuel Specs'!C232+M$77*'Fuel Specs'!C278 -> 0.02 | N146: lbmol/lbmol fuel
L147: C3H8 | M147: =M$76*'Fuel Specs'!C233+M$77*'Fuel Specs'!C279 -> 0.01 | N147: lbmol/lbmol fuel
L148: n-C4H10 | M148: =M$76*'Fuel Specs'!C234+M$77*'Fuel Specs'!C280 -> 0 | N148: lbmol/lbmol fuel
L149: CO | M149: =M$76*'Fuel Specs'!C235+M$77*'Fuel Specs'!C281 -> 0 | N149: lbmol/lbmol fuel
L150: H2 | M150: =M$76*'Fuel Specs'!C236+M$77*'Fuel Specs'!C282 -> 0 | N150: lbmol/lbmol fuel
L151: H2S | M151: =M$76*'Fuel Specs'!C237+M$77*'Fuel Specs'!C283 -> 0 | N151: lbmol/lbmol fuel
L152: SO2 | M152: =M$76*'Fuel Specs'!C238+M$77*'Fuel Specs'!C284 -> 0 | N152: lbmol/lbmol fuel
L153: Check | M153: =IF(M76+M77=1,IF(SUM(M141:M152)=1,"OK","ERROR"),"OK") -> OK | V153: Check: Composition fractions must sum to 1.
C155: 2.3.1.2 OTSG fuel gas input weighted molar mass | M155: =SUMPRODUCT(M141:M152,'Fuel Specs'!E148:E159) -> 16.608 | N155: lb/lbmol
C157: 2.3.1.3 OTSG fuel gas heating value (LHV) | L157: Btu | M157: =SUMPRODUCT(M141:M152,'Fuel Specs'!N128:N139) -> 355007.4989 | N157: Btu LHV/lbmol
L158: MJ | M158: =M157*1055.05/1000000 -> 374.5506617 | N158: MJ LHV/lbmol
B160: 2.3.2 OTSG liquid fuels
C161: 2.3.2.1 OTSG crude liquid fuel heating value (LHV) | M161: =VLOOKUP(M11,'Fuel Specs'!B21:O62,3) -> 17980 | N161: Btu LHV/lbm | V161: Assume that produced crude is burned directly without upgrading. Because molar mass is uncertain, liquid fuels are tracked on mass basis (lbm)
C162: 2.3.2.2 OTSG crude liquid fuel mass fraction C | M162: =VLOOKUP(M11,'Fuel Specs'!B70:L111,3)/100 -> 0.8624241486 | N162: lbm C/lbm crude | V162: Mass fraction carbon
C164: 2.3.2.3 OTSG crude liquid fuel composition | L164: C | M164: =VLOOKUP(M11,'Fuel Specs'!B70:Q111,12) -> 0.07186867905 | N164: lbmol /lbm fuel consumed
L165: H | M165: =VLOOKUP(M11,'Fuel Specs'!B70:Q111,13) -> 0.1205758514 | N165: lbmol /lbm fuel consumed
L166: S | M166: =VLOOKUP(M11,'Fuel Specs'!B70:Q111,14) -> 0.00046875 | N166: lbmol /lbm fuel consumed
L167: N | M167: =VLOOKUP(M11,'Fuel Specs'!B70:Q111,15) -> 0.0001428571429 | N167: lbmol /lbm fuel consumed | V167: Assume no O, but small amounts of N.
C169: 2.3.2.4 OTSG crude liquid fuel stoichiometric O2 requirements per C | M169: =VLOOKUP(M11,'Fuel Specs'!B70:L111,11) -> 1.425953465 | N169: lbmol O2/lbmol C
A172: 2.4 OTSG air composition and requirements
B173: 2.4.1 OTSG inlet air properties - Gaseous fuels
C174: 2.4.1.1 Air requirements - gaseous fuels combustion | L174: N2, Ar | M174: =(M$76*'Fuel Specs'!D256+M$77*'Fuel Specs'!D302)*(M$80)*$M$72 -> 9.287773174 | N174: lbmol/lbmol fuel
L175: O2 | M175: =(M$76*'Fuel Specs'!D257+M$77*'Fuel Specs'!D303)*(M$80)*$M$72 -> 2.4624 | N175: lbmol/lbmol fuel
L176: CO2 | M176: =(M$76*'Fuel Specs'!D258+M$77*'Fuel Specs'!D304)*(M$80)*$M$72 -> 0.003526109785 | N176: lbmol/lbmol fuel
L177: H2O | M177: =(M$76*'Fuel Specs'!D259+M$77*'Fuel Specs'!D305)*(M$80)*$M$72 -> 0.239871414 | N177: lbmol/lbmol fuel
L178: CH4 | M178: =(M$76*'Fuel Specs'!D260+M$77*'Fuel Specs'!D306)*(M$80)*$M$72 -> 0 | N178: lbmol/lbmol fuel
L179: C2H6 | M179: =(M$76*'Fuel Specs'!D261+M$77*'Fuel Specs'!D307)*(M$80)*$M$72 -> 0 | N179: lbmol/lbmol fuel
L180: C3H8 | M180: =(M$76*'Fuel Specs'!D262+M$77*'Fuel Specs'!D308)*(M$80)*$M$72 -> 0 | N180: lbmol/lbmol fuel
L181: n-C4H10 | M181: =(M$76*'Fuel Specs'!D263+M$77*'Fuel Specs'!D309)*(M$80)*$M$72 -> 0 | N181: lbmol/lbmol fuel
L182: CO | M182: =(M$76*'Fuel Specs'!D264+M$77*'Fuel Specs'!D310)*(M$80)*$M$72 -> 0 | N182: lbmol/lbmol fuel
L183: H2 | M183: =(M$76*'Fuel Specs'!D265+M$77*'Fuel Specs'!D311)*(M$80)*$M$72 -> 0 | N183: lbmol/lbmol fuel
L184: H2S | M184: =(M$76*'Fuel Specs'!D266+M$77*'Fuel Specs'!D312)*(M$80)*$M$72 -> 0 | N184: lbmol/lbmol fuel
L185: SO2 | M185: =(M$76*'Fuel Specs'!D267+M$77*'Fuel Specs'!D313)*(M$80)*$M$72 -> 0 | N185: lbmol/lbmol fuel
C187: 2.4.1.2 Inlet air enthalpy - gaseous fuels combustion | M187: =M174*'Input data'!$C$165+M175*'Input data'!$D$165+M176*'Input data'!$E$165+M177*('Input data'!$I$165)+1*'Input data'!$J$165 -> 0 | N187: Btu/lbmol fuel | V187: Neglect latent heat of vaporization of air and exhaust H2O because working with LHV balance
B190: 2.4.1 OTSG inlet air properties - Crude liquid fuels
C191: 2.4.2.1 Stoichiometric O2 requirement | M191: =(M164+1/4*M165+M166)*M73 -> 0 | N191: lbmol O2 stoich./lbm crude liquid fuel consumed
C192: 2.4.2.2 Real O2 requirements | M192: =(M191*M80) -> 0 | N192: lbmol O2 real/lbm crude liquid fuel consumed
C194: 2.4.2.3 Air requirements - liquid fuel combustion | L194: N2, Ar | M194: =$M$192*M48/$M$49 -> 0 | N194: lbmol air/lbm crude liquid fuel
L195: O2 | M195: 0 | N195: lbmol air/lbm crude liquid fuel
L196: CO2 | M196: 0 | N196: lbmol air/lbm crude liquid fuel
L197: H2O | M197: 0 | N197: lbmol air/lbm crude liquid fuel
L198: CH4 | M198: 0 | N198: lbmol air/lbm crude liquid fuel
L199: C2H6 | M199: 0 | N199: lbmol air/lbm crude liquid fuel
L200: C3H8 | M200: 0 | N200: lbmol air/lbm crude liquid fuel
L201: n-C4H10 | M201: 0 | N201: lbmol air/lbm crude liquid fuel
L202: CO | M202: 0 | N202: lbmol air/lbm crude liquid fuel
L203: H2 | M203: 0 | N203: lbmol air/lbm crude liquid fuel
L204: H2S | M204: 0 | N204: lbmol air/lbm crude liquid fuel
L205: SO2 | M205: 0 | N205: lbmol air/lbm crude liquid fuel
C207: 2.4.2.4 Inlet air enthalpy - liquid fuel combustion | L207: hai | M207: =M194*'Input data'!$C$165+M195*'Input data'!$D$165+M196*'Input data'!$E$165+M197*('Input data'!$I$165)+1*'Input data'!$J$165 -> 0 | N207: Btu/lbm crude liquid fuel | V207: Neglect latent heat of vaporization of air and exhaust H2O because working with LHV balance
A209: 2.5 OTSG exhaust properties
B210: 2.5.1 OTSG exhaust properties - Gaseous fuels
C213: 2.5.1.1 OTSG outlet exhaust moles per mole of fuel consumed | L213: N2, Ar | M213: =M174*M72 -> 9.287773174 | N213: lbmol/lbmol fuel
L214: O2 | M214: =((M$76*'Fuel Specs'!$E257+M$77*'Fuel Specs'!$E303)+(($M$80-1)/$M$80)*M175)*M$72 -> 0.4104 | N214: lbmol/lbmol fuel
L215: CO2 | M215: =((M$76*'Fuel Specs'!$E258+M$77*'Fuel Specs'!$E304)+(($M$80-1)/$M$80)*M176)*M$72 -> 1.03952611 | N215: lbmol/lbmol fuel
L216: H2O | M216: =((M$76*'Fuel Specs'!$E259+M$77*'Fuel Specs'!$E305)+(($M$80-1)/$M$80)*M177)*M$72 -> 2.271871414 | N216: lbmol/lbmol fuel
L217: CH4 | M217: =((M$76*'Fuel Specs'!$E260+M$77*'Fuel Specs'!$E306)+(($M$80-1)/$M$80)*M178)*M$72 -> 0 | N217: lbmol/lbmol fuel
L218: C2H6 | M218: =((M$76*'Fuel Specs'!$E261+M$77*'Fuel Specs'!$E307)+(($M$80-1)/$M$80)*M179)*M$72 -> 0 | N218: lbmol/lbmol fuel
L219: C3H8 | M219: =((M$76*'Fuel Specs'!$E262+M$77*'Fuel Specs'!$E308)+(($M$80-1)/$M$80)*M180)*M$72 -> 0 | N219: lbmol/lbmol fuel
L220: n-C4H10 | M220: =((M$76*'Fuel Specs'!$E263+M$77*'Fuel Specs'!$E309)+(($M$80-1)/$M$80)*M181)*M$72 -> 0 | N220: lbmol/lbmol fuel
L221: CO | M221: =((M$76*'Fuel Specs'!$E264+M$77*'Fuel Specs'!$E310)+(($M$80-1)/$M$80)*M182)*M$72 -> 0 | N221: lbmol/lbmol fuel
L222: H2 | M222: =((M$76*'Fuel Specs'!$E265+M$77*'Fuel Specs'!$E311)+(($M$80-1)/$M$80)*M183)*M$72 -> 0 | N222: lbmol/lbmol fuel
L223: H2S | M223: =((M$76*'Fuel Specs'!$E266+M$77*'Fuel Specs'!$E312)+(($M$80-1)/$M$80)*M184)*M$72 -> 0 | N223: lbmol/lbmol fuel
L224: SO2 | M224: =((M$76*'Fuel Specs'!$E267+M$77*'Fuel Specs'!$E313)+(($M$80-1)/$M$80)*M185)*M$72 -> 0 | N224: lbmol/lbmol fuel
C227: 2.5.1.2 Average molar mass of OTSG exhaust | M227: =IFERROR(SUMPRODUCT(M213:M224,'Fuel Specs'!E148:E159)/SUM(M213:M224),0) -> 27.6583518 | N227: lb/lbmol exhaust
C229: 2.5.1.3 OTSG exhaust mole fraction CO2 | M229: =IFERROR(M215/SUM(M213:M224),0) -> 0.07990472045 | N229: lbmol CO2/lbmol exhaust
C231: 2.5.1.4 OTSG exhaust enthalpy | M231: =M213*'Input data'!$C$174+M214*'Input data'!$D$174+M215*'Input data'!$E$174+M216*('Input data'!$I$174)+M224*'Input data'!F174 -> 26029.68452 | N231: Btu/lbmol fuel | V231: Neglect latent heat of vaporization of air and exhaust H2O because working with LHV balance
B234: 2.5.2 OTSG exhaust properties - Crude liquid fuels
C235: 2.5.2.1 OTSG outlet exhaust moles per lbm of crude liquid fuel consumed | L235: N2, Ar | M235: =(M194+M167/2)*M73 -> 0 | N235: lbmol exhaust/lbm crude liquid fuel
L236: O2 | M236: =(M195-M164-1/4*M165-M166)*M73 -> 0 | N236: lbmol exhaust/lbm crude liquid fuel
L237: CO2 | M237: =(M196+M164)*M73 -> 0 | N237: lbmol exhaust/lbm crude liquid fuel
L238: H2O | M238: =(M197+M165/2)*M73 -> 0 | N238: lbmol exhaust/lbm crude liquid fuel
L239: CH4 | M239: =M198*M73 -> 0 | N239: lbmol exhaust/lbm crude liquid fuel
L240: C2H6 | M240: =M199*M73 -> 0 | N240: lbmol exhaust/lbm crude liquid fuel
L241: C3H8 | M241: =M200*M73 -> 0 | N241: lbmol exhaust/lbm crude liquid fuel
L242: n-C4H10 | M242: =M201*M73 -> 0 | N242: lbmol exhaust/lbm crude liquid fuel
L243: CO | M243: =M202*M73 -> 0 | N243: lbmol exhaust/lbm crude liquid fuel
L244: H2 | M244: =M203*M73 -> 0 | N244: lbmol exhaust/lbm crude liquid fuel
L245: H2S | M245: =M204*M73 -> 0 | N245: lbmol exhaust/lbm crude liquid fuel
L246: SO2 | M246: =(M205+M166)*M73 -> 0 | N246: lbmol exhaust/lbm crude liquid fuel
C249: 2.5.2.2 Average molar mass of OTSG exhaust | M249: =IFERROR(SUMPRODUCT(M235:M246,'Fuel Specs'!E148:E159)/SUM(M235:M246),0) -> 0 | N249: lb/lbmol exhaust
C251: 2.5.2.3 OTSG exhaust mole fraction CO2 | M251: =IFERROR(M237/SUM(M235:M246),0) -> 0 | N251: lbmol CO2/lbmol exhaust
C253: 2.5.2.4 OTSG exhaust enthalpy | M253: =M235*'Input data'!$C$174+M236*'Input data'!$D$174+M237*'Input data'!$E$174+M238*('Input data'!$I$174)+M246*'Input data'!F174 -> 0 | N253: Btu/lbm fuel | V253: Neglect latent heat of vaporization of air and exhaust H2O because working with LHV balance
A256: 2.6 OTSG efficiency
B257: 2.6.1 OTSG maximum available energy
C258: 2.6.1.1 OTSG available enthalpy - Gaseous fuel combustion | M258: =(M187+M157-M231)*M$72 -> 328977.8143 | N258: Btu/lbmol fuel
C259: 2.6.1.2 OTSG available enthalpy - Liquid fuel combustion | M259: =(M207+M161-M253)*M73 -> 0 | N259: Btu/lbm fuel
B261: 2.6.2 OTSG shell losses
C262: 2.6.2.1 OTSG shell loss - Gaseous fuels | M262: =(M87*M157)*M$72 -> 14200.29995 | N262: Btu/lbmol fuel
C263: 2.6.2.2 OTSG shell loss - Liquid fuels | M263: =(M87*M161)*M73 -> 0 | N263: Btu/lbm fuel
B266: 2.6.3 Enthalpy available for raising steam
C267: 2.6.3.1 Enthalpy available after exhaust and other loss - Gaseous fuels | M267: =MAX(M258-M262-M88,0) -> 309777.5144 | N267: Btu/lbmol fuel
C268: 2.6.3.2 Enthalpy available after exhaust and other loss - Liquid fuels | M268: =MAX((M259-M263-M89),0) -> 0 | N268: Btu/lbm fuel
B270: 2.6.4 OTSG efficiency | M270: =IF(M72=1,(M267/M157),(M268/M161)) -> 0.8725942843 | N270: Btu in steam per Btu fuel combusted (LHV)
A273: 2.7 OTSG energy consumption and emissions
... 152 more rows

Sheet Venting & Fugitives
A1: Supplemental Worksheet: Venting and Fugitives
A3: This supplemental worksheet calculates venting and fugitives emissions
A5: 1 Input assumptions
M7: Value | N7: Default | O7: Unit | Q7: Default reference | U7: User Reference | X7: Notes
A8: 1.1 Venting
B9: 1.1.1 Vented emissions of associated gas (substitute for flaring) | M9: =('User Inputs & Results'!J108/1000000)*'Production & Extraction'!M35 -> 0 | N9: =('User Inputs & Results'!K108/1000000)*'Production & Extraction'!N35 -> 0 | O9: MMscf/d | X9: Assumed zero unless reported otherwise by the operator
B10: 1.1.2 Vented emissions of gas dehydrator
C11: 1.1.2.1 Volume of gas dehydrator | M11: ='Gas Balance'!M23*365 -> 397.7433697 | N11: ='Gas Balance'!M23*365 -> 397.7433697 | O11: MMscf/yr | Q11: From gas balance
C12: 1.1.2.2 Emission factors
D13: 1.1.2.2.1 CO2 | M13: =N13 -> 0.0004392950808 | N13: ='Emissions Factors'!G39/1000000 -> 0.0004392950808 | O13: t/MMscf
D14: 1.1.2.2.2 CH4 | M14: =N14 -> 0.01544521568 | N14: ='Emissions Factors'!H39/1000000 -> 0.01544521568 | O14: t/MMscf
B16: 1.1.3 Vented CO2 emissions of gas AGR unit | M16: =IF('Surface Processing'!M58=1,1*('Gas Balance'!N30-(('Venting & Fugitives'!M114/'Input data'!D81)+('Venting & Fugitives'!E124+'Venting & Fugitives'!E139+'Venting & Fugitives'!E144)+('Venting & Fugitives'!E218-'Venting & Fugitives'!E178-'Venting & Fugitives'!E183))/1000000),0) -> 0.06470911946 | N16: =M16 -> 0.06470911946 | O16: MMscf/d | Q16: From gas balance | X16: Only amine treater is assumed. No replacement of solid materials.
B17: 1.1.4 Vented emissions of well workovers and cleanups
C18: 1.1.4.1 Workovers
D19: 1.1.4.1.1 Number of associated workovers per year | M19: =N19 -> 21 | N19: =ROUND((IF('User Inputs & Results'!J78<10,0,IF(AND('User Inputs & Results'!J78>=10,'User Inputs & Results'!J78<20),12889/156304520,IF(AND('User Inputs & Results'!J78>=20,'User Inputs & Results'!J78<30),5424/61524698,599/15649398)))*'Production & Extraction'!M35*365),0) -> 21 | O19: Event/yr | Q19: ARB (2007), Tables 2-3 and 4-8
D20: 1.1.4.1.2 Emission factors
E21: 1.1.4.1.2.1 CO2 | M21: =N21 -> 0.01502504174 | N21: =IF('User Inputs & Results'!J78<10,'Emissions Factors'!G24,IF(AND('User Inputs & Results'!J78>=10,'User Inputs & Results'!J78<20),'Emissions Factors'!G25,IF(AND('User Inputs & Results'!J78>=20,'User Inputs & Results'!J78<30),'Emissions Factors'!G26,'Emissions Factors'!G27)))/1000000 -> 0.01502504174 | O21: t/Event
E22: 1.1.4.1.2.2 CH4 | M22: =N22 -> 0.1085141903 | N22: =IF('User Inputs & Results'!J78<10,'Emissions Factors'!H24,IF(AND('User Inputs & Results'!J78>=10,'User Inputs & Results'!J78<20),'Emissions Factors'!H25,IF(AND('User Inputs & Results'!J78>=20,'User Inputs & Results'!J78<30),'Emissions Factors'!H26,'Emissions Factors'!H27)))/1000000 -> 0.1085141903 | O22: t/Event
C23: 1.1.4.2 Cleanups
D24: 1.1.4.2.1 Number of associated cleanups per year | M24: =N24 -> 7 | N24: =ROUND((IF('User Inputs & Results'!J78<10,0,IF(AND('User Inputs & Results'!J78>=10,'User Inputs & Results'!J78<20),956/156304520,IF(AND('User Inputs & Results'!J78>=20,'User Inputs & Results'!J78<30),1977/61524698,187/15649398)))*'Production & Extraction'!M35*365),0) -> 7 | O24: Event/yr | Q24: ARB (2007), Tables 2-3 and 4-10
D25: 1.1.4.2.2 Emission factors
E26: 1.1.4.2.2.1 CO2 | M26: =N26 -> 0.01604278075 | N26: =IF('User Inputs & Results'!J78<10,'Emissions Factors'!G29,IF(AND('User Inputs & Results'!J78>=10,'User Inputs & Results'!J78<20),'Emissions Factors'!G30,IF(AND('User Inputs & Results'!J78>=20,'User Inputs & Results'!J78<30),'Emissions Factors'!G31,'Emissions Factors'!G32)))/1000000 -> 0.01604278075 | O26: t/Event
E27: 1.1.4.2.2.2 CH4 | M27: =N27 -> 0.1122994652 | N27: =IF('User Inputs & Results'!J78<10,'Emissions Factors'!H29,IF(AND('User Inputs & Results'!J78>=10,'User Inputs & Results'!J78<20),'Emissions Factors'!H30,IF(AND('User Inputs & Results'!J78>=20,'User Inputs & Results'!J78<30),'Emissions Factors'!H31,'Emissions Factors'!H32)))/1000000 -> 0.1122994652 | O27: t/Event
B28: 1.1.5 Vented emissions of compressors
C29: 1.1.5.1 Startups
D30: 1.1.5.1.1 Number of associated compressors | M30: =N30 -> 1.502919996 | N30: =(0.6*1071/234093299)*'Production & Extraction'!M35*365 -> 1.502919996 | O30: unit | Q30: ARB (2007), Tables 2-3 and 15-1
D31: 1.1.5.1.2 Emission factors
E32: 1.1.5.1.2.1 CO2 | M32: =N32 -> 0.003734827264 | N32: ='Emissions Factors'!G34/1000000 -> 0.003734827264 | O32: t/unit-yr
E33: 1.1.5.1.2.2 CH4 | M33: =N33 -> 0.06442577031 | N33: ='Emissions Factors'!H34/1000000 -> 0.06442577031 | O33: t/unit-yr
C34: 1.1.5.2 Blowdowns
D35: 1.1.5.2.1 Number of associated compressors | M35: =N35 -> 1.502919996 | N35: =N30 -> 1.502919996 | O35: unit | Q35: ARB (2007), Tables 2-3 and 15-1
D36: 1.1.5.2.2 Emission factors
E37: 1.1.5.2.2.1 CO2 | M37: =N37 -> 0.1605975724 | N37: ='Emissions Factors'!G35/1000000 -> 0.1605975724 | O37: t/unit-yr
E38: 1.1.5.2.2.2 CH4 | M38: =N38 -> 3.02334267 | N38: ='Emissions Factors'!H35/1000000 -> 3.02334267 | O38: t/unit-yr
B39: 1.1.6 Vented emissions of gathering pipelines
C40: 1.1.6.1 Maintenance
D41: 1.1.6.1.1 Pipeline miles | M41: =N41 -> 2.848671888 | N41: =((0.75*1124+321+54)/234093299)*'Production & Extraction'!M35*365 -> 2.848671888 | O41: mile | Q41: ARB (2007), Tables 2-3 and 16-1
D42: 1.1.6.1.2 Emission factors
E43: 1.1.6.1.2.1 CO2 | M43: =N43 -> 1.158605664 | N43: ='Emissions Factors'!G37/1000000 -> 1.158605664 | O43: t/mile-yr
E44: 1.1.6.1.2.2 CH4 | M44: =N44 -> 1.08496732 | N44: ='Emissions Factors'!H37/1000000 -> 1.08496732 | O44: t/mile-yr
C45: 1.1.7.1 Pigging
D46: 1.1.7.1.1 Number of associated openings | M46: =N46 -> 1.988457175 | N46: =(0.6*1417/234093299)*'Production & Extraction'!M35*365 -> 1.988457175 | O46: Event | Q46: ARB (2007), Tables 2-3 and 16-3 | X46: Low number events and units are not rounded
D47: 1.1.7.1.2 Emission factors
E48: 1.1.7.1.2.1 CO2 | M48: =N48 -> 0.07339449541 | N48: ='Emissions Factors'!G38/1000000 -> 0.07339449541 | O48: t/Event
E49: 1.1.7.1.2.2 CH4 | M49: =N49 -> 0.00352858151 | N49: ='Emissions Factors'!H38/1000000 -> 0.00352858151 | O49: t/Event
A51: 1.2 Fugitives
B52: 1.2.1 Fugitive emissions of active wells
C53: 1.2.1.1 Number of associated active wells | M53: ='User Inputs & Results'!J71 -> 8 | N53: ='User Inputs & Results'!K71 -> 8 | O53: unit | Q53: ARB (2007), Tables 2-3 and 4-5
C54: 1.2.1.2 Emission factors
D55: 1.2.1.2.2.1 CO2 | M55: =N55 -> 0.01436130008 | N55: =IF('User Inputs & Results'!$J$78<10,'Emissions Factors'!G50,IF(AND('User Inputs & Results'!$J$78>=10,'User Inputs & Results'!$J$78<20),'Emissions Factors'!G51,IF(AND('User Inputs & Results'!$J$78>=20,'User Inputs & Results'!$J$78<30),'Emissions Factors'!G52,'Emissions Factors'!G53)))/1000000 -> 0.01436130008 | O55: t/unit-yr
D56: 1.2.1.2.2.2 CH4 | M56: =N56 -> 0.1050642479 | N56: =IF('User Inputs & Results'!$J$78<10,'Emissions Factors'!H50,IF(AND('User Inputs & Results'!$J$78>=10,'User Inputs & Results'!$J$78<20),'Emissions Factors'!H51,IF(AND('User Inputs & Results'!$J$78>=20,'User Inputs & Results'!$J$78<30),'Emissions Factors'!H52,'Emissions Factors'!H53)))/1000000 -> 0.1050642479 | O56: t/unit-yr
B57: 1.2.2 Fugitive emissions of well cellars
C58: 1.2.2.1 Number of associated well cellars | M58: =M53 -> 8 | N58: =N53 -> 8 | O58: unit | Q58: ARB (2007), Tables 2-3 and 4-7
C59: 1.2.2.2 Emission factors
D60: 1.2.2.2.1 CO2 | M60: =N60 -> 0 | N60: 0 | O60: t/unit-yr
D61: 1.2.2.2.2 CH4 | M61: =N61 -> 0.170202952 | N61: =IF('User Inputs & Results'!$J$78<10,'Emissions Factors'!H55,IF(AND('User Inputs & Results'!$J$78>=10,'User Inputs & Results'!$J$78<20),'Emissions Factors'!H56,IF(AND('User Inputs & Results'!$J$78>=20,'User Inputs & Results'!$J$78<30),'Emissions Factors'!H57,'Emissions Factors'!H58)))/1000000 -> 0.170202952 | O61: t/unit-yr
B62: 1.2.3 Fugitive emissions of gas dehydrator
C63: 1.2.2.3.1 Volume of gas dehydrator | M63: ='Gas Balance'!M23*365 -> 397.7433697 | N63: =M63 -> 397.7433697 | O63: MMscf/yr
C64: 1.2.2.3.2 Emission factors
D65: 1.2.2.3.2.1 CO2 | M65: =N65 -> 0.0237932485 | N65: ='Emissions Factors'!G59/1000000 -> 0.0237932485 | O65: t/MMscf
D66: 1.2.2.3.2.2 CH4 | M66: =N66 -> 0.01540670605 | N66: ='Emissions Factors'!H59/1000000 -> 0.01540670605 | O66: t/MMscf
B67: 1.2.4 Fugitive emissions of AGR unit
C68: 1.2.4.1 Volume of AGR unit | M68: ='Gas Balance'!M23*365 -> 397.7433697 | N68: ='Gas Balance'!M23*365 -> 397.7433697 | O68: MMscf/yr | Q68: From gas balance
C69: 1.2.4.2 Emission factors
D70: 1.2.4.2.1 CO2 | M70: =N70 -> 0 | N70: ='Emissions Factors'!G60/1000000 -> 0 | O70: t/MMscf
D71: 1.2.4.2.2 CH4 | M71: =N71 -> 0.01956583145 | N71: ='Emissions Factors'!H60/1000000 -> 0.01956583145 | O71: t/MMscf
B72: 1.2.5 Fugitive emissions of gathering pipelines
C73: 1.2.5.1 Pipeline miles | M73: =N73 -> 2.848671888 | N73: =N41 -> 2.848671888 | O73: mile
C74: 1.2.5.2 Emission factors
D75: 1.2.5.2.1 CO2 | M75: =N75 -> 0.1424836601 | N75: ='Emissions Factors'!G61/1000000 -> 0.1424836601 | O75: t/mile-yr
D76: 1.2.5.2.2 CH4 | M76: =N76 -> 0.3777777778 | N76: ='Emissions Factors'!H61/1000000 -> 0.3777777778 | O76: t/mile-yr
B77: 1.2.6 Fugitive emissions of separators
C78: 1.2.6.1 Number of associated separators | M78: =N78 -> 8 | N78: =ROUND(((0.75*379+3228+40+5)/234093299)*'Production & Extraction'!M35*365,0) -> 8 | O78: unit | Q78: ARB (2007), Tables 2-3 and 17-1
C79: 1.2.6.2 Emission factors
D80: 1.2.6.2.1 CO2 | M80: =N80 -> 0.002381983543 | N80: ='Emissions Factors'!G62/1000000 -> 0.002381983543 | O80: t/unit-yr
D81: 1.2.6.2.2 CH4 | M81: =N81 -> 0.03681247293 | N81: ='Emissions Factors'!H62/1000000 -> 0.03681247293 | O81: t/unit-yr
B82: 1.2.7 Fugitive emissions of sumps and pits
C83: 1.2.6.1 Number of associated sumps and pits | M83: =N83 -> 0.5847027684 | N83: =(250/234093299)*'Production & Extraction'!M35*365 -> 0.5847027684 | O83: unit | Q83: ARB (2007), Tables 2-3 and 18-1
C84: 1.2.6.2 Emission factors
D85: 1.2.6.2.1 CO2 | M85: =N85 -> 0 | N85: 0 | O85: t/unit-yr
D86: 1.2.6.2.2 CH4 | M86: =N86 -> 1.056 | N86: ='Emissions Factors'!H63/1000000 -> 1.056 | O86: t/unit-yr
B87: 1.2.8 Fugitive emissions of components | X87: The percentage of components by type is similar in different facilities such as petroleum production and gas processing [API (1993), Publ. 4589, p. W-4, Table 4]
C88: 1.2.8.1 Valves (not including open-ends)
D89: 1.2.8.1.1 Number of valves | M89: =N89 -> 6193 | N89: =ROUND(((0.6*471916+963565+1401237)/234093299)*'Production & Extraction'!M35*365,0) -> 6193 | O89: unit | Q89: ARB (2007), Tables 2-3 and 8-1
D90: 1.2.8.1.2 Percentage leaking | M90: 15 | N90: 15 | O90: %
C91: 1.2.8.2 Connectors (other than flanges)
D92: 1.2.8.2.1 Number of connectors | M92: =N92 -> 20643 | N92: =ROUND((N89+N98)*3,0) -> 20643 | O92: unit | Q92: API (1996), Publ. 4638, p.14 | X92: The number of connectors is about three times the number of valves
D93: 1.2.8.2.2 Percentage leaking | M93: 15 | N93: 15 | O93: %
C94: 1.2.8.3 Flanges
D95: 1.2.8.2.3.1 Number of flanges | M95: =N95 -> 6881 | N95: =ROUND(N89+N98,0) -> 6881 | O95: unit | Q95: API (1996), Publ. 4638, p.14 | X95: The number of flanges is usually about the same as the number of valves
D96: 1.2.8.2.3.2 Percentage leaking | M96: 15 | N96: 15 | O96: %
C97: 1.2.8.4 Open-ended lines (also called open-ended valves)
D98: 1.2.8.4.1 Number of open-ends | M98: =N98 -> 688 | N98: =ROUND(N89/9,0) -> 688 | O98: unit | Q98: API (1996), Publ. 4638, p.14 | X98: About 10% of all valves have one side that can be opened to the atmosphere (open-ends)
D99: 1.2.8.4.2 Percentage leaking | M99: 15 | N99: 15 | O99: %
C100: 1.2.8.5 Pump seals
D101: 1.2.8.5.1 Number of pump seals | M101: =N101 -> 113 | N101: =ROUND(((0.6*8049+8441+35174)/234093299)*'Production & Extraction'!M35*365,0) -> 113 | O101: unit | Q101: ARB (2007), Tables 2-3 and 8-1
D102: 1.2.8.5.2 Percentage leaking | M102: 15 | N102: 15 | O102: %
C103: 1.2.8.6 Others (compressor seals, diaphragms, drains, dump arms, pressure relief valves, etc)
D104: 1.2.8.6.1 Number of other components | M104: =N104 -> 344 | N104: =ROUND(0.05*(N89+N98),0) -> 344 | O104: unit | Q104: API (1996), Publ. 4638, p.14 | X104: The number of other components is approximately 5% of the number of valves
D105: 1.2.8.6.2 Percentage leaking | M105: 15 | N105: 15 | O105: %
A106: 1.3 Vapor recovery
B107: 1.3.1 Percentage of total vents and fugitives recovered | M107: 0 | N107: 0 | O107: % | X107: Adjusted based on the users knowledge of production and processing facilities or judgment based on the environmental regulations in the field location
A109: 2 Calculations
M111: Value | N111: Unit | O111: Equation | AC111: Notes | AP111: Reference
A112: 2.1 Venting emissions
B113: 2.1.1 GHG emissions from associated gas venting as a flaring substitute | M113: =(M114+M115*'Input data'!C71+M116*'Input data'!C72)/1000000 -> 0 | N113: tCO2eq/d
C114: 3.1.1.1 CO2 emissions | M114: =M9*1000000*'Gas Balance'!E30/100*'Input data'!D81 -> 0 | N114: g/d
C115: 3.1.1.2 CH4 emissions | M115: =M9*1000000*'Gas Balance'!E31/100*'Input data'!D82 -> 0 | N115: g/d
C116: 3.1.1.3 VOC emissions | M116: =M9*1000000*('Gas Balance'!E32/100*'Input data'!D83+'Gas Balance'!E33/100*'Input data'!D84+'Gas Balance'!E34/100*'Input data'!D85) -> 0 | N116: g/d
B118: 2.1.2 GHG emissions from other venting:
B121: Source | E121: CO2 | F121: CH4 | G121: VOC
B122: Gas dehydrator
C123: Weight (g/d) | E123: =M11*M13*1000000/365 -> 478.7033034 | F123: =M11*M14*1000000/365 -> 16830.77296 | G123: 0
C124: Volume (scf/d) | E124: =E123/'Input data'!D81 -> 8.552395835 | F124: =F123/'Input data'!D82 -> 830.1050714 | G124: 0
C125: HHV (Btu/d) | E125: 0 | F125: =F124*'Fuel Specs'!G132 -> 840896.4373 | G125: 0
C126: LHV (Btu/d) | E126: 0 | F126: =F124*'Fuel Specs'!H132 -> 757885.9302 | G126: 0
B127: AGR unit
C128: Weight (g/d) | E128: =E129*'Input data'!D81 -> 3621963.932 | F128: 0 | G128: 0
C129: Volume (scf/d) | E129: =M16*1000000 -> 64709.11946 | F129: 0 | G129: 0
C130: HHV (Btu/d) | E130: 0 | F130: 0 | G130: 0
C131: LHV (Btu/d) | E131: 0 | F131: 0 | G131: 0
B132: Workovers & Cleanups
C133: Weight (g/d) | E133: =(M19*M21+M24*M26)*1000000/365 -> 1172.124224 | F133: =(M19*M22+M24*M27)*1000000/365 -> 8396.970557 | G133: 0
C134: Volume (scf/d) | E134: =E133/'Input data'!D81 -> 20.94088397 | F134: =F133/'Input data'!D82 -> 414.1442499 | G134: 0
C135: HHV (Btu/d) | E135: 0 | F135: =F134*'Fuel Specs'!G132 -> 419528.1252 | G135: 0
C136: LHV (Btu/d) | E136: 0 | F136: =F134*'Fuel Specs'!H132 -> 378113.7002 | G136: 0
B137: Compressors
C138: Weight (g/d) | E138: =(M30*M32+M35*M37)*1000000/365 -> 676.653286 | F138: =(M30*M33+M35*M38)*1000000/365 -> 12714.16146 | G138: 0
C139: Volume (scf/d) | E139: =E138/'Input data'!D81 -> 12.08892168 | F139: =F138/'Input data'!D82 -> 627.0710163 | G139: 0
C140: HHV (Btu/d) | E140: 0 | F140: =F139*'Fuel Specs'!G132 -> 635222.9395 | G140: 0
C141: LHV (Btu/d) | E141: 0 | F141: =F139*'Fuel Specs'!H132 -> 572515.8378 | G141: 0
B142: Gathering pipelines
C143: Weight (g/d) | E143: =(M41*M43+M46*M48)*1000000/365 -> 9442.271771 | F143: =(M41*M44+M46*M49)*1000000/365 -> 8486.937912 | G143: 0
C144: Volume (scf/d) | E144: =E143/'Input data'!D81 -> 168.6933121 | F144: =F143/'Input data'!D82 -> 418.5815005 | G144: 0
C145: HHV (Btu/d) | E145: 0 | F145: =F144*'Fuel Specs'!G132 -> 424023.06 | G145: 0
C146: LHV (Btu/d) | E146: 0 | F146: =F144*'Fuel Specs'!H132 -> 382164.9099 | G146: 0
B147: Total
C148: Weight (g/d) | E148: =E123+E128+E133+E138+E143 -> 3633733.684 | F148: =F123+F133+F138+F143 -> 46428.84289 | G148: 0
C149: Volume (scf/d) | E149: =E124+E129+E134+E139+E144 -> 64919.39497 | F149: =F124+F134+F139+F144 -> 2289.901838 | G149: 0
C150: HHV (Btu/d) | E150: 0 | F150: =F125+F135+F140+F145 -> 2319670.562 | G150: 0
C151: LHV (Btu/d) | E151: 0 | F151: =F126+F136+F141+F146 -> 2090680.378 | G151: 0
B154: 2.1.3 GHG emissions from storage tanks
B157: Source | E157: CO2 | F157: CH4 | G157: VOC
B158: Storage tanks
C159: Weight (g/d) | E159: 0 | F159: ='Emissions Factors'!H40*'Production & Extraction'!M35 -> 73800 | G159: ='Emissions Factors'!I40*'Production & Extraction'!M35 -> 218627.5492
C160: Volume (scf/d) | E160: 0 | F160: =F159/'Input data'!D82 -> 3639.865763 | G160: =(0.2049*(F159+G159)/'Input data'!D83)+(0.28*(F159+G159)/'Input data'!D84)+((0.0683+0.1092)*(F159+G159)/'Input data'!D85) -> 3724.942481
C161: HHV (Btu/d) | E161: 0 | F161: =F160*'Fuel Specs'!G132 -> 3687184.018 | G161: =(0.2049*(F159+G159)/'Input data'!D83)*'Fuel Specs'!G133+(0.28*(F159+G159)/'Input data'!D84)*'Fuel Specs'!G134+((0.0683+0.1092)*(F159+G159)/'Input data'!D85)*'Fuel Specs'!G135 -> 8974916.613
C162: LHV (Btu/d) | E162: 0 | F162: =F160*'Fuel Specs'!H132 -> 3323197.442 | G162: =(0.2049*(F159+G159)/'Input data'!D83)*'Fuel Specs'!H133+(0.28*(F159+G159)/'Input data'!D84)*'Fuel Specs'!H134+((0.0683+0.1092)*(F159+G159)/'Input data'!D85)*'Fuel Specs'!H135 -> 8257397.004
B163: Total
C164: Weight (g/d) | E164: 0 | F164: =F159 -> 73800 | G164: 218627.5492
C165: Volume (scf/d) | E165: 0 | F165: 3639.865763 | G165: 3724.942481
C166: HHV (Btu/d) | E166: 0 | F166: 3687184.018 | G166: 8974916.613
C167: LHV (Btu/d) | E167: 0 | F167: 3323197.442 | G167: 8257397.004
A170: 2.2 Fugitive emissions
B172: 2.2.1 GHG emissions from various fugitive sources:
B175: Source | E175: CO2 | F175: CH4 | G175: VOC | H175: Note(s):
B176: Active wells
C177: Weight (g/d) | E177: =M53*M55*1000000/365 -> 314.7682208 | F177: =M53*M56*1000000/365 -> 2302.778037 | G177: 0
C178: Volume (scf/d) | E178: =E177/'Input data'!D81 -> 5.623571849 | F178: =F177/'Input data'!D82 -> 113.5745655 | G178: 0
C179: HHV (Btu/d) | E179: 0 | F179: =F178*'Fuel Specs'!G132 -> 115051.0349 | G179: 0
C180: LHV (Btu/d) | E180: 0 | F180: =F178*'Fuel Specs'!H132 -> 103693.5783 | G180: 0
B181: Well cellars
C182: Weight (g/d) | E182: =M58*M60*1000000/365 -> 0 | F182: =M58*M61*1000000/365 -> 3730.475661 | G182: 0
C183: Volume (scf/d) | E183: =E182/'Input data'!D81 -> 0 | F183: =F182/'Input data'!D82 -> 183.989575 | G183: 0
C184: HHV (Btu/d) | E184: 0 | F184: =F183*'Fuel Specs'!G132 -> 186381.4395 | G184: 0
C185: LHV (Btu/d) | E185: 0 | F185: =F183*'Fuel Specs'!H132 -> 167982.482 | G185: 0
B186: Gas dehydrator
C187: Weight (g/d) | E187: =M63*M65*1000000/365 -> 25927.68996 | F187: =M63*M66*1000000/365 -> 16788.80871 | G187: 0
C188: Volume (scf/d) | E188: =E187/'Input data'!D81 -> 463.217751 | F188: =F187/'Input data'!D82 -> 828.0353662 | G188: 0
C189: HHV (Btu/d) | E189: 0 | F189: =F188*'Fuel Specs'!G132 -> 838799.826 | G189: 0
C190: LHV (Btu/d) | E190: 0 | F190: =F188*'Fuel Specs'!H132 -> 755996.2894 | G190: 0
B191: AGR unit
C192: Weight (g/d) | E192: =M68*M70*1000000/365 -> 0 | F192: =M68*M71*1000000/365 -> 21321.04036 | G192: 0
C193: Volume (scf/d) | E193: =E192/'Input data'!D81 -> 0 | F193: =F192/'Input data'!D82 -> 1051.568087 | G193: 0
C194: HHV (Btu/d) | E194: 0 | F194: =F193*'Fuel Specs'!G132 -> 1065238.472 | G194: 0
C195: LHV (Btu/d) | E195: 0 | F195: =F193*'Fuel Specs'!H132 -> 960081.6635 | G195: 0
B196: Gathering pipelines
C197: Weight (g/d) | E197: =M73*M75*1000000/365 -> 1112.025198 | F197: =M73*M76*1000000/365 -> 2948.397083 | G197: 0
C198: Volume (scf/d) | E198: =E197/'Input data'!D81 -> 19.8671695 | F198: =F197/'Input data'!D82 -> 145.4169322 | G198: 0
C199: HHV (Btu/d) | E199: 0 | F199: =F198*'Fuel Specs'!G132 -> 147307.3524 | G199: 0
C200: LHV (Btu/d) | E200: 0 | F200: =F198*'Fuel Specs'!H132 -> 132765.6591 | G200: 0
B201: Separators
C202: Weight (g/d) | E202: =M78*M80*1000000/365 -> 52.20785847 | F202: =M78*M81*1000000/365 -> 806.8487218 | G202: 0
C203: Volume (scf/d) | E203: =E202/'Input data'!D81 -> 0.9327327975 | F203: =F202/'Input data'!D82 -> 39.79432301 | G203: 0
C204: HHV (Btu/d) | E204: 0 | F204: =F203*'Fuel Specs'!G132 -> 40311.64921 | G204: 0
C205: LHV (Btu/d) | E205: 0 | F205: =F203*'Fuel Specs'!H132 -> 36332.21691 | G205: 0
B206: Sumps and pits
C207: Weight (g/d) | E207: =M83*M85*1000000/365 -> 0 | F207: =M83*M86*1000000/365 -> 1691.633215 | G207: 0
C208: Volume (scf/d) | E208: =E207/'Input data'!D81 -> 0 | F208: =F207/'Input data'!D82 -> 83.43249082 | G208: 0
C209: HHV (Btu/d) | E209: 0 | F209: =F208*'Fuel Specs'!G132 -> 84517.1132 | G209: 0
C210: LHV (Btu/d) | E210: 0 | F210: =F208*'Fuel Specs'!H132 -> 76173.86412 | G210: 0
B211: Components
C212: Weight (g/d) | E212: 0 | F212: =((0.75*M89*((100-M90)/100*IF('Production & Extraction'!M32<=20,'Emissions Factors'!H67,'Emissions Factors'!H68)+M90/100*'Emissions Factors'!H93)+0.25*M89*((100-M90)/100*'Emissions Factors'!H66+M90/100*'Emissions Factors'!H91))+(0.75*M92*((100-M93)/100*IF('Production & Extraction'!M32<=20,'Emissions Factors'!H71,'Emissions Factors'!H72)+M93/100*'Emissions Factors'!H97)+0.25*M92*((100-M93)/100*'Emissions Factors'!H70+M93/100*'Emissions Factors'!H95))+(0.75*M95*((100-M96)/100*IF('Production & Extraction'!M32<=20,'Emissions Factors'!H75,'Emissions Factors'!H76)+M96/100*'Emissions Factors'!H101)+0.25*M95*((100-M96)/100*'Emissions Factors'!H74+M96/100*'Emissions Factors'!H99))+(0.75*M98*((100-M99)/100*IF('Production & Extraction'!M32<=20,'Emissions Factors'!H79,'Emissions Factors'!H80)+M99/100*IF('Production & Extraction'!M32<=20,'Emissions Factors'!H104,'Emissions Factors'!H105))+0.25*M98*((100-M99)/100*'Emissions Factors'!H78+M99/100*'Emissions Factors'!H103))+(0.75*M101*((100-M102)/100*'Emissions Factors'!H84+M90/100*'Emissions Factors'!H109)+0.25*M101*((100-M102)/100*'Emissions Factors'!H82+M102/100*'Emissions Factors'!H107))+(0.75*M104*((100-M105)/100*IF('Production & Extraction'!M32<=20,'Emissions Factors'!H86,'Emissions Factors'!H87)+M105/100*'Emissions Factors'!H113)+0.25*M104*((100-M105)/100*'Emissions Factors'!H86+M105/100*'Emissions Factors'!H111)))/1000000 -> 1396.873962 | G212: =((0.75*M89*((100-M90)/100*IF('Production & Extraction'!M32<=20,'Emissions Factors'!I67,'Emissions Factors'!I68)+M90/100*'Emissions Factors'!I93)+0.25*M89*((100-M90)/100*'Emissions Factors'!I66+M90/100*'Emissions Factors'!I91))+(0.75*M92*((100-M93)/100*IF('Production & Extraction'!M32<=20,'Emissions Factors'!I71,'Emissions Factors'!I72)+M93/100*'Emissions Factors'!I97)+0.25*M92*((100-M93)/100*'Emissions Factors'!I70+M93/100*'Emissions Factors'!I95))+(0.75*M95*((100-M96)/100*IF('Production & Extraction'!M32<=20,'Emissions Factors'!I75,'Emissions Factors'!I76)+M96/100*'Emissions Factors'!I101)+0.25*M95*((100-M96)/100*'Emissions Factors'!I74+M96/100*'Emissions Factors'!I99))+(0.75*M98*((100-M99)/100*IF('Production & Extraction'!M32<=20,'Emissions Factors'!I79,'Emissions Factors'!I80)+M99/100*IF('Production & Extraction'!M32<=20,'Emissions Factors'!I104,'Emissions Factors'!I105))+0.25*M98*((100-M99)/100*'Emissions Factors'!I78+M99/100*'Emissions Factors'!I103))+(0.75*M101*((100-M102)/100*'Emissions Factors'!I84+M90/100*'Emissions Factors'!I109)+0.25*M101*((100-M102)/100*'Emissions Factors'!I82+M102/100*'Emissions Factors'!I107))+(0.75*M104*((100-M105)/100*IF('Production & Extraction'!M32<=20,'Emissions Factors'!I86,'Emissions Factors'!I87)+M105/100*'Emissions Factors'!I113)+0.25*M104*((100-M105)/100*'Emissions Factors'!I86+M105/100*'Emissions Factors'!I111)))/1000000 -> 581.6066662 | H212: Assume 75% of valves are in crude service and 25% are in gas service
C213: Volume (scf/d) | E213: 0 | F213: =F212/'Input data'!D82 -> 68.89476569 | G213: =G212*(0.31/'Input data'!D83+0.42/'Input data'!D84+0.27/'Input data'!D85) -> 11.18370884 | H213: VOC speciation (31% C2, 42% C3 and 27% C4) is assumed based on a ratio generated from fugitives gas composition in Table ES-1, API (1998), Publ. 4683
C214: HHV (Btu/d) | E214: 0 | F214: =F213*'Fuel Specs'!G132 -> 69790.39764 | G214: =G212*('Fuel Specs'!G133*0.31/'Input data'!D83+'Fuel Specs'!G134*0.42/'Input data'!D84+'Fuel Specs'!G135*0.27/'Input data'!D85) -> 26950.98241
C215: LHV (Btu/d) | E215: 0 | F215: =F213*'Fuel Specs'!H132 -> 62900.92108 | G215: =G212*('Fuel Specs'!H133*0.31/'Input data'!D83+'Fuel Specs'!H134*0.42/'Input data'!D84+'Fuel Specs'!H135*0.27/'Input data'!D85) -> 24796.39888
B216: Total
C217: Weight (g/d) | E217: =E177+E182+E187+E192+E197+E202+E207+E212 -> 27406.69123 | F217: 50986.85575 | G217: 581.6066662
C218: Volume (scf/d) | E218: 489.6412252 | F218: 2514.706106 | G218: 11.18370884
C219: HHV (Btu/d) | E219: 0 | F219: =F179+F184+F189+F194+F199+F204+F209+F214 -> 2547397.285 | G219: =G179+G184+G189+G194+G199+G204+G209+G214 -> 26950.98241
... 26 more rows

Sheet Flaring
A1: Supplemental Worksheet: Flaring
A3: This supplemental worksheet calculates associated gas flaring emissions
A6: 1 General inputs
M8: Value | N8: Default | O8: Unit | P8: User reference | Q8: Default reference | R8: Notes
A9: 1.1 Data availability for detailed analysis
B10: 1.1.1 Do you have sufficient data to perform detailed flaring efficiency calculations? | M10: 0 | N10: 0 | R10: =IF(M10=1, "Fill out the boxes below with your data to obtain a calculated efficiency", "The default flaring efficiency is 95%") -> The default flaring efficiency is 95%
C11: 0 = No, I do not have data
C12: 1 = Yes, I have detailed field-specific data (see requirements to right) | R12: Data required: Oil production [bbl/d], volume of gas flared [scf/bbl], number of flares [#], number of flare tips [#] flare tip diameter [in], and average wind speed [mph]
A13: 1.2 Reference year for default flaring intensity | M13: 2011 | N13: 2011 | O13: Year
B14: Choose 2010 or 2011
A15: 1.3 Volume of gas flared | M15: ='User Inputs & Results'!J107*'User Inputs & Results'!J70/1000000 -> 0.2722921377 | N15: =IF(M13=2011,VLOOKUP('User Inputs & Results'!J66,B93:K151,10,FALSE)*'Production & Extraction'!M35,VLOOKUP('User Inputs & Results'!J66,B93:K151,6,FALSE)*'Production & Extraction'!M35) -> 0.2722921377 | O15: MMscf/d
A16: 1.4 LHV of gas | M16: =N16 -> 45.54464528 | N16: ='Fuel Specs'!P132*'Gas Balance'!E31/100+('Gas Balance'!E32/100)*'Fuel Specs'!P133+('Fuel Specs'!P134)*('Gas Balance'!E33/100)+'Fuel Specs'!P135*('Gas Balance'!E34/100)+'Gas Balance'!E35/100*'Fuel Specs'!P138 -> 45.54464528 | O16: MJ/kg | R16: Calculated from Gas Balance and Fuel Specs
M17: =N17 -> 870.559003 | N17: ='Fuel Specs'!H132*'Gas Balance'!E31/100+('Gas Balance'!E32/100)*'Fuel Specs'!H133+('Fuel Specs'!P134)*('Gas Balance'!E33/100)+'Fuel Specs'!H135*('Gas Balance'!E34/100)+'Gas Balance'!E35/100*'Fuel Specs'!H138 -> 870.559003 | O17: btu/scf | R17: Calculated from Gas Balance and Fuel Specs
A19: 2 Input data for detailed flaring analysis
A20: Input data must be entered in order to compute gas exit velocity
A22: 2.1 Number of flare tips | M22: =IF(M23<>"",IF(M25="","",M24*M25),"") ->  | O22: Flare tips
B23: 2.1.2 Number of wells per flare | O23: Wells/flare
B24: 2.1.3 Number of flares | M24: =IF(M23="","",'User Inputs & Results'!$J$71/M23) ->  | O24: Flares | R24: The number of flares is found by dividing the number of wells by the number of flares per well.
B25: 2.1.4 Flare tips per flare | O25: Tips per flare
A27: 2.2 Flare tip diameter and gas exit velocity
B28: 2.2.1 Is the flare tip diameter fixed or variable?
C29: 0 = Fixed, 1 = Variable
B31: 2.2.2 Flares with variable tip diameter | R31: Engineered flare tips can have variable orifice diameter depending on the gas flow rate. For example see: http://www.steffes.com/oil-field-products/engineered-flare-system.html
C32: 2.2.2.1 Fixed design exit velocity | O32: ft/sec | Q32: EPA 60.18 40 CFR Ch.1 (2010) | R32: =IF(N17>1000, "The EPA regulates the max velocity of onshore U.S. flares. The max velocity is regulated to 400 feet/sec for gas with a heating value of above 1,000 btu/scf", "The EPA regulates the max velocity of onshore U.S. flares. The max velocity is regulated to 122 feet/sec for gas with a heating value of between 200 and 1,000 btu/scf") -> The EPA regulates the max velocity of onshore U.S. flares. The max velocity is regulated to 122 feet/sec for gas with a heating value of between 200 and 1,000 btu/scf
C33: 2.2.2.2 Calculated flare tip diameter | M33: =IF(ISERROR(SQRT(((M15/M22)*('Input data'!E61/'Input data'!E62))/(M32*'Input data'!E11*PI()))/('Input data'!E12*0.5))=TRUE,"NA",SQRT(((M15/M22)*('Input data'!E61/'Input data'!E62))/(M32*'Input data'!E11*PI()))/('Input data'!E12*0.5)) -> NA | O33: in
B35: 2.2.3 Flares with fixed tip diameter
C36: 2.2.3.2 Fixed flare tip diameter | O36: in
C37: 2.2.3.3 Calculated flare tip exit velocity | M37: =IF(ISERROR(((M15/M22)*'Input data'!E61/'Input data'!E62)/(PI()*(0.5*M36*'Input data'!E12)^2))=TRUE,"NA",(((M15/(M22))*'Input data'!E61/'Input data'!E62))/((PI()*((0.5*(M36*'Input data'!E12))^2)))) -> NA | O37: m/sec
B39: 2.2.4 Resulting flare tip diameter | M39: =IF(M28=0,M36,M33) -> 0 | O39: in
B40: 2.2.5 Resulting flare tip exit velocity | M40: =IF(M28=0,M37,M32/'Input data'!E10) -> NA | O40: m/sec | Q40: Johnson and Kostiuk (2002) experimental jet velocity conditions. | R40: =IF(M10=1,IF(M40>4,"Warning: gas exit velocity is outside of model limits. Efficiency result could be erroneous. Proceed with caution. Model exit velocity limits: 0.5 to 4 m/s",IF(M40<0.5,"Warning: gas exit velocity is outside of model limits. Efficiency result could be erroneous. Proceed with caution. Model exit velocity limits: 0.5 to 4 m/s",IF(M40*'Input data'!E10>100,"Warning: EPA regulates flare exit velocity. If you have a low BTU flare gas, you may be near flaring exit velocity limits.",""))),"") -> 
A42: 2.3 Average yearly windspeed | M42: 20 | N42: =IF(M43="none selected","Enter windspeed",VLOOKUP(M43,B163:P437,15,FALSE)) -> Enter windspeed | O42: mph | Q42: Johnson and Kostiuk (2002) experimental wind speed conditions. | R42: =IF(M10=1,IF(M42="","",IF(M42>38,"Warning: wind speed is outside of model limits. Efficiency result could be erroneous. Proceed with caution. Model wind speed limits: 4.5 to 38 mph",IF(M42<4.5,"Warning: wind speed is outside of model limits. Efficiency result could be erroneous. Proceed with caution. Model wind speed limits: 4.5 to 38 mph",""))),"") -> 
B43: 2.3.1 For default wind speed pick nearest city (US Only) | M43: None selected | R43: If the field is in the U.S., you may use the lookup table to find the nearest location for windspeed.
A46: 3 Calculations
A48: 3.1 Flaring efficiency | M48: =IF(M10=0,95,T164) -> 95 | N48: % | Q48: Johnson and Kostiuk (2002) and personal communication, M. Johnson (2012). | R48: =IF(M48>100,"Note: Calculated efficiency is higher than experimental bounds for low velocity flares. Assumed value of 99.8% efficient combustion used. Experimental efficiency limits: 64% to 99.9%",IF(M48<64,"Warning: Calculated efficiency is outside of experimental bounds. Efficiency result could be erroneous. Proceed with caution. Experimental efficiency limits: 64% to 99.9%","")) -> 
A50: 3.2 Flaring emissions | M50: =M53+M59 -> 22.39959568 | N50: tCO2/d
B52: 3.2.1 Combusted gas volume | M52: =M15*M48/100 -> 0.2586775308 | N52: MMscf/d
C53: 3.2.1.1 GHG emissions from combusted gas | M53: =SUM(M54:M56)/1000000 -> 16.41398534 | N53: tCO2/d
D54: 3.2.1.1.1 CO2 emissions | M54: ='Gas Balance'!N13*1000000*'Input data'!D81 -> 914460.5674 | N54: g/d
D55: 3.2.1.1.2 CO2 emissions from CH4 combustion | M55: ='Gas Balance'!N14*1000000*'Input data'!D82*44/16 -> 12753167.86 | N55: g/d
D56: 3.2.1.1.3 CO2 emissions from VOC combustion | M56: =1000000*('Gas Balance'!N15*'Input data'!D83*44*2/30+'Gas Balance'!N16*'Input data'!D84*44*3/44+'Gas Balance'!N17*'Input data'!D85*44*4/58) -> 2746356.919 | N56: g/d
B58: 3.2.2 Non-combusted gas volume | M58: =M15*(100-M48)/100 -> 0.01361460688 | N58: MMscf/d
C59: 3.2.2.1 GHG emissions from non-combusted gas | M59: =(M60+M61*'Input data'!C71+M62*'Input data'!C72)/1000000 -> 5.985610332 | N59: tCO2/d
D60: 3.2.2.1.1 CO2 emissions | M60: =M58*1000000*'Gas Balance'!E30/100*'Input data'!D81 -> 45723.02837 | N60: g/d
D61: 3.2.2.1.2 CH4 emissions | M61: =M58*1000000*'Gas Balance'!E31/100*'Input data'!D82 -> 231875.7792 | N61: g/d
D62: 3.2.2.1.3 VOC emissions | M62: =M58*1000000*('Gas Balance'!E32/100*'Input data'!D83+'Gas Balance'!E33/100*'Input data'!D84+'Gas Balance'!E34/100*'Input data'!D85) -> 46126.71728 | N62: g/d
A64: 3.3 Summation of flaring emissions
B66: 3.3.1 Speciation of total flaring emissions
B68: Category | F68: GHG | G68: Volume | H68: HHV | I68: LHV | J68: Note(s):
F69: tCO2eq/yr | G69: MMscf/yr | H69: MMBtu/yr | I69: MMBtu/yr
B70: Flaring | F70: =SUM(F71:F73) -> 8175.852421 | G70: =SUM(G71:G73) -> 99.38663026 | H70: =SUM(H71:H73) -> 100827.7364 | I70: =SUM(I71:I73) -> 91170.33753
C71: Crude production and extraction (p) | F71: 0 | G71: 0 | H71: 0 | I71: 0 | J71: No direct flaring in extraction
C72: Surface processing (s) | F72: =$M$50*365 -> 8175.852421 | G72: =$M$15*365 -> 99.38663026 | H72: ='Gas Balance'!$I$14*('Gas Balance'!$E$37/'Gas Balance'!$E$23)*365 -> 100827.7364 | I72: ='Gas Balance'!$I$14*('Gas Balance'!$E$38/'Gas Balance'!$E$23)*365 -> 91170.33753 | J72: Surface flaring unit - includes flaring of recovered gas from maintenance
C73: Maintenance (m) | F73: 0 | G73: 0 | H73: 0 | I73: 0 | J73: No direct flaring in maintenance
B75: 3.3.2 Net flaring emissions
B77: Category | F77: GHG | G77: Volume | H77: HHV | I77: LHV | J77: Note(s):
F78: tCO2eq/yr | G78: MMscf/yr | H78: MMBtu/yr | I78: MMBtu/yr
B79: Flaring | F79: =SUM(F80:F82) -> 8175.852421 | G79: =SUM(G80:G82) -> 99.38663026 | H79: =SUM(H80:H82) -> 100827.7364 | I79: =SUM(I80:I82) -> 91170.33753 | J79: Recovery doesn't apply in flaring
C80: Crude production and extraction (p) | F80: 0 | G80: 0 | H80: 0 | I80: 0
C81: Surface processing (s) | F81: =$M$50*365 -> 8175.852421 | G81: =$M$15*365 -> 99.38663026 | H81: ='Gas Balance'!$I$14*('Gas Balance'!$E$37/'Gas Balance'!$E$23)*365 -> 100827.7364 | I81: ='Gas Balance'!$I$14*('Gas Balance'!$E$38/'Gas Balance'!$E$23)*365 -> 91170.33753
C82: Maintenance (m) | F82: 0 | G82: 0 | H82: 0 | I82: 0
A87: 4 Reference data
B90: Table 4.1: World Bank/NOAA flaring data and EIA crude oil and lease condensate production by country (2010, 2011)
B91: Country / location | D91: 2010 Oil Production | E91: 2010 Flaring Volume | H91: 2011 Oil Production | I91: 2011 Flaring Volume
D92: 1000 BPD | E92: BCM/yr | F92: MMscf/yr | G92: MMscf/bbl | H92: 1000 BPD | I92: BCM/yr | J92: MMscf/yr | K92: MMscf/bbl
B93: Algeria | D93: 1540 | E93: 5.276879538 | F93: =E93*'Input data'!$E$38*1000 -> 186351.2421 | G93: =F93/(D93*1000*365) -> 0.0003315268495 | H93: 1540 | I93: 4.985321726 | J93: =I93*'Input data'!$E$38*1000 -> 176054.9751 | K93: =J93/(H93*1000*365) -> 0.0003132093491
B94: Angola | D94: 1938.52055 | E94: 4.091245984 | F94: =E94*'Input data'!$E$38*1000 -> 144480.9883 | G94: =F94/(D94*1000*365) -> 0.0002041960938 | H94: 1785.61644 | I94: 4.115723304 | J94: =I94*'Input data'!$E$38*1000 -> 145345.3967 | K94: =J94/(H94*1000*365) -> 0.0002230078965
B95: Argentina | D95: 626.05613 | E95: 0.3143882462 | F95: =E95*'Input data'!$E$38*1000 -> 11102.51613 | G95: 4.858646206e-05 | H95: 581.43262 | I95: 0.3107711516 | J95: =I95*'Input data'!$E$38*1000 -> 10974.77964 | K95: 5.171345464e-05
B96: Australia | D96: 484.16986 | E96: 0.33447771 | F96: =E96*'Input data'!$E$38*1000 -> 11811.96885 | G96: 6.683926688e-05 | H96: 409.67397 | I96: 0.311616207 | J96: =I96*'Input data'!$E$38*1000 -> 11004.62249 | K96: 7.359425509e-05
B97: Azerbaijan | D97: 1034.6274 | E97: 0.1262573362 | F97: =E97*'Input data'!$E$38*1000 -> 4458.735748 | G97: 1.180687306e-05 | H97: 982.99452 | I97: 0.252630441 | J97: =I97*'Input data'!$E$38*1000 -> 8921.559822 | K97: 2.486547906e-05
B98: Bolivia | D98: 34.54167 | E98: 0.07765473926 | F98: =E98*'Input data'!$E$38*1000 -> 2742.351235 | G98: 0.0002175138334 | H98: 35.51507 | I98: 0.0891097606 | J98: =I98*'Input data'!$E$38*1000 -> 3146.881495 | K98: 0.0002427587257
B99: Brazil | D99: 2054.66799 | E99: 1.119947833 | F99: =E99*'Input data'!$E$38*1000 -> 39550.58445 | G99: 5.273736007e-05 | H99: 2105.40798 | I99: 0.9737560952 | J99: =I99*'Input data'!$E$38*1000 -> 34387.87195 | K99: 4.474826195e-05
B100: Brunei | D100: 136.16164 | E100: 0.1586149568 | F100: =E100*'Input data'!$E$38*1000 -> 5601.434332 | G100: 0.0001127071871 | H100: 125.93425 | I100: 0.1677436405 | J100: =I100*'Input data'!$E$38*1000 -> 5923.810757 | K100: 0.0001288737457
B101: Cameroon | D101: 65 | E101: 0.9954406546 | F101: =E101*'Input data'!$E$38*1000 -> 35153.65494 | G101: 0.001481713591 | H101: 61.66027 | I101: 0.8323928956 | J101: =I101*'Input data'!$E$38*1000 -> 29395.67767 | K101: 0.001306126347
B102: Canada | D102: 2731.5314 | E102: 2.541781115 | F102: =E102*'Input data'!$E$38*1000 -> 89762.15289 | G102: 9.003144044e-05 | H102: 2904.16164 | I102: 2.448920302 | J102: =I102*'Input data'!$E$38*1000 -> 86482.80423 | K102: 8.158608888e-05
B103: Chad | D103: 126.16986 | E103: 0.05191223814 | F103: =E103*'Input data'!$E$38*1000 -> 1833.263388 | G103: 3.980855188e-05 | H103: 123.65753 | I103: 0.05454936746 | J103: =I103*'Input data'!$E$38*1000 -> 1926.392731 | K103: 4.268068676e-05
B104: Chile | D104: 4.16438 | E104: 0.04333315826 | F104: =E104*'Input data'!$E$38*1000 -> 1530.296041 | G104: 0.001006774572 | H104: 4.5863 | I104: 0.02138413395 | J104: =I104*'Input data'!$E$38*1000 -> 755.173563 | K104: 0.000451119348
B105: China | D105: 4078.36027 | E105: 2.497549305 | F105: =E105*'Input data'!$E$38*1000 -> 88200.12126 | G105: 5.925032411e-05 | H105: 4058.68521 | I105: 2.604711501 | J105: =I105*'Input data'!$E$38*1000 -> 91984.51851 | K105: 6.209212256e-05
B106: Colombia | D106: 785.52622 | E106: 0.7344448062 | F106: =E106*'Input data'!$E$38*1000 -> 25936.67354 | G106: 9.046086274e-05 | H106: 914.25442 | I106: 0.7369672842 | J106: =I106*'Input data'!$E$38*1000 -> 26025.75401 | K106: 7.799080222e-05
B107: Congo | D107: 326 | E107: 1.77472157 | F107: =E107*'Input data'!$E$38*1000 -> 62673.70072 | G107: 0.0005267140156 | H107: 310.16164 | I107: 1.412011045 | J107: =I107*'Input data'!$E$38*1000 -> 49864.69944 | K107: 0.0004404658645
B108: Denmark | D108: 245.35943 | E108: 0.0805806036 | F108: =E108*'Input data'!$E$38*1000 -> 2845.677159 | G108: 3.17753256e-05 | H108: 221.14635 | I108: 0.1000586957 | J108: =I108*'Input data'!$E$38*1000 -> 3533.539488 | K108: 4.377612429e-05
B109: Ecuador | D109: 486.08701 | E109: 1.414959256 | F109: =E109*'Input data'!$E$38*1000 -> 49968.81453 | G109: 0.0002816385933 | H109: 499.51302 | I109: 1.313526221 | J109: =I109*'Input data'!$E$38*1000 -> 46386.7407 | K109: 0.0002544217182
B110: Egypt | D110: 575.15068 | E110: 1.601937306 | F110: =E110*'Input data'!$E$38*1000 -> 56571.88204 | G110: 0.0002694797434 | H110: 566.47397 | I110: 1.614885362 | J110: =I110*'Input data'!$E$38*1000 -> 57029.1383 | K110: 0.0002758188775
B111: Equatorial Guinea | D111: 297.78074 | E111: 1.124197502 | F111: =E111*'Input data'!$E$38*1000 -> 39700.6601 | G111: 0.0003652651672 | H111: 276.87022 | I111: 1.040163181 | J111: =I111*'Input data'!$E$38*1000 -> 36733.01606 | K111: 0.0003634858244
B112: Gabon | D112: 245.87671 | E112: 1.662729611 | F112: =E112*'Input data'!$E$38*1000 -> 58718.74203 | G112: 0.0006542842787 | H112: 244.72329 | I112: 1.421713847 | J112: =I112*'Input data'!$E$38*1000 -> 50207.35066 | K112: 0.0005620813016
B113: Ghana | D113: 7.18904 | E113: 0.02738003436 | F113: =E113*'Input data'!$E$38*1000 -> 966.9167877 | G113: 0.0003684896856 | H113: 76.51233 | I113: 0.1840669114 | J113: =I113*'Input data'!$E$38*1000 -> 6500.261627 | K113: 0.0002327590333
B114: India | D114: 751.30003 | E114: 0.8960343798 | F114: =E114*'Input data'!$E$38*1000 -> 31643.15547 | G114: 0.0001153914191 | H114: 782.34083 | I114: 0.8996911084 | J114: =I114*'Input data'!$E$38*1000 -> 31772.29163 | K114: 0.0001112652836
B115: Indonesia | D115: 953.14795 | E115: 2.209435102 | F115: =E115*'Input data'!$E$38*1000 -> 78025.46422 | G115: 0.0002242761946 | H115: 917.91781 | I115: 2.19044366 | J115: =I115*'Input data'!$E$38*1000 -> 77354.78776 | K115: 0.0002308822457
B116: Iran | D116: 4080.41895 | E116: 11.3321054 | F116: =E116*'Input data'!$E$38*1000 -> 400189.5252 | G116: 0.0002687002662 | H116: 4054 | I116: 11.35492767 | J116: =I116*'Input data'!$E$38*1000 -> 400995.486 | K116: 0.0002709959965
B117: Iraq | D117: 2399.30253 | E117: 9.049894826 | F117: =E117*'Input data'!$E$38*1000 -> 319594.0195 | G117: 0.0003649394115 | H117: 2625.68493 | I117: 9.353414392 | J117: =I117*'Input data'!$E$38*1000 -> 330312.7118 | K117: 0.000344659149
B118: Kazakhstan | D118: 1525.19866 | E118: 3.822876456 | F118: =E118*'Input data'!$E$38*1000 -> 135003.6079 | G118: 0.0002425080142 | H118: 1552.93699 | I118: 4.681958302 | J118: =I118*'Input data'!$E$38*1000 -> 165341.7969 | K118: 0.0002916996809
B119: Kuwait | D119: 2300.41096 | E119: 1.460429456 | F119: =E119*'Input data'!$E$38*1000 -> 51574.57947 | G119: 6.142390216e-05 | H119: 2530.13699 | I119: 1.384466213 | J119: =I119*'Input data'!$E$38*1000 -> 48891.96288 | K119: 5.294202794e-05
B120: Libya | D120: 1650 | E120: 3.83178453 | F120: =E120*'Input data'!$E$38*1000 -> 135318.1935 | G120: 0.0002246877435 | H120: 465.39726 | I120: 2.225881164 | J120: =I120*'Input data'!$E$38*1000 -> 78606.25141 | K120: 0.0004627435772
B121: Malaysia | D121: 553.95964 | E121: 1.466167448 | F121: =E121*'Input data'!$E$38*1000 -> 51777.21476 | G121: 0.0002560753034 | H121: 511.94521 | I121: 1.621193791 | J121: =I121*'Input data'!$E$38*1000 -> 57251.91839 | K121: 0.0003063893711
B122: Mauritania | D122: 8.23223 | E122: 0.02500912821 | F122: =E122*'Input data'!$E$38*1000 -> 883.1890273 | G122: 0.0002939295872 | H122: 7.73764 | I122: 0.02507141903 | J122: =I122*'Input data'!$E$38*1000 -> 885.3888067 | K122: 0.0003134964612
B123: Mexico | D123: 2621.1389 | E123: 2.810182802 | F123: =E123*'Input data'!$E$38*1000 -> 99240.66902 | G123: 0.0001037305745 | H123: 2596.23091 | I123: 2.089711534 | J123: =I123*'Input data'!$E$38*1000 -> 73797.46634 | K123: 7.787629309e-05
B124: Myanmar | D124: 20.32877 | E124: 0.0278203282 | F124: =E124*'Input data'!$E$38*1000 -> 982.4656179 | G124: 0.0001324077465 | H124: 20 | I124: 0.03056824386 | J124: =I124*'Input data'!$E$38*1000 -> 1079.507344 | K124: 0.0001478777183
B125: New Zealand | D125: 53.03836 | E125: 0.05528083022 | F125: =E125*'Input data'!$E$38*1000 -> 1952.224094 | G125: 0.0001008432229 | H125: 46.32329 | I125: 0.05396746586 | J125: =I125*'Input data'!$E$38*1000 -> 1905.843069 | K125: 0.0001127184158
B126: Nigeria | D126: 2455.26027 | E126: 16.4683 | F126: =E126*'Input data'!$E$38*1000 -> 581572.5256 | G126: 0.0006489533532 | H126: 2550.34521 | I126: 17.5291 | J126: =I126*'Input data'!$E$38*1000 -> 619034.3241 | K126: 0.0006650019154 | L126: Source: Reported flaring volumes from Nigerian National Petroleum Corporation
B127: Norway | D127: 1869.28219 | E127: 0.3197938184 | F127: =E127*'Input data'!$E$38*1000 -> 11293.41211 | G127: 1.65522655e-05 | H127: 1752.2411 | I127: 0.3266004658 | J127: =I127*'Input data'!$E$38*1000 -> 11533.78659 | K127: 1.803371427e-05
B128: Oman | D128: 864.5879 | E128: 1.620082523 | F128: =E128*'Input data'!$E$38*1000 -> 57212.67432 | G128: 0.0001812968386 | H128: 885.68192 | I128: 1.620824131 | J128: =I128*'Input data'!$E$38*1000 -> 57238.86396 | K128: 0.00017705996
B129: Peru | D129: 72.68841 | E129: 0.09585735334 | F129: =E129*'Input data'!$E$38*1000 -> 3385.170484 | G129: 0.0001275917259 | H129: 69.54406 | I129: 0.0641491585 | J129: =I129*'Input data'!$E$38*1000 -> 2265.406152 | K129: 8.924690615e-05
B130: Philippines | D130: 32.94521 | E130: 0.0567627508 | F130: =E130*'Input data'!$E$38*1000 -> 2004.557625 | G130: 0.000166699156 | H130: 26.64384 | I130: 0.07229109132 | J130: =I130*'Input data'!$E$38*1000 -> 2552.935795 | K130: 0.000262512635
B131: Qatar | D131: 1126.74296 | E131: 1.847220136 | F131: =E131*'Input data'!$E$38*1000 -> 65233.96341 | G131: 0.0001586193069 | H131: 1295.91781 | I131: 1.698963918 | J131: =I131*'Input data'!$E$38*1000 -> 59998.34451 | K131: 0.0001268437125
B132: Romania | D132: 88.13895 | E132: 0.01991782092 | F132: =E132*'Input data'!$E$38*1000 -> 703.391207 | G132: 2.186433123e-05 | H132: 86.864 | I132: 0.01893111865 | J132: =I132*'Input data'!$E$38*1000 -> 668.5461455 | K132: 2.10862184e-05
B133: Russia | D133: 9694.11447 | E133: 35.61 | F133: =E133*'Input data'!$E$38*1000 -> 1257555.281 | G133: 0.0003554070818 | H133: 9773.51781 | I133: 37.37 | J133: =I133*'Input data'!$E$38*1000 -> 1319709.095 | K133: 0.0003699426783
B134: Saudi Arabia | D134: 8900 | E134: 3.168311636 | F134: =E134*'Input data'!$E$38*1000 -> 111887.8694 | G134: 3.444293349e-05 | H134: 9458.35616 | I134: 3.254041042 | J134: =I134*'Input data'!$E$38*1000 -> 114915.3748 | K134: 3.328661324e-05
B135: South Africa | D135: 3.49315 | E135: 0.1012899831 | F135: =E135*'Input data'!$E$38*1000 -> 3577.021992 | G135: 0.002805507995 | H135: 4 | I135: 0.08646248072 | J135: =I135*'Input data'!$E$38*1000 -> 3053.393689 | K135: 0.00209136554
B136: Sudan | D136: 511.32877 | E136: 0.369047868 | F136: =E136*'Input data'!$E$38*1000 -> 13032.80245 | G136: 6.983043042e-05 | H136: 452.0137 | I136: 0.3013981362 | J136: =I136*'Input data'!$E$38*1000 -> 10643.77472 | K136: 6.451359028e-05
B137: Syria | D137: 367.12828 | E137: 1.021861477 | F137: =E137*'Input data'!$E$38*1000 -> 36086.69747 | G137: 0.0002693000504 | H137: 300.20548 | I137: 0.8610059304 | J137: =I137*'Input data'!$E$38*1000 -> 30406.13746 | K137: 0.0002774915574
B138: Thailand | D138: 241.80126 | E138: 0.2068414963 | F138: =E138*'Input data'!$E$38*1000 -> 7304.5385 | G138: 8.276397835e-05 | H138: 224.12791 | I138: 0.2258243442 | J138: =I138*'Input data'!$E$38*1000 -> 7974.911448 | K138: 9.74848356e-05
B139: Trinidad | D139: 98.24574 | E139: 0.06240828692 | F139: =E139*'Input data'!$E$38*1000 -> 2203.927852 | G139: 6.145974877e-05 | H139: 91.91869 | I139: 0.08502113844 | J139: =I139*'Input data'!$E$38*1000 -> 3002.493166 | K139: 8.94922314e-05
B140: Tunisia | D140: 80.13973 | E140: 0.3867164126 | F140: =E140*'Input data'!$E$38*1000 -> 13656.76122 | G140: 0.0004668818345 | H140: 67.48219 | I140: 0.4200870436 | J140: =I140*'Input data'!$E$38*1000 -> 14835.23393 | K140: 0.0006022993107
B141: Turkmenistan | D141: 178.18767 | E141: 1.213617845 | F141: =E141*'Input data'!$E$38*1000 -> 42858.50968 | G141: 0.0006589713782 | H141: 196.73699 | I141: 1.290582152 | J141: =I141*'Input data'!$E$38*1000 -> 45576.47853 | K141: 0.0006346903268
B142: UAE | D142: 2414.6558 | E142: 0.8887001214 | F142: =E142*'Input data'!$E$38*1000 -> 31384.14858 | G142: 3.560920307e-05 | H142: 2679.17808 | I142: 0.9289263172 | J142: =I142*'Input data'!$E$38*1000 -> 32804.72328 | K142: 3.354609194e-05
B143: UK | D143: 1233.18694 | E143: 0.9941426012 | F143: =E143*'Input data'!$E$38*1000 -> 35107.81461 | G143: 7.799773931e-05 | H143: 1026.43014 | I143: 0.948110716 | J143: =I143*'Input data'!$E$38*1000 -> 33482.21393 | K143: 8.937003054e-05
B144: US Continental | D144: 4567.7 | E144: 0.5844435758 | F144: =E144*'Input data'!$E$38*1000 -> 20639.43008 | G144: 1.237961858e-05 | H144: 4672 | I144: 0.78454173 | J144: =I144*'Input data'!$E$38*1000 -> 27705.82971 | K144: 1.624708535e-05
B145: US North Dakota | D145: 310 | E145: 0.9629 | F145: =E145*'Input data'!$E$38*1000 -> 34004.49257 | G145: =F145/(D145*1000*365) -> 0.0003005257849 | H145: 419 | I145: 1.6445 | J145: =I145*'Input data'!$E$38*1000 -> 58074.96939 | K145: =J145/(H145*1000*365) -> 0.0003797362892 | L145: Source: Reported flaring volumes from North Dakota Industrial Commission, Oil and Gas Division
B146: US Alaska | D146: 589 | E146: 0.2601 | F146: =E146*'Input data'!$E$38*1000 -> 9185.344809 | G146: =F146/(D146*1000*365) -> 4.272551484e-05 | H146: 545 | I146: 0.2849 | J146: =I146*'Input data'!$E$38*1000 -> 10061.14854 | K146: =J146/(H146*1000*365) -> 5.05775973e-05 | L146: Source: Reported flaring and production volumnes from Alaska Oil and Gas Conservation Commission
B147: Uzbekistan | D147: 60 | E147: 1.819637798 | F147: =E147*'Input data'!$E$38*1000 -> 64259.90234 | G147: 0.002934242116 | H147: 60 | I147: 1.660546257 | J147: =I147*'Input data'!$E$38*1000 -> 58641.63759 | K147: 0.002677700347
B148: Venezuela | D148: 2145.75342 | E148: 2.819821046 | F148: =E148*'Input data'!$E$38*1000 -> 99581.04039 | G148: 0.0001271463746 | H148: 2240 | I148: 3.502304428 | J148: =I148*'Input data'!$E$38*1000 -> 123682.7136 | K148: 0.0001512753346
B149: Vietnam | D149: 318.17808 | E149: 0.5177033778 | F149: =E149*'Input data'!$E$38*1000 -> 18282.52224 | G149: 0.0001574247416 | H149: 309.12329 | I149: 0.5198932228 | J149: =I149*'Input data'!$E$38*1000 -> 18359.85588 | K149: 0.0001627214016
B150: Yemen | D150: 257.4065 | E150: 1.310408222 | F150: =E150*'Input data'!$E$38*1000 -> 46276.62961 | G150: 0.0004925488929 | H150: 162.07671 | I150: 1.101474 | J150: =I150*'Input data'!$E$38*1000 -> 38898.1872 | K150: 0.0006575304736
B151: Generic | D151: =AVERAGE(D93:D150) -> 1262.403167 | E151: =AVERAGE(E93:E150) -> 2.340747247 | F151: =E151*'Input data'!$E$38*1000 -> 82662.70886 | G151: =F151/(D151*1000*365) -> 0.0001793984529 | H151: =AVERAGE(H93:H150) -> 1263.586862 | I151: =AVERAGE(I93:I150) -> 2.370755118 | J151: =I151*'Input data'!$E$38*1000 -> 83722.42683 | K151: =J151/(H151*1000*365) -> 0.0001815280918
R158: 4.1 Wind speed probability distribution
T160: Value | U160: Units | V160: Source | Y160: Notes
B161: Table 4.2: NOAA wind speed data - U.S. Onshore | R161: 4.1.1 Exit velocity | T161: =M37 -> NA | U161: m/s
B162: Location | C162: Years Collected | D162: Jan | E162: Feb | F162: Mar | G162: Apr | H162: May | I162: Jun | J162: Jul | K162: Aug | L162: Sep | M162: Oct | N162: Nov | O162: Dec | P162: Annual Average | R162: 4.1.2 Average windspeed | T162: 30 | U162: mph
B163: None selected | R163: 4.1.3 Efficiency at average | T163: =100*(1-(156.4*EXP(0.318*(T162/2.23694)/((9.8*T161*($M$39*0.0254))^(1/3))))/($M$16^3)) ->  | U163: % | V163: Johnson and Kostiuk (2002) | Y163: Computed by assuming the wind is always blowing at average speed.
B164: BIRMINGHAM AP,AL | C164: 59 | D164: 8.1 | E164: 8.7 | F164: 9 | G164: 8.2 | H164: 6.8 | I164: 6 | J164: 5.7 | K164: 5.4 | L164: 6.3 | M164: 6.2 | N164: 7.2 | O164: 7.7 | P164: 7.1 | R164: 4.1.4 Efficiency using distribution | T164: =SUMPRODUCT(T170:T249,U170:U249) ->  | U164: % | V164: da Rosa (2012) | Y164: Computed by summing over time the efficiency at each wind speed.
B165: HUNTSVILLE, AL | C165: 35 | D165: 9 | E165: 9.4 | F165: 9.8 | G165: 9.2 | H165: 7.9 | I165: 6.9 | J165: 6 | K165: 5.8 | L165: 6.7 | M165: 7.3 | N165: 8.1 | O165: 9 | P165: 7.9
B166: MOBILE, AL | C166: 54 | D166: 10.1 | E166: 10.3 | F166: 10.7 | G166: 10.1 | H166: 8.7 | I166: 7.5 | J166: 6.9 | K166: 6.7 | L166: 7.7 | M166: 8 | N166: 8.9 | O166: 9.6 | P166: 8.8 | R166: 4.1.5 Windspeed mode: | T166: =T162/(SQRT(3.1415/2)) -> 23.93688981 | U166: mph | V166: da Rosa (2012) | Y166: Computed from the formula for the mean of a Rayliegh distribution.
B167: MONTGOMERY, AL | C167: 58 | D167: 7.7 | E167: 8.2 | F167: 8.3 | G167: 7.3 | H167: 6.1 | I167: 5.8 | J167: 5.7 | K167: 5.2 | L167: 5.9 | M167: 5.7 | N167: 6.5 | O167: 7.1 | P167: 6.6
B168: ANCHORAGE, AK | C168: 49 | D168: 6.4 | E168: 6.8 | F168: 7.1 | G168: 7.3 | H168: 8.5 | I168: 8.4 | J168: 7.3 | K168: 6.9 | L168: 6.7 | M168: 6.7 | N168: 6.4 | O168: 6.3 | P168: 7.1 | R168: 4.1.6 Rayleigh wind distribution | Y168: Computing assuming wind speed follows Raleigh distribution
B169: ANNETTE, AK | C169: 38 | D169: 11.6 | E169: 11.8 | F169: 10.5 | G169: 10.6 | H169: 9 | I169: 8.5 | J169: 7.7 | K169: 8.1 | L169: 8.8 | M169: 11.2 | N169: 11.7 | O169: 12 | P169: 10.1 | S169: Windspeed (mph): | T169: % of time at that speed | U169: Efficiency at that speed
B170: BARROW, AK | C170: 69 | D170: 11.9 | E170: 11.3 | F170: 11.3 | G170: 11.5 | H170: 12 | I170: 11.5 | J170: 11.7 | K170: 12.4 | L170: 13.2 | M170: 13.3 | N170: 12.5 | O170: 11.7 | P170: 12 | S170: 1 | T170: =(S170/($T$166^2))*EXP(((-(S170^2))/(2*($T$166^2)))) -> 0.001743755445 | U170: =IF(100*(1-(156.4*EXP(0.318*($S170/2.23694)/((9.8*$T$161*($M$39*0.0254))^(1/3))))/($M$16^3))>=0,100*(1-(156.4*EXP(0.318*($S170/2.23694)/((9.8*$T$161*($M$39*0.0254))^(1/3))))/($M$16^3)),0) -> 
B171: BARTER IS.,AK | C171: 33 | D171: 15.1 | E171: 14.4 | F171: 13.7 | G171: 12 | H171: 12.7 | I171: 11.6 | J171: 10.9 | K171: 11.8 | L171: 13.2 | M171: 14.8 | N171: 14.9 | O171: 13.9 | P171: 13.2 | S171: 2 | T171: 0.003478392817
B172: BETHEL, AK | C172: 44 | D172: 14.5 | E172: 14.7 | F172: 13.7 | G172: 12.9 | H172: 11.5 | I172: 11 | J172: 10.6 | K172: 11 | L172: 11.6 | M172: 12.3 | N172: 13.2 | O172: 13.6 | P172: 12.6 | S172: 3 | T172: 0.005194873462
B173: BETTLES,AK | C173: 27 | D173: 5.8 | E173: 6.3 | F173: 7 | G173: 7.4 | H173: 7.2 | I173: 6.8 | J173: 6.5 | K173: 6.2 | L173: 6.4 | M173: 6.4 | N173: 5.8 | O173: 5.6 | P173: 6.5 | S173: 4 | T173: 0.006884316592
B174: BIG DELTA,AK | C174: 26 | D174: 11.2 | E174: 10.2 | F174: 8.8 | G174: 8 | H174: 8.2 | I174: 6.9 | J174: 6.1 | K174: 6.6 | L174: 7.6 | M174: 8.7 | N174: 10.2 | O174: 10 | P174: 8.5 | S174: 5 | T174: 0.008538075816
B175: COLD BAY,AK | C175: 47 | D175: 17.5 | E175: 17.9 | F175: 17.4 | G175: 17.5 | H175: 16.2 | I175: 15.8 | J175: 15.6 | K175: 16.2 | L175: 16.2 | M175: 16.6 | N175: 17.5 | O175: 17.5 | P175: 16.8 | S175: 6 | T175: 0.01014781283
B176: FAIRBANKS, AK | C176: 51 | D176: 3 | E176: 3.9 | F176: 5.3 | G176: 6.6 | H176: 7.7 | I176: 7.1 | J176: 6.6 | K176: 6.1 | L176: 6 | M176: 5.3 | N176: 3.8 | O176: 3 | P176: 5.4 | S176: 7 | T176: 0.01170556736
B177: GULKANA,AK | C177: 14 | D177: 5 | E177: 4.9 | F177: 6.3 | G177: 8.5 | H177: 8.7 | I177: 8.1 | J177: 7.7 | K177: 7.7 | L177: 7.3 | M177: 6 | N177: 4.1 | O177: 3.3 | P177: 6.5 | S177: 8 | T177: 0.01320382263
B178: HOMER, AK | C178: 28 | D178: 7.8 | E178: 7.7 | F178: 7.8 | G178: 8.1 | H178: 8.2 | I178: 7.8 | J178: 7.1 | K178: 6.6 | L178: 7 | M178: 7.3 | N178: 7.7 | O178: 7.8 | P178: 7.6 | S178: 9 | T178: 0.01463556544
B179: JUNEAU, AK | C179: 57 | D179: 8.1 | E179: 8.2 | F179: 8.4 | G179: 8.5 | H179: 8.3 | I179: 7.7 | J179: 7.5 | K179: 7.4 | L179: 8 | M179: 9.5 | N179: 8.4 | O179: 8.8 | P179: 8.2 | S179: 10 | T179: 0.01599434036
B180: KING SALMON, AK | C180: 47 | D180: 10.5 | E180: 11 | F180: 11.3 | G180: 10.9 | H180: 11 | I180: 10.5 | J180: 9.9 | K180: 10 | L180: 10.4 | M180: 10.3 | N180: 10.4 | O180: 10.1 | P180: 10.5 | S180: 11 | T180: 0.01727429736
B181: KODIAK, AK | C181: 49 | D181: 12.7 | E181: 12.5 | F181: 12.5 | G181: 11.6 | H181: 10.6 | I181: 9.3 | J181: 7.7 | K181: 8.4 | L181: 9.7 | M181: 11.4 | N181: 12.5 | O181: 12.6 | P181: 11 | S181: 12 | T181: 0.01847023242
B182: KOTZEBUE, AK | C182: 56 | D182: 13.9 | E182: 13 | F182: 11.9 | G182: 12 | H182: 10.7 | I182: 11.9 | J182: 12.7 | K182: 13.2 | L182: 13.2 | M182: 13.5 | N182: 14.4 | O182: 12.9 | P182: 12.8 | S182: 13 | T182: 0.01957762071
B183: MCGRATH, AK | C183: 52 | D183: 3.2 | E183: 4.2 | F183: 5.3 | G183: 6.5 | H183: 6.7 | I183: 6.4 | J183: 5.9 | K183: 5.8 | L183: 5.9 | M183: 5.4 | N183: 3.7 | O183: 3.2 | P183: 5.2 | S183: 14 | T183: 0.02059264216
B184: NOME, AK | C184: 55 | D184: 10.8 | E184: 11 | F184: 10.1 | G184: 10.1 | H184: 9.9 | I184: 9.7 | J184: 9.7 | K184: 10.4 | L184: 11 | M184: 10.5 | N184: 11.5 | O184: 10.3 | P184: 10.4 | S184: 15 | T184: 0.0215121992
B185: ST. PAUL ISLAND, AK | C185: 28 | D185: 19.9 | E185: 20 | F185: 18.8 | G185: 17.4 | H185: 14.9 | I185: 13.6 | J185: 12.1 | K185: 13.7 | L185: 15.4 | M185: 17.4 | N185: 20 | O185: 20.1 | P185: 16.9 | S185: 16 | T185: 0.0223339266
B186: TALKEETNA, AK | C186: 19 | D186: 6 | E186: 5.5 | F186: 5.5 | G186: 4.7 | H186: 4.9 | I186: 5.1 | J186: 4.2 | K186: 3.7 | L186: 3.7 | M186: 3.8 | N186: 5 | O186: 4.9 | P186: 4.8 | S186: 17 | T186: 0.02305619353
B187: VALDEZ, AK | C187: 22 | D187: 7.5 | E187: 7.8 | F187: 6.7 | G187: 5.2 | H187: 5.8 | I187: 5.9 | J187: 4.9 | K187: 4.2 | L187: 4.3 | M187: 6.3 | N187: 7.5 | O187: 7 | P187: 6.1 | S187: 18 | T187: 0.023678098
B188: YAKUTAT, AK | C188: 54 | D188: 7.2 | E188: 7.3 | F188: 7 | G188: 7.1 | H188: 7.5 | I188: 6.9 | J188: 6.6 | K188: 6.3 | L188: 6.9 | M188: 7.8 | N188: 7.2 | O188: 7.8 | P188: 7.1 | S188: 19 | T188: 0.02419945393
B189: FLAGSTAFF, AZ | C189: 35 | D189: 6.5 | E189: 6.6 | F189: 7.1 | G189: 7.6 | H189: 7.3 | I189: 7 | J189: 5.5 | K189: 5 | L189: 5.6 | M189: 5.8 | N189: 6.6 | O189: 6.6 | P189: 6.4 | S189: 20 | T189: 0.02462077124
B190: PHOENIX, AZ | C190: 57 | D190: 5.3 | E190: 5.8 | F190: 6.6 | G190: 6.9 | H190: 7 | I190: 6.7 | J190: 7.1 | K190: 6.6 | L190: 6.3 | M190: 5.8 | N190: 5.3 | O190: 5.1 | P190: 6.2 | S190: 21 | T190: 0.02494322933
B191: TUCSON, AZ | C191: 57 | D191: 7.9 | E191: 8.1 | F191: 8.6 | G191: 8.9 | H191: 8.8 | I191: 8.7 | J191: 8.4 | K191: 7.9 | L191: 8.3 | M191: 8.2 | N191: 8.1 | O191: 7.8 | P191: 8.3 | S191: 22 | T191: 0.02516864463
B192: WINSLOW, AZ | C192: 42 | D192: 7.1 | E192: 8.5 | F192: 10.3 | G192: 11.3 | H192: 10.7 | I192: 10.6 | J192: 9 | K192: 8.4 | L192: 8.1 | M192: 7.6 | N192: 7.3 | O192: 6.7 | P192: 8.8 | S192: 23 | T192: 0.02529943268
B193: YUMA, AZ | C193: 28 | D193: 7.3 | E193: 7.4 | F193: 7.9 | G193: 8.3 | H193: 8.3 | I193: 8.5 | J193: 9.5 | K193: 8.9 | L193: 7.3 | M193: 6.6 | N193: 6.9 | O193: 7.2 | P193: 7.8 | S193: 24 | T193: 0.02533856538
B194: FORT SMITH, AR | C194: 57 | D194: 8.2 | E194: 8.5 | F194: 9.4 | G194: 8.9 | H194: 7.7 | I194: 6.7 | J194: 6.3 | K194: 6.3 | L194: 6.6 | M194: 6.8 | N194: 7.8 | O194: 8.1 | P194: 7.6 | S194: 25 | T194: 0.02528952421
B195: LITTLE ROCK, AR | C195: 60 | D195: 8.4 | E195: 8.9 | F195: 9.6 | G195: 9 | H195: 7.6 | I195: 7.1 | J195: 6.7 | K195: 6.3 | L195: 6.6 | M195: 6.8 | N195: 8 | O195: 8.1 | P195: 7.8 | S195: 26 | T195: 0.02515625006
B196: BAKERSFIELD, CA | C196: 50 | D196: 5.2 | E196: 5.8 | F196: 6.5 | G196: 7.1 | H196: 7.9 | I196: 7.9 | J196: 7.2 | K196: 6.8 | L196: 6.2 | M196: 5.5 | N196: 5.1 | O196: 5 | P196: 6.4 | S196: 27 | T196: 0.02494309035
B197: BLUE CANYON, CA | C197: 50 | D197: 7.8 | E197: 7.7 | F197: 7.4 | G197: 6.5 | H197: 6.5 | I197: 6.3 | J197: 5.8 | K197: 5.9 | L197: 6.4 | M197: 6.8 | N197: 6.6 | O197: 6.7 | P197: 6.7 | S197: 28 | T197: 0.02465474432
B198: EUREKA, CA. | C198: 54 | D198: 6.9 | E198: 7.2 | F198: 7.6 | G198: 8 | H198: 7.9 | I198: 7.4 | J198: 6.8 | K198: 5.8 | L198: 5.5 | M198: 5.6 | N198: 6 | O198: 6.4 | P198: 6.8 | S198: 29 | T198: 0.02429620712
B199: FRESNO, CA | C199: 53 | D199: 5.2 | E199: 5.7 | F199: 6.7 | G199: 7.4 | H199: 8.1 | I199: 8.3 | J199: 7.4 | K199: 6.8 | L199: 6.1 | M199: 5.2 | N199: 4.7 | O199: 4.9 | P199: 6.4 | S199: 30 | T199: 0.02387271344
B200: LONG BEACH, CA | C200: 33 | D200: 5.2 | E200: 6 | F200: 6.7 | G200: 7.4 | H200: 7.1 | I200: 7 | J200: 6.8 | K200: 6.6 | L200: 6.2 | M200: 5.6 | N200: 5.2 | O200: 5 | P200: 6.2 | S200: 31 | T200: 0.02338968142
B201: LOS ANGELES AP, CA | C201: 54 | D201: 6.7 | E201: 7.4 | F201: 8.1 | G201: 8.5 | H201: 8.4 | I201: 8 | J201: 7.9 | K201: 7.7 | L201: 7.3 | M201: 6.9 | N201: 6.7 | O201: 6.6 | P201: 7.5 | S201: 32 | T201: 0.02285265741
B202: LOS ANGELES C.O., CA | C202: 28 | D202: 6.2 | E202: 6.4 | F202: 6.5 | G202: 6.3 | H202: 6 | I202: 5.4 | J202: 5 | K202: 4.9 | L202: 5.1 | M202: 5.2 | N202: 5.8 | O202: 5.8 | P202: 5.7 | S202: 33 | T202: =(S202/($T$166^2))*EXP(((-(S202^2))/(2*($T$166^2)))) -> 0.02226726225 | U202: =IF(100*(1-(156.4*EXP(0.318*($S202/2.23694)/((9.8*$T$161*($M$39*0.0254))^(1/3))))/($M$16^3))>=0,100*(1-(156.4*EXP(0.318*($S202/2.23694)/((9.8*$T$161*($M$39*0.0254))^(1/3))))/($M$16^3)),0) -> 
B203: MOUNT SHASTA, CA | C203: 3 | D203: 5 | E203: 5.2 | F203: 5.8 | G203: 6.2 | H203: 5.4 | I203: 5.4 | J203: 4.4 | K203: 4.2 | L203: 4.6 | M203: 4.2 | N203: 5.2 | O203: 5.4 | P203: 5.1 | S203: 34 | T203: 0.02163913968
B204: REDDING, CA | C204: 16 | D204: 6.2 | E204: 7.1 | F204: 7.3 | G204: 7 | H204: 7.3 | I204: 7.5 | J204: 6.6 | K204: 6.1 | L204: 6 | M204: 6 | N204: 5.7 | O204: 6.4 | P204: 6.6 | S204: 35 | T204: 0.02097390719
B205: SACRAMENTO, CA | C205: 52 | D205: 7.1 | E205: 7.3 | F205: 8.4 | G205: 8.6 | H205: 9 | I205: 9.6 | J205: 8.9 | K205: 8.4 | L205: 7.4 | M205: 6.4 | N205: 6 | O205: 6.4 | P205: 7.8 | S205: 36 | T205: 0.02027711006
B206: SAN DIEGO, CA | C206: 62 | D206: 6 | E206: 6.6 | F206: 7.5 | G206: 7.8 | H206: 7.9 | I206: 7.8 | J206: 7.5 | K206: 7.4 | L206: 7.1 | M206: 6.5 | N206: 5.9 | O206: 5.6 | P206: 7 | S206: 37 | T206: 0.01955417858
B207: SAN FRANCISCO AP, CA | C207: 75 | D207: 7.2 | E207: 8.6 | F207: 10.5 | G207: 12.2 | H207: 13.4 | I207: 14 | J207: 13.6 | K207: 12.8 | L207: 11.1 | M207: 9.4 | N207: 7.5 | O207: 7.1 | P207: 10.6 | S207: 38 | T207: 0.01881038916
B208: SAN FRANCISCO C.O., CA | C208: 28 | D208: 6.7 | E208: 7.5 | F208: 8.5 | G208: 9.5 | H208: 10.4 | I208: 10.9 | J208: 11.2 | K208: 10.5 | L208: 9.1 | M208: 7.6 | N208: 6.3 | O208: 6.5 | P208: 8.7 | S208: 39 | T208: 0.01805082922
B209: SANTA BARBARA, CA | C209: 31 | D209: 5.1 | E209: 5.9 | F209: 6.7 | G209: 7.6 | H209: 7 | I209: 6.7 | J209: 6.5 | K209: 6.1 | L209: 5.5 | M209: 5.5 | N209: 5.2 | O209: 4.4 | P209: 6 | S209: 40 | T209: 0.01728036628
B210: SANTA MARIA, CA | C210: 22 | D210: 6.4 | E210: 7.2 | F210: 8.1 | G210: 8 | H210: 8.2 | I210: 7.8 | J210: 6.5 | K210: 6.3 | L210: 5.9 | M210: 6 | N210: 6.4 | O210: 6.2 | P210: 6.9 | S210: 41 | T210: 0.01650362118
B211: STOCKTON, CA | C211: 42 | D211: 6.7 | E211: 7 | F211: 7.7 | G211: 8.4 | H211: 9.2 | I211: 9.2 | J211: 8.2 | K211: 7.7 | L211: 7.1 | M211: 6.4 | N211: 5.8 | O211: 6.4 | P211: 7.5 | S211: 42 | T211: 0.01572494565
B212: ALAMOSA, CO | C212: 11 | D212: 5.6 | E212: 6.6 | F212: 8.4 | G212: 10.3 | H212: 9.7 | I212: 9 | J212: 7 | K212: 6.2 | L212: 6.5 | M212: 6.4 | N212: 5.6 | O212: 4.9 | P212: 7.2 | S212: 43 | T212: 0.014948404
B213: COLORADO SPRINGS, CO | C213: 54 | D213: 9.4 | E213: 10 | F213: 11.1 | G213: 11.6 | H213: 11.2 | I213: 10.4 | J213: 9.3 | K213: 8.9 | L213: 9.4 | M213: 9.6 | N213: 9.5 | O213: 9.4 | P213: 10 | S213: 44 | T213: 0.01417775905
B214: DENVER, CO | C214: 47 | D214: 8.6 | E214: 8.7 | F214: 9.6 | G214: 10 | H214: 9.3 | I214: 8.8 | J214: 8.3 | K214: 8 | L214: 7.9 | M214: 7.8 | N214: 8.2 | O214: 8.4 | P214: 8.6 | S214: 45 | T214: 0.0134164621
B215: GRAND JUNCTION, CO | C215: 56 | D215: 5.7 | E215: 6.7 | F215: 8.4 | G215: 9.4 | H215: 9.6 | I215: 9.8 | J215: 9.4 | K215: 9.1 | L215: 9 | M215: 7.9 | N215: 6.8 | O215: 6 | P215: 8.2 | S215: 46 | T215: 0.01266764665
B216: PUEBLO, CO | C216: 47 | D216: 7.8 | E216: 8.5 | F216: 9.6 | G216: 10.3 | H216: 9.7 | I216: 9.3 | J216: 8.7 | K216: 7.9 | L216: 7.9 | M216: 7.4 | N216: 7.5 | O216: 7.7 | P216: 8.5 | S216: 47 | T216: 0.01193412596
B217: BRIDGEPORT, CT | C217: 30 | D217: 12.5 | E217: 12.9 | F217: 13 | G217: 12.4 | H217: 11.1 | I217: 9.9 | J217: 9.4 | K217: 9.5 | L217: 10.5 | M217: 11.3 | N217: 12 | O217: 12.1 | P217: 11.4 | S217: 48 | T217: 0.01121839385
B218: HARTFORD, CT | C218: 48 | D218: 8.9 | E218: 9.4 | F218: 9.9 | G218: 9.8 | H218: 8.7 | I218: 8 | J218: 7.3 | K218: 7 | L218: 7.3 | M218: 7.8 | N218: 8.4 | O218: 8.7 | P218: 8.4 | S218: 49 | T218: 0.01052262871
B219: WILMINGTON, DE | C219: 54 | D219: 9.8 | E219: 10.3 | F219: 11 | G219: 10.4 | H219: 9 | I219: 8.3 | J219: 7.8 | K219: 7.4 | L219: 7.8 | M219: 8.1 | N219: 9.2 | O219: 9.3 | P219: 9 | S219: 50 | T219: 0.009848700437
B220: WASHINGTON DULLES AP, D.C. | C220: 40 | D220: 8.1 | E220: 8.6 | F220: 9 | G220: 8.8 | H220: 7.4 | I220: 6.8 | J220: 6.2 | K220: 5.8 | L220: 6.2 | M220: 6.6 | N220: 7.6 | O220: 7.7 | P220: 7.4 | S220: 51 | T220: 0.009198179745
B221: WASHINGTON NAT'L AP, D.C. | C221: 54 | D221: 10 | E221: 10.3 | F221: 10.9 | G221: 10.5 | H221: 9.3 | I221: 8.9 | J221: 8.3 | K221: 8.1 | L221: 8.3 | M221: 8.7 | N221: 9.4 | O221: 9.6 | P221: 9.4 | S221: 52 | T221: 0.008572349859
B222: APALACHICOLA, FL | C222: 54 | D222: 8.3 | E222: 8.7 | F222: 8.9 | G222: 8.5 | H222: 7.7 | I222: 7.1 | J222: 6.4 | K222: 6.4 | L222: 7.8 | M222: 8 | N222: 8 | O222: 8 | P222: 7.8 | S222: 53 | T222: 0.007972220032
B223: DAYTONA BEACH, FL | C223: 57 | D223: 8.8 | E223: 9.3 | F223: 9.8 | G223: 9.4 | H223: 8.9 | I223: 8 | J223: 7.3 | K223: 7 | L223: 8 | M223: 8.9 | N223: 8.3 | O223: 8.3 | P223: 8.5 | S223: 54 | T223: 0.007398540674
B224: FORT MYERS, FL | C224: 57 | D224: 8.3 | E224: 8.9 | F224: 9.3 | G224: 8.8 | H224: 8 | I224: 7.2 | J224: 6.6 | K224: 6.7 | L224: 7.4 | M224: 8.4 | N224: 8.1 | O224: 7.9 | P224: 8 | S224: 55 | T224: 0.006851819753
B225: GAINESVILLE, FL | C225: 19 | D225: 6.9 | E225: 7.4 | F225: 7.8 | G225: 7.2 | H225: 6.9 | I225: 6.1 | J225: 5.6 | K225: 5.4 | L225: 5.8 | M225: 6.3 | N225: 6.2 | O225: 6 | P225: 6.5 | S225: 56 | T225: 0.006332340171
B226: JACKSONVILLE, FL | C226: 53 | D226: 8.1 | E226: 8.7 | F226: 9.1 | G226: 8.5 | H226: 7.9 | I226: 7.7 | J226: 7 | K226: 6.7 | L226: 7.4 | M226: 7.8 | N226: 7.6 | O226: 7.6 | P226: 7.8 | S226: 57 | T226: 0.005840177825
B227: KEY WEST, FL | C227: 49 | D227: 11.8 | E227: 12 | F227: 12.1 | G227: 12.2 | H227: 10.5 | I227: 9.6 | J227: 9.4 | K227: 9.2 | L227: 9.6 | M227: 10.8 | N227: 12 | O227: 11.8 | P227: 10.9 | S227: 58 | T227: 0.005375220069
B228: MIAMI, FL | C228: 53 | D228: 9.5 | E228: 10 | F228: 10.5 | G228: 10.5 | H228: 9.5 | I228: 8.3 | J228: 7.9 | K228: 7.9 | L228: 8.2 | M228: 9.2 | N228: 9.7 | O228: 9.1 | P228: 9.2 | S228: 59 | T228: 0.004937184353
B229: ORLANDO, FL | C229: 54 | D229: 9 | E229: 9.6 | F229: 9.9 | G229: 9.4 | H229: 8.8 | I229: 8 | J229: 7.3 | K229: 7.2 | L229: 7.6 | M229: 8.6 | N229: 8.6 | O229: 8.5 | P229: 8.5 | S229: 60 | T229: 0.004525636771
B230: PENSACOLA, FL | C230: 38 | D230: 9 | E230: 9.3 | F230: 9.8 | G230: 9.5 | H230: 8.6 | I230: 7.6 | J230: 6.9 | K230: 6.7 | L230: 7.6 | M230: 7.9 | N230: 8.2 | O230: 8.8 | P230: 8.3 | S230: 61 | T230: 0.004140010345
B231: TALLAHASSEE, FL | C231: 41 | D231: 6.7 | E231: 7.1 | F231: 7.5 | G231: 6.8 | H231: 6.2 | I231: 5.7 | J231: 5 | K231: 5 | L231: 5.9 | M231: 6.3 | N231: 5.9 | O231: 6.3 | P231: 6.2 | S231: 62 | T231: 0.00377962283
B232: TAMPA, FL | C232: 56 | D232: 8.6 | E232: 9.1 | F232: 9.4 | G232: 9.2 | H232: 8.6 | I232: 7.9 | J232: 7.1 | K232: 6.9 | L232: 7.6 | M232: 8.3 | N232: 8.2 | O232: 8.3 | P232: 8.3 | S232: 63 | T232: 0.003443693903
B233: VERO BEACH, FL | C233: 19 | D233: 8.7 | E233: 9 | F233: 9.9 | G233: 9.5 | H233: 9.1 | I233: 7.7 | J233: 6.9 | K233: 6.5 | L233: 7.3 | M233: 8.6 | N233: 8.6 | O233: 8 | P233: 8.3 | S233: 64 | T233: 0.003131361589
B234: WEST PALM BEACH, FL | C234: 60 | D234: 10.1 | E234: 10.5 | F234: 11 | G234: 10.9 | H234: 9.9 | I234: 8.3 | J234: 7.7 | K234: 7.7 | L234: 8.7 | M234: 10 | N234: 10.4 | O234: 10 | P234: 9.6 | S234: 65 | T234: =(S234/($T$166^2))*EXP(((-(S234^2))/(2*($T$166^2)))) -> 0.002841697805 | U234: =IF(100*(1-(156.4*EXP(0.318*($S234/2.23694)/((9.8*$T$161*($M$39*0.0254))^(1/3))))/($M$16^3))>=0,100*(1-(156.4*EXP(0.318*($S234/2.23694)/((9.8*$T$161*($M$39*0.0254))^(1/3))))/($M$16^3)),0) -> 
B235: ATHENS, GA | C235: 47 | D235: 8.3 | E235: 8.6 | F235: 8.7 | G235: 8.3 | H235: 7.1 | I235: 6.6 | J235: 6.3 | K235: 5.8 | L235: 6.4 | M235: 6.6 | N235: 7.3 | O235: 8 | P235: 7.3 | S235: 66 | T235: 0.002573722952
... 204 more rows

Sheet Electricity
A1: Supplemental worksheet: Electricity generation
A3: This supplemental worksheet calculates the amount of electricity generation, fuel consumption and GHG emissions
A6: 1 Input assumptions and data
M9: User | N9: Default | O9: Unit | P9: User reference | R9: Default reference | U9: Notes
A10: 1.1 Fraction of electricity demand generated onsite (exceed 1.0 in case of export) | M10: ='User Inputs & Results'!J96 -> 0 | N10: ='User Inputs & Results'!K96 -> 0 | O10: [-] | U10: Excluding co-generation and combined heat and electricity
A12: 1.2 Generator type | M12: 1 | N12: 1 | O12: NA
B13: 1= Natural gas generator set
B14: 2= Natural gas turbine
B15: 3= Diesel generator set
A17: 1.3 Energy consumption | M17: =N17 -> 10754.19792 | N17: =IF(M12=1,IF(M10<=Drivers!D10*0.96*'Input data'!E57,Drivers!E15/(0.96*'Input data'!E57),IF(M10<=Drivers!F10*0.96*'Input data'!E57,Drivers!G15/(0.96*'Input data'!E57),IF(M10<=Drivers!H10*0.96*'Input data'!E57,Drivers!I15/(0.96*'Input data'!E57),IF(M10<=Drivers!J10*0.96*'Input data'!E57,Drivers!K15/(0.96*'Input data'!E57),IF(M10<=Drivers!L10*0.96*'Input data'!E57,Drivers!M15/(0.96*'Input data'!E57),IF(M10<=Drivers!N10*0.96*'Input data'!E57,Drivers!O15/(0.96*'Input data'!E57),IF(M10<=Drivers!P10*0.96*'Input data'!E57,Drivers!Q15/(0.96*'Input data'!E57),IF(M10<=Drivers!R10*0.96*'Input data'!E57,Drivers!S15/(0.96*'Input data'!E57),IF(M10<=Drivers!T10*0.96*'Input data'!E57,Drivers!U15/(0.96*'Input data'!E57),IF(M10<=Drivers!V10*0.96*'Input data'!E57,Drivers!W15/(0.96*'Input data'!E57),IF(M10<=Drivers!X10*0.96*'Input data'!E57,Drivers!Y15/(0.96*'Input data'!E57),IF(M10<=Drivers!Z10*0.96*'Input data'!E57,Drivers!AA15/(0.96*'Input data'!E57),Drivers!AC15/(0.96*'Input data'!E57))))))))))))),IF(M12=2,IF(M10<=Drivers!D24*0.96*'Input data'!E57,Drivers!E29/(0.96*'Input data'!E57),IF(M10<=Drivers!F24*0.96*'Input data'!E57,Drivers!G29/(0.96*'Input data'!E57),IF(M10<=Drivers!H24*0.96*'Input data'!E57,Drivers!I29/(0.96*'Input data'!E57),IF(M10<=Drivers!J24*0.96*'Input data'!E57,Drivers!K29/(0.96*'Input data'!E57),IF(M10<=Drivers!L24*0.96*'Input data'!E57,Drivers!M29/(0.96*'Input data'!E57),IF(M10<=Drivers!N24*0.96*'Input data'!E57,Drivers!O29/(0.96*'Input data'!E57),IF(M10<=Drivers!P24*0.96*'Input data'!E57,Drivers!Q29/(0.96*'Input data'!E57),IF(M10<=Drivers!R24*0.96*'Input data'!E57,Drivers!S29/(0.96*'Input data'!E57),Drivers!U29/(0.96*'Input data'!E57))))))))),IF(M10<=Drivers!D36*0.96*'Input data'!E57,Drivers!E41/(0.96*'Input data'!E57),IF(M10<=Drivers!F36*0.96*'Input data'!E57,Drivers!G41/(0.96*'Input data'!E57),IF(M10<=Drivers!H36*0.96*'Input data'!E57,Drivers!I41/(0.96*'Input data'!E57),IF(M10<=Drivers!J36*0.96*'Input data'!E57,Drivers!K41/(0.96*'Input data'!E57),IF(M10<=Drivers!L36*0.96*'Input data'!E57,Drivers!M41/(0.96*'Input data'!E57),IF(M10<=Drivers!N36*0.96*'Input data'!E57,Drivers!O41/(0.96*'Input data'!E57),IF(M10<=Drivers!P36*0.96*'Input data'!E57,Drivers!Q41/(0.96*'Input data'!E57),IF(M10<=Drivers!R36*0.96*'Input data'!E57,Drivers!S41/(0.96*'Input data'!E57),Drivers!U41/(0.96*'Input data'!E57))))))))))) -> 10754.19792 | O17: Btu/kW-hr | U17: A typical CAT generator efficiency of 96% is assumed
A19: 1.4 Offsite electricity fuel mix
B20: 1.4.1 Biomass | M20: 1.3 | N20: 1.3 | O20: % | U20: CA-GREET default technology split
B21: 1.4.2 Coal | M21: 50.7 | N21: 50.7 | O21: % | U21: CA-GREET default technology split
B22: 1.4.3 NG | M22: 18.9 | N22: 18.9 | O22: % | U22: CA-GREET default technology split
B23: 1.4.4 Nuclear | M23: 18.7 | N23: 18.7 | O23: % | U23: CA-GREET default technology split
B24: 1.4.5 Renewables | M24: 7.7 | N24: 7.7 | O24: % | U24: CA-GREET default technology split
B25: 1.4.6 Oil | M25: 2.7 | N25: 2.7 | O25: % | U25: CA-GREET default technology split
M26: =IF(SUM(M20:M25)=100,"OK","ERROR") -> OK
A28: 1.5 Type of displaced electricity | M28: 2 | N28: 2 | O28: NA
B29: 1= Full grid electricity
B30: 2= NG-based electricity
A32: 2 Calculations
M34: Value | N34: Unit | P34: Equation | U34: Notes
A35: 2.1 Electricity production | M35: =M10*'Energy Consumption'!E70 -> 0 | N35: MMBtu/d
A37: 2.2 Fuel consumption | M37: =((M35*1000000*'Input data'!E50)*M17)/1000000 -> 0 | N37: MMBtu/d
A39: 2.3 GHG emissions | M39: =(M37*IF(M12=1,'Emissions Factors'!H17,IF(M12=2,'Emissions Factors'!G17,'Emissions Factors'!K17)))/1000000 -> 0 | N39: tCO2eq/d

Sheet Drivers
A1: Supplemental worksheet: Drivers
A3: This supplemental worksheet calculates energy use for prime movers (engines) and motors used in processes.
A5: 1 Prime mover and motor data tables
B8: Table 1.1: Natural gas engines energy consumption
B9: Engine model # | D9: G3304 | F9: G3306 | H9: G3408/TM9151-05 | J9: G3408/TM8633-01 | L9: G3408/TM9213-04 | N9: G3412/DM8646-00 | P9: G3412/DM5206-04 | R9: G3512 LE/DM8619-01 | T9: G3512 LE/DM8617-01 | V9: G3516B/DM5490 | X9: G3608/DM5047 | Z9: G3608/DM5046 | AB9: G3520C
B10: Power | D10: 95 | E10: bhp | F10: 145 | G10: bhp | H10: 255 | I10: bhp | J10: 332 | K10: bhp | L10: 400 | M10: bhp | N10: 500 | O10: bhp | P10: 600 | Q10: bhp | R10: 860 | S10: bhp | T10: 1004 | U10: bhp | V10: =(1100/0.96)*'Input data'!$E$56 -> 1535.416667 | W10: bhp | X10: =(1713/0.96)*'Input data'!$E$56 -> 2391.0625 | Y10: bhp | Z10: =(1824/0.96)*'Input data'!$E$56 -> 2546 | AA10: bhp | AB10: =(1966/0.96)*'Input data'!$E$56 -> 2744.208333 | AC10: bhp
B11: Energy consumption | D11: MJ LHV/bkW-hr | E11: Btu LHV/bhp-hr | F11: MJ LHV/bkW-hr | G11: Btu LHV/bhp-hr | H11: MJ LHV/bkW-hr | I11: Btu LHV/bhp-hr | J11: MJ LHV/bkW-hr | K11: Btu LHV/bhp-hr | L11: MJ LHV/bkW-hr | M11: Btu LHV/bhp-hr | N11: MJ LHV/bkW-hr | O11: Btu LHV/bhp-hr | P11: MJ LHV/bkW-hr | Q11: Btu LHV/bhp-hr | R11: MJ LHV/bkW-hr | S11: Btu LHV/bhp-hr | T11: MJ LHV/bkW-hr | U11: Btu LHV/bhp-hr | V11: MJ HHV/bkW-hr | W11: Btu LHV/bhp-hr | X11: MJ LHV/bkW-hr | Y11: Btu LHV/bhp-hr | Z11: MJ LHV/bkW-hr | AA11: Btu LHV/bhp-hr | AB11: MJ LHV/bkW-hr | AC11: Btu LHV/bhp-hr
B12: 100% Load | D12: 10.71 | E12: 7567 | F12: 11 | G12: 7775 | H12: 10.71 | I12: 7568 | J12: 10.62 | K12: 7507 | L12: 9.92 | M12: 7008 | N12: 11.04 | O12: 7800 | P12: 10.2 | Q12: 7210 | R12: 10.47 | S12: 7402 | T12: 10.42 | U12: 7368 | V12: =('Input data'!$E$48/0.364)*0.96 -> 9.494505495 | W12: =V12*'Input data'!$E$43/'Input data'!$E$56 -> 6715.712577 | X12: =('Input data'!$E$48/0.376)*0.96 -> 9.191489362 | Y12: =X12*'Input data'!$E$43/'Input data'!$E$56 -> 6501.381325 | Z12: =('Input data'!$E$48/0.379)*0.96 -> 9.118733509 | AA12: =Z12*'Input data'!$E$43/'Input data'!$E$56 -> 6449.919204 | AB12: =('Input data'!$E$48/0.404)*0.96 -> 8.554455446 | AC12: =AB12*'Input data'!$E$43/'Input data'!$E$56 -> 6050.79054
B13: 75% Load | D13: 11.1 | E13: 7842 | F13: 11.77 | G13: 8318 | H13: 11.64 | I13: 8225 | J13: 11.14 | K13: 7874 | L13: 10.4 | M13: 7350 | N13: 11.27 | O13: 7964 | P13: 11.05 | Q13: 7813 | R13: 10.86 | S13: 7676 | T13: 10.84 | U13: 7665 | V13: NA | W13: NA | X13: NA | Y13: NA | Z13: NA | AA13: NA | AB13: NA | AC13: NA
B14: 50% Load | D14: NA | E14: NA | F14: NA | G14: NA | H14: NA | I14: NA | J14: NA | K14: NA | L14: NA | M14: NA | N14: NA | O14: NA | P14: NA | Q14: NA | R14: NA | S14: NA | T14: NA | U14: NA | V14: NA | W14: NA | X14: NA | Y14: NA | Z14: NA | AA14: NA | AB14: NA | AC14: NA
B15: Average (median) | D15: =MEDIAN(D12:D13) -> 10.905 | E15: =MEDIAN(E12:E13) -> 7704.5 | F15: 11.385 | G15: 8046.5 | H15: 11.175 | I15: 7896.5 | J15: 10.88 | K15: 7690.5 | L15: 10.16 | M15: 7179 | N15: 11.155 | O15: 7882 | P15: 10.625 | Q15: 7511.5 | R15: 10.665 | S15: 7539 | T15: 10.63 | U15: 7516.5 | V15: =V12 -> 9.494505495 | W15: 6715.712577 | X15: 9.191489362 | Y15: 6501.381325 | Z15: 9.118733509 | AA15: 6449.919204 | AB15: 8.554455446 | AC15: 6050.79054
B16: Source: Caterpillar technical data sheets (http://www.catoilandgasinfo.com/gas_compression.asp?src=11cpt22&regstatus=true)
B17: Note(s):
B18: NA= Not available
B19: For G3516 to G3520 the energy consumption of the engine is calculated from the given generator set efficiency
B22: Table 1.2: Natural gas turbines energy consumption
B23: Engine model # | D23: Saturn 20 | F23: Centaur 40 | H23: Centaur 50 | J23: Taurus 60 | L23: Taurus 60 | N23: Taurus 70 | P23: Mars 90 | R23: Mars 100 | T23: Titan 130
B24: Power | D24: 1590 | E24: bhp | F24: 4700 | G24: bhp | H24: 6130 | I24: bhp | J24: 7770 | K24: bhp | L24: 7770 | M24: bhp | N24: 10915 | O24: bhp | P24: 13220 | Q24: bhp | R24: 15900 | S24: bhp | T24: 20500 | U24: bhp
B25: Energy consumption | D25: MJ/bkW-hr | E25: Btu/bhp-hr | F25: MJ/bkW-hr | G25: Btu/bhp-hr | H25: MJ/bkW-hr | I25: Btu/bhp-hr | J25: MJ/bkW-hr | K25: Btu/bhp-hr | L25: MJ/bkW-hr | M25: Btu/bhp-hr | N25: MJ/bkW-hr | O25: Btu/bhp-hr | P25: MJ/bkW-hr | Q25: Btu/bhp-hr | R25: MJ/bkW-hr | S25: Btu/bhp-hr | T25: MJ/bkW-hr | U25: Btu/bhp-hr
B26: 100% Load | D26: 14.67 | E26: 10370 | F26: 12.905 | G26: 9125 | H26: 12.03 | I26: 8500 | J26: 11.26 | K26: 7965 | L26: 11.26 | M26: 7965 | N26: 10.19 | O26: 7205 | P26: 10.83 | Q26: 7655 | R26: 10.46 | S26: 7395 | T26: 9.94 | U26: 7025
B27: 75% Load | D27: NA | E27: NA | F27: NA | G27: NA | H27: NA | I27: NA | J27: NA | K27: NA | L27: NA | M27: NA | N27: NA | O27: NA | P27: NA | Q27: NA | R27: NA | S27: NA | T27: NA | U27: NA
B28: 50% Load | D28: NA | E28: NA | F28: NA | G28: NA | H28: NA | I28: NA | J28: NA | K28: NA | L28: NA | M28: NA | N28: NA | O28: NA | P28: NA | Q28: NA | R28: NA | S28: NA | T28: NA | U28: NA
B29: Average (median) | D29: =D26 -> 14.67 | E29: =E26 -> 10370 | F29: 12.905 | G29: 9125 | H29: 12.03 | I29: 8500 | J29: 11.26 | K29: 7965 | L29: 11.26 | M29: 7965 | N29: 10.19 | O29: 7205 | P29: 10.83 | Q29: 7655 | R29: 10.46 | S29: 7395 | T29: 9.94 | U29: 7025
B30: Source: Solar Turbines (Caterpillar) technical data sheets (http://mysolar.cat.com/cda/layout?m=35881&x=7)
B31: Notes:
B32: NA= Not available
B34: Table 1.3: Diesel engines energy consumption
B35: Engine model # | D35: 3406C | F35: C18 | H35: 3412C | J35: 3512 | L35: 3512B | N35: 3512B-HD | P35: 3516 | R35: 3516B | T35: C175-16
B36: Power | D36: =(275/0.96)*'Input data'!$E$56 -> 383.8541667 | E36: bhp | F36: =(545/0.96)*'Input data'!$E$56 -> 760.7291667 | G36: bhp | H36: =(648/0.96)*'Input data'!$E$56 -> 904.5 | I36: bhp | J36: =(1020/0.96)*'Input data'!$E$56 -> 1423.75 | K36: bhp | L36: =(1200/0.96)*'Input data'!$E$56 -> 1675 | M36: bhp | N36: =(1360/0.96)*'Input data'!$E$56 -> 1898.333333 | O36: bhp | P36: =(1460/0.96)*'Input data'!$E$56 -> 2037.916667 | Q36: bhp | R36: =(1600/0.96)*'Input data'!$E$56 -> 2233.333333 | S36: bhp | T36: =(2000/0.96)*'Input data'!$E$56 -> 2791.666667 | U36: bhp
B37: Energy consumption | D37: MJ/bkW-hr | E37: Btu/bhp-hr | F37: MJ/bkW-hr | G37: Btu/bhp-hr | H37: MJ/bkW-hr | I37: Btu/bhp-hr | J37: MJ/bkW-hr | K37: Btu/bhp-hr | L37: MJ/bkW-hr | M37: Btu/bhp-hr | N37: MJ/bkW-hr | O37: Btu/bhp-hr | P37: MJ/bkW-hr | Q37: Btu/bhp-hr | R37: MJ/bkW-hr | S37: Btu/bhp-hr | T37: MJ/bkW-hr | U37: Btu/bhp-hr
B38: 100% Load | D38: =E38*'Input data'!$E$45/(1/'Input data'!$E$56) -> 9.934933955 | E38: =21*'Fuel Specs'!$E$329/$D$36 -> 7027.278155 | F38: =G38*'Input data'!$E$45/(1/'Input data'!$E$56) -> 9.524776131 | G38: =39.9*'Fuel Specs'!$E$329/$F$36 -> 6737.161167 | H38: =I38*'Input data'!$E$45/(1/'Input data'!$E$56) -> 9.115053676 | I38: =45.4*'Fuel Specs'!$E$329/$H$36 -> 6447.352128 | J38: =K38*'Input data'!$E$45/(1/'Input data'!$E$56) -> 8.915698784 | K38: =69.9*'Fuel Specs'!$E$329/$J$36 -> 6306.342406 | L38: =M38*'Input data'!$E$45/(1/'Input data'!$E$56) -> 8.846822141 | M38: =81.6*'Fuel Specs'!$E$329/$L$36 -> 6257.623881 | N38: =O38*'Input data'!$E$45/(1/'Input data'!$E$56) -> 8.705242375 | O38: =91*'Fuel Specs'!$E$329/$N$36 -> 6157.480246 | P38: =Q38*'Input data'!$E$45/(1/'Input data'!$E$56) -> 9.009001999 | Q38: =101.1*'Fuel Specs'!$E$329/$P$36 -> 6372.338581 | R38: =S38*'Input data'!$E$45/(1/'Input data'!$E$56) -> 8.432127353 | S38: =103.7*'Fuel Specs'!$E$329/$R$36 -> 5964.297761 | T38: =U38*'Input data'!$E$45/(1/'Input data'!$E$56) -> 8.879347222 | U38: =136.5*'Fuel Specs'!$E$329/$T$36 -> 6280.629851
B39: 75% Load | D39: =E39*'Input data'!$E$45/(1/'Input data'!$E$56) -> 10.28186816 | E39: =16.3*'Fuel Specs'!$E$329/(0.75*$D$36) -> 7272.67517 | F39: =G39*'Input data'!$E$45/(1/'Input data'!$E$56) -> 10.37619722 | G39: =32.6*'Fuel Specs'!$E$329/(0.75*$F$36) -> 7339.39696 | H39: =I39*'Input data'!$E$45/(1/'Input data'!$E$56) -> 9.208747326 | I39: =34.4*'Fuel Specs'!$E$329/(0.75*$H$36) -> 6513.62447 | J39: =K39*'Input data'!$E$45/(1/'Input data'!$E$56) -> 9.13253266 | K39: =53.7*'Fuel Specs'!$E$329/(0.75*$J$36) -> 6459.71554 | L39: =M39*'Input data'!$E$45/(1/'Input data'!$E$56) -> 8.875733324 | M39: =61.4*'Fuel Specs'!$E$329/(0.75*$L$36) -> 6278.073632 | N39: =O39*'Input data'!$E$45/(1/'Input data'!$E$56) -> 8.762639577 | O39: =68.7*'Fuel Specs'!$E$329/(0.75*$N$36) -> 6198.079017 | P39: =Q39*'Input data'!$E$45/(1/'Input data'!$E$56) -> 9.160488679 | Q39: =77.1*'Fuel Specs'!$E$329/(0.75*$P$36) -> 6479.489675 | R39: =S39*'Input data'!$E$45/(1/'Input data'!$E$56) -> 8.521571327 | S39: =78.6*'Fuel Specs'!$E$329/(0.75*$R$36) -> 6027.564179 | T39: =U39*'Input data'!$E$45/(1/'Input data'!$E$56) -> 9.167736277 | U39: =105.7*'Fuel Specs'!$E$329/(0.75*$T$36) -> 6484.616119
B40: 50% Load | D40: =E40*'Input data'!$E$45/(1/'Input data'!$E$56) -> 11.1649734 | E40: =11.8*'Fuel Specs'!$E$329/(0.5*$D$36) -> 7897.322117 | F40: =G40*'Input data'!$E$45/(1/'Input data'!$E$56) -> 11.26740435 | G40: =23.6*'Fuel Specs'!$E$329/(0.5*$F$36) -> 7969.774613 | H40: =I40*'Input data'!$E$45/(1/'Input data'!$E$56) -> 9.637061156 | I40: =24*'Fuel Specs'!$E$329/(0.5*$H$36) -> 6816.583748 | J40: =K40*'Input data'!$E$45/(1/'Input data'!$E$56) -> 9.489670808 | K40: =37.2*'Fuel Specs'!$E$329/(0.5*$J$36) -> 6712.330114 | L40: =M40*'Input data'!$E$45/(1/'Input data'!$E$56) -> 9.30217328 | M40: =42.9*'Fuel Specs'!$E$329/(0.5*$L$36) -> 6579.707463 | N40: =O40*'Input data'!$E$45/(1/'Input data'!$E$56) -> 9.164419994 | O40: =47.9*'Fuel Specs'!$E$329/(0.5*$N$36) -> 6482.270413 | P40: =Q40*'Input data'!$E$45/(1/'Input data'!$E$56) -> 9.855545213 | Q40: =55.3*'Fuel Specs'!$E$329/(0.5*$P$36) -> 6971.124105 | R40: =S40*'Input data'!$E$45/(1/'Input data'!$E$56) -> 8.960659926 | S40: =55.1*'Fuel Specs'!$E$329/(0.5*$R$36) -> 6338.144776 | T40: =U40*'Input data'!$E$45/(1/'Input data'!$E$56) -> 9.874614713 | U40: =75.9*'Fuel Specs'!$E$329/(0.5*$T$36) -> 6984.612537
B41: Average (median) | D41: =MEDIAN(D38:D40) -> 10.28186816 | E41: =MEDIAN(E38:E40) -> 7272.67517 | F41: =MEDIAN(F38:F40) -> 10.37619722 | G41: =MEDIAN((G38:G40)) -> 7339.39696 | H41: =MEDIAN((H38:H40)) -> 9.208747326 | I41: =MEDIAN(I38:I40) -> 6513.62447 | J41: 9.13253266 | K41: 6459.71554 | L41: 8.875733324 | M41: 6278.073632 | N41: 8.762639577 | O41: 6198.079017 | P41: 9.160488679 | Q41: 6479.489675 | R41: 8.521571327 | S41: 6027.564179 | T41: 9.167736277 | U41: 6484.616119
B42: Source: Caterpillar technical data sheets
B43: Notes:
B44: NA= Not available
B46: Table 1.4: Electric motors energy consumption
B47: Engine model # | D47: 841 IEC/N495 | F47: 841 IEC/N424 | H47: 841 IEC/N434 | J47: 841 IEC/N437 | L47: 841 IEC/N443 | N47: 841 IEC/N455 | P47: 841 IEC/N462 | R47: 841 IEC/N468 | T47: Quantum-LMV | V47: Quantum-LMV | X47: Quantum-LMV | Z47: Quantum-LMV | AB47: Quantum-LMV
B48: Power | D48: =1.1*'Input data'!$E$56 -> 1.474 | E48: bhp | F48: =4*'Input data'!$E$56 -> 5.36 | G48: bhp | H48: =11*'Input data'!$E$56 -> 14.74 | I48: bhp | J48: =15*'Input data'!$E$56 -> 20.1 | K48: bhp | L48: =22*'Input data'!$E$56 -> 29.48 | M48: bhp | N48: =55*'Input data'!$E$56 -> 73.7 | O48: bhp | P48: =110*'Input data'!$E$56 -> 147.4 | Q48: bhp | R48: =220*'Input data'!$E$56 -> 294.8 | S48: bhp | T48: =350*'Input data'!$E$56 -> 469 | U48: bhp | V48: =400*'Input data'!$E$56 -> 536 | W48: bhp | X48: =450*'Input data'!$E$56 -> 603 | Y48: bhp | Z48: =500*'Input data'!$E$56 -> 670 | AA48: bhp | AB48: =600*'Input data'!$E$56 -> 804 | AC48: bhp
B49: Energy consumption | D49: MJ/bkW-hr | E49: Btu/bhp-hr | F49: MJ/bkW-hr | G49: Btu/bhp-hr | H49: MJ/bkW-hr | I49: Btu/bhp-hr | J49: MJ/bkW-hr | K49: Btu/bhp-hr | L49: MJ/bkW-hr | M49: Btu/bhp-hr | N49: MJ/bkW-hr | O49: Btu/bhp-hr | P49: MJ/bkW-hr | Q49: Btu/bhp-hr | R49: MJ/bkW-hr | S49: Btu/bhp-hr | T49: MJ/bkW-hr | U49: Btu/bhp-hr | V49: MJ/bkW-hr | W49: Btu/bhp-hr | X49: MJ/bkW-hr | Y49: Btu/bhp-hr | Z49: MJ/bkW-hr | AA49: Btu/bhp-hr | AB49: MJ/bkW-hr | AC49: Btu/bhp-hr
